Workbook

Sheet Cover page
A4: Cold Chain for Ocean Communities - Financial Projections Model (Advanced version)
B6: Key instructions and guidelines
B8: 1 | C8: Introduction
C9: This tool includes a three-statement financial model to simulate the operations, growth, and capital needs for a cold chain project over a 5 year time horizon. The model projects detailed revenues, costs, CAPEX, and financing, enabling both the project developer and or investors to test key assumptions and assess overall project performance. The model is built on a monthly basis to allow for granular analysis and targeted finance decisions. Please take some time to read and understand the instructions on this page before proceeding to the rest of the model, after which you need to update the assumptions based on the expectations/realities of your project. The assumptions sheet is the only one in which you should be making changes, by inputting assumption data in the grey boxes with blue font. The rest of the model auto-populates based on what's in the assumptions sheet, hence they do not require any inputs; any change in other sheets could break the model.
B11: 2 | C11: Table of contents & Legend
C13: Please click on one of the titles to access the material you want to look at (alternatively just click on the tabs at the bottom of the window).
C15: Sheet | D15: Descriptions
C16: Dashboard | D16: This sheet provides outputs of the model i.e., summary financials and charts of the financial projections
C17: Assumptions | D17: This sheet focuses on inputs to the model that reflect the key revenue, cost, & capitalization drivers
C18: Monthly build | D18: This sheet provides the projected monthly financial statements and the detailed supporting calculations underlying the financial projections
C19: Annual Financials | D19: This sheet provides projected annual financial statements
C21: Regarding the cells, please only make changes to the assumption fields, highlighted in grey with blue font:
C23: Blue text | D23: Assumption field - in these fields please enter your assumptions
C24: Black text | D24: Calculations field - should not be modified else you risk breaking the model
B26: 3 | C26: Model usage instructions
C28: Step 1: Please work your way through the assumptions, populating the grey fields with actual and or expected data; also, remember to select the relevant business model for your project. An overview of possible business models is provided on the Assumptions sheet. Additional guidance is also provided on the Assumptions sheet, in "light gray text" in column O on the right hand side.
C29: Step 2: After entering all your assumptions, please review the outputs carefully on the Dashboard. If you want further details, e.g., to understand the underlying context, you can refer to either the Monthly build or the Annual financials. Review the outputs carefully to help you understand likely economics of the project, including revenue, profit, and sustainability potential, as well as investment and financing needs.
C31: Note: The Assumptions tab is the primary input sheet and should be the only place where changes are made. All other sheets are formula-driven and automatically pull from these assumptions to perform the relevant calculations.

Sheet Dashboard
B1: Dashboard | V1: x
V2: x
B3: Summary financials | V3: x
B5: ="(all figures in "&'Assumptions '!F11&")" -> (all figures in USD) | V5: x
B7: Profit and loss statement | D7: ='Annual financials'!F4 -> 2026-12-31 | E7: ='Annual financials'!G4 -> 2027-12-31 | F7: ='Annual financials'!H4 -> 2028-12-31 | G7: ='Annual financials'!I4 -> 2029-12-31 | H7: ='Annual financials'!J4 -> 2030-12-31 | I7: 5-year CAGR* | V7: x
B8: Revenue | D8: ='Annual financials'!F14 -> 225418.3 | E8: ='Annual financials'!G14 -> 271226.6 | F8: ='Annual financials'!H14 -> 285191.6 | G8: ='Annual financials'!I14 -> 327435.5 | H8: ='Annual financials'!J14 -> 377688.8 | I8: =IFERROR(((H8/D8)^(1/5))-1,0) -> 0.1087381399 | V8: x
B9: COGS | D9: ='Annual financials'!F20 -> -141257.529 | E9: ='Annual financials'!G20 -> -169961.958 | F9: ='Annual financials'!H20 -> -178674.948 | G9: ='Annual financials'!I20 -> -205281.405 | H9: ='Annual financials'!J20 -> -270264.744 | I9: 0.138559046 | V9: x
B10: Gross Profit | D10: =D8+D9 -> 84160.771 | E10: =E8+E9 -> 101264.642 | F10: 106516.652 | G10: 122154.095 | H10: 107424.056 | I10: 0.05002192658 | V10: x
B11: Gross profit margin | D11: =IFERROR(D10/D8,0) -> 0.373353765 | E11: =IFERROR(E10/E8,0) -> 0.3733580777 | F11: 0.3734915474 | G11: 0.3730630765 | H11: 0.2844247857 | V11: x
B13: Other income (grants) | D13: ='Annual financials'!F26 -> 250000 | E13: ='Annual financials'!G26 -> 200000 | F13: ='Annual financials'!H26 -> 0 | G13: ='Annual financials'!I26 -> 0 | H13: ='Annual financials'!J26 -> 0 | I13: -1
B15: Operating expenses | D15: ='Annual financials'!F33 -> -72375.94043 | E15: ='Annual financials'!G33 -> -76180.55429 | F15: ='Annual financials'!H33 -> -84700.71577 | G15: ='Annual financials'!I33 -> -88518.77097 | H15: ='Annual financials'!J33 -> -92798.60229 | I15: 0.05096787963 | V15: x
B16: EBITDA | D16: =D10+D13+D15 -> 261784.8306 | E16: =E10+E13+E15 -> 225084.0877 | F16: 21815.93623 | G16: 33635.32403 | H16: 14625.45371 | I16: -0.4383924029 | V16: x
B17: EBITDA margin | D17: =IFERROR(D16/D8,0) -> 1.161329096 | E17: =IFERROR(E16/E8,0) -> 0.8298746794 | F17: 0.07649571807 | G17: 0.1027235105 | H17: 0.03872355683 | V17: x
B19: Depreciation | D19: ='Annual financials'!F37 -> -20415.77551 | E19: ='Annual financials'!G37 -> -18007.30094 | F19: ='Annual financials'!H37 -> -15913.84063 | G19: ='Annual financials'!I37 -> -14104.51605 | H19: ='Annual financials'!J37 -> -12533.17525 | I19: -0.0929754414 | V19: x
B20: Interest expense | D20: ='Annual financials'!F41 -> 0 | E20: ='Annual financials'!G41 -> 0 | F20: ='Annual financials'!H41 -> 0 | G20: ='Annual financials'!I41 -> 0 | H20: ='Annual financials'!J41 -> 0 | I20: 0 | V20: x
B21: EBT | D21: =D16+D19+D20 -> 241369.0551 | E21: =E16+E19+E20 -> 207076.7868 | F21: 5902.095597 | G21: 19530.80797 | H21: 2092.27846 | I21: -0.6131099339 | V21: x
B23: Income tax | D23: ='Annual financials'!F45 -> -72410.71652 | E23: ='Annual financials'!G45 -> -62123.03603 | F23: ='Annual financials'!H45 -> -1770.628679 | G23: ='Annual financials'!I45 -> -5859.242392 | H23: ='Annual financials'!J45 -> -627.6835381 | I23: -0.6131099339 | V23: x
B24: Net profit | D24: =D21+D23 -> 168958.3385 | E24: =E21+E23 -> 144953.7507 | F24: 4131.466918 | G24: 13671.56558 | H24: 1464.594922 | I24: -0.6131099339 | V24: x
B25: Net profit margin | D25: =IFERROR(D24/D8,0) -> 0.7495324849 | E25: =IFERROR(E24/E8,0) -> 0.5344378123 | F25: 0.01448663606 | G25: 0.04175346162 | H25: 0.003877782244 | V25: x
V26: x
B27: Statement of financial position | D27: =D7 -> 2026-12-31 | E27: =E7 -> 2027-12-31 | F27: =F7 -> 2028-12-31 | G27: =G7 -> 2029-12-31 | H27: =H7 -> 2030-12-31 | V27: x
B28: Current assets | D28: ='Annual financials'!F57 -> 100218.9192 | E28: ='Annual financials'!G57 -> 313311.6904 | F28: ='Annual financials'!H57 -> 333428.4952 | G28: ='Annual financials'!I57 -> 361322.7499 | H28: ='Annual financials'!J57 -> 375543.4198 | V28: x
B29: Non-current assets | D29: ='Annual financials'!F66 -> 171134.2245 | E29: ='Annual financials'!G66 -> 153126.9236 | F29: ='Annual financials'!H66 -> 137213.0829 | G29: ='Annual financials'!I66 -> 123108.5669 | H29: ='Annual financials'!J66 -> 110575.3916 | V29: x
B30: Total assets | D30: =D28+D29 -> 271353.1437 | E30: =E28+E29 -> 466438.614 | F30: 470641.5781 | G30: 484431.3168 | H30: 486118.8114 | I30: =IFERROR(((H30/D30)^(1/5))-1,0) -> 0.1236770579 | V30: x
V31: x
B32: Current liabilities | D32: ='Annual financials'!F74 -> 1144.805187 | E32: ='Annual financials'!G74 -> 1276.524694 | F32: ='Annual financials'!H74 -> 1348.021922 | G32: ='Annual financials'!I74 -> 1466.195014 | H32: ='Annual financials'!J74 -> 1689.094685 | V32: x
B33: Non- current liabilities | D33: ='Annual financials'!F78 -> 0 | E33: ='Annual financials'!G78 -> 0 | F33: ='Annual financials'!H78 -> 0 | G33: ='Annual financials'!I78 -> 0 | H33: ='Annual financials'!J78 -> 0 | V33: x
B34: Total liabilities | D34: =SUM(D32:D33) -> 1144.805187 | E34: =SUM(E32:E33) -> 1276.524694 | F34: 1348.021922 | G34: 1466.195014 | H34: 1689.094685 | I34: =IFERROR(((H34/D34)^(1/5))-1,0) -> 0.08089742276 | V34: x
V35: x
B36: Total equity | D36: ='Annual financials'!F83 -> 270208.3385 | E36: ='Annual financials'!G83 -> 465162.0893 | F36: ='Annual financials'!H83 -> 469293.5562 | G36: ='Annual financials'!I83 -> 482965.1218 | H36: ='Annual financials'!J83 -> 484429.7167 | V36: x
B37: Total equity and liabilities | D37: =SUM(D34,D36) -> 271353.1437 | E37: =SUM(E34,E36) -> 466438.614 | F37: 470641.5781 | G37: 484431.3168 | H37: 486118.8114 | I37: =IFERROR(((H37/D37)^(1/5))-1,0) -> 0.1236770579 | V37: x
B38: D/E ratio | D38: =D34/D36 -> 0.004236750034 | E38: =E34/E36 -> 0.002744257806 | F38: 0.002872449246 | G38: 0.003035819664 | H38: 0.003486769343 | V38: x
B40: Cashflow statement | V40: x
B41: Cashflow from operating activities | D41: ='Annual financials'!F101 -> -72029.81281 | E41: ='Annual financials'!G101 -> -39390.52196 | F41: ='Annual financials'!H101 -> 19279.49146 | G41: ='Annual financials'!I101 -> 25519.39226 | H41: ='Annual financials'!J101 -> 10265.29165 | I41: =IFERROR(((H41/D41)^(1/5))-1,0) -> -1.677285537 | V41: x
B42: Cashflow from investing activities | D42: ='Annual financials'!F105 -> -190300 | E42: ='Annual financials'!G105 -> 0 | F42: ='Annual financials'!H105 -> 0 | G42: ='Annual financials'!I105 -> 0 | H42: ='Annual financials'!J105 -> 0 | V42: x
B43: Cashflow from financing activities | D43: ='Annual financials'!F113 -> 350000 | E43: ='Annual financials'!G113 -> 250000 | F43: ='Annual financials'!H113 -> 0 | G43: ='Annual financials'!I113 -> 0 | H43: ='Annual financials'!J113 -> 0 | V43: x
B44: Net changes in cashflow | D44: =SUM(D41:D43) -> 87670.18719 | E44: =SUM(E41:E43) -> 210609.478 | F44: 19279.49146 | G44: 25519.39226 | H44: 10265.29165 | V44: x
B45: Opening cash balance | D45: ='Annual financials'!F115 -> 0 | E45: ='Annual financials'!G115 -> 87670.18719 | F45: ='Annual financials'!H115 -> 298279.6652 | G45: ='Annual financials'!I115 -> 317559.1567 | H45: ='Annual financials'!J115 -> 343078.5489 | V45: x
B46: Closing cash balance | D46: ='Annual financials'!F117 -> 87670.18719 | E46: ='Annual financials'!G117 -> 298279.6652 | F46: ='Annual financials'!H117 -> 317559.1567 | G46: ='Annual financials'!I117 -> 343078.5489 | H46: ='Annual financials'!J117 -> 353343.8406 | I46: =IFERROR(((H46/D46)^(1/5))-1,0) -> 0.3215059361 | V46: x
B47: * CAGR stands for Compound Annual Growth Rate | V47: x
B49: Summary charts | V49: x
E50: No | V50: x
V52: x
V53: x
V54: x
V55: x
V56: x
V57: x
V58: x
V59: x
V60: x
V61: x
V62: x
V63: x
V64: x
D65: =YEAR('Annual financials'!F4) -> 2026 | E65: =YEAR('Annual financials'!G4) -> 2027 | F65: =YEAR('Annual financials'!H4) -> 2028 | G65: =YEAR('Annual financials'!I4) -> 2029 | H65: =YEAR('Annual financials'!J4) -> 2030 | V65: x
V66: x
V67: x
V68: x
V69: x
V70: x
V71: x
V72: x
V73: x
V74: x
V75: x
V76: x
V77: x
V78: x
V79: x
V80: x
V81: x
V82: x
V83: x
V84: x
V85: x
R86: x
R87: x
R88: x
R89: x
R90: x
R91: x
R92: x
R93: x
R94: x
E95: Revenue | F95: =SUM(D8:H8) -> 1486960.8 | R95: x
E96: COGS | F96: =SUM(D9:H9) -> -965440.584 | R96: x
E97: Gross Profit | F97: =SUM(D10:H10) -> 521520.216 | R97: x
E98: Other income (grants) | F98: =SUM(D13:H13) -> 450000 | R98: x
E99: Operating expenses | F99: =SUM(D15:H15) -> -414574.5837 | R99: x
E100: EBITDA | F100: =SUM(D16:H16) -> 556945.6323 | R100: x
E101: Depn, Interest & taxes | F101: =SUM(D19:H20)+SUM(D23:H23) -> -223765.9155 | R101: x
E102: Net profit | F102: =SUM(D24:H24) -> 333179.7167 | R102: x
R103: x
R104: x
R105: x
R106: x
R107: x
R108: x
R109: x
R110: x
R111: x
R112: x
R113: x
R114: x
R115: x
R116: x
R117: x
R118: x
R119: x
R120: x
R121: x
R122: x
R123: x
R124: x
R125: x
R126: x
R127: x
R128: x
R129: x
R130: x
R131: x
R132: x
R133: x
R134: x
R135: x
R136: x
R137: x
R138: x
R139: x
R140: x
R141: x
R142: x
R143: x
R144: x
R145: x
R146: x
R147: x
R148: x
R149: x
R150: x
R151: x
R152: x
R153: x
R154: x
R155: x
R156: x
R157: x
R158: x
R159: x
R160: x
R161: x
R162: x
R163: x
R164: x
R165: x
R166: x
R167: x
R168: x

Sheet Assumptions
B1: Assumptions | N1: x | O1: Comments, instructions, and/or sources
F2: ` | N2: x
B3: General assumptions | N3: x
F4: ` | N4: x
D5: This section captures the basic settings used throughout the model. Enter the start date of the projection, the currency you will use, tax assumptions, and select the business model that best reflects how your fishery business operates. All values in the model should be entered using the same currency.
D7: Projection start date | F7: 2026-01-01 | N7: x | O7: Select the projections start date from the drop-down list
D8: Days in a year | F8: 365 | N8: x
D9: Months in a year | F9: 12 | N9: x
D10: Corporate tax rate (if applicable) | F10: 0.3 | N10: x
D11: Currency (e.g., USD, or KES) | F11: USD | G11: You can select your currency based on the geography, however, all inputs need to be made in the same currency!
D13: Operational business model selection: | F13: Fish trading (Push/Pull) | N13: x
D15: Business model selection options
D16: Fish trading - Push model: Fishers or community cooperatives jointly manage the cold-chain infrastructure and “push” product to market through collective bargaining and shared services
D17: Fish trading - Pull model: A central enterprise aggregates fish from multiple landing sites and coordinates cold storage, logistics, and sales downstream. Demand is “pulled” through the system by an organizer who secures offtakers and guarantees volume
D18: Cooling-as-a-service: Users pay per unit of cooling (per kg, per crate, per day), rather than owning equipment. The operator owns, maintains, and manages the entire cold-chain system
D19: Mobile Cold Chain: Mobile cold-storage solutions that deliver cooling directly to landing sites or remote communities where fixed infrastructure is not available
D20: Third-party logistics (3PL)/Refrigerated Distribution: A logistics provider who offers cold transportation and distribution services to fishers, processors, and traders
B23: Catch volume assumptions | N23: x
R24: Side calculations, do not edit!
D25: This section estimates how much fish the business will handle over time. Enter the expected monthly fish volumes for each product line and estimate how volumes may grow each year. If your business experiences seasonal peaks or low periods, include those assumptions so the model reflects real operating conditions. | N25: x | R25: Cumulative growth rate
R26: Side calculations, do not edit!
H27: Annual growth rate | N27: x | R27: Cumulative growth rate
D28: Product lines | F28: Introduction date | G28: Kilograms of fish aggregated/stored per month (baseline)* | H28: 1 | I28: 2 | J28: 3 | K28: 4 | L28: 5 | N28: x | R28: 1 | S28: 2 | T28: 3 | U28: 4 | V28: 5
D29: Product #1: Main product, e.g., Octopus from Lamu | F29: 2026-01-01 | G29: 1500 | H29: 0.05 | I29: 0.1 | J29: 0.15 | K29: 0.15 | L29: 0.1 | N29: x | R29: =PRODUCT(1+$H29:H29)-1 -> 0.05 | S29: =PRODUCT(1+$H29:I29)-1 -> 0.155 | T29: =PRODUCT(1+$H29:J29)-1 -> 0.32825 | U29: =PRODUCT(1+$H29:K29)-1 -> 0.5274875 | V29: =PRODUCT(1+$H29:L29)-1 -> 0.68023625
D30: Product #2: Add'l product, e.g., prawns from Lamu | F30: 2026-01-01 | G30: 850 | H30: 0.05 | I30: 0.1 | J30: 0.15 | K30: 0.15 | L30: 0.2 | N30: x | R30: =PRODUCT(1+$H30:H30)-1 -> 0.05 | S30: =PRODUCT(1+$H30:I30)-1 -> 0.155 | T30: =PRODUCT(1+$H30:J30)-1 -> 0.32825 | U30: =PRODUCT(1+$H30:K30)-1 -> 0.5274875 | V30: =PRODUCT(1+$H30:L30)-1 -> 0.832985
D31: Product #3: Add'l product, e.g., marlin from Lamu | F31: 2026-01-01 | G31: 550 | H31: 0.05 | I31: 0.1 | J31: 0.15 | K31: 0.15 | L31: 0.2 | N31: x | R31: =PRODUCT(1+$H31:H31)-1 -> 0.05 | S31: =PRODUCT(1+$H31:I31)-1 -> 0.155 | T31: =PRODUCT(1+$H31:J31)-1 -> 0.32825 | U31: =PRODUCT(1+$H31:K31)-1 -> 0.5274875 | V31: =PRODUCT(1+$H31:L31)-1 -> 0.832985
N35: x
D36: Note: * "Kilograms of fish aggregated/stored" equals the volume of fish that is stored in the cold chain facility. // Sales grow at different rates across the years which can be adjusted to reflect operational realities. | N36: x
D38: Seasonality
D40: =D29 -> Product #1: Main product, e.g., Octopus from Lamu
D41: Seasonal product? | F41: Yes
D43: Peak collection season | F43: between | G43: 2026-01-01 | H43: and | I43: 2026-03-31 | N43: x | O43: Please do include the seasonality multiplier. This indicates how fish volumes collected during a given season compare to average collection levels. For instance, a low season multiplier of 0.8 it reflects lower-than-average collections, as collection is approximately 80% of the monthly average over the entire year.
D44: Low collection season | F44: between | G44: 2026-11-30 | H44: and | I44: 2026-12-31 | N44: x
N45: x
D46: Peak season multiplier | F46: 1.5 | G46: =IF(F$41="No",1,F46) -> 1.5 | N46: x
D47: Low season multiplier | F47: 0.9 | G47: =IF(F$41="No",1,F47) -> 0.9 | N47: x
D48: Note: Ensure the low and high seasons are exclusive! | N48: x
D50: =D30 -> Product #2: Add'l product, e.g., prawns from Lamu
D51: Seasonal product? | F51: Yes
D53: Peak collection season | F53: between | G53: 2026-01-01 | H53: and | I53: 2026-03-31 | N53: x
D54: Low collection season | F54: between | G54: 2026-06-30 | H54: and | I54: 2026-12-31 | N54: x
N55: x
D56: Peak season multiplier | F56: 1.5 | G56: =IF(F$51="No",1,F56) -> 1.5 | N56: x
D57: Low season multiplier | F57: 0.9 | G57: =IF(F$51="No",1,F57) -> 0.9 | N57: x
D58: Note: Ensure the low and high seasons are exclusive! | N58: x
D60: =D31 -> Product #3: Add'l product, e.g., marlin from Lamu
D61: Seasonal product? | F61: No
D63: Peak collection season | F63: between | G63: 2026-01-01 | H63: and | I63: 2026-03-31 | N63: x
D64: Low collection season | F64: between | G64: 2026-06-30 | H64: and | I64: 2026-12-31 | N64: x
N65: x
D66: Peak season multiplier | F66: 1.5 | G66: =IF(F$61="No",1,F66) -> 1 | N66: x
D67: Low season multiplier | F67: 0.9 | G67: =IF(F$61="No",1,F67) -> 1 | N67: x
D68: Note: Ensure the low and high seasons are exclusive! | N68: x
D70: =D32 -> 0
D71: Seasonal product? | F71: No
D73: Peak collection season | F73: between | G73: 2026-01-01 | H73: and | I73: 2026-03-31 | N73: x
D74: Low collection season | F74: between | G74: 2026-06-30 | H74: and | I74: 2026-12-31 | N74: x
N75: x
D76: Peak season multiplier | F76: 1.5 | G76: =IF(F$71="No",1,F76) -> 1 | N76: x
D77: Low season multiplier | F77: 0.9 | G77: =IF(F$71="No",1,F77) -> 1 | N77: x
D78: Note: Ensure the low and high seasons are exclusive! | N78: x
D80: =D33 -> 0
D81: Seasonal product? | F81: No
D83: Peak collection season | F83: between | G83: 2026-01-01 | H83: and | I83: 2026-03-31 | N83: x
D84: Low collection season | F84: between | G84: 2026-06-30 | H84: and | I84: 2026-12-31 | N84: x
N85: x
D86: Peak season multiplier | F86: 1.5 | G86: =IF(F$81="No",1,F86) -> 1 | N86: x
D87: Low season multiplier | F87: 0.9 | G87: =IF(F$81="No",1,F87) -> 1 | N87: x
D88: Note: Ensure the low and high seasons are exclusive! | N88: x
D90: =D34 -> 0
D91: Seasonal product? | F91: No
D93: Peak collection season | F93: between | G93: 2026-01-01 | H93: and | I93: 2026-03-31 | N93: x
D94: Low collection season | F94: between | G94: 2026-06-30 | H94: and | I94: 2026-12-31 | N94: x
N95: x
D96: Peak season multiplier | F96: 1.5 | G96: =IF(F$91="No",1,F96) -> 1 | N96: x
D97: Low season multiplier | F97: 0.9 | G97: =IF(F$91="No",1,F97) -> 1 | N97: x
D98: Note: Ensure the low and high seasons are exclusive! | N98: x
B100: Business model assumptions | N100: x
D102: This section captures the commercial assumptions for your chosen operating model. Enter the prices you expect to charge customers and the direct costs associated with delivering the product or service. These assumptions help estimate revenue, gross profit, and overall business sustainability.
C104: Fish trading (Push & Pull) business models | N104: x
N105: x
N106: x
D107: Price assumptions | N107: x
D108: ="Price of kilogram of fish sold in "&F11 -> Price of kilogram of fish sold in USD | F108: 1 | G108: 2 | H108: 3 | I108: 4 | J108: 5 | N108: x
D109: =D29 -> Product #1: Main product, e.g., Octopus from Lamu | F109: 5 | G109: 6 | H109: 5 | I109: 5 | J109: 5 | N109: x
D110: =D30 -> Product #2: Add'l product, e.g., prawns from Lamu | F110: 7 | G110: 7 | H110: 7 | I110: 7 | J110: 7 | N110: x
D111: =D31 -> Product #3: Add'l product, e.g., marlin from Lamu | F111: 5.5 | G111: 5.5 | H111: 5.5 | I111: 5.5 | J111: 5.5 | N111: x
D112: =D32 -> 0 | F112: 4 | G112: 4 | H112: 4 | I112: 4 | J112: 4
D113: =D33 -> 0 | F113: 5 | G113: 5 | H113: 5 | I113: 5 | J113: 5
D114: =D34 -> 0 | F114: 6 | G114: 6 | H114: 6 | I114: 6 | J114: 6
D115: Note: Price per unit of fish | N115: x
N116: x
D117: Direct cost assumptions | N117: x
D118: ="Cost per kilogram of fish in "&F11 -> Cost per kilogram of fish in USD | F118: 1 | G118: 2 | H118: 3 | I118: 4 | J118: 5 | N118: x
D119: =D109 -> Product #1: Main product, e.g., Octopus from Lamu | F119: =F109*0.6 -> 3 | G119: =G109*0.6 -> 3.6 | H119: 3 | I119: 3 | J119: 4 | N119: x
D120: =D110 -> Product #2: Add'l product, e.g., prawns from Lamu | F120: =F110*0.6 -> 4.2 | G120: 4.2 | H120: 4.2 | I120: 4.2 | J120: 4.2 | N120: x | O120: Please ensure that if you have more than 1 species, you add costs and pricing for each
D121: Product #3: Add'l product, e.g., marlin from Lamu | F121: 3.3 | G121: 3.3 | H121: 3.3 | I121: 3.3 | J121: 3.3
D122: 0 | F122: 2.4 | G122: 2.4 | H122: 2.4 | I122: 2.4 | J122: 2.4
D123: 0 | F123: 3 | G123: 3 | H123: 3 | I123: 3 | J123: 3
D124: 0 | F124: 3.6 | G124: 3.6 | H124: 3.6 | I124: 3.6 | J124: 3.6
D125: Note: Cost per unit of fish, as acquired, e.g., from the local fishermen.
N126: x
N127: x
C128: Cooling-as-a-service / Mobile cold chain services | N128: x
N129: x
N130: x
D131: Price assumptions | N131: x
D132: ="CAAS storage fees - Price per kg per day in "&F11 -> CAAS storage fees - Price per kg per day in USD | F132: 1 | G132: 2 | H132: 3 | I132: 4 | J132: 5 | L132: Average storage time in days | N132: x
D133: =D109 -> Product #1: Main product, e.g., Octopus from Lamu | F133: 0.06 | G133: 0.06 | H133: 0.06 | I133: 0.06 | J133: 0.06 | L133: 4
D134: Product #2: Add'l product, e.g., prawns from Lamu | F134: 0.06 | G134: 0.06 | H134: 0.06 | I134: 0.06 | J134: 0.06 | L134: 4
D135: Product #3: Add'l product, e.g., marlin from Lamu | F135: 0.07 | G135: 0.07 | H135: 0.07 | I135: 0.07 | J135: 0.07 | L135: 4
D136: 0 | F136: 0 | G136: 0 | H136: 0 | I136: 0 | J136: 0 | L136: 4 | N136: x
D137: 0 | F137: 0 | G137: 0 | H137: 0 | I137: 0 | J137: 0 | L137: 4 | N137: x | O137: If offering both chilling and freezing services, please include the prices for each service as per unit measurement
D138: 0 | F138: 0 | G138: 0 | H138: 0 | I138: 0 | J138: 0 | L138: 4 | N138: x
N139: x
D140: Direct cost assumptions | N140: x
D141: ="Storage direct cost per kilogram of fish per day in "&F11 -> Storage direct cost per kilogram of fish per day in USD | F141: 1 | G141: 2 | H141: 3 | I141: 4 | J141: 5 | N141: x
D142: Storage costs | F142: 0.01 | G142: 0.01 | H142: 0.01 | I142: 0.01 | J142: 0.01 | N142: x
D144: Frequently, the storage or handling will be costed/priced by e.g., crate or cubic meter of storage space. You then need to calculate how many kg of fish fit into a crate or a cubic meter, which will be subject to species and packing method. This then allows you to calculate storage cost or price per kg.
D145: Please use the simplified simulator below, if helpful (the price then needs to be entered into the 'price per kg' within the price assumptions):
D147: Storage price per crate or cubic meter per day | F147: 15
D148: Volume of fish per crate or cubic meter of storage (in kg) | F148: 250
D149: Storage price per kg per day | F149: =F147/F148 -> 0.06
N150: x
B151: Third-party logistics provider (cold storage & transportation) | N151: x
N152: x
D153: Price assumptions | N153: x
D154: Handling fees (storage and transportation) - Price per kg | F154: 1 | G154: 2 | H154: 3 | I154: 4 | J154: 5 | N154: x
D155: =D133 -> Product #1: Main product, e.g., Octopus from Lamu | F155: =0.15*F119 -> 0.45 | G155: 0.54 | H155: 0.45 | I155: 0.45 | J155: 0.6
D156: Product #2: Add'l product, e.g., prawns from Lamu | F156: 0.63 | G156: 0.63 | H156: 0.63 | I156: 0.63 | J156: 0.63
D157: Product #3: Add'l product, e.g., marlin from Lamu | F157: 0.495 | G157: 0.495 | H157: 0.495 | I157: 0.495 | J157: 0.495
D158: 0 | F158: 0.36 | G158: 0.36 | H158: 0.36 | I158: 0.36 | J158: 0.36 | N158: x
D159: 0 | F159: 0.45 | G159: 0.45 | H159: 0.45 | I159: 0.45 | J159: 0.45 | N159: x | O159: If offering both chilling and freezing services, please include the prices for each service as per unit measurement
D160: 0 | F160: 0.54 | G160: 0.54 | H160: 0.54 | I160: 0.54 | J160: 0.54 | N160: x
N161: x
D162: Direct cost assumptions | N162: x
D163: Handling direct cost per kilogram of fish | F163: 1 | G163: 2 | H163: 3 | I163: 4 | J163: 5 | N163: x
D164: Storage and transportation costs | F164: =0.5*AVERAGE(F155:F160) -> 0.24375 | G164: =0.5*AVERAGE(G155:G160) -> 0.25125 | H164: 0.24375 | I164: 0.24375 | J164: 0.25625 | N164: x
N165: x
N166: x
B167: Other revenue streams (non-fish) | N167: x
N168: x
D169: This section serves to capture any other revenues the business might be generating alongside fish revenues (for fish trading businesses) or cold storage (for cooling-as-a-service businesses); classic examples include ice sales or phone charging services. Enter the expected monthly sales volumes for each product line and estimate how volumes may grow each year. | R169: Side calculations, do not edit!
H170: Annual growth rate | N170: x | R170: Cumulative growth rate
D171: Other revenue lines | F171: Introduction date | G171: # of units sold per month | H171: 1 | I171: 2 | J171: 3 | K171: 4 | L171: 5 | N171: x | R171: 1 | S171: 2 | T171: 3 | U171: 4 | V171: 5
D172: Side product #1: Ice sales (one unit is one 5kg bucket) | F172: 2026-01-01 | G172: 200 | H172: 0 | I172: 0.1 | J172: 0 | K172: 0 | L172: 0.1 | N172: x | R172: =PRODUCT(1+$H172:H172)-1 -> 0 | S172: =PRODUCT(1+$H172:I172)-1 -> 0.1 | T172: =PRODUCT(1+$H172:J172)-1 -> 0.1 | U172: =PRODUCT(1+$H172:K172)-1 -> 0.1 | V172: =PRODUCT(1+$H172:L172)-1 -> 0.21
D173: Side product #2: Phone charging (one unit is one phone charge) | F173: 2026-01-01 | G173: 50 | H173: 0 | I173: 0.1 | J173: 0.15 | K173: 0.15 | L173: 0.2 | N173: x | R173: =PRODUCT(1+$H173:H173)-1 -> 0 | S173: =PRODUCT(1+$H173:I173)-1 -> 0.1 | T173: =PRODUCT(1+$H173:J173)-1 -> 0.265 | U173: =PRODUCT(1+$H173:K173)-1 -> 0.45475 | V173: =PRODUCT(1+$H173:L173)-1 -> 0.7457
D174: Side product #3: (…) | F174: 2026-01-01 | G174: 33 | N174: x | R174: =PRODUCT(1+$H174:H174)-1 -> 0 | S174: =PRODUCT(1+$H174:I174)-1 -> 0 | T174: =PRODUCT(1+$H174:J174)-1 -> 0 | U174: =PRODUCT(1+$H174:K174)-1 -> 0 | V174: =PRODUCT(1+$H174:L174)-1 -> 0
D175: Side product #4: (…) | F175: 2026-01-01 | G175: 22 | N175: x | R175: =PRODUCT(1+$H175:H175)-1 -> 0 | S175: =PRODUCT(1+$H175:I175)-1 -> 0 | T175: =PRODUCT(1+$H175:J175)-1 -> 0 | U175: =PRODUCT(1+$H175:K175)-1 -> 0 | V175: =PRODUCT(1+$H175:L175)-1 -> 0
N176: x
D178: Price assumptions | N178: x
D179: ="Price per unit in "&F11 -> Price per unit in USD | F179: 1 | G179: 2 | H179: 3 | I179: 4 | J179: 5 | N179: x
D180: =D172 -> Side product #1: Ice sales (one unit is one 5kg bucket) | F180: 1 | G180: 1.1 | H180: 1.2 | I180: 1.2 | J180: 1.3
D181: =D173 -> Side product #2: Phone charging (one unit is one phone charge) | F181: 0.2 | G181: 0.2 | H181: 0.2 | I181: 0.2 | J181: 0.2
D182: Side product #3: (…)
D183: Side product #4: (…) | N183: x
N184: x
D185: Direct cost assumptions | N185: x
D186: ="Direct cost per unit in "&F11 -> Direct cost per unit in USD | F186: 1 | G186: 2 | H186: 3 | I186: 4 | J186: 5
D187: =D180 -> Side product #1: Ice sales (one unit is one 5kg bucket) | F187: =0.3*F180 -> 0.3 | G187: =0.3*G180 -> 0.33 | H187: 0.36 | I187: 0.36 | J187: 0.39
D188: =D181 -> Side product #2: Phone charging (one unit is one phone charge) | F188: =0.3*F181 -> 0.06 | G188: =0.3*G181 -> 0.06 | H188: 0.06 | I188: 0.06 | J188: 0.06
D189: Side product #3: (…) | F189: 0 | G189: 0 | H189: 0 | I189: 0 | J189: 0
D190: Side product #4: (…) | F190: 0 | G190: 0 | H190: 0 | I190: 0 | J190: 0
B192: Other Cost of Goods Sold (COGS) and Operating Cost assumptions | N192: x
D194: This section covers any other cost of goods sold (for simplification purposes, measured as a % of revenue), including electricity and water; sales and marketing costs as a % of revenue, as well as salaries and wages, and all the administrative overhead costs.
N195: x
B196: x | C196: Cost of goods sold (COGS) | N196: x
G197: Costs as a % of revenue | N197: x
D198: ="Cost in "&F11 -> Cost in USD | G198: 1 | H198: 2 | I198: 3 | J198: 4 | K198: 5 | N198: x
D199: Electricity and water | G199: 0.02 | H199: 0.02 | I199: 0.02 | J199: 0.02 | K199: 0.02 | N199: x
D200: Miscellaneous | G200: 0.01 | H200: 0.01 | I200: 0.01 | J200: 0.01 | K200: 0.01 | N200: x
D201: Note: In filling this additional COGS section, please take care to not duplicate costs already included in the direct costs assumptions above)!
B203: x | C203: Sales and marketing costs | N203: x
G204: Costs as a % of revenue | N204: x
D205: Product | F205: Introduction date | G205: 1 | H205: 2 | I205: 3 | J205: 4 | K205: 5 | N205: x
D206: Sales & marketing cost #1 | F206: 2026-01-01 | G206: 0.02 | H206: 0.02 | I206: 0.02 | J206: 0.02 | K206: 0.02 | N206: x
D207: Sales & marketing cost #2 | F207: 2026-01-01 | G207: 0.015 | H207: 0.015 | I207: 0.015 | J207: 0.015 | K207: 0.015 | N207: x
D208: Sales & marketing cost #3 | F208: 2026-01-01 | G208: 0 | H208: 0 | I208: 0 | J208: 0 | K208: 0 | N208: x
D209: Sales & marketing cost #4 | F209: 2026-01-01 | G209: 0 | H209: 0 | I209: 0 | J209: 0 | K209: 0 | N209: x
N210: x
D211: Note: Please use this section to input any sales and marketing costs incurred; e.g., packaging, labelling, advertising, digital marketing, etc. | N211: x
N212: x
B213: x | C213: Salaries and wages | N213: x
N214: x
H215: Staff count (FTE) | N215: x
D216: Role / Staff categories | F216: Start date | G216: ="Annual gross salary (FTE) in "&F11 -> Annual gross salary (FTE) in USD | H216: 1 | I216: =H216+1 -> 2 | J216: =I216+1 -> 3 | K216: =J216+1 -> 4 | L216: =K216+1 -> 5 | N216: x | O216: Define the role title, salary and number of staff within that title.
D217: Senior executive team | F217: 2026-01-01 | G217: 20256.58 | H217: 0.5 | I217: 0.5 | J217: 0.5 | K217: 0.5 | L217: 0.5 | N217: x
D218: Middle management team | F218: 2026-01-01 | G218: 12153.95 | H218: 1 | I218: 1 | J218: 1 | K218: 1 | L218: 1 | N218: x
D219: Operators | F219: 2026-01-01 | G219: 4051.32 | H219: 1 | I219: 1 | J219: 2 | K219: 2 | L219: 2 | N219: x
D220: Support staff | F220: 2026-01-01 | G220: 5671.84 | H220: 1 | I220: 1 | J220: 1 | K220: 1 | L220: 1 | N220: x
D221: [Insert new role] | F221: 2026-01-01 | H221: 0 | I221: 0 | J221: 0 | K221: 0 | L221: 0 | N221: x
D222: [Insert new role] | F222: 2026-01-01 | H222: 0 | I222: 0 | J222: 0 | K222: 0 | L222: 0 | N222: x
D223: [Insert new role] | F223: 2026-01-01 | H223: 0 | I223: 0 | J223: 0 | K223: 0 | L223: 0 | N223: x
D224: [Insert new role] | F224: 2026-01-01 | H224: 0 | I224: 0 | J224: 0 | K224: 0 | L224: 0 | N224: x
D225: [Insert new role] | F225: 2026-01-01 | H225: 0 | I225: 0 | J225: 0 | K225: 0 | L225: 0 | N225: x
D226: [Insert new role] | F226: 2026-01-01 | H226: 0 | I226: 0 | J226: 0 | K226: 0 | L226: 0 | N226: x
N227: x
D228: Annual salaries growth/inflation rate | F228: 0.03 | N228: x
D229: Annual growth rate factor | H229: 1 | I229: =H229*(1+$F$228) -> 1.03 | J229: =I229*(1+$F$228) -> 1.0609 | K229: =J229*(1+$F$228) -> 1.092727 | L229: =K229*(1+$F$228) -> 1.12550881 | N229: x
N230: x
... 191 more rows

Sheet Monthly build
B1: Financials & schedules (monthly)
B3: ="Financial statements (monthly) - all currency figures in "&'Assumptions '!F11 -> Financial statements (monthly) - all currency figures in USD | G3: 1 | H3: 1 | I3: 1 | J3: 1 | K3: 1 | L3: 1 | M3: 1 | N3: 1 | O3: 1 | P3: 1 | Q3: 1 | R3: 1 | S3: 2 | T3: 2 | U3: 2 | V3: 2 | W3: 2 | X3: 2 | Y3: 2 | Z3: 2 | AA3: 2 | AB3: 2 | AC3: 2 | AD3: 2 | AE3: 3 | AF3: 3 | AG3: 3 | AH3: 3 | AI3: 3 | AJ3: 3 | AK3: 3 | AL3: 3 | AM3: 3 | AN3: 3 | AO3: 3 | AP3: 3 | AQ3: 4 | AR3: 4 | AS3: 4 | AT3: 4 | AU3: 4 | AV3: 4 | AW3: 4 | AX3: 4 | AY3: 4 | AZ3: 4 | BA3: 4 | BB3: 4 | BC3: 5 | BD3: 5 | BE3: 5 | BF3: 5 | BG3: 5 | BH3: 5 | BI3: 5 | BJ3: 5 | BK3: 5 | BL3: 5 | BM3: 5 | BN3: 5
D4: Date | G4: ='Monthly build'!G129 -> 2026-01-01 | H4: =EOMONTH(G4,1) -> 2026-02-28 | I4: 2026-03-31 | J4: 2026-04-30 | K4: 2026-05-31 | L4: 2026-06-30 | M4: 2026-07-31 | N4: 2026-08-31 | O4: 2026-09-30 | P4: 2026-10-31 | Q4: 2026-11-30 | R4: 2026-12-31 | S4: 2027-01-31 | T4: 2027-02-28 | U4: 2027-03-31 | V4: 2027-04-30 | W4: 2027-05-31 | X4: 2027-06-30 | Y4: 2027-07-31 | Z4: 2027-08-31 | AA4: 2027-09-30 | AB4: 2027-10-31 | AC4: 2027-11-30 | AD4: 2027-12-31 | AE4: 2028-01-31 | AF4: 2028-02-29 | AG4: 2028-03-31 | AH4: 2028-04-30 | AI4: 2028-05-31 | AJ4: 2028-06-30 | AK4: 2028-07-31 | AL4: 2028-08-31 | AM4: 2028-09-30 | AN4: =EOMONTH(AM4,1) -> 2028-10-31 | AO4: 2028-11-30 | AP4: 2028-12-31 | AQ4: 2029-01-31 | AR4: 2029-02-28 | AS4: 2029-03-31 | AT4: 2029-04-30 | AU4: 2029-05-31 | AV4: 2029-06-30 | AW4: 2029-07-31 | AX4: 2029-08-31 | AY4: 2029-09-30 | AZ4: 2029-10-31 | BA4: 2029-11-30 | BB4: 2029-12-31 | BC4: 2030-01-31 | BD4: 2030-02-28 | BE4: 2030-03-31 | BF4: 2030-04-30 | BG4: 2030-05-31 | BH4: 2030-06-30 | BI4: 2030-07-31 | BJ4: 2030-08-31 | BK4: 2030-09-30 | BL4: 2030-10-31 | BM4: 2030-11-30 | BN4: 2030-12-31
D5: Month | G5: 1 | H5: =G5+1 -> 2 | I5: 3 | J5: 4 | K5: 5 | L5: 6 | M5: 7 | N5: 8 | O5: 9 | P5: 10 | Q5: 11 | R5: 12 | S5: 13 | T5: 14 | U5: 15 | V5: 16 | W5: 17 | X5: 18 | Y5: 19 | Z5: 20 | AA5: 21 | AB5: 22 | AC5: 23 | AD5: 24 | AE5: 25 | AF5: 26 | AG5: 27 | AH5: 28 | AI5: 29 | AJ5: 30 | AK5: 31 | AL5: 32 | AM5: 33 | AN5: =AM5+1 -> 34 | AO5: 35 | AP5: 36 | AQ5: 37 | AR5: 38 | AS5: 39 | AT5: 40 | AU5: 41 | AV5: 42 | AW5: 43 | AX5: 44 | AY5: 45 | AZ5: 46 | BA5: 47 | BB5: 48 | BC5: 49 | BD5: 50 | BE5: 51 | BF5: 52 | BG5: 53 | BH5: 54 | BI5: 55 | BJ5: 56 | BK5: 57 | BL5: 58 | BM5: 59 | BN5: 60
D7: Business model | F7: ='Assumptions '!$F$13 -> Fish trading (Push/Pull)
B9: Profit and Loss Statement
C11: Revenues
D12: Core business | G12: =G221 -> 24368 | H12: =H221 -> 24368 | I12: 24368 | J12: 17305 | K12: 17305 | L12: 16679.9 | M12: 16679.9 | N12: 16679.9 | O12: 16679.9 | P12: 16679.9 | Q12: 15892.4 | R12: 15892.4 | S12: 29400.5 | T12: 29400.5 | U12: 29400.5 | V12: 20764.5 | W12: 20764.5 | X12: 20077.1 | Y12: 20077.1 | Z12: 20077.1 | AA12: 20077.1 | AB12: 20077.1 | AC12: 19037.3 | AD12: 19037.3 | AE12: 30815 | AF12: 30815 | AG12: 30815 | AH12: 21883.5 | AI12: 21883.5 | AJ12: 21093.2 | AK12: 21093.2 | AL12: 21093.2 | AM12: 21093.2 | AN12: 21093.2 | AO12: 20097.2 | AP12: 20097.2 | AQ12: 35431.5 | AR12: 35431.5 | AS12: 35431.5 | AT12: 25161 | AU12: 25161 | AV12: 24252.4 | AW12: 24252.4 | AX12: 24252.4 | AY12: 24252.4 | AZ12: 24252.4 | BA12: 23106.9 | BB12: 23106.9 | BC12: 40803 | BD12: 40803 | BE12: 40803 | BF12: 29050 | BG12: 29050 | BH12: 27959.4 | BI12: 27959.4 | BJ12: 27959.4 | BK12: 27959.4 | BL12: 27959.4 | BM12: 26699.4 | BN12: 26699.4
D13: Other revenue sources | G13: =G228 -> 210 | H13: =H228 -> 210 | I13: 210 | J13: 210 | K13: 210 | L13: 210 | M13: 210 | N13: 210 | O13: 210 | P13: 210 | Q13: 210 | R13: 210 | S13: 253 | T13: 253 | U13: 253 | V13: 253 | W13: 253 | X13: 253 | Y13: 253 | Z13: 253 | AA13: 253 | AB13: 253 | AC13: 253 | AD13: 253 | AE13: 276.6 | AF13: 276.6 | AG13: 276.6 | AH13: 276.6 | AI13: 276.6 | AJ13: 276.6 | AK13: 276.6 | AL13: 276.6 | AM13: 276.6 | AN13: 276.6 | AO13: 276.6 | AP13: 276.6 | AQ13: 278.6 | AR13: 278.6 | AS13: 278.6 | AT13: 278.6 | AU13: 278.6 | AV13: 278.6 | AW13: 278.6 | AX13: 278.6 | AY13: 278.6 | AZ13: 278.6 | BA13: 278.6 | BB13: 278.6 | BC13: 332 | BD13: 332 | BE13: 332 | BF13: 332 | BG13: 332 | BH13: 332 | BI13: 332 | BJ13: 332 | BK13: 332 | BL13: 332 | BM13: 332 | BN13: 332
D14: Total monthly revenue | G14: =SUM(G12:G13) -> 24578 | H14: =SUM(H12:H13) -> 24578 | I14: 24578 | J14: 17515 | K14: 17515 | L14: 16889.9 | M14: 16889.9 | N14: 16889.9 | O14: 16889.9 | P14: 16889.9 | Q14: 16102.4 | R14: 16102.4 | S14: 29653.5 | T14: 29653.5 | U14: 29653.5 | V14: 21017.5 | W14: 21017.5 | X14: 20330.1 | Y14: 20330.1 | Z14: 20330.1 | AA14: 20330.1 | AB14: 20330.1 | AC14: 19290.3 | AD14: 19290.3 | AE14: 31091.6 | AF14: 31091.6 | AG14: 31091.6 | AH14: 22160.1 | AI14: 22160.1 | AJ14: 21369.8 | AK14: 21369.8 | AL14: 21369.8 | AM14: 21369.8 | AN14: 21369.8 | AO14: 20373.8 | AP14: 20373.8 | AQ14: 35710.1 | AR14: 35710.1 | AS14: 35710.1 | AT14: 25439.6 | AU14: 25439.6 | AV14: 24531 | AW14: 24531 | AX14: 24531 | AY14: 24531 | AZ14: 24531 | BA14: 23385.5 | BB14: 23385.5 | BC14: 41135 | BD14: 41135 | BE14: 41135 | BF14: 29382 | BG14: 29382 | BH14: 28291.4 | BI14: 28291.4 | BJ14: 28291.4 | BK14: 28291.4 | BL14: 28291.4 | BM14: 27031.4 | BN14: 27031.4
C16: Cost of goods sold
D17: Raw materials - Core business | G17: =-G297 -> -14620.8 | H17: =-H297 -> -14620.8 | I17: -14620.8 | J17: -10383 | K17: -10383 | L17: -10007.94 | M17: -10007.94 | N17: -10007.94 | O17: -10007.94 | P17: -10007.94 | Q17: -9535.44 | R17: -9535.44 | S17: -17640.3 | T17: -17640.3 | U17: -17640.3 | V17: -12458.7 | W17: -12458.7 | X17: -12046.26 | Y17: -12046.26 | Z17: -12046.26 | AA17: -12046.26 | AB17: -12046.26 | AC17: -11422.38 | AD17: -11422.38 | AE17: -18489 | AF17: -18489 | AG17: -18489 | AH17: -13130.1 | AI17: -13130.1 | AJ17: -12655.92 | AK17: -12655.92 | AL17: -12655.92 | AM17: -12655.92 | AN17: -12655.92 | AO17: -12058.32 | AP17: -12058.32 | AQ17: -21258.9 | AR17: -21258.9 | AS17: -21258.9 | AT17: -15096.6 | AU17: -15096.6 | AV17: -14551.44 | AW17: -14551.44 | AX17: -14551.44 | AY17: -14551.44 | AZ17: -14551.44 | BA17: -13864.14 | BB17: -13864.14 | BC17: -28261.8 | BD17: -28261.8 | BE17: -28261.8 | BF17: -19950 | BG17: -19950 | BH17: -19295.64 | BI17: -19295.64 | BJ17: -19295.64 | BK17: -19295.64 | BL17: -19295.64 | BM17: -18287.64 | BN17: -18287.64
D18: Raw materials - Other revenue sources | G18: =-G304 -> -63 | H18: =-H304 -> -63 | I18: -63 | J18: -63 | K18: -63 | L18: -63 | M18: -63 | N18: -63 | O18: -63 | P18: -63 | Q18: -63 | R18: -63 | S18: -75.9 | T18: -75.9 | U18: -75.9 | V18: -75.9 | W18: -75.9 | X18: -75.9 | Y18: -75.9 | Z18: -75.9 | AA18: -75.9 | AB18: -75.9 | AC18: -75.9 | AD18: -75.9 | AE18: -82.98 | AF18: -82.98 | AG18: -82.98 | AH18: -82.98 | AI18: -82.98 | AJ18: -82.98 | AK18: -82.98 | AL18: -82.98 | AM18: -82.98 | AN18: -82.98 | AO18: -82.98 | AP18: -82.98 | AQ18: -83.58 | AR18: -83.58 | AS18: -83.58 | AT18: -83.58 | AU18: -83.58 | AV18: -83.58 | AW18: -83.58 | AX18: -83.58 | AY18: -83.58 | AZ18: -83.58 | BA18: -83.58 | BB18: -83.58 | BC18: -99.6 | BD18: -99.6 | BE18: -99.6 | BF18: -99.6 | BG18: -99.6 | BH18: -99.6 | BI18: -99.6 | BJ18: -99.6 | BK18: -99.6 | BL18: -99.6 | BM18: -99.6 | BN18: -99.6
D19: Other COGS (e.g., electricity & water) | G19: =-G312 -> -737.34 | H19: =-H312 -> -737.34 | I19: -737.34 | J19: -525.45 | K19: -525.45 | L19: -506.697 | M19: -506.697 | N19: -506.697 | O19: -506.697 | P19: -506.697 | Q19: -483.072 | R19: -483.072 | S19: -889.605 | T19: -889.605 | U19: -889.605 | V19: -630.525 | W19: -630.525 | X19: -609.903 | Y19: -609.903 | Z19: -609.903 | AA19: -609.903 | AB19: -609.903 | AC19: -578.709 | AD19: -578.709 | AE19: -932.748 | AF19: -932.748 | AG19: -932.748 | AH19: -664.803 | AI19: -664.803 | AJ19: -641.094 | AK19: -641.094 | AL19: -641.094 | AM19: -641.094 | AN19: -641.094 | AO19: -611.214 | AP19: -611.214 | AQ19: -1071.303 | AR19: -1071.303 | AS19: -1071.303 | AT19: -763.188 | AU19: -763.188 | AV19: -735.93 | AW19: -735.93 | AX19: -735.93 | AY19: -735.93 | AZ19: -735.93 | BA19: -701.565 | BB19: -701.565 | BC19: -1234.05 | BD19: -1234.05 | BE19: -1234.05 | BF19: -881.46 | BG19: -881.46 | BH19: -848.742 | BI19: -848.742 | BJ19: -848.742 | BK19: -848.742 | BL19: -848.742 | BM19: -810.942 | BN19: -810.942
D20: Total COGS | G20: =SUM(G17:G19) -> -15421.14 | H20: =SUM(H17:H19) -> -15421.14 | I20: -15421.14 | J20: -10971.45 | K20: -10971.45 | L20: -10577.637 | M20: -10577.637 | N20: -10577.637 | O20: -10577.637 | P20: -10577.637 | Q20: -10081.512 | R20: -10081.512 | S20: -18605.805 | T20: -18605.805 | U20: -18605.805 | V20: -13165.125 | W20: -13165.125 | X20: -12732.063 | Y20: -12732.063 | Z20: -12732.063 | AA20: -12732.063 | AB20: -12732.063 | AC20: -12076.989 | AD20: -12076.989 | AE20: -19504.728 | AF20: -19504.728 | AG20: -19504.728 | AH20: -13877.883 | AI20: -13877.883 | AJ20: -13379.994 | AK20: -13379.994 | AL20: -13379.994 | AM20: -13379.994 | AN20: -13379.994 | AO20: -12752.514 | AP20: -12752.514 | AQ20: -22413.783 | AR20: -22413.783 | AS20: -22413.783 | AT20: -15943.368 | AU20: -15943.368 | AV20: -15370.95 | AW20: -15370.95 | AX20: -15370.95 | AY20: -15370.95 | AZ20: -15370.95 | BA20: -14649.285 | BB20: -14649.285 | BC20: -29595.45 | BD20: -29595.45 | BE20: -29595.45 | BF20: -20931.06 | BG20: -20931.06 | BH20: -20243.982 | BI20: -20243.982 | BJ20: -20243.982 | BK20: -20243.982 | BL20: -20243.982 | BM20: -19198.182 | BN20: -19198.182
D22: Gross Profit | G22: =G14+G20 -> 9156.86 | H22: =H14+H20 -> 9156.86 | I22: 9156.86 | J22: 6543.55 | K22: 6543.55 | L22: 6312.263 | M22: 6312.263 | N22: 6312.263 | O22: 6312.263 | P22: 6312.263 | Q22: 6020.888 | R22: 6020.888 | S22: 11047.695 | T22: 11047.695 | U22: 11047.695 | V22: 7852.375 | W22: 7852.375 | X22: 7598.037 | Y22: 7598.037 | Z22: 7598.037 | AA22: 7598.037 | AB22: 7598.037 | AC22: 7213.311 | AD22: 7213.311 | AE22: 11586.872 | AF22: 11586.872 | AG22: 11586.872 | AH22: 8282.217 | AI22: 8282.217 | AJ22: 7989.806 | AK22: 7989.806 | AL22: 7989.806 | AM22: 7989.806 | AN22: 7989.806 | AO22: 7621.286 | AP22: 7621.286 | AQ22: 13296.317 | AR22: 13296.317 | AS22: 13296.317 | AT22: 9496.232 | AU22: 9496.232 | AV22: 9160.05 | AW22: 9160.05 | AX22: 9160.05 | AY22: 9160.05 | AZ22: 9160.05 | BA22: 8736.215 | BB22: 8736.215 | BC22: 11539.55 | BD22: 11539.55 | BE22: 11539.55 | BF22: 8450.94 | BG22: 8450.94 | BH22: 8047.418 | BI22: 8047.418 | BJ22: 8047.418 | BK22: 8047.418 | BL22: 8047.418 | BM22: 7833.218 | BN22: 7833.218
D23: GP Margin | G23: =G22/G14 -> 0.372563268 | H23: =H22/H14 -> 0.372563268 | I23: 0.372563268 | J23: 0.3735969169 | K23: 0.3735969169 | L23: 0.3737300398 | M23: 0.3737300398 | N23: 0.3737300398 | O23: 0.3737300398 | P23: 0.3737300398 | Q23: 0.3739124603 | R23: 0.3739124603 | S23: 0.372559563 | T23: 0.372559563 | U23: 0.372559563 | V23: 0.3736112763 | W23: 0.3736112763 | X23: 0.3737333806 | Y23: 0.3737333806 | Z23: 0.3737333806 | AA23: 0.3737333806 | AB23: 0.3737333806 | AC23: 0.37393462 | AD23: 0.37393462 | AE23: 0.3726688881 | AF23: 0.3726688881 | AG23: 0.3726688881 | AH23: 0.3737445679 | AI23: 0.3737445679 | AJ23: 0.3738830499 | AK23: 0.3738830499 | AL23: 0.3738830499 | AM23: 0.3738830499 | AN23: 0.3738830499 | AO23: 0.3740728779 | AP23: 0.3740728779 | AQ23: 0.3723405143 | AR23: 0.3723405143 | AS23: 0.3723405143 | AT23: 0.373285429 | AU23: 0.373285429 | AV23: 0.3734071175 | AW23: 0.3734071175 | AX23: 0.3734071175 | AY23: 0.3734071175 | AZ23: 0.3734071175 | BA23: 0.3735740095 | BB23: 0.3735740095 | BC23: 0.2805287468 | BD23: 0.2805287468 | BE23: 0.2805287468 | BF23: 0.2876230345 | BG23: 0.2876230345 | BH23: 0.2844474999 | BI23: 0.2844474999 | BJ23: 0.2844474999 | BK23: 0.2844474999 | BL23: 0.2844474999 | BM23: 0.2897821792 | BN23: 0.2897821792
C25: Grants (IAS 20)
D26: Other income (grants) | G26: =SUM('Monthly build'!G480:G484) -> 250000 | H26: =SUM('Monthly build'!H480:H484) -> 0 | I26: =SUM('Monthly build'!I480:I484) -> 0 | J26: =SUM('Monthly build'!J480:J484) -> 0 | K26: =SUM('Monthly build'!K480:K484) -> 0 | L26: =SUM('Monthly build'!L480:L484) -> 0 | M26: =SUM('Monthly build'!M480:M484) -> 0 | N26: =SUM('Monthly build'!N480:N484) -> 0 | O26: =SUM('Monthly build'!O480:O484) -> 0 | P26: =SUM('Monthly build'!P480:P484) -> 0 | Q26: =SUM('Monthly build'!Q480:Q484) -> 0 | R26: =SUM('Monthly build'!R480:R484) -> 0 | S26: =SUM('Monthly build'!S480:S484) -> 200000 | T26: =SUM('Monthly build'!T480:T484) -> 0 | U26: =SUM('Monthly build'!U480:U484) -> 0 | V26: =SUM('Monthly build'!V480:V484) -> 0 | W26: =SUM('Monthly build'!W480:W484) -> 0 | X26: =SUM('Monthly build'!X480:X484) -> 0 | Y26: =SUM('Monthly build'!Y480:Y484) -> 0 | Z26: =SUM('Monthly build'!Z480:Z484) -> 0 | AA26: =SUM('Monthly build'!AA480:AA484) -> 0 | AB26: =SUM('Monthly build'!AB480:AB484) -> 0 | AC26: =SUM('Monthly build'!AC480:AC484) -> 0 | AD26: =SUM('Monthly build'!AD480:AD484) -> 0 | AE26: =SUM('Monthly build'!AE480:AE484) -> 0 | AF26: =SUM('Monthly build'!AF480:AF484) -> 0 | AG26: =SUM('Monthly build'!AG480:AG484) -> 0 | AH26: =SUM('Monthly build'!AH480:AH484) -> 0 | AI26: =SUM('Monthly build'!AI480:AI484) -> 0 | AJ26: =SUM('Monthly build'!AJ480:AJ484) -> 0 | AK26: =SUM('Monthly build'!AK480:AK484) -> 0 | AL26: =SUM('Monthly build'!AL480:AL484) -> 0 | AM26: =SUM('Monthly build'!AM480:AM484) -> 0 | AN26: =SUM('Monthly build'!AN480:AN484) -> 0 | AO26: =SUM('Monthly build'!AO480:AO484) -> 0 | AP26: =SUM('Monthly build'!AP480:AP484) -> 0 | AQ26: =SUM('Monthly build'!AQ480:AQ484) -> 0 | AR26: =SUM('Monthly build'!AR480:AR484) -> 0 | AS26: =SUM('Monthly build'!AS480:AS484) -> 0 | AT26: =SUM('Monthly build'!AT480:AT484) -> 0 | AU26: =SUM('Monthly build'!AU480:AU484) -> 0 | AV26: =SUM('Monthly build'!AV480:AV484) -> 0 | AW26: =SUM('Monthly build'!AW480:AW484) -> 0 | AX26: =SUM('Monthly build'!AX480:AX484) -> 0 | AY26: =SUM('Monthly build'!AY480:AY484) -> 0 | AZ26: =SUM('Monthly build'!AZ480:AZ484) -> 0 | BA26: =SUM('Monthly build'!BA480:BA484) -> 0 | BB26: =SUM('Monthly build'!BB480:BB484) -> 0 | BC26: =SUM('Monthly build'!BC480:BC484) -> 0 | BD26: =SUM('Monthly build'!BD480:BD484) -> 0 | BE26: =SUM('Monthly build'!BE480:BE484) -> 0 | BF26: =SUM('Monthly build'!BF480:BF484) -> 0 | BG26: =SUM('Monthly build'!BG480:BG484) -> 0 | BH26: =SUM('Monthly build'!BH480:BH484) -> 0 | BI26: =SUM('Monthly build'!BI480:BI484) -> 0 | BJ26: =SUM('Monthly build'!BJ480:BJ484) -> 0 | BK26: =SUM('Monthly build'!BK480:BK484) -> 0 | BL26: =SUM('Monthly build'!BL480:BL484) -> 0 | BM26: =SUM('Monthly build'!BM480:BM484) -> 0 | BN26: =SUM('Monthly build'!BN480:BN484) -> 0
C28: Operating expenses
D29: ='Monthly build'!D314 -> Sales and marketing costs | G29: =-G319 -> -860.23 | H29: =-H319 -> -860.23 | I29: -860.23 | J29: -613.025 | K29: -613.025 | L29: -591.1465 | M29: -591.1465 | N29: -591.1465 | O29: -591.1465 | P29: -591.1465 | Q29: -563.584 | R29: -563.584 | S29: -1037.8725 | T29: -1037.8725 | U29: -1037.8725 | V29: -735.6125 | W29: -735.6125 | X29: -711.5535 | Y29: -711.5535 | Z29: -711.5535 | AA29: -711.5535 | AB29: -711.5535 | AC29: -675.1605 | AD29: -675.1605 | AE29: -1088.206 | AF29: -1088.206 | AG29: -1088.206 | AH29: -775.6035 | AI29: -775.6035 | AJ29: -747.943 | AK29: -747.943 | AL29: -747.943 | AM29: -747.943 | AN29: -747.943 | AO29: -713.083 | AP29: -713.083 | AQ29: -1249.8535 | AR29: -1249.8535 | AS29: -1249.8535 | AT29: -890.386 | AU29: -890.386 | AV29: -858.585 | AW29: -858.585 | AX29: -858.585 | AY29: -858.585 | AZ29: -858.585 | BA29: -818.4925 | BB29: -818.4925 | BC29: -1439.725 | BD29: -1439.725 | BE29: -1439.725 | BF29: -1028.37 | BG29: -1028.37 | BH29: -990.199 | BI29: -990.199 | BJ29: -990.199 | BK29: -990.199 | BL29: -990.199 | BM29: -946.099 | BN29: -946.099
D30: ='Monthly build'!D321 -> Salaries and wages | G30: =-G333 -> -2667.116667 | H30: =-H333 -> -2667.116667 | I30: -2667.116667 | J30: -2667.116667 | K30: -2667.116667 | L30: -2667.116667 | M30: -2667.116667 | N30: -2667.116667 | O30: -2667.116667 | P30: -2667.116667 | Q30: -2667.116667 | R30: -2667.116667 | S30: -2747.130167 | T30: -2747.130167 | U30: -2747.130167 | V30: -2747.130167 | W30: -2747.130167 | X30: -2747.130167 | Y30: -2747.130167 | Z30: -2747.130167 | AA30: -2747.130167 | AB30: -2747.130167 | AC30: -2747.130167 | AD30: -2747.130167 | AE30: -3187.714521 | AF30: -3187.714521 | AG30: -3187.714521 | AH30: -3187.714521 | AI30: -3187.714521 | AJ30: -3187.714521 | AK30: -3187.714521 | AL30: -3187.714521 | AM30: -3187.714521 | AN30: -3187.714521 | AO30: -3187.714521 | AP30: -3187.714521 | AQ30: -3283.345956 | AR30: -3283.345956 | AS30: -3283.345956 | AT30: -3283.345956 | AU30: -3283.345956 | AV30: -3283.345956 | AW30: -3283.345956 | AX30: -3283.345956 | AY30: -3283.345956 | AZ30: -3283.345956 | BA30: -3283.345956 | BB30: -3283.345956 | BC30: -3381.846335 | BD30: -3381.846335 | BE30: -3381.846335 | BF30: -3381.846335 | BG30: -3381.846335 | BH30: -3381.846335 | BI30: -3381.846335 | BJ30: -3381.846335 | BK30: -3381.846335 | BL30: -3381.846335 | BM30: -3381.846335 | BN30: -3381.846335
D31: ='Monthly build'!D335 -> Other staff expenses | G31: =-G338 -> -746.7926667 | H31: =-H338 -> -746.7926667 | I31: -746.7926667 | J31: -746.7926667 | K31: -746.7926667 | L31: -746.7926667 | M31: -746.7926667 | N31: -746.7926667 | O31: -746.7926667 | P31: -746.7926667 | Q31: -746.7926667 | R31: -746.7926667 | S31: -769.1964467 | T31: -769.1964467 | U31: -769.1964467 | V31: -769.1964467 | W31: -769.1964467 | X31: -769.1964467 | Y31: -769.1964467 | Z31: -769.1964467 | AA31: -769.1964467 | AB31: -769.1964467 | AC31: -769.1964467 | AD31: -769.1964467 | AE31: -892.5600658 | AF31: -892.5600658 | AG31: -892.5600658 | AH31: -892.5600658 | AI31: -892.5600658 | AJ31: -892.5600658 | AK31: -892.5600658 | AL31: -892.5600658 | AM31: -892.5600658 | AN31: -892.5600658 | AO31: -892.5600658 | AP31: -892.5600658 | AQ31: -919.3368678 | AR31: -919.3368678 | AS31: -919.3368678 | AT31: -919.3368678 | AU31: -919.3368678 | AV31: -919.3368678 | AW31: -919.3368678 | AX31: -919.3368678 | AY31: -919.3368678 | AZ31: -919.3368678 | BA31: -919.3368678 | BB31: -919.3368678 | BC31: -946.9169738 | BD31: -946.9169738 | BE31: -946.9169738 | BF31: -946.9169738 | BG31: -946.9169738 | BH31: -946.9169738 | BI31: -946.9169738 | BJ31: -946.9169738 | BK31: -946.9169738 | BL31: -946.9169738 | BM31: -946.9169738 | BN31: -946.9169738
D32: ='Monthly build'!D340 -> Administrative costs | G32: =-G365 -> -2376.902363 | H32: =-H365 -> -1870.487779 | I32: -1870.487779 | J32: -1870.487779 | K32: -1870.487779 | L32: -1870.487779 | M32: -1870.487779 | N32: -2437.607779 | O32: -1870.487779 | P32: -1870.487779 | Q32: -1870.487779 | R32: -1870.487779 | S32: -2457.928697 | T32: -1951.514112 | U32: -1951.514112 | V32: -1951.514112 | W32: -1951.514112 | X32: -1951.514112 | Y32: -1951.514112 | Z32: -2518.634112 | AA32: -1951.514112 | AB32: -1951.514112 | AC32: -1951.514112 | AD32: -1951.514112 | AE32: -2563.26293 | AF32: -2056.848346 | AG32: -2056.848346 | AH32: -2056.848346 | AI32: -2056.848346 | AJ32: -2056.848346 | AK32: -2056.848346 | AL32: -2623.968346 | AM32: -2056.848346 | AN32: -2056.848346 | AO32: -2056.848346 | AP32: -2056.848346 | AQ32: -2635.814585 | AR32: -2129.4 | AS32: -2129.4 | AT32: -2129.4 | AU32: -2129.4 | AV32: -2129.4 | AW32: -2129.4 | AX32: -2696.52 | AY32: -2129.4 | AZ32: -2129.4 | BA32: -2129.4 | BB32: -2129.4 | BC32: -2719.814585 | BD32: -2213.4 | BE32: -2213.4 | BF32: -2213.4 | BG32: -2213.4 | BH32: -2213.4 | BI32: -2213.4 | BJ32: -2780.52 | BK32: -2213.4 | BL32: -2213.4 | BM32: -2213.4 | BN32: -2213.4
D33: Total operating expenses | G33: =SUM(G29:G32) -> -6651.041697 | H33: =SUM(H29:H32) -> -6144.627112 | I33: -6144.627112 | J33: -5897.422112 | K33: -5897.422112 | L33: -5875.543612 | M33: -5875.543612 | N33: -6442.663612 | O33: -5875.543612 | P33: -5875.543612 | Q33: -5847.981112 | R33: -5847.981112 | S33: -7012.12781 | T33: -6505.713225 | U33: -6505.713225 | V33: -6203.453225 | W33: -6203.453225 | X33: -6179.394225 | Y33: -6179.394225 | Z33: -6746.514225 | AA33: -6179.394225 | AB33: -6179.394225 | AC33: -6143.001225 | AD33: -6143.001225 | AE33: -7731.743517 | AF33: -7225.328932 | AG33: -7225.328932 | AH33: -6912.726432 | AI33: -6912.726432 | AJ33: -6885.065932 | AK33: -6885.065932 | AL33: -7452.185932 | AM33: -6885.065932 | AN33: -6885.065932 | AO33: -6850.205932 | AP33: -6850.205932 | AQ33: -8088.350909 | AR33: -7581.936324 | AS33: -7581.936324 | AT33: -7222.468824 | AU33: -7222.468824 | AV33: -7190.667824 | AW33: -7190.667824 | AX33: -7757.787824 | AY33: -7190.667824 | AZ33: -7190.667824 | BA33: -7150.575324 | BB33: -7150.575324 | BC33: -8488.302894 | BD33: -7981.888309 | BE33: -7981.888309 | BF33: -7570.533309 | BG33: -7570.533309 | BH33: -7532.362309 | BI33: -7532.362309 | BJ33: -8099.482309 | BK33: -7532.362309 | BL33: -7532.362309 | BM33: -7488.262309 | BN33: -7488.262309
D35: EBITDA | G35: =G22+G26+G33 -> 252505.8183 | H35: =H22+H26+H33 -> 3012.232888 | I35: 3012.232888 | J35: 646.1278882 | K35: 646.1278882 | L35: 436.7193882 | M35: 436.7193882 | N35: -130.4006118 | O35: 436.7193882 | P35: 436.7193882 | Q35: 172.9068882 | R35: 172.9068882 | S35: 204035.5672 | T35: 4541.981775 | U35: 4541.981775 | V35: 1648.921775 | W35: 1648.921775 | X35: 1418.642775 | Y35: 1418.642775 | Z35: 851.5227746 | AA35: 1418.642775 | AB35: 1418.642775 | AC35: 1070.309775 | AD35: 1070.309775 | AE35: 3855.128483 | AF35: 4361.543068 | AG35: 4361.543068 | AH35: 1369.490568 | AI35: 1369.490568 | AJ35: 1104.740068 | AK35: 1104.740068 | AL35: 537.6200679 | AM35: 1104.740068 | AN35: 1104.740068 | AO35: 771.0800679 | AP35: 771.0800679 | AQ35: 5207.966091 | AR35: 5714.380676 | AS35: 5714.380676 | AT35: 2273.763176 | AU35: 2273.763176 | AV35: 1969.382176 | AW35: 1969.382176 | AX35: 1402.262176 | AY35: 1969.382176 | AZ35: 1969.382176 | BA35: 1585.639676 | BB35: 1585.639676 | BC35: 3051.247106 | BD35: 3557.661691 | BE35: 3557.661691 | BF35: 880.4066912 | BG35: 880.4066912 | BH35: 515.0556912 | BI35: 515.0556912 | BJ35: -52.06430877 | BK35: 515.0556912 | BL35: 515.0556912 | BM35: 344.9556912 | BN35: 344.9556912
D37: Depreciation | G37: =G449 -> -1800.595238 | H37: =H449 -> -1781.223427 | I37: -1762.105394 | J37: -1743.237069 | K37: -1724.614455 | L37: -1711.233631 | M37: -1693.007413 | N37: -1675.016746 | O37: -1657.257897 | P37: -1639.727203 | Q37: -1622.421069 | R37: -1605.335963 | S37: -1588.468419 | T37: -1571.815037 | U37: -1555.372474 | V37: -1539.137452 | W37: -1523.106751 | X37: -1507.277209 | Y37: -1491.645721 | Z37: -1476.20924 | AA37: -1460.964772 | AB37: -1445.909378 | AC37: -1431.040172 | AD37: -1416.354319 | AE37: -1401.849035 | AF37: -1387.521586 | AG37: -1373.369287 | AH37: -1359.389501 | AI37: -1345.579637 | AJ37: -1331.937151 | AK37: -1318.459543 | AL37: -1305.144359 | AM37: -1291.989186 | AN37: -1278.991656 | AO37: -1266.14944 | AP37: -1253.460252 | AQ37: -1240.921846 | AR37: -1228.532013 | AS37: -1216.288585 | AT37: -1204.189431 | AU37: -1192.232457 | AV37: -1180.415605 | AW37: -1168.736852 | AX37: -1157.194213 | AY37: -1145.785732 | AZ37: -1134.509492 | BA37: -1123.363606 | BB37: -1112.34622 | BC37: -1101.455511 | BD37: -1090.689688 | BE37: -1080.04699 | BF37: -1069.525687 | BG37: -1059.124075 | BH37: -1048.840484 | BI37: -1038.673268 | BJ37: -1028.62081 | BK37: -1018.68152 | BL37: -1008.853836 | BM37: -999.1362198 | BN37: -989.5271606
D39: EBIT | G39: =G35+G37 -> 250705.2231 | H39: =H35+H37 -> 1231.009461 | I39: 1250.127494 | J39: -1097.109181 | K39: -1078.486567 | L39: -1274.514243 | M39: -1256.288025 | N39: -1805.417358 | O39: -1220.538509 | P39: -1203.007815 | Q39: -1449.514181 | R39: -1432.429074 | S39: 202447.0988 | T39: 2970.166738 | U39: 2986.6093 | V39: 109.7843223 | W39: 125.8150236 | X39: -88.63443404 | Y39: -73.00294639 | Z39: -624.6864652 | AA39: -42.32199735 | AB39: -27.26660349 | AC39: -360.7303972 | AD39: -346.044544 | AE39: 2453.279449 | AF39: 2974.021482 | AG39: 2988.173781 | AH39: 10.10106703 | AI39: 23.91093093 | AJ39: -227.197083 | AK39: -213.7194754 | AL39: -767.5242911 | AM39: -187.2491184 | AN39: -174.251588 | AO39: -495.0693723 | AP39: -482.3801845 | AQ39: 3967.044245 | AR39: 4485.848663 | AS39: 4498.092091 | AT39: 1069.573745 | AU39: 1081.530719 | AV39: 788.9665711 | AW39: 800.6453236 | AX39: 245.0679634 | AY39: 823.5964436 | AZ39: 834.8726835 | BA39: 462.2760696 | BB39: 473.2934559 | BC39: 1949.791595 | BD39: 2466.972003 | BE39: 2477.614701 | BF39: -189.1189953 | BG39: -178.7173842 | BH39: -533.7847929 | BI39: -523.6175767 | BJ39: -1080.685119 | BK39: -503.625829 | BL39: -493.7981447 | BM39: -654.1805286 | BN39: -644.5714693
D41: Interest expense | G41: =G533 -> 0 | H41: =H533 -> 0 | I41: 0 | J41: 0 | K41: 0 | L41: 0 | M41: 0 | N41: 0 | O41: 0 | P41: 0 | Q41: 0 | R41: 0 | S41: 0 | T41: 0 | U41: 0 | V41: 0 | W41: 0 | X41: 0 | Y41: 0 | Z41: 0 | AA41: 0 | AB41: 0 | AC41: 0 | AD41: 0 | AE41: 0 | AF41: 0 | AG41: 0 | AH41: 0 | AI41: 0 | AJ41: 0 | AK41: 0 | AL41: 0 | AM41: 0 | AN41: 0 | AO41: 0 | AP41: 0 | AQ41: 0 | AR41: 0 | AS41: 0 | AT41: 0 | AU41: 0 | AV41: 0 | AW41: 0 | AX41: 0 | AY41: 0 | AZ41: 0 | BA41: 0 | BB41: 0 | BC41: 0 | BD41: 0 | BE41: 0 | BF41: 0 | BG41: 0 | BH41: 0 | BI41: 0 | BJ41: 0 | BK41: 0 | BL41: 0 | BM41: 0 | BN41: 0
D43: EBT | G43: =G39+G41 -> 250705.2231 | H43: =H39+H41 -> 1231.009461 | I43: 1250.127494 | J43: -1097.109181 | K43: -1078.486567 | L43: -1274.514243 | M43: -1256.288025 | N43: -1805.417358 | O43: -1220.538509 | P43: -1203.007815 | Q43: -1449.514181 | R43: -1432.429074 | S43: 202447.0988 | T43: 2970.166738 | U43: 2986.6093 | V43: 109.7843223 | W43: 125.8150236 | X43: -88.63443404 | Y43: -73.00294639 | Z43: -624.6864652 | AA43: -42.32199735 | AB43: -27.26660349 | AC43: -360.7303972 | AD43: -346.044544 | AE43: 2453.279449 | AF43: 2974.021482 | AG43: 2988.173781 | AH43: 10.10106703 | AI43: 23.91093093 | AJ43: -227.197083 | AK43: -213.7194754 | AL43: -767.5242911 | AM43: -187.2491184 | AN43: -174.251588 | AO43: -495.0693723 | AP43: -482.3801845 | AQ43: 3967.044245 | AR43: 4485.848663 | AS43: 4498.092091 | AT43: 1069.573745 | AU43: 1081.530719 | AV43: 788.9665711 | AW43: 800.6453236 | AX43: 245.0679634 | AY43: 823.5964436 | AZ43: 834.8726835 | BA43: 462.2760696 | BB43: 473.2934559 | BC43: 1949.791595 | BD43: 2466.972003 | BE43: 2477.614701 | BF43: -189.1189953 | BG43: -178.7173842 | BH43: -533.7847929 | BI43: -523.6175767 | BJ43: -1080.685119 | BK43: -503.625829 | BL43: -493.7981447 | BM43: -654.1805286 | BN43: -644.5714693
D45: Taxation | G45: =-G53 -> 0 | H45: =-H53 -> 0 | I45: 0 | J45: 0 | K45: 0 | L45: 0 | M45: 0 | N45: 0 | O45: 0 | P45: 0 | Q45: 0 | R45: -72410.71652 | S45: 0 | T45: 0 | U45: 0 | V45: 0 | W45: 0 | X45: 0 | Y45: 0 | Z45: 0 | AA45: 0 | AB45: 0 | AC45: 0 | AD45: -62123.03603 | AE45: 0 | AF45: 0 | AG45: 0 | AH45: 0 | AI45: 0 | AJ45: 0 | AK45: 0 | AL45: 0 | AM45: 0 | AN45: 0 | AO45: 0 | AP45: -1770.628679 | AQ45: 0 | AR45: 0 | AS45: 0 | AT45: 0 | AU45: 0 | AV45: 0 | AW45: 0 | AX45: 0 | AY45: 0 | AZ45: 0 | BA45: 0 | BB45: -5859.242392 | BC45: 0 | BD45: 0 | BE45: 0 | BF45: 0 | BG45: 0 | BH45: 0 | BI45: 0 | BJ45: 0 | BK45: 0 | BL45: 0 | BM45: 0 | BN45: -627.6835381
D47: Net Profit | G47: =G43+G45 -> 250705.2231 | H47: =H43+H45 -> 1231.009461 | I47: 1250.127494 | J47: -1097.109181 | K47: -1078.486567 | L47: -1274.514243 | M47: -1256.288025 | N47: -1805.417358 | O47: -1220.538509 | P47: -1203.007815 | Q47: -1449.514181 | R47: -73843.14559 | S47: 202447.0988 | T47: 2970.166738 | U47: 2986.6093 | V47: 109.7843223 | W47: 125.8150236 | X47: -88.63443404 | Y47: -73.00294639 | Z47: -624.6864652 | AA47: -42.32199735 | AB47: -27.26660349 | AC47: -360.7303972 | AD47: -62469.08057 | AE47: 2453.279449 | AF47: 2974.021482 | AG47: 2988.173781 | AH47: 10.10106703 | AI47: 23.91093093 | AJ47: -227.197083 | AK47: -213.7194754 | AL47: -767.5242911 | AM47: -187.2491184 | AN47: -174.251588 | AO47: -495.0693723 | AP47: -2253.008864 | AQ47: 3967.044245 | AR47: 4485.848663 | AS47: 4498.092091 | AT47: 1069.573745 | AU47: 1081.530719 | AV47: 788.9665711 | AW47: 800.6453236 | AX47: 245.0679634 | AY47: 823.5964436 | AZ47: 834.8726835 | BA47: 462.2760696 | BB47: -5385.948936 | BC47: 1949.791595 | BD47: 2466.972003 | BE47: 2477.614701 | BF47: -189.1189953 | BG47: -178.7173842 | BH47: -533.7847929 | BI47: -523.6175767 | BJ47: -1080.685119 | BK47: -503.625829 | BL47: -493.7981447 | BM47: -654.1805286 | BN47: -1272.255007
D48: NP Margin | G48: =G47/G14 -> 10.20039153 | H48: 0.05008582722 | I48: 0.05086367865 | J48: -0.06263826325 | K48: -0.06157502524 | L48: -0.07546014142 | M48: -0.07438102209 | N48: -0.1068933124 | O48: -0.07226440115 | P48: -0.07122646169 | Q48: -0.09001851777 | R48: -4.585847178 | S48: 6.82708951 | T48: 0.100162434 | U48: 0.1007169238 | V48: 0.005223471977 | W48: 0.005986203099 | X48: -0.0043597638 | Y48: -0.003590879847 | Z48: -0.0307271713 | AA48: -0.002081740736 | AB48: -0.001341193771 | AC48: -0.01870009265 | AD48: -3.238367499 | AE48: 0.07890489549 | AF48: 0.09565353607 | AG48: 0.09610871685 | AH48: 0.0004558222677 | AI48: 0.00107900826 | AJ48: -0.01063168972 | AK48: -0.01000100494 | AL48: -0.03591630671 | AM48: =AM47/AM14 -> -0.008762324328 | AN48: -0.008154104766 | AO48: -0.02429931443 | AP48: -0.110583635 | AQ48: 0.1110902586 | AR48: 0.125618485 | AS48: 0.1259613412 | AT48: 0.04204365417 | AU48: 0.04251366841 | AV48: 0.03216202238 | AW48: 0.03263810377 | AX48: 0.009990133439 | AY48: 0.03357370036 | AZ48: 0.03403337343 | BA48: 0.01976763677 | BB48: -0.2303114723 | BC48: 0.04739981999 | BD48: 0.05997257817 | BE48: 0.06023130427 | BF48: -0.006436559638 | BG48: -0.0060825466 | BH48: -0.01886738701 | BI48: -0.01850801221 | BJ48: -0.03819836129 | BK48: -0.0178013753 | BL48: -0.01745400173 | BM48: -0.02420076387 | BN48: -0.04706582003
C50: Tax schedule
D51: Profit before tax plus grants | G51: =G43 -> 250705.2231 | H51: 1231.009461 | I51: 1250.127494 | J51: -1097.109181 | K51: -1078.486567 | L51: -1274.514243 | M51: -1256.288025 | N51: -1805.417358 | O51: -1220.538509 | P51: -1203.007815 | Q51: -1449.514181 | R51: -1432.429074 | S51: 202447.0988 | T51: 2970.166738 | U51: 2986.6093 | V51: 109.7843223 | W51: 125.8150236 | X51: -88.63443404 | Y51: -73.00294639 | Z51: -624.6864652 | AA51: -42.32199735 | AB51: -27.26660349 | AC51: -360.7303972 | AD51: -346.044544 | AE51: 2453.279449 | AF51: 2974.021482 | AG51: 2988.173781 | AH51: 10.10106703 | AI51: 23.91093093 | AJ51: -227.197083 | AK51: -213.7194754 | AL51: -767.5242911 | AM51: =AM43 -> -187.2491184 | AN51: -174.251588 | AO51: -495.0693723 | AP51: -482.3801845 | AQ51: 3967.044245 | AR51: 4485.848663 | AS51: 4498.092091 | AT51: 1069.573745 | AU51: 1081.530719 | AV51: 788.9665711 | AW51: 800.6453236 | AX51: 245.0679634 | AY51: 823.5964436 | AZ51: 834.8726835 | BA51: 462.2760696 | BB51: 473.2934559 | BC51: 1949.791595 | BD51: 2466.972003 | BE51: 2477.614701 | BF51: -189.1189953 | BG51: -178.7173842 | BH51: -533.7847929 | BI51: -523.6175767 | BJ51: -1080.685119 | BK51: -503.625829 | BL51: -493.7981447 | BM51: -654.1805286 | BN51: -644.5714693
D52: Net income brought forward for tax purposes | G52: =IF(F53=0,F52+G51,G51) -> 250705.2231 | H52: =IF(G53=0,G52+H51,H51) -> 251936.2325 | I52: 253186.36 | J52: 252089.2508 | K52: 251010.7643 | L52: 249736.25 | M52: 248479.962 | N52: 246674.5446 | O52: 245454.0061 | P52: 244250.9983 | Q52: 242801.4841 | R52: 241369.0551 | S52: 202447.0988 | T52: 205417.2655 | U52: 208403.8748 | V52: 208513.6591 | W52: 208639.4742 | X52: 208550.8397 | Y52: 208477.8368 | Z52: 207853.1503 | AA52: 207810.8283 | AB52: 207783.5617 | AC52: 207422.8313 | AD52: 207076.7868 | AE52: 2453.279449 | AF52: 5427.300931 | AG52: 8415.474711 | AH52: 8425.575779 | AI52: 8449.486709 | AJ52: 8222.289626 | AK52: 8008.570151 | AL52: 7241.04586 | AM52: =IF(AL53=0,AL52+AM51,AM51) -> 7053.796742 | AN52: 6879.545154 | AO52: 6384.475781 | AP52: 5902.095597 | AQ52: 3967.044245 | AR52: 8452.892908 | AS52: 12950.985 | AT52: 14020.55874 | AU52: 15102.08946 | AV52: 15891.05603 | AW52: 16691.70136 | AX52: 16936.76932 | AY52: 17760.36576 | AZ52: 18595.23845 | BA52: 19057.51452 | BB52: 19530.80797 | BC52: 1949.791595 | BD52: 4416.763599 | BE52: 6894.3783 | BF52: 6705.259304 | BG52: 6526.54192 | BH52: 5992.757127 | BI52: 5469.139551 | BJ52: 4388.454432 | BK52: 3884.828603 | BL52: 3391.030458 | BM52: 2736.84993 | BN52: 2092.27846
D53: Tax payable end of each year | G53: =IF(MOD(G$5,12)=0,IF(G52>0,G52*'Assumptions '!$F$10,0),0) -> 0 | H53: =IF(MOD(H$5,12)=0,IF(H52>0,H52*'Assumptions '!$F$10,0),0) -> 0 | I53: =IF(MOD(I$5,12)=0,IF(I52>0,I52*'Assumptions '!$F$10,0),0) -> 0 | J53: =IF(MOD(J$5,12)=0,IF(J52>0,J52*'Assumptions '!$F$10,0),0) -> 0 | K53: =IF(MOD(K$5,12)=0,IF(K52>0,K52*'Assumptions '!$F$10,0),0) -> 0 | L53: =IF(MOD(L$5,12)=0,IF(L52>0,L52*'Assumptions '!$F$10,0),0) -> 0 | M53: =IF(MOD(M$5,12)=0,IF(M52>0,M52*'Assumptions '!$F$10,0),0) -> 0 | N53: =IF(MOD(N$5,12)=0,IF(N52>0,N52*'Assumptions '!$F$10,0),0) -> 0 | O53: =IF(MOD(O$5,12)=0,IF(O52>0,O52*'Assumptions '!$F$10,0),0) -> 0 | P53: =IF(MOD(P$5,12)=0,IF(P52>0,P52*'Assumptions '!$F$10,0),0) -> 0 | Q53: =IF(MOD(Q$5,12)=0,IF(Q52>0,Q52*'Assumptions '!$F$10,0),0) -> 0 | R53: =IF(MOD(R$5,12)=0,IF(R52>0,R52*'Assumptions '!$F$10,0),0) -> 72410.71652 | S53: =IF(MOD(S$5,12)=0,IF(S52>0,S52*'Assumptions '!$F$10,0),0) -> 0 | T53: =IF(MOD(T$5,12)=0,IF(T52>0,T52*'Assumptions '!$F$10,0),0) -> 0 | U53: =IF(MOD(U$5,12)=0,IF(U52>0,U52*'Assumptions '!$F$10,0),0) -> 0 | V53: =IF(MOD(V$5,12)=0,IF(V52>0,V52*'Assumptions '!$F$10,0),0) -> 0 | W53: =IF(MOD(W$5,12)=0,IF(W52>0,W52*'Assumptions '!$F$10,0),0) -> 0 | X53: =IF(MOD(X$5,12)=0,IF(X52>0,X52*'Assumptions '!$F$10,0),0) -> 0 | Y53: =IF(MOD(Y$5,12)=0,IF(Y52>0,Y52*'Assumptions '!$F$10,0),0) -> 0 | Z53: =IF(MOD(Z$5,12)=0,IF(Z52>0,Z52*'Assumptions '!$F$10,0),0) -> 0 | AA53: =IF(MOD(AA$5,12)=0,IF(AA52>0,AA52*'Assumptions '!$F$10,0),0) -> 0 | AB53: =IF(MOD(AB$5,12)=0,IF(AB52>0,AB52*'Assumptions '!$F$10,0),0) -> 0 | AC53: =IF(MOD(AC$5,12)=0,IF(AC52>0,AC52*'Assumptions '!$F$10,0),0) -> 0 | AD53: =IF(MOD(AD$5,12)=0,IF(AD52>0,AD52*'Assumptions '!$F$10,0),0) -> 62123.03603 | AE53: =IF(MOD(AE$5,12)=0,IF(AE52>0,AE52*'Assumptions '!$F$10,0),0) -> 0 | AF53: =IF(MOD(AF$5,12)=0,IF(AF52>0,AF52*'Assumptions '!$F$10,0),0) -> 0 | AG53: =IF(MOD(AG$5,12)=0,IF(AG52>0,AG52*'Assumptions '!$F$10,0),0) -> 0 | AH53: =IF(MOD(AH$5,12)=0,IF(AH52>0,AH52*'Assumptions '!$F$10,0),0) -> 0 | AI53: =IF(MOD(AI$5,12)=0,IF(AI52>0,AI52*'Assumptions '!$F$10,0),0) -> 0 | AJ53: =IF(MOD(AJ$5,12)=0,IF(AJ52>0,AJ52*'Assumptions '!$F$10,0),0) -> 0 | AK53: =IF(MOD(AK$5,12)=0,IF(AK52>0,AK52*'Assumptions '!$F$10,0),0) -> 0 | AL53: =IF(MOD(AL$5,12)=0,IF(AL52>0,AL52*'Assumptions '!$F$10,0),0) -> 0 | AM53: =IF(MOD(AM$5,12)=0,IF(AM52>0,AM52*'Assumptions '!$F$10,0),0) -> 0 | AN53: =IF(MOD(AN$5,12)=0,IF(AN52>0,AN52*'Assumptions '!$F$10,0),0) -> 0 | AO53: =IF(MOD(AO$5,12)=0,IF(AO52>0,AO52*'Assumptions '!$F$10,0),0) -> 0 | AP53: =IF(MOD(AP$5,12)=0,IF(AP52>0,AP52*'Assumptions '!$F$10,0),0) -> 1770.628679 | AQ53: =IF(MOD(AQ$5,12)=0,IF(AQ52>0,AQ52*'Assumptions '!$F$10,0),0) -> 0 | AR53: =IF(MOD(AR$5,12)=0,IF(AR52>0,AR52*'Assumptions '!$F$10,0),0) -> 0 | AS53: =IF(MOD(AS$5,12)=0,IF(AS52>0,AS52*'Assumptions '!$F$10,0),0) -> 0 | AT53: =IF(MOD(AT$5,12)=0,IF(AT52>0,AT52*'Assumptions '!$F$10,0),0) -> 0 | AU53: =IF(MOD(AU$5,12)=0,IF(AU52>0,AU52*'Assumptions '!$F$10,0),0) -> 0 | AV53: =IF(MOD(AV$5,12)=0,IF(AV52>0,AV52*'Assumptions '!$F$10,0),0) -> 0 | AW53: =IF(MOD(AW$5,12)=0,IF(AW52>0,AW52*'Assumptions '!$F$10,0),0) -> 0 | AX53: =IF(MOD(AX$5,12)=0,IF(AX52>0,AX52*'Assumptions '!$F$10,0),0) -> 0 | AY53: =IF(MOD(AY$5,12)=0,IF(AY52>0,AY52*'Assumptions '!$F$10,0),0) -> 0 | AZ53: =IF(MOD(AZ$5,12)=0,IF(AZ52>0,AZ52*'Assumptions '!$F$10,0),0) -> 0 | BA53: =IF(MOD(BA$5,12)=0,IF(BA52>0,BA52*'Assumptions '!$F$10,0),0) -> 0 | BB53: =IF(MOD(BB$5,12)=0,IF(BB52>0,BB52*'Assumptions '!$F$10,0),0) -> 5859.242392 | BC53: =IF(MOD(BC$5,12)=0,IF(BC52>0,BC52*'Assumptions '!$F$10,0),0) -> 0 | BD53: =IF(MOD(BD$5,12)=0,IF(BD52>0,BD52*'Assumptions '!$F$10,0),0) -> 0 | BE53: =IF(MOD(BE$5,12)=0,IF(BE52>0,BE52*'Assumptions '!$F$10,0),0) -> 0 | BF53: =IF(MOD(BF$5,12)=0,IF(BF52>0,BF52*'Assumptions '!$F$10,0),0) -> 0 | BG53: =IF(MOD(BG$5,12)=0,IF(BG52>0,BG52*'Assumptions '!$F$10,0),0) -> 0 | BH53: =IF(MOD(BH$5,12)=0,IF(BH52>0,BH52*'Assumptions '!$F$10,0),0) -> 0 | BI53: =IF(MOD(BI$5,12)=0,IF(BI52>0,BI52*'Assumptions '!$F$10,0),0) -> 0 | BJ53: =IF(MOD(BJ$5,12)=0,IF(BJ52>0,BJ52*'Assumptions '!$F$10,0),0) -> 0 | BK53: =IF(MOD(BK$5,12)=0,IF(BK52>0,BK52*'Assumptions '!$F$10,0),0) -> 0 | BL53: =IF(MOD(BL$5,12)=0,IF(BL52>0,BL52*'Assumptions '!$F$10,0),0) -> 0 | BM53: =IF(MOD(BM$5,12)=0,IF(BM52>0,BM52*'Assumptions '!$F$10,0),0) -> 0 | BN53: =IF(MOD(BN$5,12)=0,IF(BN52>0,BN52*'Assumptions '!$F$10,0),0) -> 627.6835381
D54: Note: Tax loss carry forward in Tanzania is unlimited, and in Kenya and Madagascar 5 years.
B56: Statement of Financial Position / Balance sheet
C58: Assets
D59: Current assets
D60: Cash | G60: =G123 -> 144845.5046 | H60: =H123 -> 147691.245 | I60: 150703.4779 | J60: 156702.0052 | K60: 157348.1331 | L60: 157958.5584 | M60: 158395.2778 | N60: 158451.3276 | O60: 158701.5966 | P60: 159138.316 | Q60: 159907.9968 | R60: 87670.18719 | S60: 281667.3551 | T60: 286042.8444 | U60: 290584.8261 | V60: 298778.1797 | W60: 300427.1015 | X60: 352366.6616 | Y60: 353785.3044 | Z60: 354823.2776 | AA60: 356055.4699 | AB60: 357474.1127 | AC60: 359332.3915 | AD60: 298279.6652 | AE60: 293413.4332 | AF60: 297608.4838 | AG60: 301970.0268 | AH60: 310107.8815 | AI60: 311477.3721 | AJ60: 313181.008 | AK60: 314285.748 | AL60: 315009.8185 | AM60: 315928.1082 | AN60: 317032.8482 | AO60: 318558.7053 | AP60: 317559.1567 | AQ60: 311337.2427 | AR60: 316885.1309 | AS60: 322599.5116 | AT60: 332656.3441 | AU60: 334930.1072 | AV60: 337588.034 | AW60: 339557.4161 | AX60: 341146.1287 | AY60: 342929.0605 | AZ60: 344898.4427 | BA60: 347352.1517 | BB60: 343078.5489 | BC60: 331180.0518 | BD60: 334571.221 | BE60: 338128.8827 | BF60: 348495.7546 | BG60: 349376.1613 | BH60: 350717.6826 | BI60: 351232.7383 | BJ60: 351367.1244 | BK60: 351695.7297 | BL60: 352210.7854 | BM60: 353626.5684 | BN60: 353343.8406
D61: Trade receivables | G61: =G459 -> 12024 | H61: =H459 -> 12024 | I61: 12024 | J61: 8540.876712 | K61: 8540.876712 | L61: 8232.608219 | M61: 8232.608219 | N61: 8232.608219 | O61: 8232.608219 | P61: 8232.608219 | Q61: 7844.252055 | R61: 7844.252055 | S61: 14507.19452 | T61: 14507.19452 | U61: 14507.19452 | V61: 10248.34521 | W61: 10248.34521 | X61: 9909.353425 | Y61: 9909.353425 | Z61: 9909.353425 | AA61: 9909.353425 | AB61: 9909.353425 | AC61: 9396.575342 | AD61: 9396.575342 | AE61: 15205.53205 | AF61: 15205.53205 | AG61: 15205.53205 | AH61: 10800.95671 | AI61: 10800.95671 | AJ61: 10411.21973 | AK61: 10411.21973 | AL61: 10411.21973 | AM61: 10411.21973 | AN61: 10411.21973 | AO61: 9920.041644 | AP61: 9920.041644 | AQ61: 17482.22795 | AR61: 17482.22795 | AS61: 17482.22795 | AT61: 12417.32384 | AU61: 12417.32384 | AV61: 11969.24712 | AW61: 11969.24712 | AX61: 11969.24712 | AY61: 11969.24712 | AZ61: 11969.24712 | BA61: 11404.34301 | BB61: 11404.34301 | BC61: 20132.94247 | BD61: 20132.94247 | BE61: 20132.94247 | BF61: 14336.94247 | BG61: 14336.94247 | BH61: 13799.11233 | BI61: 13799.11233 | BJ61: 13799.11233 | BK61: 13799.11233 | BL61: 13799.11233 | BM61: 13177.74247 | BN61: 13177.74247
D62: Inventory | G62: =G466 -> 7212.328767 | H62: =H466 -> 7212.328767 | I62: 7212.328767 | J62: 5122.454795 | K62: 5122.454795 | L62: 4937.493699 | M62: 4937.493699 | N62: 4937.493699 | O62: 4937.493699 | P62: 4937.493699 | Q62: 4704.48 | R62: 4704.48 | S62: 8701.82137 | T62: 8701.82137 | U62: 8701.82137 | V62: 6146.511781 | W62: 6146.511781 | X62: 5943.116712 | Y62: 5943.116712 | Z62: 5943.116712 | AA62: 5943.116712 | AB62: 5943.116712 | AC62: 5635.449863 | AD62: 5635.449863 | AE62: 9120.591123 | AF62: 9120.591123 | AG62: 9120.591123 | AH62: 6477.845918 | AI62: 6477.845918 | AJ62: 6244.003726 | AK62: 6244.003726 | AL62: 6244.003726 | AM62: 6244.003726 | AN62: 6244.003726 | AO62: 5949.296877 | AP62: 5949.296877 | AQ62: 10486.58893 | AR62: 10486.58893 | AS62: 10486.58893 | AT62: 7447.646466 | AU62: 7447.646466 | AV62: 7178.800438 | AW62: 7178.800438 | AX62: 7178.800438 | AY62: 7178.800438 | AZ62: 7178.800438 | BA62: 6839.857973 | BB62: 6839.857973 | BC62: 13940.60055 | BD62: 13940.60055 | BE62: 13940.60055 | BF62: 9841.630685 | BG62: 9841.630685 | BH62: 9518.932603 | BI62: 9518.932603 | BJ62: 9518.932603 | BK62: 9518.932603 | BL62: 9518.932603 | BM62: 9021.836712 | BN62: 9021.836712
D63: Total current assets | G63: =SUM(G60:G62) -> 164081.8333 | H63: =SUM(H60:H62) -> 166927.5737 | I63: 169939.8066 | J63: 170365.3367 | K63: 171011.4646 | L63: 171128.6603 | M63: 171565.3797 | N63: 171621.4295 | O63: 171871.6985 | P63: 172308.4179 | Q63: 172456.7289 | R63: 100218.9192 | S63: 304876.371 | T63: 309251.8603 | U63: 313793.842 | V63: 315173.0367 | W63: 316821.9585 | X63: 368219.1318 | Y63: 369637.7745 | Z63: 370675.7477 | AA63: 371907.9401 | AB63: 373326.5829 | AC63: 374364.4167 | AD63: 313311.6904 | AE63: 317739.5563 | AF63: 321934.6069 | AG63: 326296.15 | AH63: 327386.6841 | AI63: 328756.1747 | AJ63: 329836.2314 | AK63: 330940.9715 | AL63: 331665.042 | AM63: 332583.3316 | AN63: 333688.0717 | AO63: 334428.0438 | AP63: 333428.4952 | AQ63: 339306.0596 | AR63: 344853.9478 | AS63: 350568.3285 | AT63: 352521.3144 | AU63: 354795.0775 | AV63: 356736.0815 | AW63: 358705.4637 | AX63: 360294.1763 | AY63: 362077.1081 | AZ63: 364046.4902 | BA63: 365596.3526 | BB63: 361322.7499 | BC63: 365253.5948 | BD63: 368644.764 | BE63: 372202.4257 | BF63: 372674.3277 | BG63: 373554.7344 | BH63: 374035.7275 | BI63: 374550.7832 | BJ63: 374685.1693 | BK63: 375013.7746 | BL63: 375528.8303 | BM63: 375826.1476 | BN63: 375543.4198
D65: Non- current assets
D66: ='Monthly build'!D370 -> Fridge | G66: =G373 -> 976.1904762 | H66: =H373 -> 952.9478458 | I66: 930.2586114 | J66: 908.1095968 | K66: 886.4879398 | L66: 865.381084 | M66: 844.7767725 | N66: 824.6630398 | O66: 805.0282056 | P66: 785.8608673 | Q66: 767.1498943 | R66: 748.8844206 | S66: 731.0538392 | T66: 713.6477954 | U66: 696.6561812 | V66: 680.0691293 | W66: 663.8770072 | X66: 648.0704118 | Y66: 632.6401639 | Z66: 617.5773028 | AA66: 602.8730813 | AB66: 588.5189603 | AC66: 574.5066041 | AD66: 560.8278755 | AE66: 547.4748308 | AF66: 534.4397158 | AG66: 521.7149607 | AH66: 509.2931759 | AI66: 497.1671479 | AJ66: 485.3298348 | AK66: 473.7743626 | AL66: 462.4940206 | AM66: 451.4822582 | AN66: 440.7326806 | AO66: 430.2390454 | AP66: 419.9952586 | AQ66: 409.9953715 | AR66: 400.2335769 | AS66: 390.704206 | AT66: 381.4017249 | AU66: 372.3207315 | AV66: 363.4559522 | AW66: 354.802239 | AX66: 346.3545667 | AY66: 338.1080294 | AZ66: 330.0578382 | BA66: 322.1993182 | BB66: 314.5279059 | BC66: 307.0391462 | BD66: 299.7286904 | BE66: 292.592293 | BF66: 285.6258098 | BG66: 278.8251953 | BH66: 272.1865002 | BI66: 265.7058692 | BJ66: 259.379539 | BK66: 253.2038357 | BL66: 247.1751729 | BM66: 241.2900498 | BN66: 235.5450486
D67: ='Monthly build'!D375 -> Power protection unit | G67: =G378 -> 244.047619 | H67: =H378 -> 238.2369615 | I67: 232.5646528 | J67: 227.0273992 | K67: 221.6219849 | L67: 216.345271 | M67: 211.1941931 | N67: 206.16576 | O67: 201.2570514 | P67: 196.4652168 | Q67: 191.7874736 | R67: 187.2211052 | S67: 182.7634598 | T67: 178.4119488 | U67: 174.1640453 | V67: 170.0172823 | W67: 165.9692518 | X67: 162.0176029 | Y67: 158.160041 | Z67: 154.3943257 | AA67: 150.7182703 | AB67: 147.1297401 | AC67: 143.626651 | AD67: 140.2069689 | AE67: 136.8687077 | AF67: 133.6099289 | AG67: 130.4287402 | AH67: 127.323294 | AI67: 124.291787 | AJ67: 121.3324587 | AK67: 118.4435906 | AL67: 115.6235052 | AM67: 112.8705646 | AN67: 110.1831702 | AO67: 107.5597613 | AP67: 104.9988146 | AQ67: 102.4988429 | AR67: 100.0583942 | AS67: 97.67605151 | AT67: 95.35043124 | AU67: 93.08018287 | AV67: 90.86398804 | AW67: 88.70055976 | AX67: 86.58864167 | AY67: 84.52700734 | AZ67: 82.51445955 | BA67: 80.54982956 | BB67: 78.63197647 | BC67: 76.75978656 | BD67: 74.93217259 | BE67: 73.14807324 | BF67: 71.40645245 | BG67: 69.70629882 | BH67: 68.04662504 | BI67: 66.4264673 | BJ67: 64.84488475 | BK67: 63.30095892 | BL67: 61.79379323 | BM67: 60.32251244 | BN67: 58.88626214
D68: ='Monthly build'!D380 -> [Add existing asset] | G68: =G383 -> 0 | H68: =H383 -> 0 | I68: 0 | J68: 0 | K68: 0 | L68: 0 | M68: 0 | N68: 0 | O68: 0 | P68: 0 | Q68: 0 | R68: 0 | S68: 0 | T68: 0 | U68: 0 | V68: 0 | W68: 0 | X68: 0 | Y68: 0 | Z68: 0 | AA68: 0 | AB68: 0 | AC68: 0 | AD68: 0 | AE68: 0 | AF68: 0 | AG68: 0 | AH68: 0 | AI68: 0 | AJ68: 0 | AK68: 0 | AL68: 0 | AM68: 0 | AN68: 0 | AO68: 0 | AP68: 0 | AQ68: 0 | AR68: 0 | AS68: 0 | AT68: 0 | AU68: 0 | AV68: 0 | AW68: 0 | AX68: 0 | AY68: 0 | AZ68: 0 | BA68: 0 | BB68: 0 | BC68: 0 | BD68: 0 | BE68: 0 | BF68: 0 | BG68: 0 | BH68: 0 | BI68: 0 | BJ68: 0 | BK68: 0 | BL68: 0 | BM68: 0 | BN68: 0
D69: ='Monthly build'!D385 -> [Add existing asset] | G69: =G388 -> 0 | H69: =H388 -> 0 | I69: 0 | J69: 0 | K69: 0 | L69: 0 | M69: 0 | N69: 0 | O69: 0 | P69: 0 | Q69: 0 | R69: 0 | S69: 0 | T69: 0 | U69: 0 | V69: 0 | W69: 0 | X69: 0 | Y69: 0 | Z69: 0 | AA69: 0 | AB69: 0 | AC69: 0 | AD69: 0 | AE69: 0 | AF69: 0 | AG69: 0 | AH69: 0 | AI69: 0 | AJ69: 0 | AK69: 0 | AL69: 0 | AM69: 0 | AN69: 0 | AO69: 0 | AP69: 0 | AQ69: 0 | AR69: 0 | AS69: 0 | AT69: 0 | AU69: 0 | AV69: 0 | AW69: 0 | AX69: 0 | AY69: 0 | AZ69: 0 | BA69: 0 | BB69: 0 | BC69: 0 | BD69: 0 | BE69: 0 | BF69: 0 | BG69: 0 | BH69: 0 | BI69: 0 | BJ69: 0 | BK69: 0 | BL69: 0 | BM69: 0 | BN69: 0
D70: ='Monthly build'!D390 -> [Add existing asset] | G70: =G393 -> 0 | H70: =H393 -> 0 | I70: 0 | J70: 0 | K70: 0 | L70: 0 | M70: 0 | N70: 0 | O70: 0 | P70: 0 | Q70: 0 | R70: 0 | S70: 0 | T70: 0 | U70: 0 | V70: 0 | W70: 0 | X70: 0 | Y70: 0 | Z70: 0 | AA70: 0 | AB70: 0 | AC70: 0 | AD70: 0 | AE70: 0 | AF70: 0 | AG70: 0 | AH70: 0 | AI70: 0 | AJ70: 0 | AK70: 0 | AL70: 0 | AM70: 0 | AN70: 0 | AO70: 0 | AP70: 0 | AQ70: 0 | AR70: 0 | AS70: 0 | AT70: 0 | AU70: 0 | AV70: 0 | AW70: 0 | AX70: 0 | AY70: 0 | AZ70: 0 | BA70: 0 | BB70: 0 | BC70: 0 | BD70: 0 | BE70: 0 | BF70: 0 | BG70: 0 | BH70: 0 | BI70: 0 | BJ70: 0 | BK70: 0 | BL70: 0 | BM70: 0 | BN70: 0
D71: New Assets | G71: =SUM('Monthly build'!G401,'Monthly build'!G407,'Monthly build'!G413,'Monthly build'!G419,'Monthly build'!G425,'Monthly build'!G431,'Monthly build'!G437,'Monthly build'!G443) -> 188229.1667 | H71: =SUM('Monthly build'!H401,'Monthly build'!H407,'Monthly build'!H413,'Monthly build'!H419,'Monthly build'!H425,'Monthly build'!H431,'Monthly build'!H437,'Monthly build'!H443) -> 186476.9965 | I71: =SUM('Monthly build'!I401,'Monthly build'!I407,'Monthly build'!I413,'Monthly build'!I419,'Monthly build'!I425,'Monthly build'!I431,'Monthly build'!I437,'Monthly build'!I443) -> 184743.2527 | J71: =SUM('Monthly build'!J401,'Monthly build'!J407,'Monthly build'!J413,'Monthly build'!J419,'Monthly build'!J425,'Monthly build'!J431,'Monthly build'!J437,'Monthly build'!J443) -> 183027.7019 | K71: =SUM('Monthly build'!K401,'Monthly build'!K407,'Monthly build'!K413,'Monthly build'!K419,'Monthly build'!K425,'Monthly build'!K431,'Monthly build'!K437,'Monthly build'!K443) -> 181330.1145 | L71: =SUM('Monthly build'!L401,'Monthly build'!L407,'Monthly build'!L413,'Monthly build'!L419,'Monthly build'!L425,'Monthly build'!L431,'Monthly build'!L437,'Monthly build'!L443) -> 179945.2644 | M71: =SUM('Monthly build'!M401,'Monthly build'!M407,'Monthly build'!M413,'Monthly build'!M419,'Monthly build'!M425,'Monthly build'!M431,'Monthly build'!M437,'Monthly build'!M443) -> 178278.0124 | N71: =SUM('Monthly build'!N401,'Monthly build'!N407,'Monthly build'!N413,'Monthly build'!N419,'Monthly build'!N425,'Monthly build'!N431,'Monthly build'!N437,'Monthly build'!N443) -> 176628.1378 | O71: =SUM('Monthly build'!O401,'Monthly build'!O407,'Monthly build'!O413,'Monthly build'!O419,'Monthly build'!O425,'Monthly build'!O431,'Monthly build'!O437,'Monthly build'!O443) -> 174995.4235 | P71: =SUM('Monthly build'!P401,'Monthly build'!P407,'Monthly build'!P413,'Monthly build'!P419,'Monthly build'!P425,'Monthly build'!P431,'Monthly build'!P437,'Monthly build'!P443) -> 173379.6554 | Q71: =SUM('Monthly build'!Q401,'Monthly build'!Q407,'Monthly build'!Q413,'Monthly build'!Q419,'Monthly build'!Q425,'Monthly build'!Q431,'Monthly build'!Q437,'Monthly build'!Q443) -> 171780.6231 | R71: =SUM('Monthly build'!R401,'Monthly build'!R407,'Monthly build'!R413,'Monthly build'!R419,'Monthly build'!R425,'Monthly build'!R431,'Monthly build'!R437,'Monthly build'!R443) -> 170198.119 | S71: =SUM('Monthly build'!S401,'Monthly build'!S407,'Monthly build'!S413,'Monthly build'!S419,'Monthly build'!S425,'Monthly build'!S431,'Monthly build'!S437,'Monthly build'!S443) -> 168631.9388 | T71: =SUM('Monthly build'!T401,'Monthly build'!T407,'Monthly build'!T413,'Monthly build'!T419,'Monthly build'!T425,'Monthly build'!T431,'Monthly build'!T437,'Monthly build'!T443) -> 167081.8813 | U71: =SUM('Monthly build'!U401,'Monthly build'!U407,'Monthly build'!U413,'Monthly build'!U419,'Monthly build'!U425,'Monthly build'!U431,'Monthly build'!U437,'Monthly build'!U443) -> 165547.7483 | V71: =SUM('Monthly build'!V401,'Monthly build'!V407,'Monthly build'!V413,'Monthly build'!V419,'Monthly build'!V425,'Monthly build'!V431,'Monthly build'!V437,'Monthly build'!V443) -> 164029.3447 | W71: =SUM('Monthly build'!W401,'Monthly build'!W407,'Monthly build'!W413,'Monthly build'!W419,'Monthly build'!W425,'Monthly build'!W431,'Monthly build'!W437,'Monthly build'!W443) -> 162526.4781 | X71: =SUM('Monthly build'!X401,'Monthly build'!X407,'Monthly build'!X413,'Monthly build'!X419,'Monthly build'!X425,'Monthly build'!X431,'Monthly build'!X437,'Monthly build'!X443) -> 161038.9591 | Y71: =SUM('Monthly build'!Y401,'Monthly build'!Y407,'Monthly build'!Y413,'Monthly build'!Y419,'Monthly build'!Y425,'Monthly build'!Y431,'Monthly build'!Y437,'Monthly build'!Y443) -> 159566.6012 | Z71: =SUM('Monthly build'!Z401,'Monthly build'!Z407,'Monthly build'!Z413,'Monthly build'!Z419,'Monthly build'!Z425,'Monthly build'!Z431,'Monthly build'!Z437,'Monthly build'!Z443) -> 158109.2206 | AA71: =SUM('Monthly build'!AA401,'Monthly build'!AA407,'Monthly build'!AA413,'Monthly build'!AA419,'Monthly build'!AA425,'Monthly build'!AA431,'Monthly build'!AA437,'Monthly build'!AA443) -> 156666.6361 | AB71: =SUM('Monthly build'!AB401,'Monthly build'!AB407,'Monthly build'!AB413,'Monthly build'!AB419,'Monthly build'!AB425,'Monthly build'!AB431,'Monthly build'!AB437,'Monthly build'!AB443) -> 155238.6693 | AC71: =SUM('Monthly build'!AC401,'Monthly build'!AC407,'Monthly build'!AC413,'Monthly build'!AC419,'Monthly build'!AC425,'Monthly build'!AC431,'Monthly build'!AC437,'Monthly build'!AC443) -> 153825.1446 | AD71: =SUM('Monthly build'!AD401,'Monthly build'!AD407,'Monthly build'!AD413,'Monthly build'!AD419,'Monthly build'!AD425,'Monthly build'!AD431,'Monthly build'!AD437,'Monthly build'!AD443) -> 152425.8887 | AE71: =SUM('Monthly build'!AE401,'Monthly build'!AE407,'Monthly build'!AE413,'Monthly build'!AE419,'Monthly build'!AE425,'Monthly build'!AE431,'Monthly build'!AE437,'Monthly build'!AE443) -> 151040.731 | AF71: =SUM('Monthly build'!AF401,'Monthly build'!AF407,'Monthly build'!AF413,'Monthly build'!AF419,'Monthly build'!AF425,'Monthly build'!AF431,'Monthly build'!AF437,'Monthly build'!AF443) -> 149669.5033 | AG71: =SUM('Monthly build'!AG401,'Monthly build'!AG407,'Monthly build'!AG413,'Monthly build'!AG419,'Monthly build'!AG425,'Monthly build'!AG431,'Monthly build'!AG437,'Monthly build'!AG443) -> 148312.0399 | AH71: =SUM('Monthly build'!AH401,'Monthly build'!AH407,'Monthly build'!AH413,'Monthly build'!AH419,'Monthly build'!AH425,'Monthly build'!AH431,'Monthly build'!AH437,'Monthly build'!AH443) -> 146968.1777 | AI71: =SUM('Monthly build'!AI401,'Monthly build'!AI407,'Monthly build'!AI413,'Monthly build'!AI419,'Monthly build'!AI425,'Monthly build'!AI431,'Monthly build'!AI437,'Monthly build'!AI443) -> 145637.7556 | AJ71: =SUM('Monthly build'!AJ401,'Monthly build'!AJ407,'Monthly build'!AJ413,'Monthly build'!AJ419,'Monthly build'!AJ425,'Monthly build'!AJ431,'Monthly build'!AJ437,'Monthly build'!AJ443) -> 144320.6151 | AK71: =SUM('Monthly build'!AK401,'Monthly build'!AK407,'Monthly build'!AK413,'Monthly build'!AK419,'Monthly build'!AK425,'Monthly build'!AK431,'Monthly build'!AK437,'Monthly build'!AK443) -> 143016.5999 | AL71: =SUM('Monthly build'!AL401,'Monthly build'!AL407,'Monthly build'!AL413,'Monthly build'!AL419,'Monthly build'!AL425,'Monthly build'!AL431,'Monthly build'!AL437,'Monthly build'!AL443) -> 141725.5559 | AM71: =SUM('Monthly build'!AM401,'Monthly build'!AM407,'Monthly build'!AM413,'Monthly build'!AM419,'Monthly build'!AM425,'Monthly build'!AM431,'Monthly build'!AM437,'Monthly build'!AM443) -> 140447.3314 | AN71: =SUM('Monthly build'!AN401,'Monthly build'!AN407,'Monthly build'!AN413,'Monthly build'!AN419,'Monthly build'!AN425,'Monthly build'!AN431,'Monthly build'!AN437,'Monthly build'!AN443) -> 139181.7768 | AO71: =SUM('Monthly build'!AO401,'Monthly build'!AO407,'Monthly build'!AO413,'Monthly build'!AO419,'Monthly build'!AO425,'Monthly build'!AO431,'Monthly build'!AO437,'Monthly build'!AO443) -> 137928.7444 | AP71: =SUM('Monthly build'!AP401,'Monthly build'!AP407,'Monthly build'!AP413,'Monthly build'!AP419,'Monthly build'!AP425,'Monthly build'!AP431,'Monthly build'!AP437,'Monthly build'!AP443) -> 136688.0888 | AQ71: =SUM('Monthly build'!AQ401,'Monthly build'!AQ407,'Monthly build'!AQ413,'Monthly build'!AQ419,'Monthly build'!AQ425,'Monthly build'!AQ431,'Monthly build'!AQ437,'Monthly build'!AQ443) -> 135459.6669 | AR71: =SUM('Monthly build'!AR401,'Monthly build'!AR407,'Monthly build'!AR413,'Monthly build'!AR419,'Monthly build'!AR425,'Monthly build'!AR431,'Monthly build'!AR437,'Monthly build'!AR443) -> 134243.3371 | AS71: =SUM('Monthly build'!AS401,'Monthly build'!AS407,'Monthly build'!AS413,'Monthly build'!AS419,'Monthly build'!AS425,'Monthly build'!AS431,'Monthly build'!AS437,'Monthly build'!AS443) -> 133038.9602 | AT71: =SUM('Monthly build'!AT401,'Monthly build'!AT407,'Monthly build'!AT413,'Monthly build'!AT419,'Monthly build'!AT425,'Monthly build'!AT431,'Monthly build'!AT437,'Monthly build'!AT443) -> 131846.3989 | AU71: =SUM('Monthly build'!AU401,'Monthly build'!AU407,'Monthly build'!AU413,'Monthly build'!AU419,'Monthly build'!AU425,'Monthly build'!AU431,'Monthly build'!AU437,'Monthly build'!AU443) -> 130665.5177 | AV71: =SUM('Monthly build'!AV401,'Monthly build'!AV407,'Monthly build'!AV413,'Monthly build'!AV419,'Monthly build'!AV425,'Monthly build'!AV431,'Monthly build'!AV437,'Monthly build'!AV443) -> 129496.183 | AW71: =SUM('Monthly build'!AW401,'Monthly build'!AW407,'Monthly build'!AW413,'Monthly build'!AW419,'Monthly build'!AW425,'Monthly build'!AW431,'Monthly build'!AW437,'Monthly build'!AW443) -> 128338.2633 | AX71: =SUM('Monthly build'!AX401,'Monthly build'!AX407,'Monthly build'!AX413,'Monthly build'!AX419,'Monthly build'!AX425,'Monthly build'!AX431,'Monthly build'!AX437,'Monthly build'!AX443) -> 127191.6287 | AY71: =SUM('Monthly build'!AY401,'Monthly build'!AY407,'Monthly build'!AY413,'Monthly build'!AY419,'Monthly build'!AY425,'Monthly build'!AY431,'Monthly build'!AY437,'Monthly build'!AY443) -> 126056.1511 | AZ71: =SUM('Monthly build'!AZ401,'Monthly build'!AZ407,'Monthly build'!AZ413,'Monthly build'!AZ419,'Monthly build'!AZ425,'Monthly build'!AZ431,'Monthly build'!AZ437,'Monthly build'!AZ443) -> 124931.7044 | BA71: =SUM('Monthly build'!BA401,'Monthly build'!BA407,'Monthly build'!BA413,'Monthly build'!BA419,'Monthly build'!BA425,'Monthly build'!BA431,'Monthly build'!BA437,'Monthly build'!BA443) -> 123818.1639 | BB71: =SUM('Monthly build'!BB401,'Monthly build'!BB407,'Monthly build'!BB413,'Monthly build'!BB419,'Monthly build'!BB425,'Monthly build'!BB431,'Monthly build'!BB437,'Monthly build'!BB443) -> 122715.407 | BC71: =SUM('Monthly build'!BC401,'Monthly build'!BC407,'Monthly build'!BC413,'Monthly build'!BC419,'Monthly build'!BC425,'Monthly build'!BC431,'Monthly build'!BC437,'Monthly build'!BC443) -> 121623.3124 | BD71: =SUM('Monthly build'!BD401,'Monthly build'!BD407,'Monthly build'!BD413,'Monthly build'!BD419,'Monthly build'!BD425,'Monthly build'!BD431,'Monthly build'!BD437,'Monthly build'!BD443) -> 120541.7608 | BE71: =SUM('Monthly build'!BE401,'Monthly build'!BE407,'Monthly build'!BE413,'Monthly build'!BE419,'Monthly build'!BE425,'Monthly build'!BE431,'Monthly build'!BE437,'Monthly build'!BE443) -> 119470.6343 | BF71: =SUM('Monthly build'!BF401,'Monthly build'!BF407,'Monthly build'!BF413,'Monthly build'!BF419,'Monthly build'!BF425,'Monthly build'!BF431,'Monthly build'!BF437,'Monthly build'!BF443) -> 118409.8167 | BG71: =SUM('Monthly build'!BG401,'Monthly build'!BG407,'Monthly build'!BG413,'Monthly build'!BG419,'Monthly build'!BG425,'Monthly build'!BG431,'Monthly build'!BG437,'Monthly build'!BG443) -> 117359.1934 | BH71: =SUM('Monthly build'!BH401,'Monthly build'!BH407,'Monthly build'!BH413,'Monthly build'!BH419,'Monthly build'!BH425,'Monthly build'!BH431,'Monthly build'!BH437,'Monthly build'!BH443) -> 116318.6513 | BI71: =SUM('Monthly build'!BI401,'Monthly build'!BI407,'Monthly build'!BI413,'Monthly build'!BI419,'Monthly build'!BI425,'Monthly build'!BI431,'Monthly build'!BI437,'Monthly build'!BI443) -> 115288.0788 | BJ71: =SUM('Monthly build'!BJ401,'Monthly build'!BJ407,'Monthly build'!BJ413,'Monthly build'!BJ419,'Monthly build'!BJ425,'Monthly build'!BJ431,'Monthly build'!BJ437,'Monthly build'!BJ443) -> 114267.3659 | BK71: =SUM('Monthly build'!BK401,'Monthly build'!BK407,'Monthly build'!BK413,'Monthly build'!BK419,'Monthly build'!BK425,'Monthly build'!BK431,'Monthly build'!BK437,'Monthly build'!BK443) -> 113256.404 | BL71: =SUM('Monthly build'!BL401,'Monthly build'!BL407,'Monthly build'!BL413,'Monthly build'!BL419,'Monthly build'!BL425,'Monthly build'!BL431,'Monthly build'!BL437,'Monthly build'!BL443) -> 112255.086 | BM71: =SUM('Monthly build'!BM401,'Monthly build'!BM407,'Monthly build'!BM413,'Monthly build'!BM419,'Monthly build'!BM425,'Monthly build'!BM431,'Monthly build'!BM437,'Monthly build'!BM443) -> 111263.3062 | BN71: =SUM('Monthly build'!BN401,'Monthly build'!BN407,'Monthly build'!BN413,'Monthly build'!BN419,'Monthly build'!BN425,'Monthly build'!BN431,'Monthly build'!BN437,'Monthly build'!BN443) -> 110280.9603
D72: Total non-current assets | G72: =SUM(G66:G71) -> 189449.4048 | H72: =SUM(H66:H71) -> 187668.1813 | I72: 185906.0759 | J72: 184162.8389 | K72: 182438.2244 | L72: 181026.9908 | M72: 179333.9834 | N72: 177658.9666 | O72: 176001.7087 | P72: 174361.9815 | Q72: 172739.5605 | R72: 171134.2245 | S72: 169545.7561 | T72: 167973.941 | U72: 166418.5686 | V72: 164879.4311 | W72: 163356.3244 | X72: 161849.0472 | Y72: 160357.4014 | Z72: 158881.1922 | AA72: 157420.2274 | AB72: 155974.318 | AC72: 154543.2779 | AD72: 153126.9236 | AE72: 151725.0745 | AF72: 150337.5529 | AG72: 148964.1836 | AH72: 147604.7941 | AI72: 146259.2145 | AJ72: 144927.2774 | AK72: 143608.8178 | AL72: 142303.6735 | AM72: 141011.6843 | AN72: 139732.6926 | AO72: 138466.5432 | AP72: 137213.0829 | AQ72: 135972.1611 | AR72: 134743.6291 | AS72: 133527.3405 | AT72: 132323.151 | AU72: 131130.9186 | AV72: 129950.503 | AW72: 128781.7661 | AX72: 127624.5719 | AY72: 126478.7862 | AZ72: 125344.2767 | BA72: 124220.9131 | BB72: 123108.5669 | BC72: 122007.1114 | BD72: 120916.4217 | BE72: 119836.3747 | BF72: 118766.849 | BG72: 117707.7249 | BH72: 116658.8844 | BI72: 115620.2112 | BJ72: 114591.5904 | BK72: 113572.9088 | BL72: 112564.055 | BM72: 111564.9188 | BN72: 110575.3916
D73: Total assets | G73: =SUM(G72,G63) -> 353531.2381 | H73: =SUM(H72,H63) -> 354595.7551 | I73: 355845.8826 | J73: 354528.1756 | K73: 353449.689 | L73: 352155.6511 | M73: 350899.3631 | N73: 349280.3961 | O73: 347873.4072 | P73: 346670.3994 | Q73: 345196.2893 | R73: 271353.1437 | S73: 474422.127 | T73: 477225.8013 | U73: 480212.4106 | V73: 480052.4678 | W73: 480178.2828 | X73: 530068.1789 | Y73: 529995.176 | Z73: 529556.9399 | AA73: 529328.1675 | AB73: 529300.9009 | AC73: 528907.6946 | AD73: 466438.614 | AE73: 469464.6308 | AF73: 472272.1599 | AG73: 475260.3336 | AH73: 474991.4783 | AI73: 475015.3892 | AJ73: 474763.5088 | AK73: 474549.7893 | AL73: 473968.7154 | AM73: 473595.0159 | AN73: 473420.7643 | AO73: 472894.587 | AP73: 470641.5781 | AQ73: 475278.2206 | AR73: 479597.5768 | AS73: 484095.6689 | AT73: 484844.4654 | AU73: 485925.9961 | AV73: 486686.5845 | AW73: 487487.2298 | AX73: 487918.7482 | AY73: 488555.8942 | AZ73: 489390.7669 | BA73: 489817.2657 | BB73: 484431.3168 | BC73: 487260.7061 | BD73: 489561.1857 | BE73: 492038.8004 | BF73: 491441.1767 | BG73: 491262.4593 | BH73: 490694.612 | BI73: 490170.9944 | BJ73: 489276.7597 | BK73: 488586.6834 | BL73: 488092.8853 | BM73: 487391.0664 | BN73: 486118.8114
C75: Liabilities
D76: Current liabilities
D77: Trade payables | G77: =G473 -> 511.7523288 | H77: =H473 -> 511.7523288 | I77: 511.7523288 | J77: 372.4273973 | K77: 372.4273973 | L77: 360.0966575 | M77: 360.0966575 | N77: 360.0966575 | O77: 360.0966575 | P77: 360.0966575 | Q77: 344.562411 | R77: 344.562411 | S77: 617.3852055 | T77: 617.3852055 | U77: 617.3852055 | V77: 447.0312329 | W77: 447.0312329 | X77: 433.4715616 | Y77: 433.4715616 | Z77: 433.4715616 | AA77: 433.4715616 | AB77: 433.4715616 | AC77: 412.9604384 | AD77: 412.9604384 | AE77: 648.7791781 | AF77: 648.7791781 | AG77: 648.7791781 | AH77: 472.5961644 | AI77: 472.5961644 | AJ77: 457.0066849 | AK77: 457.0066849 | AL77: 457.0066849 | AM77: 457.0066849 | AN77: 457.0066849 | AO77: 437.3595616 | AP77: 437.3595616 | AQ77: 740.140274 | AR77: 740.140274 | AS77: 740.140274 | AT77: 537.5441096 | AU77: 537.5441096 | AV77: 519.6210411 | AW77: 519.6210411 | AX77: 519.6210411 | AY77: 519.6210411 | AZ77: 519.6210411 | BA77: 497.0248767 | BB77: 497.0248767 | BC77: 978.2728767 | BD77: 978.2728767 | BE77: 978.2728767 | BF77: 705.0082192 | BG77: 705.0082192 | BH77: 683.4950137 | BI77: 683.4950137 | BJ77: 683.4950137 | BK77: 683.4950137 | BL77: 683.4950137 | BM77: 650.3552877 | BN77: 650.3552877
D78: Other payables | G78: =G476 -> 1064.262695 | H78: =H476 -> 897.7702285 | I78: 897.7702285 | J78: 816.4973518 | K78: 816.4973518 | L78: 809.3044203 | M78: 809.3044203 | N78: 995.7548313 | O78: 809.3044203 | P78: 809.3044203 | Q78: 800.2427765 | R78: 800.2427765 | S78: 1149.304503 | T78: 982.8120368 | U78: 982.8120368 | V78: 883.4388862 | W78: 883.4388862 | X78: 875.5290779 | Y78: 875.5290779 | Z78: 1061.979489 | AA78: 875.5290779 | AB78: 875.5290779 | AC78: 863.564256 | AD78: 863.564256 | AE78: 1200.482936 | AF78: 1033.99047 | AG78: 1033.99047 | AH78: 931.2170452 | AI78: 931.2170452 | AJ78: 922.1231821 | AK78: 922.1231821 | AL78: 1108.573593 | AM78: 922.1231821 | AN78: 922.1231821 | AO78: 910.6623602 | AP78: 910.6623602 | AQ78: 1277.479918 | AR78: 1110.987452 | AS78: 1110.987452 | AT78: 992.8063562 | AU78: 992.8063562 | AV78: 982.3512329 | AW78: 982.3512329 | AX78: 1168.801644 | AY78: 982.3512329 | AZ78: 982.3512329 | BA78: 969.170137 | BB78: 969.170137 | BC78: 1367.519863 | BD78: 1201.027397 | BE78: 1201.027397 | BF78: 1065.787397 | BG78: 1065.787397 | BH78: 1053.238027 | BI78: 1053.238027 | BJ78: 1239.688438 | BK78: 1053.238027 | BL78: 1053.238027 | BM78: 1038.739397 | BN78: 1038.739397
D79: Total current liabilities | G79: =SUM(G77:G78) -> 1576.015024 | H79: =SUM(H77:H78) -> 1409.522557 | I79: 1409.522557 | J79: 1188.924749 | K79: 1188.924749 | L79: 1169.401078 | M79: 1169.401078 | N79: 1355.851489 | O79: 1169.401078 | P79: 1169.401078 | Q79: 1144.805187 | R79: 1144.805187 | S79: 1766.689709 | T79: 1600.197242 | U79: 1600.197242 | V79: 1330.470119 | W79: 1330.470119 | X79: 1309.00064 | Y79: 1309.00064 | Z79: 1495.451051 | AA79: 1309.00064 | AB79: 1309.00064 | AC79: 1276.524694 | AD79: 1276.524694 | AE79: 1849.262114 | AF79: 1682.769648 | AG79: 1682.769648 | AH79: 1403.81321 | AI79: 1403.81321 | AJ79: 1379.129867 | AK79: 1379.129867 | AL79: 1565.580278 | AM79: 1379.129867 | AN79: 1379.129867 | AO79: 1348.021922 | AP79: 1348.021922 | AQ79: 2017.620192 | AR79: 1851.127726 | AS79: 1851.127726 | AT79: 1530.350466 | AU79: 1530.350466 | AV79: 1501.972274 | AW79: 1501.972274 | AX79: 1688.422685 | AY79: 1501.972274 | AZ79: 1501.972274 | BA79: 1466.195014 | BB79: 1466.195014 | BC79: 2345.79274 | BD79: 2179.300274 | BE79: 2179.300274 | BF79: 1770.795616 | BG79: 1770.795616 | BH79: 1736.733041 | BI79: 1736.733041 | BJ79: 1923.183452 | BK79: 1736.733041 | BL79: 1736.733041 | BM79: 1689.094685 | BN79: 1689.094685
D81: Non-current liabilities
D82: New loans | G82: =G532 -> 0 | H82: =H532 -> 0 | I82: 0 | J82: 0 | K82: 0 | L82: 0 | M82: 0 | N82: 0 | O82: 0 | P82: 0 | Q82: 0 | R82: 0 | S82: 0 | T82: 0 | U82: 0 | V82: 0 | W82: 0 | X82: 0 | Y82: 0 | Z82: 0 | AA82: 0 | AB82: 0 | AC82: 0 | AD82: 0 | AE82: 0 | AF82: 0 | AG82: 0 | AH82: 0 | AI82: 0 | AJ82: 0 | AK82: 0 | AL82: 0 | AM82: 0 | AN82: 0 | AO82: 0 | AP82: 0 | AQ82: 0 | AR82: 0 | AS82: 0 | AT82: 0 | AU82: 0 | AV82: 0 | AW82: 0 | AX82: 0 | AY82: 0 | AZ82: 0 | BA82: 0 | BB82: 0 | BC82: 0 | BD82: 0 | BE82: 0 | BF82: 0 | BG82: 0 | BH82: 0 | BI82: 0 | BJ82: 0 | BK82: 0 | BL82: 0 | BM82: 0 | BN82: 0
D83: Total non-current liabilities | G83: =SUM(G82:G82) -> 0 | H83: =SUM(H82:H82) -> 0 | I83: 0 | J83: 0 | K83: 0 | L83: 0 | M83: 0 | N83: 0 | O83: 0 | P83: 0 | Q83: 0 | R83: 0 | S83: 0 | T83: 0 | U83: 0 | V83: 0 | W83: 0 | X83: 0 | Y83: 0 | Z83: 0 | AA83: 0 | AB83: 0 | AC83: 0 | AD83: 0 | AE83: 0 | AF83: 0 | AG83: 0 | AH83: 0 | AI83: 0 | AJ83: 0 | AK83: 0 | AL83: 0 | AM83: 0 | AN83: 0 | AO83: 0 | AP83: 0 | AQ83: 0 | AR83: 0 | AS83: 0 | AT83: 0 | AU83: 0 | AV83: 0 | AW83: 0 | AX83: 0 | AY83: 0 | AZ83: 0 | BA83: 0 | BB83: 0 | BC83: 0 | BD83: 0 | BE83: 0 | BF83: 0 | BG83: 0 | BH83: 0 | BI83: 0 | BJ83: 0 | BK83: 0 | BL83: 0 | BM83: 0 | BN83: 0
C85: Equity
D86: Share capital | G86: =G490 -> 101250 | H86: =H490 -> 101250 | I86: 101250 | J86: 101250 | K86: 101250 | L86: 101250 | M86: 101250 | N86: 101250 | O86: 101250 | P86: 101250 | Q86: 101250 | R86: 101250 | S86: 101250 | T86: 101250 | U86: 101250 | V86: 101250 | W86: 101250 | X86: 151250 | Y86: 151250 | Z86: 151250 | AA86: 151250 | AB86: 151250 | AC86: 151250 | AD86: 151250 | AE86: 151250 | AF86: 151250 | AG86: 151250 | AH86: 151250 | AI86: 151250 | AJ86: 151250 | AK86: 151250 | AL86: 151250 | AM86: 151250 | AN86: 151250 | AO86: 151250 | AP86: 151250 | AQ86: 151250 | AR86: 151250 | AS86: 151250 | AT86: 151250 | AU86: 151250 | AV86: 151250 | AW86: 151250 | AX86: 151250 | AY86: 151250 | AZ86: 151250 | BA86: 151250 | BB86: 151250 | BC86: 151250 | BD86: 151250 | BE86: 151250 | BF86: 151250 | BG86: 151250 | BH86: 151250 | BI86: 151250 | BJ86: 151250 | BK86: 151250 | BL86: 151250 | BM86: 151250 | BN86: 151250
D87: Retained earnings | G87: =F87+G47 -> 250705.2231 | H87: =G87+H47 -> 251936.2325 | I87: 253186.36 | J87: 252089.2508 | K87: 251010.7643 | L87: 249736.25 | M87: 248479.962 | N87: 246674.5446 | O87: 245454.0061 | P87: 244250.9983 | Q87: 242801.4841 | R87: 168958.3385 | S87: 371405.4373 | T87: 374375.6041 | U87: 377362.2134 | V87: 377471.9977 | W87: 377597.8127 | X87: 377509.1783 | Y87: 377436.1753 | Z87: 376811.4889 | AA87: 376769.1669 | AB87: 376741.9003 | AC87: 376381.1699 | AD87: 313912.0893 | AE87: 316365.3687 | AF87: 319339.3902 | AG87: 322327.564 | AH87: 322337.6651 | AI87: 322361.576 | AJ87: 322134.3789 | AK87: 321920.6594 | AL87: 321153.1351 | AM87: 320965.886 | AN87: 320791.6344 | AO87: 320296.5651 | AP87: 318043.5562 | AQ87: 322010.6004 | AR87: 326496.4491 | AS87: 330994.5412 | AT87: 332064.1149 | AU87: 333145.6457 | AV87: 333934.6122 | AW87: 334735.2576 | AX87: 334980.3255 | AY87: 335803.922 | AZ87: 336638.7946 | BA87: 337101.0707 | BB87: 331715.1218 | BC87: 333664.9134 | BD87: 336131.8854 | BE87: 338609.5001 | BF87: 338420.3811 | BG87: 338241.6637 | BH87: 337707.8789 | BI87: 337184.2613 | BJ87: 336103.5762 | BK87: 335599.9504 | BL87: 335106.1522 | BM87: 334451.9717 | BN87: 333179.7167
D88: Total equity | G88: =SUM(G86:G87) -> 351955.2231 | H88: =SUM(H86:H87) -> 353186.2325 | I88: 354436.36 | J88: 353339.2508 | K88: 352260.7643 | L88: 350986.25 | M88: 349729.962 | N88: 347924.5446 | O88: 346704.0061 | P88: 345500.9983 | Q88: 344051.4841 | R88: 270208.3385 | S88: 472655.4373 | T88: 475625.6041 | U88: 478612.2134 | V88: 478721.9977 | W88: 478847.8127 | X88: 528759.1783 | Y88: 528686.1753 | Z88: 528061.4889 | AA88: 528019.1669 | AB88: 527991.9003 | AC88: 527631.1699 | AD88: 465162.0893 | AE88: 467615.3687 | AF88: 470589.3902 | AG88: 473577.564 | AH88: 473587.6651 | AI88: 473611.576 | AJ88: 473384.3789 | AK88: 473170.6594 | AL88: 472403.1351 | AM88: 472215.886 | AN88: 472041.6344 | AO88: 471546.5651 | AP88: 469293.5562 | AQ88: 473260.6004 | AR88: 477746.4491 | AS88: 482244.5412 | AT88: 483314.1149 | AU88: 484395.6457 | AV88: 485184.6122 | AW88: 485985.2576 | AX88: 486230.3255 | AY88: 487053.922 | AZ88: 487888.7946 | BA88: 488351.0707 | BB88: 482965.1218 | BC88: 484914.9134 | BD88: 487381.8854 | BE88: 489859.5001 | BF88: 489670.3811 | BG88: 489491.6637 | BH88: 488957.8789 | BI88: 488434.2613 | BJ88: 487353.5762 | BK88: 486849.9504 | BL88: 486356.1522 | BM88: 485701.9717 | BN88: 484429.7167
D90: Total equity and liabilities | G90: =SUM(G79,G83,G88) -> 353531.2381 | H90: =SUM(H79,H83,H88) -> 354595.7551 | I90: 355845.8826 | J90: 354528.1756 | K90: 353449.689 | L90: 352155.6511 | M90: 350899.3631 | N90: 349280.3961 | O90: 347873.4072 | P90: 346670.3994 | Q90: 345196.2893 | R90: 271353.1437 | S90: 474422.127 | T90: 477225.8013 | U90: 480212.4106 | V90: 480052.4678 | W90: 480178.2828 | X90: 530068.1789 | Y90: 529995.176 | Z90: 529556.9399 | AA90: 529328.1675 | AB90: 529300.9009 | AC90: 528907.6946 | AD90: 466438.614 | AE90: 469464.6308 | AF90: 472272.1599 | AG90: 475260.3336 | AH90: 474991.4783 | AI90: 475015.3892 | AJ90: 474763.5088 | AK90: 474549.7893 | AL90: 473968.7154 | AM90: 473595.0159 | AN90: 473420.7643 | AO90: 472894.587 | AP90: 470641.5781 | AQ90: 475278.2206 | AR90: 479597.5768 | AS90: 484095.6689 | AT90: 484844.4654 | AU90: 485925.9961 | AV90: 486686.5845 | AW90: 487487.2298 | AX90: 487918.7482 | AY90: 488555.8942 | AZ90: 489390.7669 | BA90: 489817.2657 | BB90: 484431.3168 | BC90: 487260.7061 | BD90: 489561.1857 | BE90: 492038.8004 | BF90: 491441.1767 | BG90: 491262.4593 | BH90: 490694.612 | BI90: 490170.9944 | BJ90: 489276.7597 | BK90: 488586.6834 | BL90: 488092.8853 | BM90: 487391.0664 | BN90: 486118.8114
D92: Balance Check: | G92: =ROUND(G73-G90,0) -> 0 | H92: =ROUND(H73-H90,0) -> 0 | I92: 0 | J92: 0 | K92: 0 | L92: 0 | M92: 0 | N92: 0 | O92: 0 | P92: 0 | Q92: 0 | R92: 0 | S92: 0 | T92: 0 | U92: 0 | V92: 0 | W92: 0 | X92: 0 | Y92: 0 | Z92: 0 | AA92: 0 | AB92: 0 | AC92: 0 | AD92: 0 | AE92: 0 | AF92: 0 | AG92: 0 | AH92: 0 | AI92: 0 | AJ92: 0 | AK92: 0 | AL92: 0 | AM92: 0 | AN92: 0 | AO92: 0 | AP92: 0 | AQ92: 0 | AR92: 0 | AS92: 0 | AT92: 0 | AU92: 0 | AV92: 0 | AW92: 0 | AX92: 0 | AY92: 0 | AZ92: 0 | BA92: 0 | BB92: 0 | BC92: 0 | BD92: 0 | BE92: 0 | BF92: 0 | BG92: 0 | BH92: 0 | BI92: 0 | BJ92: 0 | BK92: 0 | BL92: 0 | BM92: 0 | BN92: 0
D93: Note: When debt is included in the model, the PPMT formula can lead to minor rounding differences leading to minimal balancing differences.
B95: Cashflow Statement
C97: Cashflows from operations
D98: Net profit | G98: =G47 -> 250705.2231 | H98: =H47 -> 1231.009461 | I98: 1250.127494 | J98: -1097.109181 | K98: -1078.486567 | L98: -1274.514243 | M98: -1256.288025 | N98: -1805.417358 | O98: -1220.538509 | P98: -1203.007815 | Q98: -1449.514181 | R98: -73843.14559 | S98: 202447.0988 | T98: 2970.166738 | U98: 2986.6093 | V98: 109.7843223 | W98: 125.8150236 | X98: -88.63443404 | Y98: -73.00294639 | Z98: -624.6864652 | AA98: -42.32199735 | AB98: -27.26660349 | AC98: -360.7303972 | AD98: -62469.08057 | AE98: 2453.279449 | AF98: 2974.021482 | AG98: 2988.173781 | AH98: 10.10106703 | AI98: 23.91093093 | AJ98: -227.197083 | AK98: -213.7194754 | AL98: -767.5242911 | AM98: -187.2491184 | AN98: -174.251588 | AO98: -495.0693723 | AP98: -2253.008864 | AQ98: 3967.044245 | AR98: 4485.848663 | AS98: 4498.092091 | AT98: 1069.573745 | AU98: 1081.530719 | AV98: 788.9665711 | AW98: 800.6453236 | AX98: 245.0679634 | AY98: 823.5964436 | AZ98: 834.8726835 | BA98: 462.2760696 | BB98: -5385.948936 | BC98: 1949.791595 | BD98: 2466.972003 | BE98: 2477.614701 | BF98: -189.1189953 | BG98: -178.7173842 | BH98: -533.7847929 | BI98: -523.6175767 | BJ98: -1080.685119 | BK98: -503.625829 | BL98: -493.7981447 | BM98: -654.1805286 | BN98: -1272.255007
D99: Less grant income | G99: =-G26 -> -250000 | H99: =-H26 -> 0 | I99: 0 | J99: 0 | K99: 0 | L99: 0 | M99: 0 | N99: 0 | O99: 0 | P99: 0 | Q99: 0 | R99: 0 | S99: -200000 | T99: 0 | U99: 0 | V99: 0 | W99: 0 | X99: 0 | Y99: 0 | Z99: 0 | AA99: 0 | AB99: 0 | AC99: 0 | AD99: 0 | AE99: 0 | AF99: 0 | AG99: 0 | AH99: 0 | AI99: 0 | AJ99: 0 | AK99: 0 | AL99: 0 | AM99: 0 | AN99: 0 | AO99: 0 | AP99: 0 | AQ99: 0 | AR99: 0 | AS99: 0 | AT99: 0 | AU99: 0 | AV99: 0 | AW99: 0 | AX99: 0 | AY99: 0 | AZ99: 0 | BA99: 0 | BB99: 0 | BC99: 0 | BD99: 0 | BE99: 0 | BF99: 0 | BG99: 0 | BH99: 0 | BI99: 0 | BJ99: 0 | BK99: 0 | BL99: 0 | BM99: 0 | BN99: 0
D100: Non-cash charges
D101: Depreciation | G101: =-G37 -> 1800.595238 | H101: =-H37 -> 1781.223427 | I101: 1762.105394 | J101: 1743.237069 | K101: 1724.614455 | L101: 1711.233631 | M101: 1693.007413 | N101: 1675.016746 | O101: 1657.257897 | P101: 1639.727203 | Q101: 1622.421069 | R101: 1605.335963 | S101: 1588.468419 | T101: 1571.815037 | U101: 1555.372474 | V101: 1539.137452 | W101: 1523.106751 | X101: 1507.277209 | Y101: 1491.645721 | Z101: 1476.20924 | AA101: 1460.964772 | AB101: 1445.909378 | AC101: 1431.040172 | AD101: 1416.354319 | AE101: 1401.849035 | AF101: 1387.521586 | AG101: 1373.369287 | AH101: 1359.389501 | AI101: 1345.579637 | AJ101: 1331.937151 | AK101: 1318.459543 | AL101: 1305.144359 | AM101: 1291.989186 | AN101: 1278.991656 | AO101: 1266.14944 | AP101: 1253.460252 | AQ101: 1240.921846 | AR101: 1228.532013 | AS101: 1216.288585 | AT101: 1204.189431 | AU101: 1192.232457 | AV101: 1180.415605 | AW101: 1168.736852 | AX101: 1157.194213 | AY101: 1145.785732 | AZ101: 1134.509492 | BA101: 1123.363606 | BB101: 1112.34622 | BC101: 1101.455511 | BD101: 1090.689688 | BE101: 1080.04699 | BF101: 1069.525687 | BG101: 1059.124075 | BH101: 1048.840484 | BI101: 1038.673268 | BJ101: 1028.62081 | BK101: 1018.68152 | BL101: 1008.853836 | BM101: 999.1362198 | BN101: 989.5271606
D102: Working capital changes
D103: (Increase) / Decrease in trade receivables | G103: =F61-G61 -> -12024 | H103: =G61-H61 -> 0 | I103: 0 | J103: 3483.123288 | K103: 0 | L103: 308.2684932 | M103: 0 | N103: 0 | O103: 0 | P103: 0 | Q103: 388.3561644 | R103: 0 | S103: -6662.942466 | T103: 0 | U103: 0 | V103: 4258.849315 | W103: 0 | X103: 338.9917808 | Y103: 0 | Z103: 0 | AA103: 0 | AB103: 0 | AC103: 512.7780822 | AD103: 0 | AE103: -5808.956712 | AF103: 0 | AG103: 0 | AH103: 4404.575342 | AI103: 0 | AJ103: 389.7369863 | AK103: 0 | AL103: 0 | AM103: 0 | AN103: 0 | AO103: 491.1780822 | AP103: 0 | AQ103: -7562.186301 | AR103: 0 | AS103: 0 | AT103: 5064.90411 | AU103: 0 | AV103: 448.0767123 | AW103: 0 | AX103: 0 | AY103: 0 | AZ103: 0 | BA103: 564.9041096 | BB103: 0 | BC103: -8728.599452 | BD103: 0 | BE103: 0 | BF103: 5796 | BG103: 0 | BH103: 537.830137 | BI103: 0 | BJ103: 0 | BK103: 0 | BL103: 0 | BM103: 621.369863 | BN103: 0
D104: (Increase) / Decrease in inventory | G104: =F62-G62 -> -7212.328767 | H104: =G62-H62 -> 0 | I104: 0 | J104: 2089.873973 | K104: 0 | L104: 184.9610959 | M104: 0 | N104: 0 | O104: 0 | P104: 0 | Q104: 233.0136986 | R104: 0 | S104: -3997.34137 | T104: 0 | U104: 0 | V104: 2555.309589 | W104: 0 | X104: 203.3950685 | Y104: 0 | Z104: 0 | AA104: 0 | AB104: 0 | AC104: 307.6668493 | AD104: 0 | AE104: -3485.14126 | AF104: 0 | AG104: 0 | AH104: 2642.745205 | AI104: 0 | AJ104: 233.8421918 | AK104: 0 | AL104: 0 | AM104: 0 | AN104: 0 | AO104: 294.7068493 | AP104: 0 | AQ104: -4537.292055 | AR104: 0 | AS104: 0 | AT104: 3038.942466 | AU104: 0 | AV104: 268.8460274 | AW104: 0 | AX104: 0 | AY104: 0 | AZ104: 0 | BA104: 338.9424658 | BB104: 0 | BC104: -7100.742575 | BD104: 0 | BE104: 0 | BF104: 4098.969863 | BG104: 0 | BH104: 322.6980822 | BI104: 0 | BJ104: 0 | BK104: 0 | BL104: 0 | BM104: 497.0958904 | BN104: 0
D105: Increase / (Decrease) in trade payables | G105: =G77-F77 -> 511.7523288 | H105: =H77-G77 -> 0 | I105: 0 | J105: -139.3249315 | K105: 0 | L105: -12.33073973 | M105: 0 | N105: 0 | O105: 0 | P105: 0 | Q105: -15.53424658 | R105: 0 | S105: 272.8227945 | T105: 0 | U105: 0 | V105: -170.3539726 | W105: 0 | X105: -13.55967123 | Y105: 0 | Z105: 0 | AA105: 0 | AB105: 0 | AC105: -20.51112329 | AD105: 0 | AE105: 235.8187397 | AF105: 0 | AG105: 0 | AH105: -176.1830137 | AI105: 0 | AJ105: -15.58947945 | AK105: 0 | AL105: 0 | AM105: 0 | AN105: 0 | AO105: -19.64712329 | AP105: 0 | AQ105: 302.7807123 | AR105: 0 | AS105: 0 | AT105: -202.5961644 | AU105: 0 | AV105: -17.92306849 | AW105: 0 | AX105: 0 | AY105: 0 | AZ105: 0 | BA105: -22.59616438 | BB105: 0 | BC105: 481.248 | BD105: 0 | BE105: 0 | BF105: -273.2646575 | BG105: 0 | BH105: -21.51320548 | BI105: 0 | BJ105: 0 | BK105: 0 | BL105: 0 | BM105: -33.13972603 | BN105: 0
D106: Increase / (Decrease) in other payables | G106: =G78-F78 -> 1064.262695 | H106: =H78-G78 -> -166.4924662 | I106: 0 | J106: -81.27287671 | K106: 0 | L106: -7.192931507 | M106: 0 | N106: 186.450411 | O106: -186.450411 | P106: 0 | Q106: -9.061643836 | R106: 0 | S106: 349.0617266 | T106: -166.4924662 | U106: 0 | V106: -99.37315068 | W106: 0 | X106: -7.909808219 | Y106: 0 | Z106: 186.450411 | AA106: -186.450411 | AB106: 0 | AC106: -11.96482192 | AD106: 0 | AE106: 336.91868 | AF106: -166.4924662 | AG106: 0 | AH106: -102.7734247 | AI106: 0 | AJ106: -9.093863014 | AK106: 0 | AL106: 186.450411 | AM106: -186.450411 | AN106: 0 | AO106: -11.46082192 | AP106: 0 | AQ106: 366.8175581 | AR106: -166.4924662 | AS106: 0 | AT106: -118.1810959 | AU106: 0 | AV106: -10.45512329 | AW106: 0 | AX106: 186.450411 | AY106: -186.450411 | AZ106: 0 | BA106: -13.18109589 | BB106: 0 | BC106: 398.3497265 | BD106: -166.4924662 | BE106: 0 | BF106: -135.24 | BG106: 0 | BH106: -12.54936986 | BI106: 0 | BJ106: 186.450411 | BK106: -186.450411 | BL106: 0 | BM106: -14.49863014 | BN106: 0
D107: Net cashflows from operations | G107: =SUM(G103:G106,G98:G99,G101) -> -15154.49544 | H107: =SUM(H103:H106,H98:H99,H101) -> 2845.740422 | I107: 3012.232888 | J107: 5998.52734 | K107: 646.1278882 | L107: 910.425306 | M107: 436.7193882 | N107: 56.04979913 | O107: 250.2689772 | P107: 436.7193882 | Q107: 769.6808608 | R107: -72237.80963 | S107: -6002.832125 | T107: 4375.489308 | U107: 4541.981775 | V107: 8193.353555 | W107: 1648.921775 | X107: 1939.560144 | Y107: 1418.642775 | Z107: 1037.973186 | AA107: 1232.192364 | AB107: 1418.642775 | AC107: 1858.278761 | AD107: -61052.72626 | AE107: -4866.23207 | AF107: 4195.050602 | AG107: 4361.543068 | AH107: 8137.854677 | AI107: 1369.490568 | AJ107: 1703.635903 | AK107: 1104.740068 | AL107: 724.0704788 | AM107: 918.2896569 | AN107: 1104.740068 | AO107: 1525.857054 | AP107: -999.5486111 | AQ107: -6221.913995 | AR107: 5547.88821 | AS107: 5714.380676 | AT107: 10056.83249 | AU107: 2273.763176 | AV107: 2657.926724 | AW107: 1969.382176 | AX107: 1588.712587 | AY107: 1782.931765 | AZ107: 1969.382176 | BA107: 2453.708991 | BB107: -4273.602716 | BC107: -11898.49719 | BD107: 3391.169225 | BE107: 3557.661691 | BF107: 10366.8719 | BG107: 880.4066912 | BH107: 1341.521335 | BI107: 515.0556912 | BJ107: 134.3861022 | BK107: 328.6052803 | BL107: 515.0556912 | BM107: 1415.783088 | BN107: -282.7278469
C109: Cashflows from investing activities
D110: (Purchase) / sale of non-current assets | G110: =-G448 -> -190000 | H110: =-H448 -> 0 | I110: 0 | J110: 0 | K110: 0 | L110: -300 | M110: 0 | N110: 0 | O110: 0 | P110: 0 | Q110: 0 | R110: 0 | S110: 0 | T110: 0 | U110: 0 | V110: 0 | W110: 0 | X110: 0 | Y110: 0 | Z110: 0 | AA110: 0 | AB110: 0 | AC110: 0 | AD110: 0 | AE110: 0 | AF110: 0 | AG110: 0 | AH110: 0 | AI110: 0 | AJ110: 0 | AK110: 0 | AL110: 0 | AM110: 0 | AN110: 0 | AO110: 0 | AP110: 0 | AQ110: 0 | AR110: 0 | AS110: 0 | AT110: 0 | AU110: 0 | AV110: 0 | AW110: 0 | AX110: 0 | AY110: 0 | AZ110: 0 | BA110: 0 | BB110: 0 | BC110: 0 | BD110: 0 | BE110: 0 | BF110: 0 | BG110: 0 | BH110: 0 | BI110: 0 | BJ110: 0 | BK110: 0 | BL110: 0 | BM110: 0 | BN110: 0
D111: Net cashflows from investing activities | G111: =SUM(G110:G110) -> -190000 | H111: =SUM(H110:H110) -> 0 | I111: 0 | J111: 0 | K111: 0 | L111: -300 | M111: 0 | N111: 0 | O111: 0 | P111: 0 | Q111: 0 | R111: 0 | S111: 0 | T111: 0 | U111: 0 | V111: 0 | W111: 0 | X111: 0 | Y111: 0 | Z111: 0 | AA111: 0 | AB111: 0 | AC111: 0 | AD111: 0 | AE111: 0 | AF111: 0 | AG111: 0 | AH111: 0 | AI111: 0 | AJ111: 0 | AK111: 0 | AL111: 0 | AM111: 0 | AN111: 0 | AO111: 0 | AP111: 0 | AQ111: 0 | AR111: 0 | AS111: 0 | AT111: 0 | AU111: 0 | AV111: 0 | AW111: 0 | AX111: 0 | AY111: 0 | AZ111: 0 | BA111: 0 | BB111: 0 | BC111: 0 | BD111: 0 | BE111: 0 | BF111: 0 | BG111: 0 | BH111: 0 | BI111: 0 | BJ111: 0 | BK111: 0 | BL111: 0 | BM111: 0 | BN111: 0
C113: Cashflows from financing activities
D114: Grant financing | G114: =-G99 -> 250000 | H114: =-H99 -> 0 | I114: 0 | J114: 0 | K114: 0 | L114: 0 | M114: 0 | N114: 0 | O114: 0 | P114: 0 | Q114: 0 | R114: 0 | S114: 200000 | T114: 0 | U114: 0 | V114: 0 | W114: 0 | X114: 0 | Y114: 0 | Z114: 0 | AA114: 0 | AB114: 0 | AC114: 0 | AD114: 0 | AE114: 0 | AF114: 0 | AG114: 0 | AH114: 0 | AI114: 0 | AJ114: 0 | AK114: 0 | AL114: 0 | AM114: 0 | AN114: 0 | AO114: 0 | AP114: 0 | AQ114: 0 | AR114: 0 | AS114: 0 | AT114: 0 | AU114: 0 | AV114: 0 | AW114: 0 | AX114: 0 | AY114: 0 | AZ114: 0 | BA114: 0 | BB114: 0 | BC114: 0 | BD114: 0 | BE114: 0 | BF114: 0 | BG114: 0 | BH114: 0 | BI114: 0 | BJ114: 0 | BK114: 0 | BL114: 0 | BM114: 0 | BN114: 0
D115: Debt financing
D116: New debt injections | G116: =G530 -> 0 | H116: =H530 -> 0 | I116: 0 | J116: 0 | K116: 0 | L116: 0 | M116: 0 | N116: 0 | O116: 0 | P116: 0 | Q116: 0 | R116: 0 | S116: 0 | T116: 0 | U116: 0 | V116: 0 | W116: 0 | X116: 0 | Y116: 0 | Z116: 0 | AA116: 0 | AB116: 0 | AC116: 0 | AD116: 0 | AE116: 0 | AF116: 0 | AG116: 0 | AH116: 0 | AI116: 0 | AJ116: 0 | AK116: 0 | AL116: 0 | AM116: 0 | AN116: 0 | AO116: 0 | AP116: 0 | AQ116: 0 | AR116: 0 | AS116: 0 | AT116: 0 | AU116: 0 | AV116: 0 | AW116: 0 | AX116: 0 | AY116: 0 | AZ116: 0 | BA116: 0 | BB116: 0 | BC116: 0 | BD116: 0 | BE116: 0 | BF116: 0 | BG116: 0 | BH116: 0 | BI116: 0 | BJ116: 0 | BK116: 0 | BL116: 0 | BM116: 0 | BN116: 0
D117: Debt principal repayments | G117: =G531 -> 0 | H117: =H531 -> 0 | I117: 0 | J117: 0 | K117: 0 | L117: 0 | M117: 0 | N117: 0 | O117: 0 | P117: 0 | Q117: 0 | R117: 0 | S117: 0 | T117: 0 | U117: 0 | V117: 0 | W117: 0 | X117: 0 | Y117: 0 | Z117: 0 | AA117: 0 | AB117: 0 | AC117: 0 | AD117: 0 | AE117: 0 | AF117: 0 | AG117: 0 | AH117: 0 | AI117: 0 | AJ117: 0 | AK117: 0 | AL117: 0 | AM117: 0 | AN117: 0 | AO117: 0 | AP117: 0 | AQ117: 0 | AR117: 0 | AS117: 0 | AT117: 0 | AU117: 0 | AV117: 0 | AW117: 0 | AX117: 0 | AY117: 0 | AZ117: 0 | BA117: 0 | BB117: 0 | BC117: 0 | BD117: 0 | BE117: 0 | BF117: 0 | BG117: 0 | BH117: 0 | BI117: 0 | BJ117: 0 | BK117: 0 | BL117: 0 | BM117: 0 | BN117: 0
D118: Equity injections | G118: =G489 -> 100000 | H118: =H489 -> 0 | I118: 0 | J118: 0 | K118: 0 | L118: 0 | M118: 0 | N118: 0 | O118: 0 | P118: 0 | Q118: 0 | R118: 0 | S118: 0 | T118: 0 | U118: 0 | V118: 0 | W118: 0 | X118: 50000 | Y118: 0 | Z118: 0 | AA118: 0 | AB118: 0 | AC118: 0 | AD118: 0 | AE118: 0 | AF118: 0 | AG118: 0 | AH118: 0 | AI118: 0 | AJ118: 0 | AK118: 0 | AL118: 0 | AM118: 0 | AN118: 0 | AO118: 0 | AP118: 0 | AQ118: 0 | AR118: 0 | AS118: 0 | AT118: 0 | AU118: 0 | AV118: 0 | AW118: 0 | AX118: 0 | AY118: 0 | AZ118: 0 | BA118: 0 | BB118: 0 | BC118: 0 | BD118: 0 | BE118: 0 | BF118: 0 | BG118: 0 | BH118: 0 | BI118: 0 | BJ118: 0 | BK118: 0 | BL118: 0 | BM118: 0 | BN118: 0
D119: Net cashflows from financing activities | G119: =SUM(G114:G118) -> 350000 | H119: =SUM(H114:H118) -> 0 | I119: 0 | J119: 0 | K119: 0 | L119: 0 | M119: 0 | N119: 0 | O119: 0 | P119: 0 | Q119: 0 | R119: 0 | S119: 200000 | T119: 0 | U119: 0 | V119: 0 | W119: 0 | X119: 50000 | Y119: 0 | Z119: 0 | AA119: 0 | AB119: 0 | AC119: 0 | AD119: 0 | AE119: 0 | AF119: 0 | AG119: 0 | AH119: 0 | AI119: 0 | AJ119: 0 | AK119: 0 | AL119: 0 | AM119: 0 | AN119: 0 | AO119: 0 | AP119: 0 | AQ119: 0 | AR119: 0 | AS119: 0 | AT119: 0 | AU119: 0 | AV119: 0 | AW119: 0 | AX119: 0 | AY119: 0 | AZ119: 0 | BA119: 0 | BB119: 0 | BC119: 0 | BD119: 0 | BE119: 0 | BF119: 0 | BG119: 0 | BH119: 0 | BI119: 0 | BJ119: 0 | BK119: 0 | BL119: 0 | BM119: 0 | BN119: 0
D121: Beginning cash balance | G121: =F123 -> 0 | H121: =G123 -> 144845.5046 | I121: =H123 -> 147691.245 | J121: =I123 -> 150703.4779 | K121: =J123 -> 156702.0052 | L121: =K123 -> 157348.1331 | M121: =L123 -> 157958.5584 | N121: =M123 -> 158395.2778 | O121: =N123 -> 158451.3276 | P121: =O123 -> 158701.5966 | Q121: =P123 -> 159138.316 | R121: =Q123 -> 159907.9968 | S121: =R123 -> 87670.18719 | T121: =S123 -> 281667.3551 | U121: =T123 -> 286042.8444 | V121: =U123 -> 290584.8261 | W121: =V123 -> 298778.1797 | X121: =W123 -> 300427.1015 | Y121: =X123 -> 352366.6616 | Z121: =Y123 -> 353785.3044 | AA121: =Z123 -> 354823.2776 | AB121: =AA123 -> 356055.4699 | AC121: =AB123 -> 357474.1127 | AD121: =AC123 -> 359332.3915 | AE121: =AD123 -> 298279.6652 | AF121: =AE123 -> 293413.4332 | AG121: =AF123 -> 297608.4838 | AH121: =AG123 -> 301970.0268 | AI121: =AH123 -> 310107.8815 | AJ121: =AI123 -> 311477.3721 | AK121: =AJ123 -> 313181.008 | AL121: =AK123 -> 314285.748 | AM121: =AL123 -> 315009.8185 | AN121: =AM123 -> 315928.1082 | AO121: =AN123 -> 317032.8482 | AP121: =AO123 -> 318558.7053 | AQ121: =AP123 -> 317559.1567 | AR121: =AQ123 -> 311337.2427 | AS121: =AR123 -> 316885.1309 | AT121: =AS123 -> 322599.5116 | AU121: =AT123 -> 332656.3441 | AV121: =AU123 -> 334930.1072 | AW121: =AV123 -> 337588.034 | AX121: =AW123 -> 339557.4161 | AY121: =AX123 -> 341146.1287 | AZ121: =AY123 -> 342929.0605 | BA121: =AZ123 -> 344898.4427 | BB121: =BA123 -> 347352.1517 | BC121: =BB123 -> 343078.5489 | BD121: =BC123 -> 331180.0518 | BE121: =BD123 -> 334571.221 | BF121: =BE123 -> 338128.8827 | BG121: =BF123 -> 348495.7546 | BH121: =BG123 -> 349376.1613 | BI121: =BH123 -> 350717.6826 | BJ121: =BI123 -> 351232.7383 | BK121: =BJ123 -> 351367.1244 | BL121: =BK123 -> 351695.7297 | BM121: =BL123 -> 352210.7854 | BN121: =BM123 -> 353626.5684
D122: Net changes in cashflow | G122: =SUM(G107,G111,G119) -> 144845.5046 | H122: 2845.740422 | I122: 3012.232888 | J122: 5998.52734 | K122: 646.1278882 | L122: 610.425306 | M122: 436.7193882 | N122: 56.04979913 | O122: 250.2689772 | P122: 436.7193882 | Q122: 769.6808608 | R122: -72237.80963 | S122: 193997.1679 | T122: 4375.489308 | U122: 4541.981775 | V122: 8193.353555 | W122: 1648.921775 | X122: 51939.56014 | Y122: 1418.642775 | Z122: 1037.973186 | AA122: 1232.192364 | AB122: 1418.642775 | AC122: 1858.278761 | AD122: -61052.72626 | AE122: -4866.23207 | AF122: 4195.050602 | AG122: 4361.543068 | AH122: 8137.854677 | AI122: 1369.490568 | AJ122: 1703.635903 | AK122: 1104.740068 | AL122: 724.0704788 | AM122: =SUM(AM107,AM111,AM119) -> 918.2896569 | AN122: 1104.740068 | AO122: 1525.857054 | AP122: -999.5486111 | AQ122: -6221.913995 | AR122: 5547.88821 | AS122: 5714.380676 | AT122: 10056.83249 | AU122: 2273.763176 | AV122: 2657.926724 | AW122: 1969.382176 | AX122: 1588.712587 | AY122: 1782.931765 | AZ122: 1969.382176 | BA122: 2453.708991 | BB122: -4273.602716 | BC122: -11898.49719 | BD122: 3391.169225 | BE122: 3557.661691 | BF122: 10366.8719 | BG122: 880.4066912 | BH122: 1341.521335 | BI122: 515.0556912 | BJ122: 134.3861022 | BK122: 328.6052803 | BL122: 515.0556912 | BM122: 1415.783088 | BN122: -282.7278469
D123: Closing cash balance | G123: =SUM(G121:G122) -> 144845.5046 | H123: =SUM(H121:H122) -> 147691.245 | I123: 150703.4779 | J123: 156702.0052 | K123: 157348.1331 | L123: 157958.5584 | M123: 158395.2778 | N123: 158451.3276 | O123: 158701.5966 | P123: 159138.316 | Q123: 159907.9968 | R123: 87670.18719 | S123: 281667.3551 | T123: 286042.8444 | U123: 290584.8261 | V123: 298778.1797 | W123: 300427.1015 | X123: 352366.6616 | Y123: 353785.3044 | Z123: 354823.2776 | AA123: 356055.4699 | AB123: 357474.1127 | AC123: 359332.3915 | AD123: 298279.6652 | AE123: 293413.4332 | AF123: 297608.4838 | AG123: 301970.0268 | AH123: 310107.8815 | AI123: 311477.3721 | AJ123: 313181.008 | AK123: 314285.748 | AL123: 315009.8185 | AM123: 315928.1082 | AN123: 317032.8482 | AO123: 318558.7053 | AP123: 317559.1567 | AQ123: 311337.2427 | AR123: 316885.1309 | AS123: 322599.5116 | AT123: 332656.3441 | AU123: 334930.1072 | AV123: 337588.034 | AW123: 339557.4161 | AX123: 341146.1287 | AY123: 342929.0605 | AZ123: 344898.4427 | BA123: 347352.1517 | BB123: 343078.5489 | BC123: 331180.0518 | BD123: 334571.221 | BE123: 338128.8827 | BF123: 348495.7546 | BG123: 349376.1613 | BH123: 350717.6826 | BI123: 351232.7383 | BJ123: 351367.1244 | BK123: 351695.7297 | BL123: 352210.7854 | BM123: 353626.5684 | BN123: 353343.8406
B127: Financial schedules (monthly)
D129: Date | G129: ='Assumptions '!F7 -> 2026-01-01 | H129: =EOMONTH(G129,1) -> 2026-02-28 | I129: =EOMONTH(H129,1) -> 2026-03-31 | J129: 2026-04-30 | K129: 2026-05-31 | L129: 2026-06-30 | M129: 2026-07-31 | N129: 2026-08-31 | O129: 2026-09-30 | P129: 2026-10-31 | Q129: 2026-11-30 | R129: 2026-12-31 | S129: 2027-01-31 | T129: 2027-02-28 | U129: 2027-03-31 | V129: 2027-04-30 | W129: 2027-05-31 | X129: 2027-06-30 | Y129: 2027-07-31 | Z129: 2027-08-31 | AA129: 2027-09-30 | AB129: 2027-10-31 | AC129: 2027-11-30 | AD129: 2027-12-31 | AE129: 2028-01-31 | AF129: 2028-02-29 | AG129: 2028-03-31 | AH129: 2028-04-30 | AI129: 2028-05-31 | AJ129: 2028-06-30 | AK129: 2028-07-31 | AL129: 2028-08-31 | AM129: 2028-09-30 | AN129: 2028-10-31 | AO129: 2028-11-30 | AP129: 2028-12-31 | AQ129: 2029-01-31 | AR129: 2029-02-28 | AS129: 2029-03-31 | AT129: 2029-04-30 | AU129: 2029-05-31 | AV129: 2029-06-30 | AW129: 2029-07-31 | AX129: 2029-08-31 | AY129: 2029-09-30 | AZ129: 2029-10-31 | BA129: 2029-11-30 | BB129: 2029-12-31 | BC129: 2030-01-31 | BD129: 2030-02-28 | BE129: 2030-03-31 | BF129: 2030-04-30 | BG129: 2030-05-31 | BH129: 2030-06-30 | BI129: 2030-07-31 | BJ129: 2030-08-31 | BK129: 2030-09-30 | BL129: 2030-10-31 | BM129: 2030-11-30 | BN129: 2030-12-31
D130: Month | G130: 1 | H130: =G130+1 -> 2 | I130: =H130+1 -> 3 | J130: 4 | K130: 5 | L130: 6 | M130: 7 | N130: 8 | O130: 9 | P130: 10 | Q130: 11 | R130: 12 | S130: 13 | T130: 14 | U130: 15 | V130: 16 | W130: 17 | X130: 18 | Y130: 19 | Z130: 20 | AA130: 21 | AB130: 22 | AC130: 23 | AD130: 24 | AE130: 25 | AF130: 26 | AG130: 27 | AH130: 28 | AI130: 29 | AJ130: 30 | AK130: 31 | AL130: 32 | AM130: 33 | AN130: 34 | AO130: 35 | AP130: 36 | AQ130: 37 | AR130: 38 | AS130: 39 | AT130: 40 | AU130: 41 | AV130: 42 | AW130: 43 | AX130: 44 | AY130: 45 | AZ130: 46 | BA130: 47 | BB130: 48 | BC130: 49 | BD130: 50 | BE130: 51 | BF130: 52 | BG130: 53 | BH130: 54 | BI130: 55 | BJ130: 56 | BK130: 57 | BL130: 58 | BM130: 59 | BN130: 60
G131: 1 | H131: 2 | I131: 3 | J131: 4 | K131: 5 | L131: 6 | M131: 7 | N131: 8 | O131: 9 | P131: 10 | Q131: 11 | R131: 12 | S131: 1 | T131: 2 | U131: 3 | V131: 4 | W131: 5 | X131: 6 | Y131: 7 | Z131: 8 | AA131: 9 | AB131: 10 | AC131: 11 | AD131: 12 | AE131: 1 | AF131: 2 | AG131: 3 | AH131: 4 | AI131: 5 | AJ131: 6 | AK131: 7 | AL131: 8 | AM131: 9 | AN131: 10 | AO131: 11 | AP131: 12 | AQ131: 1 | AR131: 2 | AS131: 3 | AT131: 4 | AU131: 5 | AV131: 6 | AW131: 7 | AX131: 8 | AY131: 9 | AZ131: 10 | BA131: 11 | BB131: 12 | BC131: 1 | BD131: 2 | BE131: 3 | BF131: 4 | BG131: 5 | BH131: 6 | BI131: 7 | BJ131: 8 | BK131: 9 | BL131: 10 | BM131: 11 | BN131: 12
D132: Year | G132: 1 | H132: 1 | I132: 1 | J132: 1 | K132: 1 | L132: 1 | M132: 1 | N132: 1 | O132: 1 | P132: 1 | Q132: 1 | R132: 1 | S132: 2 | T132: 2 | U132: 2 | V132: 2 | W132: 2 | X132: 2 | Y132: 2 | Z132: 2 | AA132: 2 | AB132: 2 | AC132: 2 | AD132: 2 | AE132: 3 | AF132: 3 | AG132: 3 | AH132: 3 | AI132: 3 | AJ132: 3 | AK132: 3 | AL132: 3 | AM132: 3 | AN132: 3 | AO132: 3 | AP132: 3 | AQ132: 4 | AR132: 4 | AS132: 4 | AT132: 4 | AU132: 4 | AV132: 4 | AW132: 4 | AX132: 4 | AY132: 4 | AZ132: 4 | BA132: 4 | BB132: 4 | BC132: 5 | BD132: 5 | BE132: 5 | BF132: 5 | BG132: 5 | BH132: 5 | BI132: 5 | BJ132: 5 | BK132: 5 | BL132: 5 | BM132: 5 | BN132: 5
D134: Selected business model: | F134: ='Assumptions '!$F$13 -> Fish trading (Push/Pull)
B136: Revenue build
B138: x | C138: Volume schedules
D140: Fish
D141: ='Assumptions '!D29 -> Product #1: Main product, e.g., Octopus from Lamu | G141: =IF(G$129>='Assumptions '!$F29,ROUND('Assumptions '!$G29*(1+(INDEX('Assumptions '!$R29:$V29,,MATCH(G$132,'Assumptions '!$R$28:$V$28,0)))),0),0)*IF(AND(MONTH(G$129)>=MONTH('Assumptions '!$G$43),MONTH(G$129)<=MONTH('Assumptions '!$I$43)),'Assumptions '!$G$46,IF(AND(MONTH(G$129)>=MONTH('Assumptions '!$G$44),MONTH(G$129)<=MONTH('Assumptions '!$I$44)),'Assumptions '!$G$47,1)) -> 2362.5 | H141: =IF(H$129>='Assumptions '!$F29,ROUND('Assumptions '!$G29*(1+(INDEX('Assumptions '!$R29:$V29,,MATCH(H$132,'Assumptions '!$R$28:$V$28,0)))),0),0)*IF(AND(MONTH(H$129)>=MONTH('Assumptions '!$G$43),MONTH(H$129)<=MONTH('Assumptions '!$I$43)),'Assumptions '!$G$46,IF(AND(MONTH(H$129)>=MONTH('Assumptions '!$G$44),MONTH(H$129)<=MONTH('Assumptions '!$I$44)),'Assumptions '!$G$47,1)) -> 2362.5 | I141: =IF(I$129>='Assumptions '!$F29,ROUND('Assumptions '!$G29*(1+(INDEX('Assumptions '!$R29:$V29,,MATCH(I$132,'Assumptions '!$R$28:$V$28,0)))),0),0)*IF(AND(MONTH(I$129)>=MONTH('Assumptions '!$G$43),MONTH(I$129)<=MONTH('Assumptions '!$I$43)),'Assumptions '!$G$46,IF(AND(MONTH(I$129)>=MONTH('Assumptions '!$G$44),MONTH(I$129)<=MONTH('Assumptions '!$I$44)),'Assumptions '!$G$47,1)) -> 2362.5 | J141: =IF(J$129>='Assumptions '!$F29,ROUND('Assumptions '!$G29*(1+(INDEX('Assumptions '!$R29:$V29,,MATCH(J$132,'Assumptions '!$R$28:$V$28,0)))),0),0)*IF(AND(MONTH(J$129)>=MONTH('Assumptions '!$G$43),MONTH(J$129)<=MONTH('Assumptions '!$I$43)),'Assumptions '!$G$46,IF(AND(MONTH(J$129)>=MONTH('Assumptions '!$G$44),MONTH(J$129)<=MONTH('Assumptions '!$I$44)),'Assumptions '!$G$47,1)) -> 1575 | K141: =IF(K$129>='Assumptions '!$F29,ROUND('Assumptions '!$G29*(1+(INDEX('Assumptions '!$R29:$V29,,MATCH(K$132,'Assumptions '!$R$28:$V$28,0)))),0),0)*IF(AND(MONTH(K$129)>=MONTH('Assumptions '!$G$43),MONTH(K$129)<=MONTH('Assumptions '!$I$43)),'Assumptions '!$G$46,IF(AND(MONTH(K$129)>=MONTH('Assumptions '!$G$44),MONTH(K$129)<=MONTH('Assumptions '!$I$44)),'Assumptions '!$G$47,1)) -> 1575 | L141: =IF(L$129>='Assumptions '!$F29,ROUND('Assumptions '!$G29*(1+(INDEX('Assumptions '!$R29:$V29,,MATCH(L$132,'Assumptions '!$R$28:$V$28,0)))),0),0)*IF(AND(MONTH(L$129)>=MONTH('Assumptions '!$G$43),MONTH(L$129)<=MONTH('Assumptions '!$I$43)),'Assumptions '!$G$46,IF(AND(MONTH(L$129)>=MONTH('Assumptions '!$G$44),MONTH(L$129)<=MONTH('Assumptions '!$I$44)),'Assumptions '!$G$47,1)) -> 1575 | M141: =IF(M$129>='Assumptions '!$F29,ROUND('Assumptions '!$G29*(1+(INDEX('Assumptions '!$R29:$V29,,MATCH(M$132,'Assumptions '!$R$28:$V$28,0)))),0),0)*IF(AND(MONTH(M$129)>=MONTH('Assumptions '!$G$43),MONTH(M$129)<=MONTH('Assumptions '!$I$43)),'Assumptions '!$G$46,IF(AND(MONTH(M$129)>=MONTH('Assumptions '!$G$44),MONTH(M$129)<=MONTH('Assumptions '!$I$44)),'Assumptions '!$G$47,1)) -> 1575 | N141: =IF(N$129>='Assumptions '!$F29,ROUND('Assumptions '!$G29*(1+(INDEX('Assumptions '!$R29:$V29,,MATCH(N$132,'Assumptions '!$R$28:$V$28,0)))),0),0)*IF(AND(MONTH(N$129)>=MONTH('Assumptions '!$G$43),MONTH(N$129)<=MONTH('Assumptions '!$I$43)),'Assumptions '!$G$46,IF(AND(MONTH(N$129)>=MONTH('Assumptions '!$G$44),MONTH(N$129)<=MONTH('Assumptions '!$I$44)),'Assumptions '!$G$47,1)) -> 1575 | O141: =IF(O$129>='Assumptions '!$F29,ROUND('Assumptions '!$G29*(1+(INDEX('Assumptions '!$R29:$V29,,MATCH(O$132,'Assumptions '!$R$28:$V$28,0)))),0),0)*IF(AND(MONTH(O$129)>=MONTH('Assumptions '!$G$43),MONTH(O$129)<=MONTH('Assumptions '!$I$43)),'Assumptions '!$G$46,IF(AND(MONTH(O$129)>=MONTH('Assumptions '!$G$44),MONTH(O$129)<=MONTH('Assumptions '!$I$44)),'Assumptions '!$G$47,1)) -> 1575 | P141: =IF(P$129>='Assumptions '!$F29,ROUND('Assumptions '!$G29*(1+(INDEX('Assumptions '!$R29:$V29,,MATCH(P$132,'Assumptions '!$R$28:$V$28,0)))),0),0)*IF(AND(MONTH(P$129)>=MONTH('Assumptions '!$G$43),MONTH(P$129)<=MONTH('Assumptions '!$I$43)),'Assumptions '!$G$46,IF(AND(MONTH(P$129)>=MONTH('Assumptions '!$G$44),MONTH(P$129)<=MONTH('Assumptions '!$I$44)),'Assumptions '!$G$47,1)) -> 1575 | Q141: =IF(Q$129>='Assumptions '!$F29,ROUND('Assumptions '!$G29*(1+(INDEX('Assumptions '!$R29:$V29,,MATCH(Q$132,'Assumptions '!$R$28:$V$28,0)))),0),0)*IF(AND(MONTH(Q$129)>=MONTH('Assumptions '!$G$43),MONTH(Q$129)<=MONTH('Assumptions '!$I$43)),'Assumptions '!$G$46,IF(AND(MONTH(Q$129)>=MONTH('Assumptions '!$G$44),MONTH(Q$129)<=MONTH('Assumptions '!$I$44)),'Assumptions '!$G$47,1)) -> 1417.5 | R141: =IF(R$129>='Assumptions '!$F29,ROUND('Assumptions '!$G29*(1+(INDEX('Assumptions '!$R29:$V29,,MATCH(R$132,'Assumptions '!$R$28:$V$28,0)))),0),0)*IF(AND(MONTH(R$129)>=MONTH('Assumptions '!$G$43),MONTH(R$129)<=MONTH('Assumptions '!$I$43)),'Assumptions '!$G$46,IF(AND(MONTH(R$129)>=MONTH('Assumptions '!$G$44),MONTH(R$129)<=MONTH('Assumptions '!$I$44)),'Assumptions '!$G$47,1)) -> 1417.5 | S141: =IF(S$129>='Assumptions '!$F29,ROUND('Assumptions '!$G29*(1+(INDEX('Assumptions '!$R29:$V29,,MATCH(S$132,'Assumptions '!$R$28:$V$28,0)))),0),0)*IF(AND(MONTH(S$129)>=MONTH('Assumptions '!$G$43),MONTH(S$129)<=MONTH('Assumptions '!$I$43)),'Assumptions '!$G$46,IF(AND(MONTH(S$129)>=MONTH('Assumptions '!$G$44),MONTH(S$129)<=MONTH('Assumptions '!$I$44)),'Assumptions '!$G$47,1)) -> 2599.5 | T141: =IF(T$129>='Assumptions '!$F29,ROUND('Assumptions '!$G29*(1+(INDEX('Assumptions '!$R29:$V29,,MATCH(T$132,'Assumptions '!$R$28:$V$28,0)))),0),0)*IF(AND(MONTH(T$129)>=MONTH('Assumptions '!$G$43),MONTH(T$129)<=MONTH('Assumptions '!$I$43)),'Assumptions '!$G$46,IF(AND(MONTH(T$129)>=MONTH('Assumptions '!$G$44),MONTH(T$129)<=MONTH('Assumptions '!$I$44)),'Assumptions '!$G$47,1)) -> 2599.5 | U141: =IF(U$129>='Assumptions '!$F29,ROUND('Assumptions '!$G29*(1+(INDEX('Assumptions '!$R29:$V29,,MATCH(U$132,'Assumptions '!$R$28:$V$28,0)))),0),0)*IF(AND(MONTH(U$129)>=MONTH('Assumptions '!$G$43),MONTH(U$129)<=MONTH('Assumptions '!$I$43)),'Assumptions '!$G$46,IF(AND(MONTH(U$129)>=MONTH('Assumptions '!$G$44),MONTH(U$129)<=MONTH('Assumptions '!$I$44)),'Assumptions '!$G$47,1)) -> 2599.5 | V141: =IF(V$129>='Assumptions '!$F29,ROUND('Assumptions '!$G29*(1+(INDEX('Assumptions '!$R29:$V29,,MATCH(V$132,'Assumptions '!$R$28:$V$28,0)))),0),0)*IF(AND(MONTH(V$129)>=MONTH('Assumptions '!$G$43),MONTH(V$129)<=MONTH('Assumptions '!$I$43)),'Assumptions '!$G$46,IF(AND(MONTH(V$129)>=MONTH('Assumptions '!$G$44),MONTH(V$129)<=MONTH('Assumptions '!$I$44)),'Assumptions '!$G$47,1)) -> 1733 | W141: =IF(W$129>='Assumptions '!$F29,ROUND('Assumptions '!$G29*(1+(INDEX('Assumptions '!$R29:$V29,,MATCH(W$132,'Assumptions '!$R$28:$V$28,0)))),0),0)*IF(AND(MONTH(W$129)>=MONTH('Assumptions '!$G$43),MONTH(W$129)<=MONTH('Assumptions '!$I$43)),'Assumptions '!$G$46,IF(AND(MONTH(W$129)>=MONTH('Assumptions '!$G$44),MONTH(W$129)<=MONTH('Assumptions '!$I$44)),'Assumptions '!$G$47,1)) -> 1733 | X141: =IF(X$129>='Assumptions '!$F29,ROUND('Assumptions '!$G29*(1+(INDEX('Assumptions '!$R29:$V29,,MATCH(X$132,'Assumptions '!$R$28:$V$28,0)))),0),0)*IF(AND(MONTH(X$129)>=MONTH('Assumptions '!$G$43),MONTH(X$129)<=MONTH('Assumptions '!$I$43)),'Assumptions '!$G$46,IF(AND(MONTH(X$129)>=MONTH('Assumptions '!$G$44),MONTH(X$129)<=MONTH('Assumptions '!$I$44)),'Assumptions '!$G$47,1)) -> 1733 | Y141: =IF(Y$129>='Assumptions '!$F29,ROUND('Assumptions '!$G29*(1+(INDEX('Assumptions '!$R29:$V29,,MATCH(Y$132,'Assumptions '!$R$28:$V$28,0)))),0),0)*IF(AND(MONTH(Y$129)>=MONTH('Assumptions '!$G$43),MONTH(Y$129)<=MONTH('Assumptions '!$I$43)),'Assumptions '!$G$46,IF(AND(MONTH(Y$129)>=MONTH('Assumptions '!$G$44),MONTH(Y$129)<=MONTH('Assumptions '!$I$44)),'Assumptions '!$G$47,1)) -> 1733 | Z141: =IF(Z$129>='Assumptions '!$F29,ROUND('Assumptions '!$G29*(1+(INDEX('Assumptions '!$R29:$V29,,MATCH(Z$132,'Assumptions '!$R$28:$V$28,0)))),0),0)*IF(AND(MONTH(Z$129)>=MONTH('Assumptions '!$G$43),MONTH(Z$129)<=MONTH('Assumptions '!$I$43)),'Assumptions '!$G$46,IF(AND(MONTH(Z$129)>=MONTH('Assumptions '!$G$44),MONTH(Z$129)<=MONTH('Assumptions '!$I$44)),'Assumptions '!$G$47,1)) -> 1733 | AA141: =IF(AA$129>='Assumptions '!$F29,ROUND('Assumptions '!$G29*(1+(INDEX('Assumptions '!$R29:$V29,,MATCH(AA$132,'Assumptions '!$R$28:$V$28,0)))),0),0)*IF(AND(MONTH(AA$129)>=MONTH('Assumptions '!$G$43),MONTH(AA$129)<=MONTH('Assumptions '!$I$43)),'Assumptions '!$G$46,IF(AND(MONTH(AA$129)>=MONTH('Assumptions '!$G$44),MONTH(AA$129)<=MONTH('Assumptions '!$I$44)),'Assumptions '!$G$47,1)) -> 1733 | AB141: =IF(AB$129>='Assumptions '!$F29,ROUND('Assumptions '!$G29*(1+(INDEX('Assumptions '!$R29:$V29,,MATCH(AB$132,'Assumptions '!$R$28:$V$28,0)))),0),0)*IF(AND(MONTH(AB$129)>=MONTH('Assumptions '!$G$43),MONTH(AB$129)<=MONTH('Assumptions '!$I$43)),'Assumptions '!$G$46,IF(AND(MONTH(AB$129)>=MONTH('Assumptions '!$G$44),MONTH(AB$129)<=MONTH('Assumptions '!$I$44)),'Assumptions '!$G$47,1)) -> 1733 | AC141: =IF(AC$129>='Assumptions '!$F29,ROUND('Assumptions '!$G29*(1+(INDEX('Assumptions '!$R29:$V29,,MATCH(AC$132,'Assumptions '!$R$28:$V$28,0)))),0),0)*IF(AND(MONTH(AC$129)>=MONTH('Assumptions '!$G$43),MONTH(AC$129)<=MONTH('Assumptions '!$I$43)),'Assumptions '!$G$46,IF(AND(MONTH(AC$129)>=MONTH('Assumptions '!$G$44),MONTH(AC$129)<=MONTH('Assumptions '!$I$44)),'Assumptions '!$G$47,1)) -> 1559.7 | AD141: =IF(AD$129>='Assumptions '!$F29,ROUND('Assumptions '!$G29*(1+(INDEX('Assumptions '!$R29:$V29,,MATCH(AD$132,'Assumptions '!$R$28:$V$28,0)))),0),0)*IF(AND(MONTH(AD$129)>=MONTH('Assumptions '!$G$43),MONTH(AD$129)<=MONTH('Assumptions '!$I$43)),'Assumptions '!$G$46,IF(AND(MONTH(AD$129)>=MONTH('Assumptions '!$G$44),MONTH(AD$129)<=MONTH('Assumptions '!$I$44)),'Assumptions '!$G$47,1)) -> 1559.7 | AE141: =IF(AE$129>='Assumptions '!$F29,ROUND('Assumptions '!$G29*(1+(INDEX('Assumptions '!$R29:$V29,,MATCH(AE$132,'Assumptions '!$R$28:$V$28,0)))),0),0)*IF(AND(MONTH(AE$129)>=MONTH('Assumptions '!$G$43),MONTH(AE$129)<=MONTH('Assumptions '!$I$43)),'Assumptions '!$G$46,IF(AND(MONTH(AE$129)>=MONTH('Assumptions '!$G$44),MONTH(AE$129)<=MONTH('Assumptions '!$I$44)),'Assumptions '!$G$47,1)) -> 2988 | AF141: =IF(AF$129>='Assumptions '!$F29,ROUND('Assumptions '!$G29*(1+(INDEX('Assumptions '!$R29:$V29,,MATCH(AF$132,'Assumptions '!$R$28:$V$28,0)))),0),0)*IF(AND(MONTH(AF$129)>=MONTH('Assumptions '!$G$43),MONTH(AF$129)<=MONTH('Assumptions '!$I$43)),'Assumptions '!$G$46,IF(AND(MONTH(AF$129)>=MONTH('Assumptions '!$G$44),MONTH(AF$129)<=MONTH('Assumptions '!$I$44)),'Assumptions '!$G$47,1)) -> 2988 | AG141: =IF(AG$129>='Assumptions '!$F29,ROUND('Assumptions '!$G29*(1+(INDEX('Assumptions '!$R29:$V29,,MATCH(AG$132,'Assumptions '!$R$28:$V$28,0)))),0),0)*IF(AND(MONTH(AG$129)>=MONTH('Assumptions '!$G$43),MONTH(AG$129)<=MONTH('Assumptions '!$I$43)),'Assumptions '!$G$46,IF(AND(MONTH(AG$129)>=MONTH('Assumptions '!$G$44),MONTH(AG$129)<=MONTH('Assumptions '!$I$44)),'Assumptions '!$G$47,1)) -> 2988 | AH141: =IF(AH$129>='Assumptions '!$F29,ROUND('Assumptions '!$G29*(1+(INDEX('Assumptions '!$R29:$V29,,MATCH(AH$132,'Assumptions '!$R$28:$V$28,0)))),0),0)*IF(AND(MONTH(AH$129)>=MONTH('Assumptions '!$G$43),MONTH(AH$129)<=MONTH('Assumptions '!$I$43)),'Assumptions '!$G$46,IF(AND(MONTH(AH$129)>=MONTH('Assumptions '!$G$44),MONTH(AH$129)<=MONTH('Assumptions '!$I$44)),'Assumptions '!$G$47,1)) -> 1992 | AI141: =IF(AI$129>='Assumptions '!$F29,ROUND('Assumptions '!$G29*(1+(INDEX('Assumptions '!$R29:$V29,,MATCH(AI$132,'Assumptions '!$R$28:$V$28,0)))),0),0)*IF(AND(MONTH(AI$129)>=MONTH('Assumptions '!$G$43),MONTH(AI$129)<=MONTH('Assumptions '!$I$43)),'Assumptions '!$G$46,IF(AND(MONTH(AI$129)>=MONTH('Assumptions '!$G$44),MONTH(AI$129)<=MONTH('Assumptions '!$I$44)),'Assumptions '!$G$47,1)) -> 1992 | AJ141: =IF(AJ$129>='Assumptions '!$F29,ROUND('Assumptions '!$G29*(1+(INDEX('Assumptions '!$R29:$V29,,MATCH(AJ$132,'Assumptions '!$R$28:$V$28,0)))),0),0)*IF(AND(MONTH(AJ$129)>=MONTH('Assumptions '!$G$43),MONTH(AJ$129)<=MONTH('Assumptions '!$I$43)),'Assumptions '!$G$46,IF(AND(MONTH(AJ$129)>=MONTH('Assumptions '!$G$44),MONTH(AJ$129)<=MONTH('Assumptions '!$I$44)),'Assumptions '!$G$47,1)) -> 1992 | AK141: =IF(AK$129>='Assumptions '!$F29,ROUND('Assumptions '!$G29*(1+(INDEX('Assumptions '!$R29:$V29,,MATCH(AK$132,'Assumptions '!$R$28:$V$28,0)))),0),0)*IF(AND(MONTH(AK$129)>=MONTH('Assumptions '!$G$43),MONTH(AK$129)<=MONTH('Assumptions '!$I$43)),'Assumptions '!$G$46,IF(AND(MONTH(AK$129)>=MONTH('Assumptions '!$G$44),MONTH(AK$129)<=MONTH('Assumptions '!$I$44)),'Assumptions '!$G$47,1)) -> 1992 | AL141: =IF(AL$129>='Assumptions '!$F29,ROUND('Assumptions '!$G29*(1+(INDEX('Assumptions '!$R29:$V29,,MATCH(AL$132,'Assumptions '!$R$28:$V$28,0)))),0),0)*IF(AND(MONTH(AL$129)>=MONTH('Assumptions '!$G$43),MONTH(AL$129)<=MONTH('Assumptions '!$I$43)),'Assumptions '!$G$46,IF(AND(MONTH(AL$129)>=MONTH('Assumptions '!$G$44),MONTH(AL$129)<=MONTH('Assumptions '!$I$44)),'Assumptions '!$G$47,1)) -> 1992 | AM141: =IF(AM$129>='Assumptions '!$F29,ROUND('Assumptions '!$G29*(1+(INDEX('Assumptions '!$R29:$V29,,MATCH(AM$132,'Assumptions '!$R$28:$V$28,0)))),0),0)*IF(AND(MONTH(AM$129)>=MONTH('Assumptions '!$G$43),MONTH(AM$129)<=MONTH('Assumptions '!$I$43)),'Assumptions '!$G$46,IF(AND(MONTH(AM$129)>=MONTH('Assumptions '!$G$44),MONTH(AM$129)<=MONTH('Assumptions '!$I$44)),'Assumptions '!$G$47,1)) -> 1992 | AN141: =IF(AN$129>='Assumptions '!$F29,ROUND('Assumptions '!$G29*(1+(INDEX('Assumptions '!$R29:$V29,,MATCH(AN$132,'Assumptions '!$R$28:$V$28,0)))),0),0)*IF(AND(MONTH(AN$129)>=MONTH('Assumptions '!$G$43),MONTH(AN$129)<=MONTH('Assumptions '!$I$43)),'Assumptions '!$G$46,IF(AND(MONTH(AN$129)>=MONTH('Assumptions '!$G$44),MONTH(AN$129)<=MONTH('Assumptions '!$I$44)),'Assumptions '!$G$47,1)) -> 1992 | AO141: =IF(AO$129>='Assumptions '!$F29,ROUND('Assumptions '!$G29*(1+(INDEX('Assumptions '!$R29:$V29,,MATCH(AO$132,'Assumptions '!$R$28:$V$28,0)))),0),0)*IF(AND(MONTH(AO$129)>=MONTH('Assumptions '!$G$43),MONTH(AO$129)<=MONTH('Assumptions '!$I$43)),'Assumptions '!$G$46,IF(AND(MONTH(AO$129)>=MONTH('Assumptions '!$G$44),MONTH(AO$129)<=MONTH('Assumptions '!$I$44)),'Assumptions '!$G$47,1)) -> 1792.8 | AP141: =IF(AP$129>='Assumptions '!$F29,ROUND('Assumptions '!$G29*(1+(INDEX('Assumptions '!$R29:$V29,,MATCH(AP$132,'Assumptions '!$R$28:$V$28,0)))),0),0)*IF(AND(MONTH(AP$129)>=MONTH('Assumptions '!$G$43),MONTH(AP$129)<=MONTH('Assumptions '!$I$43)),'Assumptions '!$G$46,IF(AND(MONTH(AP$129)>=MONTH('Assumptions '!$G$44),MONTH(AP$129)<=MONTH('Assumptions '!$I$44)),'Assumptions '!$G$47,1)) -> 1792.8 | AQ141: =IF(AQ$129>='Assumptions '!$F29,ROUND('Assumptions '!$G29*(1+(INDEX('Assumptions '!$R29:$V29,,MATCH(AQ$132,'Assumptions '!$R$28:$V$28,0)))),0),0)*IF(AND(MONTH(AQ$129)>=MONTH('Assumptions '!$G$43),MONTH(AQ$129)<=MONTH('Assumptions '!$I$43)),'Assumptions '!$G$46,IF(AND(MONTH(AQ$129)>=MONTH('Assumptions '!$G$44),MONTH(AQ$129)<=MONTH('Assumptions '!$I$44)),'Assumptions '!$G$47,1)) -> 3436.5 | AR141: =IF(AR$129>='Assumptions '!$F29,ROUND('Assumptions '!$G29*(1+(INDEX('Assumptions '!$R29:$V29,,MATCH(AR$132,'Assumptions '!$R$28:$V$28,0)))),0),0)*IF(AND(MONTH(AR$129)>=MONTH('Assumptions '!$G$43),MONTH(AR$129)<=MONTH('Assumptions '!$I$43)),'Assumptions '!$G$46,IF(AND(MONTH(AR$129)>=MONTH('Assumptions '!$G$44),MONTH(AR$129)<=MONTH('Assumptions '!$I$44)),'Assumptions '!$G$47,1)) -> 3436.5 | AS141: =IF(AS$129>='Assumptions '!$F29,ROUND('Assumptions '!$G29*(1+(INDEX('Assumptions '!$R29:$V29,,MATCH(AS$132,'Assumptions '!$R$28:$V$28,0)))),0),0)*IF(AND(MONTH(AS$129)>=MONTH('Assumptions '!$G$43),MONTH(AS$129)<=MONTH('Assumptions '!$I$43)),'Assumptions '!$G$46,IF(AND(MONTH(AS$129)>=MONTH('Assumptions '!$G$44),MONTH(AS$129)<=MONTH('Assumptions '!$I$44)),'Assumptions '!$G$47,1)) -> 3436.5 | AT141: =IF(AT$129>='Assumptions '!$F29,ROUND('Assumptions '!$G29*(1+(INDEX('Assumptions '!$R29:$V29,,MATCH(AT$132,'Assumptions '!$R$28:$V$28,0)))),0),0)*IF(AND(MONTH(AT$129)>=MONTH('Assumptions '!$G$43),MONTH(AT$129)<=MONTH('Assumptions '!$I$43)),'Assumptions '!$G$46,IF(AND(MONTH(AT$129)>=MONTH('Assumptions '!$G$44),MONTH(AT$129)<=MONTH('Assumptions '!$I$44)),'Assumptions '!$G$47,1)) -> 2291 | AU141: =IF(AU$129>='Assumptions '!$F29,ROUND('Assumptions '!$G29*(1+(INDEX('Assumptions '!$R29:$V29,,MATCH(AU$132,'Assumptions '!$R$28:$V$28,0)))),0),0)*IF(AND(MONTH(AU$129)>=MONTH('Assumptions '!$G$43),MONTH(AU$129)<=MONTH('Assumptions '!$I$43)),'Assumptions '!$G$46,IF(AND(MONTH(AU$129)>=MONTH('Assumptions '!$G$44),MONTH(AU$129)<=MONTH('Assumptions '!$I$44)),'Assumptions '!$G$47,1)) -> 2291 | AV141: =IF(AV$129>='Assumptions '!$F29,ROUND('Assumptions '!$G29*(1+(INDEX('Assumptions '!$R29:$V29,,MATCH(AV$132,'Assumptions '!$R$28:$V$28,0)))),0),0)*IF(AND(MONTH(AV$129)>=MONTH('Assumptions '!$G$43),MONTH(AV$129)<=MONTH('Assumptions '!$I$43)),'Assumptions '!$G$46,IF(AND(MONTH(AV$129)>=MONTH('Assumptions '!$G$44),MONTH(AV$129)<=MONTH('Assumptions '!$I$44)),'Assumptions '!$G$47,1)) -> 2291 | AW141: =IF(AW$129>='Assumptions '!$F29,ROUND('Assumptions '!$G29*(1+(INDEX('Assumptions '!$R29:$V29,,MATCH(AW$132,'Assumptions '!$R$28:$V$28,0)))),0),0)*IF(AND(MONTH(AW$129)>=MONTH('Assumptions '!$G$43),MONTH(AW$129)<=MONTH('Assumptions '!$I$43)),'Assumptions '!$G$46,IF(AND(MONTH(AW$129)>=MONTH('Assumptions '!$G$44),MONTH(AW$129)<=MONTH('Assumptions '!$I$44)),'Assumptions '!$G$47,1)) -> 2291 | AX141: =IF(AX$129>='Assumptions '!$F29,ROUND('Assumptions '!$G29*(1+(INDEX('Assumptions '!$R29:$V29,,MATCH(AX$132,'Assumptions '!$R$28:$V$28,0)))),0),0)*IF(AND(MONTH(AX$129)>=MONTH('Assumptions '!$G$43),MONTH(AX$129)<=MONTH('Assumptions '!$I$43)),'Assumptions '!$G$46,IF(AND(MONTH(AX$129)>=MONTH('Assumptions '!$G$44),MONTH(AX$129)<=MONTH('Assumptions '!$I$44)),'Assumptions '!$G$47,1)) -> 2291 | AY141: =IF(AY$129>='Assumptions '!$F29,ROUND('Assumptions '!$G29*(1+(INDEX('Assumptions '!$R29:$V29,,MATCH(AY$132,'Assumptions '!$R$28:$V$28,0)))),0),0)*IF(AND(MONTH(AY$129)>=MONTH('Assumptions '!$G$43),MONTH(AY$129)<=MONTH('Assumptions '!$I$43)),'Assumptions '!$G$46,IF(AND(MONTH(AY$129)>=MONTH('Assumptions '!$G$44),MONTH(AY$129)<=MONTH('Assumptions '!$I$44)),'Assumptions '!$G$47,1)) -> 2291 | AZ141: =IF(AZ$129>='Assumptions '!$F29,ROUND('Assumptions '!$G29*(1+(INDEX('Assumptions '!$R29:$V29,,MATCH(AZ$132,'Assumptions '!$R$28:$V$28,0)))),0),0)*IF(AND(MONTH(AZ$129)>=MONTH('Assumptions '!$G$43),MONTH(AZ$129)<=MONTH('Assumptions '!$I$43)),'Assumptions '!$G$46,IF(AND(MONTH(AZ$129)>=MONTH('Assumptions '!$G$44),MONTH(AZ$129)<=MONTH('Assumptions '!$I$44)),'Assumptions '!$G$47,1)) -> 2291 | BA141: =IF(BA$129>='Assumptions '!$F29,ROUND('Assumptions '!$G29*(1+(INDEX('Assumptions '!$R29:$V29,,MATCH(BA$132,'Assumptions '!$R$28:$V$28,0)))),0),0)*IF(AND(MONTH(BA$129)>=MONTH('Assumptions '!$G$43),MONTH(BA$129)<=MONTH('Assumptions '!$I$43)),'Assumptions '!$G$46,IF(AND(MONTH(BA$129)>=MONTH('Assumptions '!$G$44),MONTH(BA$129)<=MONTH('Assumptions '!$I$44)),'Assumptions '!$G$47,1)) -> 2061.9 | BB141: =IF(BB$129>='Assumptions '!$F29,ROUND('Assumptions '!$G29*(1+(INDEX('Assumptions '!$R29:$V29,,MATCH(BB$132,'Assumptions '!$R$28:$V$28,0)))),0),0)*IF(AND(MONTH(BB$129)>=MONTH('Assumptions '!$G$43),MONTH(BB$129)<=MONTH('Assumptions '!$I$43)),'Assumptions '!$G$46,IF(AND(MONTH(BB$129)>=MONTH('Assumptions '!$G$44),MONTH(BB$129)<=MONTH('Assumptions '!$I$44)),'Assumptions '!$G$47,1)) -> 2061.9 | BC141: =IF(BC$129>='Assumptions '!$F29,ROUND('Assumptions '!$G29*(1+(INDEX('Assumptions '!$R29:$V29,,MATCH(BC$132,'Assumptions '!$R$28:$V$28,0)))),0),0)*IF(AND(MONTH(BC$129)>=MONTH('Assumptions '!$G$43),MONTH(BC$129)<=MONTH('Assumptions '!$I$43)),'Assumptions '!$G$46,IF(AND(MONTH(BC$129)>=MONTH('Assumptions '!$G$44),MONTH(BC$129)<=MONTH('Assumptions '!$I$44)),'Assumptions '!$G$47,1)) -> 3780 | BD141: =IF(BD$129>='Assumptions '!$F29,ROUND('Assumptions '!$G29*(1+(INDEX('Assumptions '!$R29:$V29,,MATCH(BD$132,'Assumptions '!$R$28:$V$28,0)))),0),0)*IF(AND(MONTH(BD$129)>=MONTH('Assumptions '!$G$43),MONTH(BD$129)<=MONTH('Assumptions '!$I$43)),'Assumptions '!$G$46,IF(AND(MONTH(BD$129)>=MONTH('Assumptions '!$G$44),MONTH(BD$129)<=MONTH('Assumptions '!$I$44)),'Assumptions '!$G$47,1)) -> 3780 | BE141: =IF(BE$129>='Assumptions '!$F29,ROUND('Assumptions '!$G29*(1+(INDEX('Assumptions '!$R29:$V29,,MATCH(BE$132,'Assumptions '!$R$28:$V$28,0)))),0),0)*IF(AND(MONTH(BE$129)>=MONTH('Assumptions '!$G$43),MONTH(BE$129)<=MONTH('Assumptions '!$I$43)),'Assumptions '!$G$46,IF(AND(MONTH(BE$129)>=MONTH('Assumptions '!$G$44),MONTH(BE$129)<=MONTH('Assumptions '!$I$44)),'Assumptions '!$G$47,1)) -> 3780 | BF141: =IF(BF$129>='Assumptions '!$F29,ROUND('Assumptions '!$G29*(1+(INDEX('Assumptions '!$R29:$V29,,MATCH(BF$132,'Assumptions '!$R$28:$V$28,0)))),0),0)*IF(AND(MONTH(BF$129)>=MONTH('Assumptions '!$G$43),MONTH(BF$129)<=MONTH('Assumptions '!$I$43)),'Assumptions '!$G$46,IF(AND(MONTH(BF$129)>=MONTH('Assumptions '!$G$44),MONTH(BF$129)<=MONTH('Assumptions '!$I$44)),'Assumptions '!$G$47,1)) -> 2520 | BG141: =IF(BG$129>='Assumptions '!$F29,ROUND('Assumptions '!$G29*(1+(INDEX('Assumptions '!$R29:$V29,,MATCH(BG$132,'Assumptions '!$R$28:$V$28,0)))),0),0)*IF(AND(MONTH(BG$129)>=MONTH('Assumptions '!$G$43),MONTH(BG$129)<=MONTH('Assumptions '!$I$43)),'Assumptions '!$G$46,IF(AND(MONTH(BG$129)>=MONTH('Assumptions '!$G$44),MONTH(BG$129)<=MONTH('Assumptions '!$I$44)),'Assumptions '!$G$47,1)) -> 2520 | BH141: =IF(BH$129>='Assumptions '!$F29,ROUND('Assumptions '!$G29*(1+(INDEX('Assumptions '!$R29:$V29,,MATCH(BH$132,'Assumptions '!$R$28:$V$28,0)))),0),0)*IF(AND(MONTH(BH$129)>=MONTH('Assumptions '!$G$43),MONTH(BH$129)<=MONTH('Assumptions '!$I$43)),'Assumptions '!$G$46,IF(AND(MONTH(BH$129)>=MONTH('Assumptions '!$G$44),MONTH(BH$129)<=MONTH('Assumptions '!$I$44)),'Assumptions '!$G$47,1)) -> 2520 | BI141: =IF(BI$129>='Assumptions '!$F29,ROUND('Assumptions '!$G29*(1+(INDEX('Assumptions '!$R29:$V29,,MATCH(BI$132,'Assumptions '!$R$28:$V$28,0)))),0),0)*IF(AND(MONTH(BI$129)>=MONTH('Assumptions '!$G$43),MONTH(BI$129)<=MONTH('Assumptions '!$I$43)),'Assumptions '!$G$46,IF(AND(MONTH(BI$129)>=MONTH('Assumptions '!$G$44),MONTH(BI$129)<=MONTH('Assumptions '!$I$44)),'Assumptions '!$G$47,1)) -> 2520 | BJ141: =IF(BJ$129>='Assumptions '!$F29,ROUND('Assumptions '!$G29*(1+(INDEX('Assumptions '!$R29:$V29,,MATCH(BJ$132,'Assumptions '!$R$28:$V$28,0)))),0),0)*IF(AND(MONTH(BJ$129)>=MONTH('Assumptions '!$G$43),MONTH(BJ$129)<=MONTH('Assumptions '!$I$43)),'Assumptions '!$G$46,IF(AND(MONTH(BJ$129)>=MONTH('Assumptions '!$G$44),MONTH(BJ$129)<=MONTH('Assumptions '!$I$44)),'Assumptions '!$G$47,1)) -> 2520 | BK141: =IF(BK$129>='Assumptions '!$F29,ROUND('Assumptions '!$G29*(1+(INDEX('Assumptions '!$R29:$V29,,MATCH(BK$132,'Assumptions '!$R$28:$V$28,0)))),0),0)*IF(AND(MONTH(BK$129)>=MONTH('Assumptions '!$G$43),MONTH(BK$129)<=MONTH('Assumptions '!$I$43)),'Assumptions '!$G$46,IF(AND(MONTH(BK$129)>=MONTH('Assumptions '!$G$44),MONTH(BK$129)<=MONTH('Assumptions '!$I$44)),'Assumptions '!$G$47,1)) -> 2520 | BL141: =IF(BL$129>='Assumptions '!$F29,ROUND('Assumptions '!$G29*(1+(INDEX('Assumptions '!$R29:$V29,,MATCH(BL$132,'Assumptions '!$R$28:$V$28,0)))),0),0)*IF(AND(MONTH(BL$129)>=MONTH('Assumptions '!$G$43),MONTH(BL$129)<=MONTH('Assumptions '!$I$43)),'Assumptions '!$G$46,IF(AND(MONTH(BL$129)>=MONTH('Assumptions '!$G$44),MONTH(BL$129)<=MONTH('Assumptions '!$I$44)),'Assumptions '!$G$47,1)) -> 2520 | BM141: =IF(BM$129>='Assumptions '!$F29,ROUND('Assumptions '!$G29*(1+(INDEX('Assumptions '!$R29:$V29,,MATCH(BM$132,'Assumptions '!$R$28:$V$28,0)))),0),0)*IF(AND(MONTH(BM$129)>=MONTH('Assumptions '!$G$43),MONTH(BM$129)<=MONTH('Assumptions '!$I$43)),'Assumptions '!$G$46,IF(AND(MONTH(BM$129)>=MONTH('Assumptions '!$G$44),MONTH(BM$129)<=MONTH('Assumptions '!$I$44)),'Assumptions '!$G$47,1)) -> 2268 | BN141: =IF(BN$129>='Assumptions '!$F29,ROUND('Assumptions '!$G29*(1+(INDEX('Assumptions '!$R29:$V29,,MATCH(BN$132,'Assumptions '!$R$28:$V$28,0)))),0),0)*IF(AND(MONTH(BN$129)>=MONTH('Assumptions '!$G$43),MONTH(BN$129)<=MONTH('Assumptions '!$I$43)),'Assumptions '!$G$46,IF(AND(MONTH(BN$129)>=MONTH('Assumptions '!$G$44),MONTH(BN$129)<=MONTH('Assumptions '!$I$44)),'Assumptions '!$G$47,1)) -> 2268
D142: ='Assumptions '!D30 -> Product #2: Add'l product, e.g., prawns from Lamu | G142: =IF(G$129>='Assumptions '!$F30,ROUND('Assumptions '!$G30*(1+(INDEX('Assumptions '!$R30:$V30,,MATCH(G$132,'Assumptions '!$R$28:$V$28,0)))),0),0)*IF(AND(MONTH(G$129)>=MONTH('Assumptions '!$G$53),MONTH(G$129)<=MONTH('Assumptions '!$I$53)),'Assumptions '!$G$56,IF(AND(MONTH(G$129)>=MONTH('Assumptions '!$G$54),MONTH(G$129)<=MONTH('Assumptions '!$I$54)),'Assumptions '!$G$57,1)) -> 1339.5 | H142: =IF(H$129>='Assumptions '!$F30,ROUND('Assumptions '!$G30*(1+(INDEX('Assumptions '!$R30:$V30,,MATCH(H$132,'Assumptions '!$R$28:$V$28,0)))),0),0)*IF(AND(MONTH(H$129)>=MONTH('Assumptions '!$G$53),MONTH(H$129)<=MONTH('Assumptions '!$I$53)),'Assumptions '!$G$56,IF(AND(MONTH(H$129)>=MONTH('Assumptions '!$G$54),MONTH(H$129)<=MONTH('Assumptions '!$I$54)),'Assumptions '!$G$57,1)) -> 1339.5 | I142: =IF(I$129>='Assumptions '!$F30,ROUND('Assumptions '!$G30*(1+(INDEX('Assumptions '!$R30:$V30,,MATCH(I$132,'Assumptions '!$R$28:$V$28,0)))),0),0)*IF(AND(MONTH(I$129)>=MONTH('Assumptions '!$G$53),MONTH(I$129)<=MONTH('Assumptions '!$I$53)),'Assumptions '!$G$56,IF(AND(MONTH(I$129)>=MONTH('Assumptions '!$G$54),MONTH(I$129)<=MONTH('Assumptions '!$I$54)),'Assumptions '!$G$57,1)) -> 1339.5 | J142: =IF(J$129>='Assumptions '!$F30,ROUND('Assumptions '!$G30*(1+(INDEX('Assumptions '!$R30:$V30,,MATCH(J$132,'Assumptions '!$R$28:$V$28,0)))),0),0)*IF(AND(MONTH(J$129)>=MONTH('Assumptions '!$G$53),MONTH(J$129)<=MONTH('Assumptions '!$I$53)),'Assumptions '!$G$56,IF(AND(MONTH(J$129)>=MONTH('Assumptions '!$G$54),MONTH(J$129)<=MONTH('Assumptions '!$I$54)),'Assumptions '!$G$57,1)) -> 893 | K142: =IF(K$129>='Assumptions '!$F30,ROUND('Assumptions '!$G30*(1+(INDEX('Assumptions '!$R30:$V30,,MATCH(K$132,'Assumptions '!$R$28:$V$28,0)))),0),0)*IF(AND(MONTH(K$129)>=MONTH('Assumptions '!$G$53),MONTH(K$129)<=MONTH('Assumptions '!$I$53)),'Assumptions '!$G$56,IF(AND(MONTH(K$129)>=MONTH('Assumptions '!$G$54),MONTH(K$129)<=MONTH('Assumptions '!$I$54)),'Assumptions '!$G$57,1)) -> 893 | L142: =IF(L$129>='Assumptions '!$F30,ROUND('Assumptions '!$G30*(1+(INDEX('Assumptions '!$R30:$V30,,MATCH(L$132,'Assumptions '!$R$28:$V$28,0)))),0),0)*IF(AND(MONTH(L$129)>=MONTH('Assumptions '!$G$53),MONTH(L$129)<=MONTH('Assumptions '!$I$53)),'Assumptions '!$G$56,IF(AND(MONTH(L$129)>=MONTH('Assumptions '!$G$54),MONTH(L$129)<=MONTH('Assumptions '!$I$54)),'Assumptions '!$G$57,1)) -> 803.7 | M142: =IF(M$129>='Assumptions '!$F30,ROUND('Assumptions '!$G30*(1+(INDEX('Assumptions '!$R30:$V30,,MATCH(M$132,'Assumptions '!$R$28:$V$28,0)))),0),0)*IF(AND(MONTH(M$129)>=MONTH('Assumptions '!$G$53),MONTH(M$129)<=MONTH('Assumptions '!$I$53)),'Assumptions '!$G$56,IF(AND(MONTH(M$129)>=MONTH('Assumptions '!$G$54),MONTH(M$129)<=MONTH('Assumptions '!$I$54)),'Assumptions '!$G$57,1)) -> 803.7 | N142: =IF(N$129>='Assumptions '!$F30,ROUND('Assumptions '!$G30*(1+(INDEX('Assumptions '!$R30:$V30,,MATCH(N$132,'Assumptions '!$R$28:$V$28,0)))),0),0)*IF(AND(MONTH(N$129)>=MONTH('Assumptions '!$G$53),MONTH(N$129)<=MONTH('Assumptions '!$I$53)),'Assumptions '!$G$56,IF(AND(MONTH(N$129)>=MONTH('Assumptions '!$G$54),MONTH(N$129)<=MONTH('Assumptions '!$I$54)),'Assumptions '!$G$57,1)) -> 803.7 | O142: =IF(O$129>='Assumptions '!$F30,ROUND('Assumptions '!$G30*(1+(INDEX('Assumptions '!$R30:$V30,,MATCH(O$132,'Assumptions '!$R$28:$V$28,0)))),0),0)*IF(AND(MONTH(O$129)>=MONTH('Assumptions '!$G$53),MONTH(O$129)<=MONTH('Assumptions '!$I$53)),'Assumptions '!$G$56,IF(AND(MONTH(O$129)>=MONTH('Assumptions '!$G$54),MONTH(O$129)<=MONTH('Assumptions '!$I$54)),'Assumptions '!$G$57,1)) -> 803.7 | P142: =IF(P$129>='Assumptions '!$F30,ROUND('Assumptions '!$G30*(1+(INDEX('Assumptions '!$R30:$V30,,MATCH(P$132,'Assumptions '!$R$28:$V$28,0)))),0),0)*IF(AND(MONTH(P$129)>=MONTH('Assumptions '!$G$53),MONTH(P$129)<=MONTH('Assumptions '!$I$53)),'Assumptions '!$G$56,IF(AND(MONTH(P$129)>=MONTH('Assumptions '!$G$54),MONTH(P$129)<=MONTH('Assumptions '!$I$54)),'Assumptions '!$G$57,1)) -> 803.7 | Q142: =IF(Q$129>='Assumptions '!$F30,ROUND('Assumptions '!$G30*(1+(INDEX('Assumptions '!$R30:$V30,,MATCH(Q$132,'Assumptions '!$R$28:$V$28,0)))),0),0)*IF(AND(MONTH(Q$129)>=MONTH('Assumptions '!$G$53),MONTH(Q$129)<=MONTH('Assumptions '!$I$53)),'Assumptions '!$G$56,IF(AND(MONTH(Q$129)>=MONTH('Assumptions '!$G$54),MONTH(Q$129)<=MONTH('Assumptions '!$I$54)),'Assumptions '!$G$57,1)) -> 803.7 | R142: =IF(R$129>='Assumptions '!$F30,ROUND('Assumptions '!$G30*(1+(INDEX('Assumptions '!$R30:$V30,,MATCH(R$132,'Assumptions '!$R$28:$V$28,0)))),0),0)*IF(AND(MONTH(R$129)>=MONTH('Assumptions '!$G$53),MONTH(R$129)<=MONTH('Assumptions '!$I$53)),'Assumptions '!$G$56,IF(AND(MONTH(R$129)>=MONTH('Assumptions '!$G$54),MONTH(R$129)<=MONTH('Assumptions '!$I$54)),'Assumptions '!$G$57,1)) -> 803.7 | S142: =IF(S$129>='Assumptions '!$F30,ROUND('Assumptions '!$G30*(1+(INDEX('Assumptions '!$R30:$V30,,MATCH(S$132,'Assumptions '!$R$28:$V$28,0)))),0),0)*IF(AND(MONTH(S$129)>=MONTH('Assumptions '!$G$53),MONTH(S$129)<=MONTH('Assumptions '!$I$53)),'Assumptions '!$G$56,IF(AND(MONTH(S$129)>=MONTH('Assumptions '!$G$54),MONTH(S$129)<=MONTH('Assumptions '!$I$54)),'Assumptions '!$G$57,1)) -> 1473 | T142: =IF(T$129>='Assumptions '!$F30,ROUND('Assumptions '!$G30*(1+(INDEX('Assumptions '!$R30:$V30,,MATCH(T$132,'Assumptions '!$R$28:$V$28,0)))),0),0)*IF(AND(MONTH(T$129)>=MONTH('Assumptions '!$G$53),MONTH(T$129)<=MONTH('Assumptions '!$I$53)),'Assumptions '!$G$56,IF(AND(MONTH(T$129)>=MONTH('Assumptions '!$G$54),MONTH(T$129)<=MONTH('Assumptions '!$I$54)),'Assumptions '!$G$57,1)) -> 1473 | U142: =IF(U$129>='Assumptions '!$F30,ROUND('Assumptions '!$G30*(1+(INDEX('Assumptions '!$R30:$V30,,MATCH(U$132,'Assumptions '!$R$28:$V$28,0)))),0),0)*IF(AND(MONTH(U$129)>=MONTH('Assumptions '!$G$53),MONTH(U$129)<=MONTH('Assumptions '!$I$53)),'Assumptions '!$G$56,IF(AND(MONTH(U$129)>=MONTH('Assumptions '!$G$54),MONTH(U$129)<=MONTH('Assumptions '!$I$54)),'Assumptions '!$G$57,1)) -> 1473 | V142: =IF(V$129>='Assumptions '!$F30,ROUND('Assumptions '!$G30*(1+(INDEX('Assumptions '!$R30:$V30,,MATCH(V$132,'Assumptions '!$R$28:$V$28,0)))),0),0)*IF(AND(MONTH(V$129)>=MONTH('Assumptions '!$G$53),MONTH(V$129)<=MONTH('Assumptions '!$I$53)),'Assumptions '!$G$56,IF(AND(MONTH(V$129)>=MONTH('Assumptions '!$G$54),MONTH(V$129)<=MONTH('Assumptions '!$I$54)),'Assumptions '!$G$57,1)) -> 982 | W142: =IF(W$129>='Assumptions '!$F30,ROUND('Assumptions '!$G30*(1+(INDEX('Assumptions '!$R30:$V30,,MATCH(W$132,'Assumptions '!$R$28:$V$28,0)))),0),0)*IF(AND(MONTH(W$129)>=MONTH('Assumptions '!$G$53),MONTH(W$129)<=MONTH('Assumptions '!$I$53)),'Assumptions '!$G$56,IF(AND(MONTH(W$129)>=MONTH('Assumptions '!$G$54),MONTH(W$129)<=MONTH('Assumptions '!$I$54)),'Assumptions '!$G$57,1)) -> 982 | X142: =IF(X$129>='Assumptions '!$F30,ROUND('Assumptions '!$G30*(1+(INDEX('Assumptions '!$R30:$V30,,MATCH(X$132,'Assumptions '!$R$28:$V$28,0)))),0),0)*IF(AND(MONTH(X$129)>=MONTH('Assumptions '!$G$53),MONTH(X$129)<=MONTH('Assumptions '!$I$53)),'Assumptions '!$G$56,IF(AND(MONTH(X$129)>=MONTH('Assumptions '!$G$54),MONTH(X$129)<=MONTH('Assumptions '!$I$54)),'Assumptions '!$G$57,1)) -> 883.8 | Y142: =IF(Y$129>='Assumptions '!$F30,ROUND('Assumptions '!$G30*(1+(INDEX('Assumptions '!$R30:$V30,,MATCH(Y$132,'Assumptions '!$R$28:$V$28,0)))),0),0)*IF(AND(MONTH(Y$129)>=MONTH('Assumptions '!$G$53),MONTH(Y$129)<=MONTH('Assumptions '!$I$53)),'Assumptions '!$G$56,IF(AND(MONTH(Y$129)>=MONTH('Assumptions '!$G$54),MONTH(Y$129)<=MONTH('Assumptions '!$I$54)),'Assumptions '!$G$57,1)) -> 883.8 | Z142: =IF(Z$129>='Assumptions '!$F30,ROUND('Assumptions '!$G30*(1+(INDEX('Assumptions '!$R30:$V30,,MATCH(Z$132,'Assumptions '!$R$28:$V$28,0)))),0),0)*IF(AND(MONTH(Z$129)>=MONTH('Assumptions '!$G$53),MONTH(Z$129)<=MONTH('Assumptions '!$I$53)),'Assumptions '!$G$56,IF(AND(MONTH(Z$129)>=MONTH('Assumptions '!$G$54),MONTH(Z$129)<=MONTH('Assumptions '!$I$54)),'Assumptions '!$G$57,1)) -> 883.8 | AA142: =IF(AA$129>='Assumptions '!$F30,ROUND('Assumptions '!$G30*(1+(INDEX('Assumptions '!$R30:$V30,,MATCH(AA$132,'Assumptions '!$R$28:$V$28,0)))),0),0)*IF(AND(MONTH(AA$129)>=MONTH('Assumptions '!$G$53),MONTH(AA$129)<=MONTH('Assumptions '!$I$53)),'Assumptions '!$G$56,IF(AND(MONTH(AA$129)>=MONTH('Assumptions '!$G$54),MONTH(AA$129)<=MONTH('Assumptions '!$I$54)),'Assumptions '!$G$57,1)) -> 883.8 | AB142: =IF(AB$129>='Assumptions '!$F30,ROUND('Assumptions '!$G30*(1+(INDEX('Assumptions '!$R30:$V30,,MATCH(AB$132,'Assumptions '!$R$28:$V$28,0)))),0),0)*IF(AND(MONTH(AB$129)>=MONTH('Assumptions '!$G$53),MONTH(AB$129)<=MONTH('Assumptions '!$I$53)),'Assumptions '!$G$56,IF(AND(MONTH(AB$129)>=MONTH('Assumptions '!$G$54),MONTH(AB$129)<=MONTH('Assumptions '!$I$54)),'Assumptions '!$G$57,1)) -> 883.8 | AC142: =IF(AC$129>='Assumptions '!$F30,ROUND('Assumptions '!$G30*(1+(INDEX('Assumptions '!$R30:$V30,,MATCH(AC$132,'Assumptions '!$R$28:$V$28,0)))),0),0)*IF(AND(MONTH(AC$129)>=MONTH('Assumptions '!$G$53),MONTH(AC$129)<=MONTH('Assumptions '!$I$53)),'Assumptions '!$G$56,IF(AND(MONTH(AC$129)>=MONTH('Assumptions '!$G$54),MONTH(AC$129)<=MONTH('Assumptions '!$I$54)),'Assumptions '!$G$57,1)) -> 883.8 | AD142: =IF(AD$129>='Assumptions '!$F30,ROUND('Assumptions '!$G30*(1+(INDEX('Assumptions '!$R30:$V30,,MATCH(AD$132,'Assumptions '!$R$28:$V$28,0)))),0),0)*IF(AND(MONTH(AD$129)>=MONTH('Assumptions '!$G$53),MONTH(AD$129)<=MONTH('Assumptions '!$I$53)),'Assumptions '!$G$56,IF(AND(MONTH(AD$129)>=MONTH('Assumptions '!$G$54),MONTH(AD$129)<=MONTH('Assumptions '!$I$54)),'Assumptions '!$G$57,1)) -> 883.8 | AE142: =IF(AE$129>='Assumptions '!$F30,ROUND('Assumptions '!$G30*(1+(INDEX('Assumptions '!$R30:$V30,,MATCH(AE$132,'Assumptions '!$R$28:$V$28,0)))),0),0)*IF(AND(MONTH(AE$129)>=MONTH('Assumptions '!$G$53),MONTH(AE$129)<=MONTH('Assumptions '!$I$53)),'Assumptions '!$G$56,IF(AND(MONTH(AE$129)>=MONTH('Assumptions '!$G$54),MONTH(AE$129)<=MONTH('Assumptions '!$I$54)),'Assumptions '!$G$57,1)) -> 1693.5 | AF142: =IF(AF$129>='Assumptions '!$F30,ROUND('Assumptions '!$G30*(1+(INDEX('Assumptions '!$R30:$V30,,MATCH(AF$132,'Assumptions '!$R$28:$V$28,0)))),0),0)*IF(AND(MONTH(AF$129)>=MONTH('Assumptions '!$G$53),MONTH(AF$129)<=MONTH('Assumptions '!$I$53)),'Assumptions '!$G$56,IF(AND(MONTH(AF$129)>=MONTH('Assumptions '!$G$54),MONTH(AF$129)<=MONTH('Assumptions '!$I$54)),'Assumptions '!$G$57,1)) -> 1693.5 | AG142: =IF(AG$129>='Assumptions '!$F30,ROUND('Assumptions '!$G30*(1+(INDEX('Assumptions '!$R30:$V30,,MATCH(AG$132,'Assumptions '!$R$28:$V$28,0)))),0),0)*IF(AND(MONTH(AG$129)>=MONTH('Assumptions '!$G$53),MONTH(AG$129)<=MONTH('Assumptions '!$I$53)),'Assumptions '!$G$56,IF(AND(MONTH(AG$129)>=MONTH('Assumptions '!$G$54),MONTH(AG$129)<=MONTH('Assumptions '!$I$54)),'Assumptions '!$G$57,1)) -> 1693.5 | AH142: =IF(AH$129>='Assumptions '!$F30,ROUND('Assumptions '!$G30*(1+(INDEX('Assumptions '!$R30:$V30,,MATCH(AH$132,'Assumptions '!$R$28:$V$28,0)))),0),0)*IF(AND(MONTH(AH$129)>=MONTH('Assumptions '!$G$53),MONTH(AH$129)<=MONTH('Assumptions '!$I$53)),'Assumptions '!$G$56,IF(AND(MONTH(AH$129)>=MONTH('Assumptions '!$G$54),MONTH(AH$129)<=MONTH('Assumptions '!$I$54)),'Assumptions '!$G$57,1)) -> 1129 | AI142: =IF(AI$129>='Assumptions '!$F30,ROUND('Assumptions '!$G30*(1+(INDEX('Assumptions '!$R30:$V30,,MATCH(AI$132,'Assumptions '!$R$28:$V$28,0)))),0),0)*IF(AND(MONTH(AI$129)>=MONTH('Assumptions '!$G$53),MONTH(AI$129)<=MONTH('Assumptions '!$I$53)),'Assumptions '!$G$56,IF(AND(MONTH(AI$129)>=MONTH('Assumptions '!$G$54),MONTH(AI$129)<=MONTH('Assumptions '!$I$54)),'Assumptions '!$G$57,1)) -> 1129 | AJ142: =IF(AJ$129>='Assumptions '!$F30,ROUND('Assumptions '!$G30*(1+(INDEX('Assumptions '!$R30:$V30,,MATCH(AJ$132,'Assumptions '!$R$28:$V$28,0)))),0),0)*IF(AND(MONTH(AJ$129)>=MONTH('Assumptions '!$G$53),MONTH(AJ$129)<=MONTH('Assumptions '!$I$53)),'Assumptions '!$G$56,IF(AND(MONTH(AJ$129)>=MONTH('Assumptions '!$G$54),MONTH(AJ$129)<=MONTH('Assumptions '!$I$54)),'Assumptions '!$G$57,1)) -> 1016.1 | AK142: =IF(AK$129>='Assumptions '!$F30,ROUND('Assumptions '!$G30*(1+(INDEX('Assumptions '!$R30:$V30,,MATCH(AK$132,'Assumptions '!$R$28:$V$28,0)))),0),0)*IF(AND(MONTH(AK$129)>=MONTH('Assumptions '!$G$53),MONTH(AK$129)<=MONTH('Assumptions '!$I$53)),'Assumptions '!$G$56,IF(AND(MONTH(AK$129)>=MONTH('Assumptions '!$G$54),MONTH(AK$129)<=MONTH('Assumptions '!$I$54)),'Assumptions '!$G$57,1)) -> 1016.1 | AL142: =IF(AL$129>='Assumptions '!$F30,ROUND('Assumptions '!$G30*(1+(INDEX('Assumptions '!$R30:$V30,,MATCH(AL$132,'Assumptions '!$R$28:$V$28,0)))),0),0)*IF(AND(MONTH(AL$129)>=MONTH('Assumptions '!$G$53),MONTH(AL$129)<=MONTH('Assumptions '!$I$53)),'Assumptions '!$G$56,IF(AND(MONTH(AL$129)>=MONTH('Assumptions '!$G$54),MONTH(AL$129)<=MONTH('Assumptions '!$I$54)),'Assumptions '!$G$57,1)) -> 1016.1 | AM142: =IF(AM$129>='Assumptions '!$F30,ROUND('Assumptions '!$G30*(1+(INDEX('Assumptions '!$R30:$V30,,MATCH(AM$132,'Assumptions '!$R$28:$V$28,0)))),0),0)*IF(AND(MONTH(AM$129)>=MONTH('Assumptions '!$G$53),MONTH(AM$129)<=MONTH('Assumptions '!$I$53)),'Assumptions '!$G$56,IF(AND(MONTH(AM$129)>=MONTH('Assumptions '!$G$54),MONTH(AM$129)<=MONTH('Assumptions '!$I$54)),'Assumptions '!$G$57,1)) -> 1016.1 | AN142: =IF(AN$129>='Assumptions '!$F30,ROUND('Assumptions '!$G30*(1+(INDEX('Assumptions '!$R30:$V30,,MATCH(AN$132,'Assumptions '!$R$28:$V$28,0)))),0),0)*IF(AND(MONTH(AN$129)>=MONTH('Assumptions '!$G$53),MONTH(AN$129)<=MONTH('Assumptions '!$I$53)),'Assumptions '!$G$56,IF(AND(MONTH(AN$129)>=MONTH('Assumptions '!$G$54),MONTH(AN$129)<=MONTH('Assumptions '!$I$54)),'Assumptions '!$G$57,1)) -> 1016.1 | AO142: =IF(AO$129>='Assumptions '!$F30,ROUND('Assumptions '!$G30*(1+(INDEX('Assumptions '!$R30:$V30,,MATCH(AO$132,'Assumptions '!$R$28:$V$28,0)))),0),0)*IF(AND(MONTH(AO$129)>=MONTH('Assumptions '!$G$53),MONTH(AO$129)<=MONTH('Assumptions '!$I$53)),'Assumptions '!$G$56,IF(AND(MONTH(AO$129)>=MONTH('Assumptions '!$G$54),MONTH(AO$129)<=MONTH('Assumptions '!$I$54)),'Assumptions '!$G$57,1)) -> 1016.1 | AP142: =IF(AP$129>='Assumptions '!$F30,ROUND('Assumptions '!$G30*(1+(INDEX('Assumptions '!$R30:$V30,,MATCH(AP$132,'Assumptions '!$R$28:$V$28,0)))),0),0)*IF(AND(MONTH(AP$129)>=MONTH('Assumptions '!$G$53),MONTH(AP$129)<=MONTH('Assumptions '!$I$53)),'Assumptions '!$G$56,IF(AND(MONTH(AP$129)>=MONTH('Assumptions '!$G$54),MONTH(AP$129)<=MONTH('Assumptions '!$I$54)),'Assumptions '!$G$57,1)) -> 1016.1 | AQ142: =IF(AQ$129>='Assumptions '!$F30,ROUND('Assumptions '!$G30*(1+(INDEX('Assumptions '!$R30:$V30,,MATCH(AQ$132,'Assumptions '!$R$28:$V$28,0)))),0),0)*IF(AND(MONTH(AQ$129)>=MONTH('Assumptions '!$G$53),MONTH(AQ$129)<=MONTH('Assumptions '!$I$53)),'Assumptions '!$G$56,IF(AND(MONTH(AQ$129)>=MONTH('Assumptions '!$G$54),MONTH(AQ$129)<=MONTH('Assumptions '!$I$54)),'Assumptions '!$G$57,1)) -> 1947 | AR142: =IF(AR$129>='Assumptions '!$F30,ROUND('Assumptions '!$G30*(1+(INDEX('Assumptions '!$R30:$V30,,MATCH(AR$132,'Assumptions '!$R$28:$V$28,0)))),0),0)*IF(AND(MONTH(AR$129)>=MONTH('Assumptions '!$G$53),MONTH(AR$129)<=MONTH('Assumptions '!$I$53)),'Assumptions '!$G$56,IF(AND(MONTH(AR$129)>=MONTH('Assumptions '!$G$54),MONTH(AR$129)<=MONTH('Assumptions '!$I$54)),'Assumptions '!$G$57,1)) -> 1947 | AS142: =IF(AS$129>='Assumptions '!$F30,ROUND('Assumptions '!$G30*(1+(INDEX('Assumptions '!$R30:$V30,,MATCH(AS$132,'Assumptions '!$R$28:$V$28,0)))),0),0)*IF(AND(MONTH(AS$129)>=MONTH('Assumptions '!$G$53),MONTH(AS$129)<=MONTH('Assumptions '!$I$53)),'Assumptions '!$G$56,IF(AND(MONTH(AS$129)>=MONTH('Assumptions '!$G$54),MONTH(AS$129)<=MONTH('Assumptions '!$I$54)),'Assumptions '!$G$57,1)) -> 1947 | AT142: =IF(AT$129>='Assumptions '!$F30,ROUND('Assumptions '!$G30*(1+(INDEX('Assumptions '!$R30:$V30,,MATCH(AT$132,'Assumptions '!$R$28:$V$28,0)))),0),0)*IF(AND(MONTH(AT$129)>=MONTH('Assumptions '!$G$53),MONTH(AT$129)<=MONTH('Assumptions '!$I$53)),'Assumptions '!$G$56,IF(AND(MONTH(AT$129)>=MONTH('Assumptions '!$G$54),MONTH(AT$129)<=MONTH('Assumptions '!$I$54)),'Assumptions '!$G$57,1)) -> 1298 | AU142: =IF(AU$129>='Assumptions '!$F30,ROUND('Assumptions '!$G30*(1+(INDEX('Assumptions '!$R30:$V30,,MATCH(AU$132,'Assumptions '!$R$28:$V$28,0)))),0),0)*IF(AND(MONTH(AU$129)>=MONTH('Assumptions '!$G$53),MONTH(AU$129)<=MONTH('Assumptions '!$I$53)),'Assumptions '!$G$56,IF(AND(MONTH(AU$129)>=MONTH('Assumptions '!$G$54),MONTH(AU$129)<=MONTH('Assumptions '!$I$54)),'Assumptions '!$G$57,1)) -> 1298 | AV142: =IF(AV$129>='Assumptions '!$F30,ROUND('Assumptions '!$G30*(1+(INDEX('Assumptions '!$R30:$V30,,MATCH(AV$132,'Assumptions '!$R$28:$V$28,0)))),0),0)*IF(AND(MONTH(AV$129)>=MONTH('Assumptions '!$G$53),MONTH(AV$129)<=MONTH('Assumptions '!$I$53)),'Assumptions '!$G$56,IF(AND(MONTH(AV$129)>=MONTH('Assumptions '!$G$54),MONTH(AV$129)<=MONTH('Assumptions '!$I$54)),'Assumptions '!$G$57,1)) -> 1168.2 | AW142: =IF(AW$129>='Assumptions '!$F30,ROUND('Assumptions '!$G30*(1+(INDEX('Assumptions '!$R30:$V30,,MATCH(AW$132,'Assumptions '!$R$28:$V$28,0)))),0),0)*IF(AND(MONTH(AW$129)>=MONTH('Assumptions '!$G$53),MONTH(AW$129)<=MONTH('Assumptions '!$I$53)),'Assumptions '!$G$56,IF(AND(MONTH(AW$129)>=MONTH('Assumptions '!$G$54),MONTH(AW$129)<=MONTH('Assumptions '!$I$54)),'Assumptions '!$G$57,1)) -> 1168.2 | AX142: =IF(AX$129>='Assumptions '!$F30,ROUND('Assumptions '!$G30*(1+(INDEX('Assumptions '!$R30:$V30,,MATCH(AX$132,'Assumptions '!$R$28:$V$28,0)))),0),0)*IF(AND(MONTH(AX$129)>=MONTH('Assumptions '!$G$53),MONTH(AX$129)<=MONTH('Assumptions '!$I$53)),'Assumptions '!$G$56,IF(AND(MONTH(AX$129)>=MONTH('Assumptions '!$G$54),MONTH(AX$129)<=MONTH('Assumptions '!$I$54)),'Assumptions '!$G$57,1)) -> 1168.2 | AY142: =IF(AY$129>='Assumptions '!$F30,ROUND('Assumptions '!$G30*(1+(INDEX('Assumptions '!$R30:$V30,,MATCH(AY$132,'Assumptions '!$R$28:$V$28,0)))),0),0)*IF(AND(MONTH(AY$129)>=MONTH('Assumptions '!$G$53),MONTH(AY$129)<=MONTH('Assumptions '!$I$53)),'Assumptions '!$G$56,IF(AND(MONTH(AY$129)>=MONTH('Assumptions '!$G$54),MONTH(AY$129)<=MONTH('Assumptions '!$I$54)),'Assumptions '!$G$57,1)) -> 1168.2 | AZ142: =IF(AZ$129>='Assumptions '!$F30,ROUND('Assumptions '!$G30*(1+(INDEX('Assumptions '!$R30:$V30,,MATCH(AZ$132,'Assumptions '!$R$28:$V$28,0)))),0),0)*IF(AND(MONTH(AZ$129)>=MONTH('Assumptions '!$G$53),MONTH(AZ$129)<=MONTH('Assumptions '!$I$53)),'Assumptions '!$G$56,IF(AND(MONTH(AZ$129)>=MONTH('Assumptions '!$G$54),MONTH(AZ$129)<=MONTH('Assumptions '!$I$54)),'Assumptions '!$G$57,1)) -> 1168.2 | BA142: =IF(BA$129>='Assumptions '!$F30,ROUND('Assumptions '!$G30*(1+(INDEX('Assumptions '!$R30:$V30,,MATCH(BA$132,'Assumptions '!$R$28:$V$28,0)))),0),0)*IF(AND(MONTH(BA$129)>=MONTH('Assumptions '!$G$53),MONTH(BA$129)<=MONTH('Assumptions '!$I$53)),'Assumptions '!$G$56,IF(AND(MONTH(BA$129)>=MONTH('Assumptions '!$G$54),MONTH(BA$129)<=MONTH('Assumptions '!$I$54)),'Assumptions '!$G$57,1)) -> 1168.2 | BB142: =IF(BB$129>='Assumptions '!$F30,ROUND('Assumptions '!$G30*(1+(INDEX('Assumptions '!$R30:$V30,,MATCH(BB$132,'Assumptions '!$R$28:$V$28,0)))),0),0)*IF(AND(MONTH(BB$129)>=MONTH('Assumptions '!$G$53),MONTH(BB$129)<=MONTH('Assumptions '!$I$53)),'Assumptions '!$G$56,IF(AND(MONTH(BB$129)>=MONTH('Assumptions '!$G$54),MONTH(BB$129)<=MONTH('Assumptions '!$I$54)),'Assumptions '!$G$57,1)) -> 1168.2 | BC142: =IF(BC$129>='Assumptions '!$F30,ROUND('Assumptions '!$G30*(1+(INDEX('Assumptions '!$R30:$V30,,MATCH(BC$132,'Assumptions '!$R$28:$V$28,0)))),0),0)*IF(AND(MONTH(BC$129)>=MONTH('Assumptions '!$G$53),MONTH(BC$129)<=MONTH('Assumptions '!$I$53)),'Assumptions '!$G$56,IF(AND(MONTH(BC$129)>=MONTH('Assumptions '!$G$54),MONTH(BC$129)<=MONTH('Assumptions '!$I$54)),'Assumptions '!$G$57,1)) -> 2337 | BD142: =IF(BD$129>='Assumptions '!$F30,ROUND('Assumptions '!$G30*(1+(INDEX('Assumptions '!$R30:$V30,,MATCH(BD$132,'Assumptions '!$R$28:$V$28,0)))),0),0)*IF(AND(MONTH(BD$129)>=MONTH('Assumptions '!$G$53),MONTH(BD$129)<=MONTH('Assumptions '!$I$53)),'Assumptions '!$G$56,IF(AND(MONTH(BD$129)>=MONTH('Assumptions '!$G$54),MONTH(BD$129)<=MONTH('Assumptions '!$I$54)),'Assumptions '!$G$57,1)) -> 2337 | BE142: =IF(BE$129>='Assumptions '!$F30,ROUND('Assumptions '!$G30*(1+(INDEX('Assumptions '!$R30:$V30,,MATCH(BE$132,'Assumptions '!$R$28:$V$28,0)))),0),0)*IF(AND(MONTH(BE$129)>=MONTH('Assumptions '!$G$53),MONTH(BE$129)<=MONTH('Assumptions '!$I$53)),'Assumptions '!$G$56,IF(AND(MONTH(BE$129)>=MONTH('Assumptions '!$G$54),MONTH(BE$129)<=MONTH('Assumptions '!$I$54)),'Assumptions '!$G$57,1)) -> 2337 | BF142: =IF(BF$129>='Assumptions '!$F30,ROUND('Assumptions '!$G30*(1+(INDEX('Assumptions '!$R30:$V30,,MATCH(BF$132,'Assumptions '!$R$28:$V$28,0)))),0),0)*IF(AND(MONTH(BF$129)>=MONTH('Assumptions '!$G$53),MONTH(BF$129)<=MONTH('Assumptions '!$I$53)),'Assumptions '!$G$56,IF(AND(MONTH(BF$129)>=MONTH('Assumptions '!$G$54),MONTH(BF$129)<=MONTH('Assumptions '!$I$54)),'Assumptions '!$G$57,1)) -> 1558 | BG142: =IF(BG$129>='Assumptions '!$F30,ROUND('Assumptions '!$G30*(1+(INDEX('Assumptions '!$R30:$V30,,MATCH(BG$132,'Assumptions '!$R$28:$V$28,0)))),0),0)*IF(AND(MONTH(BG$129)>=MONTH('Assumptions '!$G$53),MONTH(BG$129)<=MONTH('Assumptions '!$I$53)),'Assumptions '!$G$56,IF(AND(MONTH(BG$129)>=MONTH('Assumptions '!$G$54),MONTH(BG$129)<=MONTH('Assumptions '!$I$54)),'Assumptions '!$G$57,1)) -> 1558 | BH142: =IF(BH$129>='Assumptions '!$F30,ROUND('Assumptions '!$G30*(1+(INDEX('Assumptions '!$R30:$V30,,MATCH(BH$132,'Assumptions '!$R$28:$V$28,0)))),0),0)*IF(AND(MONTH(BH$129)>=MONTH('Assumptions '!$G$53),MONTH(BH$129)<=MONTH('Assumptions '!$I$53)),'Assumptions '!$G$56,IF(AND(MONTH(BH$129)>=MONTH('Assumptions '!$G$54),MONTH(BH$129)<=MONTH('Assumptions '!$I$54)),'Assumptions '!$G$57,1)) -> 1402.2 | BI142: =IF(BI$129>='Assumptions '!$F30,ROUND('Assumptions '!$G30*(1+(INDEX('Assumptions '!$R30:$V30,,MATCH(BI$132,'Assumptions '!$R$28:$V$28,0)))),0),0)*IF(AND(MONTH(BI$129)>=MONTH('Assumptions '!$G$53),MONTH(BI$129)<=MONTH('Assumptions '!$I$53)),'Assumptions '!$G$56,IF(AND(MONTH(BI$129)>=MONTH('Assumptions '!$G$54),MONTH(BI$129)<=MONTH('Assumptions '!$I$54)),'Assumptions '!$G$57,1)) -> 1402.2 | BJ142: =IF(BJ$129>='Assumptions '!$F30,ROUND('Assumptions '!$G30*(1+(INDEX('Assumptions '!$R30:$V30,,MATCH(BJ$132,'Assumptions '!$R$28:$V$28,0)))),0),0)*IF(AND(MONTH(BJ$129)>=MONTH('Assumptions '!$G$53),MONTH(BJ$129)<=MONTH('Assumptions '!$I$53)),'Assumptions '!$G$56,IF(AND(MONTH(BJ$129)>=MONTH('Assumptions '!$G$54),MONTH(BJ$129)<=MONTH('Assumptions '!$I$54)),'Assumptions '!$G$57,1)) -> 1402.2 | BK142: =IF(BK$129>='Assumptions '!$F30,ROUND('Assumptions '!$G30*(1+(INDEX('Assumptions '!$R30:$V30,,MATCH(BK$132,'Assumptions '!$R$28:$V$28,0)))),0),0)*IF(AND(MONTH(BK$129)>=MONTH('Assumptions '!$G$53),MONTH(BK$129)<=MONTH('Assumptions '!$I$53)),'Assumptions '!$G$56,IF(AND(MONTH(BK$129)>=MONTH('Assumptions '!$G$54),MONTH(BK$129)<=MONTH('Assumptions '!$I$54)),'Assumptions '!$G$57,1)) -> 1402.2 | BL142: =IF(BL$129>='Assumptions '!$F30,ROUND('Assumptions '!$G30*(1+(INDEX('Assumptions '!$R30:$V30,,MATCH(BL$132,'Assumptions '!$R$28:$V$28,0)))),0),0)*IF(AND(MONTH(BL$129)>=MONTH('Assumptions '!$G$53),MONTH(BL$129)<=MONTH('Assumptions '!$I$53)),'Assumptions '!$G$56,IF(AND(MONTH(BL$129)>=MONTH('Assumptions '!$G$54),MONTH(BL$129)<=MONTH('Assumptions '!$I$54)),'Assumptions '!$G$57,1)) -> 1402.2 | BM142: =IF(BM$129>='Assumptions '!$F30,ROUND('Assumptions '!$G30*(1+(INDEX('Assumptions '!$R30:$V30,,MATCH(BM$132,'Assumptions '!$R$28:$V$28,0)))),0),0)*IF(AND(MONTH(BM$129)>=MONTH('Assumptions '!$G$53),MONTH(BM$129)<=MONTH('Assumptions '!$I$53)),'Assumptions '!$G$56,IF(AND(MONTH(BM$129)>=MONTH('Assumptions '!$G$54),MONTH(BM$129)<=MONTH('Assumptions '!$I$54)),'Assumptions '!$G$57,1)) -> 1402.2 | BN142: =IF(BN$129>='Assumptions '!$F30,ROUND('Assumptions '!$G30*(1+(INDEX('Assumptions '!$R30:$V30,,MATCH(BN$132,'Assumptions '!$R$28:$V$28,0)))),0),0)*IF(AND(MONTH(BN$129)>=MONTH('Assumptions '!$G$53),MONTH(BN$129)<=MONTH('Assumptions '!$I$53)),'Assumptions '!$G$56,IF(AND(MONTH(BN$129)>=MONTH('Assumptions '!$G$54),MONTH(BN$129)<=MONTH('Assumptions '!$I$54)),'Assumptions '!$G$57,1)) -> 1402.2
D143: ='Assumptions '!D31 -> Product #3: Add'l product, e.g., marlin from Lamu | G143: =IF(G$129>='Assumptions '!$F31,ROUND('Assumptions '!$G31*(1+(INDEX('Assumptions '!$R31:$V31,,MATCH(G$132,'Assumptions '!$R$28:$V$28,0)))),0),0)*IF(AND(MONTH(G$129)>=MONTH('Assumptions '!$G$63),MONTH(G$129)<=MONTH('Assumptions '!$I$63)),'Assumptions '!$G$66,IF(AND(MONTH(G$129)>=MONTH('Assumptions '!$G$64),MONTH(G$129)<=MONTH('Assumptions '!$I$64)),'Assumptions '!$G$67,1)) -> 578 | H143: =IF(H$129>='Assumptions '!$F31,ROUND('Assumptions '!$G31*(1+(INDEX('Assumptions '!$R31:$V31,,MATCH(H$132,'Assumptions '!$R$28:$V$28,0)))),0),0)*IF(AND(MONTH(H$129)>=MONTH('Assumptions '!$G$63),MONTH(H$129)<=MONTH('Assumptions '!$I$63)),'Assumptions '!$G$66,IF(AND(MONTH(H$129)>=MONTH('Assumptions '!$G$64),MONTH(H$129)<=MONTH('Assumptions '!$I$64)),'Assumptions '!$G$67,1)) -> 578 | I143: =IF(I$129>='Assumptions '!$F31,ROUND('Assumptions '!$G31*(1+(INDEX('Assumptions '!$R31:$V31,,MATCH(I$132,'Assumptions '!$R$28:$V$28,0)))),0),0)*IF(AND(MONTH(I$129)>=MONTH('Assumptions '!$G$63),MONTH(I$129)<=MONTH('Assumptions '!$I$63)),'Assumptions '!$G$66,IF(AND(MONTH(I$129)>=MONTH('Assumptions '!$G$64),MONTH(I$129)<=MONTH('Assumptions '!$I$64)),'Assumptions '!$G$67,1)) -> 578 | J143: =IF(J$129>='Assumptions '!$F31,ROUND('Assumptions '!$G31*(1+(INDEX('Assumptions '!$R31:$V31,,MATCH(J$132,'Assumptions '!$R$28:$V$28,0)))),0),0)*IF(AND(MONTH(J$129)>=MONTH('Assumptions '!$G$63),MONTH(J$129)<=MONTH('Assumptions '!$I$63)),'Assumptions '!$G$66,IF(AND(MONTH(J$129)>=MONTH('Assumptions '!$G$64),MONTH(J$129)<=MONTH('Assumptions '!$I$64)),'Assumptions '!$G$67,1)) -> 578 | K143: =IF(K$129>='Assumptions '!$F31,ROUND('Assumptions '!$G31*(1+(INDEX('Assumptions '!$R31:$V31,,MATCH(K$132,'Assumptions '!$R$28:$V$28,0)))),0),0)*IF(AND(MONTH(K$129)>=MONTH('Assumptions '!$G$63),MONTH(K$129)<=MONTH('Assumptions '!$I$63)),'Assumptions '!$G$66,IF(AND(MONTH(K$129)>=MONTH('Assumptions '!$G$64),MONTH(K$129)<=MONTH('Assumptions '!$I$64)),'Assumptions '!$G$67,1)) -> 578 | L143: =IF(L$129>='Assumptions '!$F31,ROUND('Assumptions '!$G31*(1+(INDEX('Assumptions '!$R31:$V31,,MATCH(L$132,'Assumptions '!$R$28:$V$28,0)))),0),0)*IF(AND(MONTH(L$129)>=MONTH('Assumptions '!$G$63),MONTH(L$129)<=MONTH('Assumptions '!$I$63)),'Assumptions '!$G$66,IF(AND(MONTH(L$129)>=MONTH('Assumptions '!$G$64),MONTH(L$129)<=MONTH('Assumptions '!$I$64)),'Assumptions '!$G$67,1)) -> 578 | M143: =IF(M$129>='Assumptions '!$F31,ROUND('Assumptions '!$G31*(1+(INDEX('Assumptions '!$R31:$V31,,MATCH(M$132,'Assumptions '!$R$28:$V$28,0)))),0),0)*IF(AND(MONTH(M$129)>=MONTH('Assumptions '!$G$63),MONTH(M$129)<=MONTH('Assumptions '!$I$63)),'Assumptions '!$G$66,IF(AND(MONTH(M$129)>=MONTH('Assumptions '!$G$64),MONTH(M$129)<=MONTH('Assumptions '!$I$64)),'Assumptions '!$G$67,1)) -> 578 | N143: =IF(N$129>='Assumptions '!$F31,ROUND('Assumptions '!$G31*(1+(INDEX('Assumptions '!$R31:$V31,,MATCH(N$132,'Assumptions '!$R$28:$V$28,0)))),0),0)*IF(AND(MONTH(N$129)>=MONTH('Assumptions '!$G$63),MONTH(N$129)<=MONTH('Assumptions '!$I$63)),'Assumptions '!$G$66,IF(AND(MONTH(N$129)>=MONTH('Assumptions '!$G$64),MONTH(N$129)<=MONTH('Assumptions '!$I$64)),'Assumptions '!$G$67,1)) -> 578 | O143: =IF(O$129>='Assumptions '!$F31,ROUND('Assumptions '!$G31*(1+(INDEX('Assumptions '!$R31:$V31,,MATCH(O$132,'Assumptions '!$R$28:$V$28,0)))),0),0)*IF(AND(MONTH(O$129)>=MONTH('Assumptions '!$G$63),MONTH(O$129)<=MONTH('Assumptions '!$I$63)),'Assumptions '!$G$66,IF(AND(MONTH(O$129)>=MONTH('Assumptions '!$G$64),MONTH(O$129)<=MONTH('Assumptions '!$I$64)),'Assumptions '!$G$67,1)) -> 578 | P143: =IF(P$129>='Assumptions '!$F31,ROUND('Assumptions '!$G31*(1+(INDEX('Assumptions '!$R31:$V31,,MATCH(P$132,'Assumptions '!$R$28:$V$28,0)))),0),0)*IF(AND(MONTH(P$129)>=MONTH('Assumptions '!$G$63),MONTH(P$129)<=MONTH('Assumptions '!$I$63)),'Assumptions '!$G$66,IF(AND(MONTH(P$129)>=MONTH('Assumptions '!$G$64),MONTH(P$129)<=MONTH('Assumptions '!$I$64)),'Assumptions '!$G$67,1)) -> 578 | Q143: =IF(Q$129>='Assumptions '!$F31,ROUND('Assumptions '!$G31*(1+(INDEX('Assumptions '!$R31:$V31,,MATCH(Q$132,'Assumptions '!$R$28:$V$28,0)))),0),0)*IF(AND(MONTH(Q$129)>=MONTH('Assumptions '!$G$63),MONTH(Q$129)<=MONTH('Assumptions '!$I$63)),'Assumptions '!$G$66,IF(AND(MONTH(Q$129)>=MONTH('Assumptions '!$G$64),MONTH(Q$129)<=MONTH('Assumptions '!$I$64)),'Assumptions '!$G$67,1)) -> 578 | R143: =IF(R$129>='Assumptions '!$F31,ROUND('Assumptions '!$G31*(1+(INDEX('Assumptions '!$R31:$V31,,MATCH(R$132,'Assumptions '!$R$28:$V$28,0)))),0),0)*IF(AND(MONTH(R$129)>=MONTH('Assumptions '!$G$63),MONTH(R$129)<=MONTH('Assumptions '!$I$63)),'Assumptions '!$G$66,IF(AND(MONTH(R$129)>=MONTH('Assumptions '!$G$64),MONTH(R$129)<=MONTH('Assumptions '!$I$64)),'Assumptions '!$G$67,1)) -> 578 | S143: =IF(S$129>='Assumptions '!$F31,ROUND('Assumptions '!$G31*(1+(INDEX('Assumptions '!$R31:$V31,,MATCH(S$132,'Assumptions '!$R$28:$V$28,0)))),0),0)*IF(AND(MONTH(S$129)>=MONTH('Assumptions '!$G$63),MONTH(S$129)<=MONTH('Assumptions '!$I$63)),'Assumptions '!$G$66,IF(AND(MONTH(S$129)>=MONTH('Assumptions '!$G$64),MONTH(S$129)<=MONTH('Assumptions '!$I$64)),'Assumptions '!$G$67,1)) -> 635 | T143: =IF(T$129>='Assumptions '!$F31,ROUND('Assumptions '!$G31*(1+(INDEX('Assumptions '!$R31:$V31,,MATCH(T$132,'Assumptions '!$R$28:$V$28,0)))),0),0)*IF(AND(MONTH(T$129)>=MONTH('Assumptions '!$G$63),MONTH(T$129)<=MONTH('Assumptions '!$I$63)),'Assumptions '!$G$66,IF(AND(MONTH(T$129)>=MONTH('Assumptions '!$G$64),MONTH(T$129)<=MONTH('Assumptions '!$I$64)),'Assumptions '!$G$67,1)) -> 635 | U143: =IF(U$129>='Assumptions '!$F31,ROUND('Assumptions '!$G31*(1+(INDEX('Assumptions '!$R31:$V31,,MATCH(U$132,'Assumptions '!$R$28:$V$28,0)))),0),0)*IF(AND(MONTH(U$129)>=MONTH('Assumptions '!$G$63),MONTH(U$129)<=MONTH('Assumptions '!$I$63)),'Assumptions '!$G$66,IF(AND(MONTH(U$129)>=MONTH('Assumptions '!$G$64),MONTH(U$129)<=MONTH('Assumptions '!$I$64)),'Assumptions '!$G$67,1)) -> 635 | V143: =IF(V$129>='Assumptions '!$F31,ROUND('Assumptions '!$G31*(1+(INDEX('Assumptions '!$R31:$V31,,MATCH(V$132,'Assumptions '!$R$28:$V$28,0)))),0),0)*IF(AND(MONTH(V$129)>=MONTH('Assumptions '!$G$63),MONTH(V$129)<=MONTH('Assumptions '!$I$63)),'Assumptions '!$G$66,IF(AND(MONTH(V$129)>=MONTH('Assumptions '!$G$64),MONTH(V$129)<=MONTH('Assumptions '!$I$64)),'Assumptions '!$G$67,1)) -> 635 | W143: =IF(W$129>='Assumptions '!$F31,ROUND('Assumptions '!$G31*(1+(INDEX('Assumptions '!$R31:$V31,,MATCH(W$132,'Assumptions '!$R$28:$V$28,0)))),0),0)*IF(AND(MONTH(W$129)>=MONTH('Assumptions '!$G$63),MONTH(W$129)<=MONTH('Assumptions '!$I$63)),'Assumptions '!$G$66,IF(AND(MONTH(W$129)>=MONTH('Assumptions '!$G$64),MONTH(W$129)<=MONTH('Assumptions '!$I$64)),'Assumptions '!$G$67,1)) -> 635 | X143: =IF(X$129>='Assumptions '!$F31,ROUND('Assumptions '!$G31*(1+(INDEX('Assumptions '!$R31:$V31,,MATCH(X$132,'Assumptions '!$R$28:$V$28,0)))),0),0)*IF(AND(MONTH(X$129)>=MONTH('Assumptions '!$G$63),MONTH(X$129)<=MONTH('Assumptions '!$I$63)),'Assumptions '!$G$66,IF(AND(MONTH(X$129)>=MONTH('Assumptions '!$G$64),MONTH(X$129)<=MONTH('Assumptions '!$I$64)),'Assumptions '!$G$67,1)) -> 635 | Y143: =IF(Y$129>='Assumptions '!$F31,ROUND('Assumptions '!$G31*(1+(INDEX('Assumptions '!$R31:$V31,,MATCH(Y$132,'Assumptions '!$R$28:$V$28,0)))),0),0)*IF(AND(MONTH(Y$129)>=MONTH('Assumptions '!$G$63),MONTH(Y$129)<=MONTH('Assumptions '!$I$63)),'Assumptions '!$G$66,IF(AND(MONTH(Y$129)>=MONTH('Assumptions '!$G$64),MONTH(Y$129)<=MONTH('Assumptions '!$I$64)),'Assumptions '!$G$67,1)) -> 635 | Z143: =IF(Z$129>='Assumptions '!$F31,ROUND('Assumptions '!$G31*(1+(INDEX('Assumptions '!$R31:$V31,,MATCH(Z$132,'Assumptions '!$R$28:$V$28,0)))),0),0)*IF(AND(MONTH(Z$129)>=MONTH('Assumptions '!$G$63),MONTH(Z$129)<=MONTH('Assumptions '!$I$63)),'Assumptions '!$G$66,IF(AND(MONTH(Z$129)>=MONTH('Assumptions '!$G$64),MONTH(Z$129)<=MONTH('Assumptions '!$I$64)),'Assumptions '!$G$67,1)) -> 635 | AA143: =IF(AA$129>='Assumptions '!$F31,ROUND('Assumptions '!$G31*(1+(INDEX('Assumptions '!$R31:$V31,,MATCH(AA$132,'Assumptions '!$R$28:$V$28,0)))),0),0)*IF(AND(MONTH(AA$129)>=MONTH('Assumptions '!$G$63),MONTH(AA$129)<=MONTH('Assumptions '!$I$63)),'Assumptions '!$G$66,IF(AND(MONTH(AA$129)>=MONTH('Assumptions '!$G$64),MONTH(AA$129)<=MONTH('Assumptions '!$I$64)),'Assumptions '!$G$67,1)) -> 635 | AB143: =IF(AB$129>='Assumptions '!$F31,ROUND('Assumptions '!$G31*(1+(INDEX('Assumptions '!$R31:$V31,,MATCH(AB$132,'Assumptions '!$R$28:$V$28,0)))),0),0)*IF(AND(MONTH(AB$129)>=MONTH('Assumptions '!$G$63),MONTH(AB$129)<=MONTH('Assumptions '!$I$63)),'Assumptions '!$G$66,IF(AND(MONTH(AB$129)>=MONTH('Assumptions '!$G$64),MONTH(AB$129)<=MONTH('Assumptions '!$I$64)),'Assumptions '!$G$67,1)) -> 635 | AC143: =IF(AC$129>='Assumptions '!$F31,ROUND('Assumptions '!$G31*(1+(INDEX('Assumptions '!$R31:$V31,,MATCH(AC$132,'Assumptions '!$R$28:$V$28,0)))),0),0)*IF(AND(MONTH(AC$129)>=MONTH('Assumptions '!$G$63),MONTH(AC$129)<=MONTH('Assumptions '!$I$63)),'Assumptions '!$G$66,IF(AND(MONTH(AC$129)>=MONTH('Assumptions '!$G$64),MONTH(AC$129)<=MONTH('Assumptions '!$I$64)),'Assumptions '!$G$67,1)) -> 635 | AD143: =IF(AD$129>='Assumptions '!$F31,ROUND('Assumptions '!$G31*(1+(INDEX('Assumptions '!$R31:$V31,,MATCH(AD$132,'Assumptions '!$R$28:$V$28,0)))),0),0)*IF(AND(MONTH(AD$129)>=MONTH('Assumptions '!$G$63),MONTH(AD$129)<=MONTH('Assumptions '!$I$63)),'Assumptions '!$G$66,IF(AND(MONTH(AD$129)>=MONTH('Assumptions '!$G$64),MONTH(AD$129)<=MONTH('Assumptions '!$I$64)),'Assumptions '!$G$67,1)) -> 635 | AE143: =IF(AE$129>='Assumptions '!$F31,ROUND('Assumptions '!$G31*(1+(INDEX('Assumptions '!$R31:$V31,,MATCH(AE$132,'Assumptions '!$R$28:$V$28,0)))),0),0)*IF(AND(MONTH(AE$129)>=MONTH('Assumptions '!$G$63),MONTH(AE$129)<=MONTH('Assumptions '!$I$63)),'Assumptions '!$G$66,IF(AND(MONTH(AE$129)>=MONTH('Assumptions '!$G$64),MONTH(AE$129)<=MONTH('Assumptions '!$I$64)),'Assumptions '!$G$67,1)) -> 731 | AF143: =IF(AF$129>='Assumptions '!$F31,ROUND('Assumptions '!$G31*(1+(INDEX('Assumptions '!$R31:$V31,,MATCH(AF$132,'Assumptions '!$R$28:$V$28,0)))),0),0)*IF(AND(MONTH(AF$129)>=MONTH('Assumptions '!$G$63),MONTH(AF$129)<=MONTH('Assumptions '!$I$63)),'Assumptions '!$G$66,IF(AND(MONTH(AF$129)>=MONTH('Assumptions '!$G$64),MONTH(AF$129)<=MONTH('Assumptions '!$I$64)),'Assumptions '!$G$67,1)) -> 731 | AG143: =IF(AG$129>='Assumptions '!$F31,ROUND('Assumptions '!$G31*(1+(INDEX('Assumptions '!$R31:$V31,,MATCH(AG$132,'Assumptions '!$R$28:$V$28,0)))),0),0)*IF(AND(MONTH(AG$129)>=MONTH('Assumptions '!$G$63),MONTH(AG$129)<=MONTH('Assumptions '!$I$63)),'Assumptions '!$G$66,IF(AND(MONTH(AG$129)>=MONTH('Assumptions '!$G$64),MONTH(AG$129)<=MONTH('Assumptions '!$I$64)),'Assumptions '!$G$67,1)) -> 731 | AH143: =IF(AH$129>='Assumptions '!$F31,ROUND('Assumptions '!$G31*(1+(INDEX('Assumptions '!$R31:$V31,,MATCH(AH$132,'Assumptions '!$R$28:$V$28,0)))),0),0)*IF(AND(MONTH(AH$129)>=MONTH('Assumptions '!$G$63),MONTH(AH$129)<=MONTH('Assumptions '!$I$63)),'Assumptions '!$G$66,IF(AND(MONTH(AH$129)>=MONTH('Assumptions '!$G$64),MONTH(AH$129)<=MONTH('Assumptions '!$I$64)),'Assumptions '!$G$67,1)) -> 731 | AI143: =IF(AI$129>='Assumptions '!$F31,ROUND('Assumptions '!$G31*(1+(INDEX('Assumptions '!$R31:$V31,,MATCH(AI$132,'Assumptions '!$R$28:$V$28,0)))),0),0)*IF(AND(MONTH(AI$129)>=MONTH('Assumptions '!$G$63),MONTH(AI$129)<=MONTH('Assumptions '!$I$63)),'Assumptions '!$G$66,IF(AND(MONTH(AI$129)>=MONTH('Assumptions '!$G$64),MONTH(AI$129)<=MONTH('Assumptions '!$I$64)),'Assumptions '!$G$67,1)) -> 731 | AJ143: =IF(AJ$129>='Assumptions '!$F31,ROUND('Assumptions '!$G31*(1+(INDEX('Assumptions '!$R31:$V31,,MATCH(AJ$132,'Assumptions '!$R$28:$V$28,0)))),0),0)*IF(AND(MONTH(AJ$129)>=MONTH('Assumptions '!$G$63),MONTH(AJ$129)<=MONTH('Assumptions '!$I$63)),'Assumptions '!$G$66,IF(AND(MONTH(AJ$129)>=MONTH('Assumptions '!$G$64),MONTH(AJ$129)<=MONTH('Assumptions '!$I$64)),'Assumptions '!$G$67,1)) -> 731 | AK143: =IF(AK$129>='Assumptions '!$F31,ROUND('Assumptions '!$G31*(1+(INDEX('Assumptions '!$R31:$V31,,MATCH(AK$132,'Assumptions '!$R$28:$V$28,0)))),0),0)*IF(AND(MONTH(AK$129)>=MONTH('Assumptions '!$G$63),MONTH(AK$129)<=MONTH('Assumptions '!$I$63)),'Assumptions '!$G$66,IF(AND(MONTH(AK$129)>=MONTH('Assumptions '!$G$64),MONTH(AK$129)<=MONTH('Assumptions '!$I$64)),'Assumptions '!$G$67,1)) -> 731 | AL143: =IF(AL$129>='Assumptions '!$F31,ROUND('Assumptions '!$G31*(1+(INDEX('Assumptions '!$R31:$V31,,MATCH(AL$132,'Assumptions '!$R$28:$V$28,0)))),0),0)*IF(AND(MONTH(AL$129)>=MONTH('Assumptions '!$G$63),MONTH(AL$129)<=MONTH('Assumptions '!$I$63)),'Assumptions '!$G$66,IF(AND(MONTH(AL$129)>=MONTH('Assumptions '!$G$64),MONTH(AL$129)<=MONTH('Assumptions '!$I$64)),'Assumptions '!$G$67,1)) -> 731 | AM143: =IF(AM$129>='Assumptions '!$F31,ROUND('Assumptions '!$G31*(1+(INDEX('Assumptions '!$R31:$V31,,MATCH(AM$132,'Assumptions '!$R$28:$V$28,0)))),0),0)*IF(AND(MONTH(AM$129)>=MONTH('Assumptions '!$G$63),MONTH(AM$129)<=MONTH('Assumptions '!$I$63)),'Assumptions '!$G$66,IF(AND(MONTH(AM$129)>=MONTH('Assumptions '!$G$64),MONTH(AM$129)<=MONTH('Assumptions '!$I$64)),'Assumptions '!$G$67,1)) -> 731 | AN143: =IF(AN$129>='Assumptions '!$F31,ROUND('Assumptions '!$G31*(1+(INDEX('Assumptions '!$R31:$V31,,MATCH(AN$132,'Assumptions '!$R$28:$V$28,0)))),0),0)*IF(AND(MONTH(AN$129)>=MONTH('Assumptions '!$G$63),MONTH(AN$129)<=MONTH('Assumptions '!$I$63)),'Assumptions '!$G$66,IF(AND(MONTH(AN$129)>=MONTH('Assumptions '!$G$64),MONTH(AN$129)<=MONTH('Assumptions '!$I$64)),'Assumptions '!$G$67,1)) -> 731 | AO143: =IF(AO$129>='Assumptions '!$F31,ROUND('Assumptions '!$G31*(1+(INDEX('Assumptions '!$R31:$V31,,MATCH(AO$132,'Assumptions '!$R$28:$V$28,0)))),0),0)*IF(AND(MONTH(AO$129)>=MONTH('Assumptions '!$G$63),MONTH(AO$129)<=MONTH('Assumptions '!$I$63)),'Assumptions '!$G$66,IF(AND(MONTH(AO$129)>=MONTH('Assumptions '!$G$64),MONTH(AO$129)<=MONTH('Assumptions '!$I$64)),'Assumptions '!$G$67,1)) -> 731 | AP143: =IF(AP$129>='Assumptions '!$F31,ROUND('Assumptions '!$G31*(1+(INDEX('Assumptions '!$R31:$V31,,MATCH(AP$132,'Assumptions '!$R$28:$V$28,0)))),0),0)*IF(AND(MONTH(AP$129)>=MONTH('Assumptions '!$G$63),MONTH(AP$129)<=MONTH('Assumptions '!$I$63)),'Assumptions '!$G$66,IF(AND(MONTH(AP$129)>=MONTH('Assumptions '!$G$64),MONTH(AP$129)<=MONTH('Assumptions '!$I$64)),'Assumptions '!$G$67,1)) -> 731 | AQ143: =IF(AQ$129>='Assumptions '!$F31,ROUND('Assumptions '!$G31*(1+(INDEX('Assumptions '!$R31:$V31,,MATCH(AQ$132,'Assumptions '!$R$28:$V$28,0)))),0),0)*IF(AND(MONTH(AQ$129)>=MONTH('Assumptions '!$G$63),MONTH(AQ$129)<=MONTH('Assumptions '!$I$63)),'Assumptions '!$G$66,IF(AND(MONTH(AQ$129)>=MONTH('Assumptions '!$G$64),MONTH(AQ$129)<=MONTH('Assumptions '!$I$64)),'Assumptions '!$G$67,1)) -> 840 | AR143: =IF(AR$129>='Assumptions '!$F31,ROUND('Assumptions '!$G31*(1+(INDEX('Assumptions '!$R31:$V31,,MATCH(AR$132,'Assumptions '!$R$28:$V$28,0)))),0),0)*IF(AND(MONTH(AR$129)>=MONTH('Assumptions '!$G$63),MONTH(AR$129)<=MONTH('Assumptions '!$I$63)),'Assumptions '!$G$66,IF(AND(MONTH(AR$129)>=MONTH('Assumptions '!$G$64),MONTH(AR$129)<=MONTH('Assumptions '!$I$64)),'Assumptions '!$G$67,1)) -> 840 | AS143: =IF(AS$129>='Assumptions '!$F31,ROUND('Assumptions '!$G31*(1+(INDEX('Assumptions '!$R31:$V31,,MATCH(AS$132,'Assumptions '!$R$28:$V$28,0)))),0),0)*IF(AND(MONTH(AS$129)>=MONTH('Assumptions '!$G$63),MONTH(AS$129)<=MONTH('Assumptions '!$I$63)),'Assumptions '!$G$66,IF(AND(MONTH(AS$129)>=MONTH('Assumptions '!$G$64),MONTH(AS$129)<=MONTH('Assumptions '!$I$64)),'Assumptions '!$G$67,1)) -> 840 | AT143: =IF(AT$129>='Assumptions '!$F31,ROUND('Assumptions '!$G31*(1+(INDEX('Assumptions '!$R31:$V31,,MATCH(AT$132,'Assumptions '!$R$28:$V$28,0)))),0),0)*IF(AND(MONTH(AT$129)>=MONTH('Assumptions '!$G$63),MONTH(AT$129)<=MONTH('Assumptions '!$I$63)),'Assumptions '!$G$66,IF(AND(MONTH(AT$129)>=MONTH('Assumptions '!$G$64),MONTH(AT$129)<=MONTH('Assumptions '!$I$64)),'Assumptions '!$G$67,1)) -> 840 | AU143: =IF(AU$129>='Assumptions '!$F31,ROUND('Assumptions '!$G31*(1+(INDEX('Assumptions '!$R31:$V31,,MATCH(AU$132,'Assumptions '!$R$28:$V$28,0)))),0),0)*IF(AND(MONTH(AU$129)>=MONTH('Assumptions '!$G$63),MONTH(AU$129)<=MONTH('Assumptions '!$I$63)),'Assumptions '!$G$66,IF(AND(MONTH(AU$129)>=MONTH('Assumptions '!$G$64),MONTH(AU$129)<=MONTH('Assumptions '!$I$64)),'Assumptions '!$G$67,1)) -> 840 | AV143: =IF(AV$129>='Assumptions '!$F31,ROUND('Assumptions '!$G31*(1+(INDEX('Assumptions '!$R31:$V31,,MATCH(AV$132,'Assumptions '!$R$28:$V$28,0)))),0),0)*IF(AND(MONTH(AV$129)>=MONTH('Assumptions '!$G$63),MONTH(AV$129)<=MONTH('Assumptions '!$I$63)),'Assumptions '!$G$66,IF(AND(MONTH(AV$129)>=MONTH('Assumptions '!$G$64),MONTH(AV$129)<=MONTH('Assumptions '!$I$64)),'Assumptions '!$G$67,1)) -> 840 | AW143: =IF(AW$129>='Assumptions '!$F31,ROUND('Assumptions '!$G31*(1+(INDEX('Assumptions '!$R31:$V31,,MATCH(AW$132,'Assumptions '!$R$28:$V$28,0)))),0),0)*IF(AND(MONTH(AW$129)>=MONTH('Assumptions '!$G$63),MONTH(AW$129)<=MONTH('Assumptions '!$I$63)),'Assumptions '!$G$66,IF(AND(MONTH(AW$129)>=MONTH('Assumptions '!$G$64),MONTH(AW$129)<=MONTH('Assumptions '!$I$64)),'Assumptions '!$G$67,1)) -> 840 | AX143: =IF(AX$129>='Assumptions '!$F31,ROUND('Assumptions '!$G31*(1+(INDEX('Assumptions '!$R31:$V31,,MATCH(AX$132,'Assumptions '!$R$28:$V$28,0)))),0),0)*IF(AND(MONTH(AX$129)>=MONTH('Assumptions '!$G$63),MONTH(AX$129)<=MONTH('Assumptions '!$I$63)),'Assumptions '!$G$66,IF(AND(MONTH(AX$129)>=MONTH('Assumptions '!$G$64),MONTH(AX$129)<=MONTH('Assumptions '!$I$64)),'Assumptions '!$G$67,1)) -> 840 | AY143: =IF(AY$129>='Assumptions '!$F31,ROUND('Assumptions '!$G31*(1+(INDEX('Assumptions '!$R31:$V31,,MATCH(AY$132,'Assumptions '!$R$28:$V$28,0)))),0),0)*IF(AND(MONTH(AY$129)>=MONTH('Assumptions '!$G$63),MONTH(AY$129)<=MONTH('Assumptions '!$I$63)),'Assumptions '!$G$66,IF(AND(MONTH(AY$129)>=MONTH('Assumptions '!$G$64),MONTH(AY$129)<=MONTH('Assumptions '!$I$64)),'Assumptions '!$G$67,1)) -> 840 | AZ143: =IF(AZ$129>='Assumptions '!$F31,ROUND('Assumptions '!$G31*(1+(INDEX('Assumptions '!$R31:$V31,,MATCH(AZ$132,'Assumptions '!$R$28:$V$28,0)))),0),0)*IF(AND(MONTH(AZ$129)>=MONTH('Assumptions '!$G$63),MONTH(AZ$129)<=MONTH('Assumptions '!$I$63)),'Assumptions '!$G$66,IF(AND(MONTH(AZ$129)>=MONTH('Assumptions '!$G$64),MONTH(AZ$129)<=MONTH('Assumptions '!$I$64)),'Assumptions '!$G$67,1)) -> 840 | BA143: =IF(BA$129>='Assumptions '!$F31,ROUND('Assumptions '!$G31*(1+(INDEX('Assumptions '!$R31:$V31,,MATCH(BA$132,'Assumptions '!$R$28:$V$28,0)))),0),0)*IF(AND(MONTH(BA$129)>=MONTH('Assumptions '!$G$63),MONTH(BA$129)<=MONTH('Assumptions '!$I$63)),'Assumptions '!$G$66,IF(AND(MONTH(BA$129)>=MONTH('Assumptions '!$G$64),MONTH(BA$129)<=MONTH('Assumptions '!$I$64)),'Assumptions '!$G$67,1)) -> 840 | BB143: =IF(BB$129>='Assumptions '!$F31,ROUND('Assumptions '!$G31*(1+(INDEX('Assumptions '!$R31:$V31,,MATCH(BB$132,'Assumptions '!$R$28:$V$28,0)))),0),0)*IF(AND(MONTH(BB$129)>=MONTH('Assumptions '!$G$63),MONTH(BB$129)<=MONTH('Assumptions '!$I$63)),'Assumptions '!$G$66,IF(AND(MONTH(BB$129)>=MONTH('Assumptions '!$G$64),MONTH(BB$129)<=MONTH('Assumptions '!$I$64)),'Assumptions '!$G$67,1)) -> 840 | BC143: =IF(BC$129>='Assumptions '!$F31,ROUND('Assumptions '!$G31*(1+(INDEX('Assumptions '!$R31:$V31,,MATCH(BC$132,'Assumptions '!$R$28:$V$28,0)))),0),0)*IF(AND(MONTH(BC$129)>=MONTH('Assumptions '!$G$63),MONTH(BC$129)<=MONTH('Assumptions '!$I$63)),'Assumptions '!$G$66,IF(AND(MONTH(BC$129)>=MONTH('Assumptions '!$G$64),MONTH(BC$129)<=MONTH('Assumptions '!$I$64)),'Assumptions '!$G$67,1)) -> 1008 | BD143: =IF(BD$129>='Assumptions '!$F31,ROUND('Assumptions '!$G31*(1+(INDEX('Assumptions '!$R31:$V31,,MATCH(BD$132,'Assumptions '!$R$28:$V$28,0)))),0),0)*IF(AND(MONTH(BD$129)>=MONTH('Assumptions '!$G$63),MONTH(BD$129)<=MONTH('Assumptions '!$I$63)),'Assumptions '!$G$66,IF(AND(MONTH(BD$129)>=MONTH('Assumptions '!$G$64),MONTH(BD$129)<=MONTH('Assumptions '!$I$64)),'Assumptions '!$G$67,1)) -> 1008 | BE143: =IF(BE$129>='Assumptions '!$F31,ROUND('Assumptions '!$G31*(1+(INDEX('Assumptions '!$R31:$V31,,MATCH(BE$132,'Assumptions '!$R$28:$V$28,0)))),0),0)*IF(AND(MONTH(BE$129)>=MONTH('Assumptions '!$G$63),MONTH(BE$129)<=MONTH('Assumptions '!$I$63)),'Assumptions '!$G$66,IF(AND(MONTH(BE$129)>=MONTH('Assumptions '!$G$64),MONTH(BE$129)<=MONTH('Assumptions '!$I$64)),'Assumptions '!$G$67,1)) -> 1008 | BF143: =IF(BF$129>='Assumptions '!$F31,ROUND('Assumptions '!$G31*(1+(INDEX('Assumptions '!$R31:$V31,,MATCH(BF$132,'Assumptions '!$R$28:$V$28,0)))),0),0)*IF(AND(MONTH(BF$129)>=MONTH('Assumptions '!$G$63),MONTH(BF$129)<=MONTH('Assumptions '!$I$63)),'Assumptions '!$G$66,IF(AND(MONTH(BF$129)>=MONTH('Assumptions '!$G$64),MONTH(BF$129)<=MONTH('Assumptions '!$I$64)),'Assumptions '!$G$67,1)) -> 1008 | BG143: =IF(BG$129>='Assumptions '!$F31,ROUND('Assumptions '!$G31*(1+(INDEX('Assumptions '!$R31:$V31,,MATCH(BG$132,'Assumptions '!$R$28:$V$28,0)))),0),0)*IF(AND(MONTH(BG$129)>=MONTH('Assumptions '!$G$63),MONTH(BG$129)<=MONTH('Assumptions '!$I$63)),'Assumptions '!$G$66,IF(AND(MONTH(BG$129)>=MONTH('Assumptions '!$G$64),MONTH(BG$129)<=MONTH('Assumptions '!$I$64)),'Assumptions '!$G$67,1)) -> 1008 | BH143: =IF(BH$129>='Assumptions '!$F31,ROUND('Assumptions '!$G31*(1+(INDEX('Assumptions '!$R31:$V31,,MATCH(BH$132,'Assumptions '!$R$28:$V$28,0)))),0),0)*IF(AND(MONTH(BH$129)>=MONTH('Assumptions '!$G$63),MONTH(BH$129)<=MONTH('Assumptions '!$I$63)),'Assumptions '!$G$66,IF(AND(MONTH(BH$129)>=MONTH('Assumptions '!$G$64),MONTH(BH$129)<=MONTH('Assumptions '!$I$64)),'Assumptions '!$G$67,1)) -> 1008 | BI143: =IF(BI$129>='Assumptions '!$F31,ROUND('Assumptions '!$G31*(1+(INDEX('Assumptions '!$R31:$V31,,MATCH(BI$132,'Assumptions '!$R$28:$V$28,0)))),0),0)*IF(AND(MONTH(BI$129)>=MONTH('Assumptions '!$G$63),MONTH(BI$129)<=MONTH('Assumptions '!$I$63)),'Assumptions '!$G$66,IF(AND(MONTH(BI$129)>=MONTH('Assumptions '!$G$64),MONTH(BI$129)<=MONTH('Assumptions '!$I$64)),'Assumptions '!$G$67,1)) -> 1008 | BJ143: =IF(BJ$129>='Assumptions '!$F31,ROUND('Assumptions '!$G31*(1+(INDEX('Assumptions '!$R31:$V31,,MATCH(BJ$132,'Assumptions '!$R$28:$V$28,0)))),0),0)*IF(AND(MONTH(BJ$129)>=MONTH('Assumptions '!$G$63),MONTH(BJ$129)<=MONTH('Assumptions '!$I$63)),'Assumptions '!$G$66,IF(AND(MONTH(BJ$129)>=MONTH('Assumptions '!$G$64),MONTH(BJ$129)<=MONTH('Assumptions '!$I$64)),'Assumptions '!$G$67,1)) -> 1008 | BK143: =IF(BK$129>='Assumptions '!$F31,ROUND('Assumptions '!$G31*(1+(INDEX('Assumptions '!$R31:$V31,,MATCH(BK$132,'Assumptions '!$R$28:$V$28,0)))),0),0)*IF(AND(MONTH(BK$129)>=MONTH('Assumptions '!$G$63),MONTH(BK$129)<=MONTH('Assumptions '!$I$63)),'Assumptions '!$G$66,IF(AND(MONTH(BK$129)>=MONTH('Assumptions '!$G$64),MONTH(BK$129)<=MONTH('Assumptions '!$I$64)),'Assumptions '!$G$67,1)) -> 1008 | BL143: =IF(BL$129>='Assumptions '!$F31,ROUND('Assumptions '!$G31*(1+(INDEX('Assumptions '!$R31:$V31,,MATCH(BL$132,'Assumptions '!$R$28:$V$28,0)))),0),0)*IF(AND(MONTH(BL$129)>=MONTH('Assumptions '!$G$63),MONTH(BL$129)<=MONTH('Assumptions '!$I$63)),'Assumptions '!$G$66,IF(AND(MONTH(BL$129)>=MONTH('Assumptions '!$G$64),MONTH(BL$129)<=MONTH('Assumptions '!$I$64)),'Assumptions '!$G$67,1)) -> 1008 | BM143: =IF(BM$129>='Assumptions '!$F31,ROUND('Assumptions '!$G31*(1+(INDEX('Assumptions '!$R31:$V31,,MATCH(BM$132,'Assumptions '!$R$28:$V$28,0)))),0),0)*IF(AND(MONTH(BM$129)>=MONTH('Assumptions '!$G$63),MONTH(BM$129)<=MONTH('Assumptions '!$I$63)),'Assumptions '!$G$66,IF(AND(MONTH(BM$129)>=MONTH('Assumptions '!$G$64),MONTH(BM$129)<=MONTH('Assumptions '!$I$64)),'Assumptions '!$G$67,1)) -> 1008 | BN143: =IF(BN$129>='Assumptions '!$F31,ROUND('Assumptions '!$G31*(1+(INDEX('Assumptions '!$R31:$V31,,MATCH(BN$132,'Assumptions '!$R$28:$V$28,0)))),0),0)*IF(AND(MONTH(BN$129)>=MONTH('Assumptions '!$G$63),MONTH(BN$129)<=MONTH('Assumptions '!$I$63)),'Assumptions '!$G$66,IF(AND(MONTH(BN$129)>=MONTH('Assumptions '!$G$64),MONTH(BN$129)<=MONTH('Assumptions '!$I$64)),'Assumptions '!$G$67,1)) -> 1008
D144: ='Assumptions '!D32 -> 0 | G144: =IF(G$129>='Assumptions '!$F32,ROUND('Assumptions '!$G32*(1+(INDEX('Assumptions '!$R32:$V32,,MATCH(G$132,'Assumptions '!$R$28:$V$28,0)))),0),0)*IF(AND(MONTH(G$129)>=MONTH('Assumptions '!$G$73),MONTH(G$129)<=MONTH('Assumptions '!$I$73)),'Assumptions '!$G$76,IF(AND(MONTH(G$129)>=MONTH('Assumptions '!$G$74),MONTH(G$129)<=MONTH('Assumptions '!$I$74)),'Assumptions '!$G$77,1)) -> 0 | H144: =IF(H$129>='Assumptions '!$F32,ROUND('Assumptions '!$G32*(1+(INDEX('Assumptions '!$R32:$V32,,MATCH(H$132,'Assumptions '!$R$28:$V$28,0)))),0),0)*IF(AND(MONTH(H$129)>=MONTH('Assumptions '!$G$73),MONTH(H$129)<=MONTH('Assumptions '!$I$73)),'Assumptions '!$G$76,IF(AND(MONTH(H$129)>=MONTH('Assumptions '!$G$74),MONTH(H$129)<=MONTH('Assumptions '!$I$74)),'Assumptions '!$G$77,1)) -> 0 | I144: =IF(I$129>='Assumptions '!$F32,ROUND('Assumptions '!$G32*(1+(INDEX('Assumptions '!$R32:$V32,,MATCH(I$132,'Assumptions '!$R$28:$V$28,0)))),0),0)*IF(AND(MONTH(I$129)>=MONTH('Assumptions '!$G$73),MONTH(I$129)<=MONTH('Assumptions '!$I$73)),'Assumptions '!$G$76,IF(AND(MONTH(I$129)>=MONTH('Assumptions '!$G$74),MONTH(I$129)<=MONTH('Assumptions '!$I$74)),'Assumptions '!$G$77,1)) -> 0 | J144: =IF(J$129>='Assumptions '!$F32,ROUND('Assumptions '!$G32*(1+(INDEX('Assumptions '!$R32:$V32,,MATCH(J$132,'Assumptions '!$R$28:$V$28,0)))),0),0)*IF(AND(MONTH(J$129)>=MONTH('Assumptions '!$G$73),MONTH(J$129)<=MONTH('Assumptions '!$I$73)),'Assumptions '!$G$76,IF(AND(MONTH(J$129)>=MONTH('Assumptions '!$G$74),MONTH(J$129)<=MONTH('Assumptions '!$I$74)),'Assumptions '!$G$77,1)) -> 0 | K144: =IF(K$129>='Assumptions '!$F32,ROUND('Assumptions '!$G32*(1+(INDEX('Assumptions '!$R32:$V32,,MATCH(K$132,'Assumptions '!$R$28:$V$28,0)))),0),0)*IF(AND(MONTH(K$129)>=MONTH('Assumptions '!$G$73),MONTH(K$129)<=MONTH('Assumptions '!$I$73)),'Assumptions '!$G$76,IF(AND(MONTH(K$129)>=MONTH('Assumptions '!$G$74),MONTH(K$129)<=MONTH('Assumptions '!$I$74)),'Assumptions '!$G$77,1)) -> 0 | L144: =IF(L$129>='Assumptions '!$F32,ROUND('Assumptions '!$G32*(1+(INDEX('Assumptions '!$R32:$V32,,MATCH(L$132,'Assumptions '!$R$28:$V$28,0)))),0),0)*IF(AND(MONTH(L$129)>=MONTH('Assumptions '!$G$73),MONTH(L$129)<=MONTH('Assumptions '!$I$73)),'Assumptions '!$G$76,IF(AND(MONTH(L$129)>=MONTH('Assumptions '!$G$74),MONTH(L$129)<=MONTH('Assumptions '!$I$74)),'Assumptions '!$G$77,1)) -> 0 | M144: =IF(M$129>='Assumptions '!$F32,ROUND('Assumptions '!$G32*(1+(INDEX('Assumptions '!$R32:$V32,,MATCH(M$132,'Assumptions '!$R$28:$V$28,0)))),0),0)*IF(AND(MONTH(M$129)>=MONTH('Assumptions '!$G$73),MONTH(M$129)<=MONTH('Assumptions '!$I$73)),'Assumptions '!$G$76,IF(AND(MONTH(M$129)>=MONTH('Assumptions '!$G$74),MONTH(M$129)<=MONTH('Assumptions '!$I$74)),'Assumptions '!$G$77,1)) -> 0 | N144: =IF(N$129>='Assumptions '!$F32,ROUND('Assumptions '!$G32*(1+(INDEX('Assumptions '!$R32:$V32,,MATCH(N$132,'Assumptions '!$R$28:$V$28,0)))),0),0)*IF(AND(MONTH(N$129)>=MONTH('Assumptions '!$G$73),MONTH(N$129)<=MONTH('Assumptions '!$I$73)),'Assumptions '!$G$76,IF(AND(MONTH(N$129)>=MONTH('Assumptions '!$G$74),MONTH(N$129)<=MONTH('Assumptions '!$I$74)),'Assumptions '!$G$77,1)) -> 0 | O144: =IF(O$129>='Assumptions '!$F32,ROUND('Assumptions '!$G32*(1+(INDEX('Assumptions '!$R32:$V32,,MATCH(O$132,'Assumptions '!$R$28:$V$28,0)))),0),0)*IF(AND(MONTH(O$129)>=MONTH('Assumptions '!$G$73),MONTH(O$129)<=MONTH('Assumptions '!$I$73)),'Assumptions '!$G$76,IF(AND(MONTH(O$129)>=MONTH('Assumptions '!$G$74),MONTH(O$129)<=MONTH('Assumptions '!$I$74)),'Assumptions '!$G$77,1)) -> 0 | P144: =IF(P$129>='Assumptions '!$F32,ROUND('Assumptions '!$G32*(1+(INDEX('Assumptions '!$R32:$V32,,MATCH(P$132,'Assumptions '!$R$28:$V$28,0)))),0),0)*IF(AND(MONTH(P$129)>=MONTH('Assumptions '!$G$73),MONTH(P$129)<=MONTH('Assumptions '!$I$73)),'Assumptions '!$G$76,IF(AND(MONTH(P$129)>=MONTH('Assumptions '!$G$74),MONTH(P$129)<=MONTH('Assumptions '!$I$74)),'Assumptions '!$G$77,1)) -> 0 | Q144: =IF(Q$129>='Assumptions '!$F32,ROUND('Assumptions '!$G32*(1+(INDEX('Assumptions '!$R32:$V32,,MATCH(Q$132,'Assumptions '!$R$28:$V$28,0)))),0),0)*IF(AND(MONTH(Q$129)>=MONTH('Assumptions '!$G$73),MONTH(Q$129)<=MONTH('Assumptions '!$I$73)),'Assumptions '!$G$76,IF(AND(MONTH(Q$129)>=MONTH('Assumptions '!$G$74),MONTH(Q$129)<=MONTH('Assumptions '!$I$74)),'Assumptions '!$G$77,1)) -> 0 | R144: =IF(R$129>='Assumptions '!$F32,ROUND('Assumptions '!$G32*(1+(INDEX('Assumptions '!$R32:$V32,,MATCH(R$132,'Assumptions '!$R$28:$V$28,0)))),0),0)*IF(AND(MONTH(R$129)>=MONTH('Assumptions '!$G$73),MONTH(R$129)<=MONTH('Assumptions '!$I$73)),'Assumptions '!$G$76,IF(AND(MONTH(R$129)>=MONTH('Assumptions '!$G$74),MONTH(R$129)<=MONTH('Assumptions '!$I$74)),'Assumptions '!$G$77,1)) -> 0 | S144: =IF(S$129>='Assumptions '!$F32,ROUND('Assumptions '!$G32*(1+(INDEX('Assumptions '!$R32:$V32,,MATCH(S$132,'Assumptions '!$R$28:$V$28,0)))),0),0)*IF(AND(MONTH(S$129)>=MONTH('Assumptions '!$G$73),MONTH(S$129)<=MONTH('Assumptions '!$I$73)),'Assumptions '!$G$76,IF(AND(MONTH(S$129)>=MONTH('Assumptions '!$G$74),MONTH(S$129)<=MONTH('Assumptions '!$I$74)),'Assumptions '!$G$77,1)) -> 0 | T144: =IF(T$129>='Assumptions '!$F32,ROUND('Assumptions '!$G32*(1+(INDEX('Assumptions '!$R32:$V32,,MATCH(T$132,'Assumptions '!$R$28:$V$28,0)))),0),0)*IF(AND(MONTH(T$129)>=MONTH('Assumptions '!$G$73),MONTH(T$129)<=MONTH('Assumptions '!$I$73)),'Assumptions '!$G$76,IF(AND(MONTH(T$129)>=MONTH('Assumptions '!$G$74),MONTH(T$129)<=MONTH('Assumptions '!$I$74)),'Assumptions '!$G$77,1)) -> 0 | U144: =IF(U$129>='Assumptions '!$F32,ROUND('Assumptions '!$G32*(1+(INDEX('Assumptions '!$R32:$V32,,MATCH(U$132,'Assumptions '!$R$28:$V$28,0)))),0),0)*IF(AND(MONTH(U$129)>=MONTH('Assumptions '!$G$73),MONTH(U$129)<=MONTH('Assumptions '!$I$73)),'Assumptions '!$G$76,IF(AND(MONTH(U$129)>=MONTH('Assumptions '!$G$74),MONTH(U$129)<=MONTH('Assumptions '!$I$74)),'Assumptions '!$G$77,1)) -> 0 | V144: =IF(V$129>='Assumptions '!$F32,ROUND('Assumptions '!$G32*(1+(INDEX('Assumptions '!$R32:$V32,,MATCH(V$132,'Assumptions '!$R$28:$V$28,0)))),0),0)*IF(AND(MONTH(V$129)>=MONTH('Assumptions '!$G$73),MONTH(V$129)<=MONTH('Assumptions '!$I$73)),'Assumptions '!$G$76,IF(AND(MONTH(V$129)>=MONTH('Assumptions '!$G$74),MONTH(V$129)<=MONTH('Assumptions '!$I$74)),'Assumptions '!$G$77,1)) -> 0 | W144: =IF(W$129>='Assumptions '!$F32,ROUND('Assumptions '!$G32*(1+(INDEX('Assumptions '!$R32:$V32,,MATCH(W$132,'Assumptions '!$R$28:$V$28,0)))),0),0)*IF(AND(MONTH(W$129)>=MONTH('Assumptions '!$G$73),MONTH(W$129)<=MONTH('Assumptions '!$I$73)),'Assumptions '!$G$76,IF(AND(MONTH(W$129)>=MONTH('Assumptions '!$G$74),MONTH(W$129)<=MONTH('Assumptions '!$I$74)),'Assumptions '!$G$77,1)) -> 0 | X144: =IF(X$129>='Assumptions '!$F32,ROUND('Assumptions '!$G32*(1+(INDEX('Assumptions '!$R32:$V32,,MATCH(X$132,'Assumptions '!$R$28:$V$28,0)))),0),0)*IF(AND(MONTH(X$129)>=MONTH('Assumptions '!$G$73),MONTH(X$129)<=MONTH('Assumptions '!$I$73)),'Assumptions '!$G$76,IF(AND(MONTH(X$129)>=MONTH('Assumptions '!$G$74),MONTH(X$129)<=MONTH('Assumptions '!$I$74)),'Assumptions '!$G$77,1)) -> 0 | Y144: =IF(Y$129>='Assumptions '!$F32,ROUND('Assumptions '!$G32*(1+(INDEX('Assumptions '!$R32:$V32,,MATCH(Y$132,'Assumptions '!$R$28:$V$28,0)))),0),0)*IF(AND(MONTH(Y$129)>=MONTH('Assumptions '!$G$73),MONTH(Y$129)<=MONTH('Assumptions '!$I$73)),'Assumptions '!$G$76,IF(AND(MONTH(Y$129)>=MONTH('Assumptions '!$G$74),MONTH(Y$129)<=MONTH('Assumptions '!$I$74)),'Assumptions '!$G$77,1)) -> 0 | Z144: =IF(Z$129>='Assumptions '!$F32,ROUND('Assumptions '!$G32*(1+(INDEX('Assumptions '!$R32:$V32,,MATCH(Z$132,'Assumptions '!$R$28:$V$28,0)))),0),0)*IF(AND(MONTH(Z$129)>=MONTH('Assumptions '!$G$73),MONTH(Z$129)<=MONTH('Assumptions '!$I$73)),'Assumptions '!$G$76,IF(AND(MONTH(Z$129)>=MONTH('Assumptions '!$G$74),MONTH(Z$129)<=MONTH('Assumptions '!$I$74)),'Assumptions '!$G$77,1)) -> 0 | AA144: =IF(AA$129>='Assumptions '!$F32,ROUND('Assumptions '!$G32*(1+(INDEX('Assumptions '!$R32:$V32,,MATCH(AA$132,'Assumptions '!$R$28:$V$28,0)))),0),0)*IF(AND(MONTH(AA$129)>=MONTH('Assumptions '!$G$73),MONTH(AA$129)<=MONTH('Assumptions '!$I$73)),'Assumptions '!$G$76,IF(AND(MONTH(AA$129)>=MONTH('Assumptions '!$G$74),MONTH(AA$129)<=MONTH('Assumptions '!$I$74)),'Assumptions '!$G$77,1)) -> 0 | AB144: =IF(AB$129>='Assumptions '!$F32,ROUND('Assumptions '!$G32*(1+(INDEX('Assumptions '!$R32:$V32,,MATCH(AB$132,'Assumptions '!$R$28:$V$28,0)))),0),0)*IF(AND(MONTH(AB$129)>=MONTH('Assumptions '!$G$73),MONTH(AB$129)<=MONTH('Assumptions '!$I$73)),'Assumptions '!$G$76,IF(AND(MONTH(AB$129)>=MONTH('Assumptions '!$G$74),MONTH(AB$129)<=MONTH('Assumptions '!$I$74)),'Assumptions '!$G$77,1)) -> 0 | AC144: =IF(AC$129>='Assumptions '!$F32,ROUND('Assumptions '!$G32*(1+(INDEX('Assumptions '!$R32:$V32,,MATCH(AC$132,'Assumptions '!$R$28:$V$28,0)))),0),0)*IF(AND(MONTH(AC$129)>=MONTH('Assumptions '!$G$73),MONTH(AC$129)<=MONTH('Assumptions '!$I$73)),'Assumptions '!$G$76,IF(AND(MONTH(AC$129)>=MONTH('Assumptions '!$G$74),MONTH(AC$129)<=MONTH('Assumptions '!$I$74)),'Assumptions '!$G$77,1)) -> 0 | AD144: =IF(AD$129>='Assumptions '!$F32,ROUND('Assumptions '!$G32*(1+(INDEX('Assumptions '!$R32:$V32,,MATCH(AD$132,'Assumptions '!$R$28:$V$28,0)))),0),0)*IF(AND(MONTH(AD$129)>=MONTH('Assumptions '!$G$73),MONTH(AD$129)<=MONTH('Assumptions '!$I$73)),'Assumptions '!$G$76,IF(AND(MONTH(AD$129)>=MONTH('Assumptions '!$G$74),MONTH(AD$129)<=MONTH('Assumptions '!$I$74)),'Assumptions '!$G$77,1)) -> 0 | AE144: =IF(AE$129>='Assumptions '!$F32,ROUND('Assumptions '!$G32*(1+(INDEX('Assumptions '!$R32:$V32,,MATCH(AE$132,'Assumptions '!$R$28:$V$28,0)))),0),0)*IF(AND(MONTH(AE$129)>=MONTH('Assumptions '!$G$73),MONTH(AE$129)<=MONTH('Assumptions '!$I$73)),'Assumptions '!$G$76,IF(AND(MONTH(AE$129)>=MONTH('Assumptions '!$G$74),MONTH(AE$129)<=MONTH('Assumptions '!$I$74)),'Assumptions '!$G$77,1)) -> 0 | AF144: =IF(AF$129>='Assumptions '!$F32,ROUND('Assumptions '!$G32*(1+(INDEX('Assumptions '!$R32:$V32,,MATCH(AF$132,'Assumptions '!$R$28:$V$28,0)))),0),0)*IF(AND(MONTH(AF$129)>=MONTH('Assumptions '!$G$73),MONTH(AF$129)<=MONTH('Assumptions '!$I$73)),'Assumptions '!$G$76,IF(AND(MONTH(AF$129)>=MONTH('Assumptions '!$G$74),MONTH(AF$129)<=MONTH('Assumptions '!$I$74)),'Assumptions '!$G$77,1)) -> 0 | AG144: =IF(AG$129>='Assumptions '!$F32,ROUND('Assumptions '!$G32*(1+(INDEX('Assumptions '!$R32:$V32,,MATCH(AG$132,'Assumptions '!$R$28:$V$28,0)))),0),0)*IF(AND(MONTH(AG$129)>=MONTH('Assumptions '!$G$73),MONTH(AG$129)<=MONTH('Assumptions '!$I$73)),'Assumptions '!$G$76,IF(AND(MONTH(AG$129)>=MONTH('Assumptions '!$G$74),MONTH(AG$129)<=MONTH('Assumptions '!$I$74)),'Assumptions '!$G$77,1)) -> 0 | AH144: =IF(AH$129>='Assumptions '!$F32,ROUND('Assumptions '!$G32*(1+(INDEX('Assumptions '!$R32:$V32,,MATCH(AH$132,'Assumptions '!$R$28:$V$28,0)))),0),0)*IF(AND(MONTH(AH$129)>=MONTH('Assumptions '!$G$73),MONTH(AH$129)<=MONTH('Assumptions '!$I$73)),'Assumptions '!$G$76,IF(AND(MONTH(AH$129)>=MONTH('Assumptions '!$G$74),MONTH(AH$129)<=MONTH('Assumptions '!$I$74)),'Assumptions '!$G$77,1)) -> 0 | AI144: =IF(AI$129>='Assumptions '!$F32,ROUND('Assumptions '!$G32*(1+(INDEX('Assumptions '!$R32:$V32,,MATCH(AI$132,'Assumptions '!$R$28:$V$28,0)))),0),0)*IF(AND(MONTH(AI$129)>=MONTH('Assumptions '!$G$73),MONTH(AI$129)<=MONTH('Assumptions '!$I$73)),'Assumptions '!$G$76,IF(AND(MONTH(AI$129)>=MONTH('Assumptions '!$G$74),MONTH(AI$129)<=MONTH('Assumptions '!$I$74)),'Assumptions '!$G$77,1)) -> 0 | AJ144: =IF(AJ$129>='Assumptions '!$F32,ROUND('Assumptions '!$G32*(1+(INDEX('Assumptions '!$R32:$V32,,MATCH(AJ$132,'Assumptions '!$R$28:$V$28,0)))),0),0)*IF(AND(MONTH(AJ$129)>=MONTH('Assumptions '!$G$73),MONTH(AJ$129)<=MONTH('Assumptions '!$I$73)),'Assumptions '!$G$76,IF(AND(MONTH(AJ$129)>=MONTH('Assumptions '!$G$74),MONTH(AJ$129)<=MONTH('Assumptions '!$I$74)),'Assumptions '!$G$77,1)) -> 0 | AK144: =IF(AK$129>='Assumptions '!$F32,ROUND('Assumptions '!$G32*(1+(INDEX('Assumptions '!$R32:$V32,,MATCH(AK$132,'Assumptions '!$R$28:$V$28,0)))),0),0)*IF(AND(MONTH(AK$129)>=MONTH('Assumptions '!$G$73),MONTH(AK$129)<=MONTH('Assumptions '!$I$73)),'Assumptions '!$G$76,IF(AND(MONTH(AK$129)>=MONTH('Assumptions '!$G$74),MONTH(AK$129)<=MONTH('Assumptions '!$I$74)),'Assumptions '!$G$77,1)) -> 0 | AL144: =IF(AL$129>='Assumptions '!$F32,ROUND('Assumptions '!$G32*(1+(INDEX('Assumptions '!$R32:$V32,,MATCH(AL$132,'Assumptions '!$R$28:$V$28,0)))),0),0)*IF(AND(MONTH(AL$129)>=MONTH('Assumptions '!$G$73),MONTH(AL$129)<=MONTH('Assumptions '!$I$73)),'Assumptions '!$G$76,IF(AND(MONTH(AL$129)>=MONTH('Assumptions '!$G$74),MONTH(AL$129)<=MONTH('Assumptions '!$I$74)),'Assumptions '!$G$77,1)) -> 0 | AM144: =IF(AM$129>='Assumptions '!$F32,ROUND('Assumptions '!$G32*(1+(INDEX('Assumptions '!$R32:$V32,,MATCH(AM$132,'Assumptions '!$R$28:$V$28,0)))),0),0)*IF(AND(MONTH(AM$129)>=MONTH('Assumptions '!$G$73),MONTH(AM$129)<=MONTH('Assumptions '!$I$73)),'Assumptions '!$G$76,IF(AND(MONTH(AM$129)>=MONTH('Assumptions '!$G$74),MONTH(AM$129)<=MONTH('Assumptions '!$I$74)),'Assumptions '!$G$77,1)) -> 0 | AN144: =IF(AN$129>='Assumptions '!$F32,ROUND('Assumptions '!$G32*(1+(INDEX('Assumptions '!$R32:$V32,,MATCH(AN$132,'Assumptions '!$R$28:$V$28,0)))),0),0)*IF(AND(MONTH(AN$129)>=MONTH('Assumptions '!$G$73),MONTH(AN$129)<=MONTH('Assumptions '!$I$73)),'Assumptions '!$G$76,IF(AND(MONTH(AN$129)>=MONTH('Assumptions '!$G$74),MONTH(AN$129)<=MONTH('Assumptions '!$I$74)),'Assumptions '!$G$77,1)) -> 0 | AO144: =IF(AO$129>='Assumptions '!$F32,ROUND('Assumptions '!$G32*(1+(INDEX('Assumptions '!$R32:$V32,,MATCH(AO$132,'Assumptions '!$R$28:$V$28,0)))),0),0)*IF(AND(MONTH(AO$129)>=MONTH('Assumptions '!$G$73),MONTH(AO$129)<=MONTH('Assumptions '!$I$73)),'Assumptions '!$G$76,IF(AND(MONTH(AO$129)>=MONTH('Assumptions '!$G$74),MONTH(AO$129)<=MONTH('Assumptions '!$I$74)),'Assumptions '!$G$77,1)) -> 0 | AP144: =IF(AP$129>='Assumptions '!$F32,ROUND('Assumptions '!$G32*(1+(INDEX('Assumptions '!$R32:$V32,,MATCH(AP$132,'Assumptions '!$R$28:$V$28,0)))),0),0)*IF(AND(MONTH(AP$129)>=MONTH('Assumptions '!$G$73),MONTH(AP$129)<=MONTH('Assumptions '!$I$73)),'Assumptions '!$G$76,IF(AND(MONTH(AP$129)>=MONTH('Assumptions '!$G$74),MONTH(AP$129)<=MONTH('Assumptions '!$I$74)),'Assumptions '!$G$77,1)) -> 0 | AQ144: =IF(AQ$129>='Assumptions '!$F32,ROUND('Assumptions '!$G32*(1+(INDEX('Assumptions '!$R32:$V32,,MATCH(AQ$132,'Assumptions '!$R$28:$V$28,0)))),0),0)*IF(AND(MONTH(AQ$129)>=MONTH('Assumptions '!$G$73),MONTH(AQ$129)<=MONTH('Assumptions '!$I$73)),'Assumptions '!$G$76,IF(AND(MONTH(AQ$129)>=MONTH('Assumptions '!$G$74),MONTH(AQ$129)<=MONTH('Assumptions '!$I$74)),'Assumptions '!$G$77,1)) -> 0 | AR144: =IF(AR$129>='Assumptions '!$F32,ROUND('Assumptions '!$G32*(1+(INDEX('Assumptions '!$R32:$V32,,MATCH(AR$132,'Assumptions '!$R$28:$V$28,0)))),0),0)*IF(AND(MONTH(AR$129)>=MONTH('Assumptions '!$G$73),MONTH(AR$129)<=MONTH('Assumptions '!$I$73)),'Assumptions '!$G$76,IF(AND(MONTH(AR$129)>=MONTH('Assumptions '!$G$74),MONTH(AR$129)<=MONTH('Assumptions '!$I$74)),'Assumptions '!$G$77,1)) -> 0 | AS144: =IF(AS$129>='Assumptions '!$F32,ROUND('Assumptions '!$G32*(1+(INDEX('Assumptions '!$R32:$V32,,MATCH(AS$132,'Assumptions '!$R$28:$V$28,0)))),0),0)*IF(AND(MONTH(AS$129)>=MONTH('Assumptions '!$G$73),MONTH(AS$129)<=MONTH('Assumptions '!$I$73)),'Assumptions '!$G$76,IF(AND(MONTH(AS$129)>=MONTH('Assumptions '!$G$74),MONTH(AS$129)<=MONTH('Assumptions '!$I$74)),'Assumptions '!$G$77,1)) -> 0 | AT144: =IF(AT$129>='Assumptions '!$F32,ROUND('Assumptions '!$G32*(1+(INDEX('Assumptions '!$R32:$V32,,MATCH(AT$132,'Assumptions '!$R$28:$V$28,0)))),0),0)*IF(AND(MONTH(AT$129)>=MONTH('Assumptions '!$G$73),MONTH(AT$129)<=MONTH('Assumptions '!$I$73)),'Assumptions '!$G$76,IF(AND(MONTH(AT$129)>=MONTH('Assumptions '!$G$74),MONTH(AT$129)<=MONTH('Assumptions '!$I$74)),'Assumptions '!$G$77,1)) -> 0 | AU144: =IF(AU$129>='Assumptions '!$F32,ROUND('Assumptions '!$G32*(1+(INDEX('Assumptions '!$R32:$V32,,MATCH(AU$132,'Assumptions '!$R$28:$V$28,0)))),0),0)*IF(AND(MONTH(AU$129)>=MONTH('Assumptions '!$G$73),MONTH(AU$129)<=MONTH('Assumptions '!$I$73)),'Assumptions '!$G$76,IF(AND(MONTH(AU$129)>=MONTH('Assumptions '!$G$74),MONTH(AU$129)<=MONTH('Assumptions '!$I$74)),'Assumptions '!$G$77,1)) -> 0 | AV144: =IF(AV$129>='Assumptions '!$F32,ROUND('Assumptions '!$G32*(1+(INDEX('Assumptions '!$R32:$V32,,MATCH(AV$132,'Assumptions '!$R$28:$V$28,0)))),0),0)*IF(AND(MONTH(AV$129)>=MONTH('Assumptions '!$G$73),MONTH(AV$129)<=MONTH('Assumptions '!$I$73)),'Assumptions '!$G$76,IF(AND(MONTH(AV$129)>=MONTH('Assumptions '!$G$74),MONTH(AV$129)<=MONTH('Assumptions '!$I$74)),'Assumptions '!$G$77,1)) -> 0 | AW144: =IF(AW$129>='Assumptions '!$F32,ROUND('Assumptions '!$G32*(1+(INDEX('Assumptions '!$R32:$V32,,MATCH(AW$132,'Assumptions '!$R$28:$V$28,0)))),0),0)*IF(AND(MONTH(AW$129)>=MONTH('Assumptions '!$G$73),MONTH(AW$129)<=MONTH('Assumptions '!$I$73)),'Assumptions '!$G$76,IF(AND(MONTH(AW$129)>=MONTH('Assumptions '!$G$74),MONTH(AW$129)<=MONTH('Assumptions '!$I$74)),'Assumptions '!$G$77,1)) -> 0 | AX144: =IF(AX$129>='Assumptions '!$F32,ROUND('Assumptions '!$G32*(1+(INDEX('Assumptions '!$R32:$V32,,MATCH(AX$132,'Assumptions '!$R$28:$V$28,0)))),0),0)*IF(AND(MONTH(AX$129)>=MONTH('Assumptions '!$G$73),MONTH(AX$129)<=MONTH('Assumptions '!$I$73)),'Assumptions '!$G$76,IF(AND(MONTH(AX$129)>=MONTH('Assumptions '!$G$74),MONTH(AX$129)<=MONTH('Assumptions '!$I$74)),'Assumptions '!$G$77,1)) -> 0 | AY144: =IF(AY$129>='Assumptions '!$F32,ROUND('Assumptions '!$G32*(1+(INDEX('Assumptions '!$R32:$V32,,MATCH(AY$132,'Assumptions '!$R$28:$V$28,0)))),0),0)*IF(AND(MONTH(AY$129)>=MONTH('Assumptions '!$G$73),MONTH(AY$129)<=MONTH('Assumptions '!$I$73)),'Assumptions '!$G$76,IF(AND(MONTH(AY$129)>=MONTH('Assumptions '!$G$74),MONTH(AY$129)<=MONTH('Assumptions '!$I$74)),'Assumptions '!$G$77,1)) -> 0 | AZ144: =IF(AZ$129>='Assumptions '!$F32,ROUND('Assumptions '!$G32*(1+(INDEX('Assumptions '!$R32:$V32,,MATCH(AZ$132,'Assumptions '!$R$28:$V$28,0)))),0),0)*IF(AND(MONTH(AZ$129)>=MONTH('Assumptions '!$G$73),MONTH(AZ$129)<=MONTH('Assumptions '!$I$73)),'Assumptions '!$G$76,IF(AND(MONTH(AZ$129)>=MONTH('Assumptions '!$G$74),MONTH(AZ$129)<=MONTH('Assumptions '!$I$74)),'Assumptions '!$G$77,1)) -> 0 | BA144: =IF(BA$129>='Assumptions '!$F32,ROUND('Assumptions '!$G32*(1+(INDEX('Assumptions '!$R32:$V32,,MATCH(BA$132,'Assumptions '!$R$28:$V$28,0)))),0),0)*IF(AND(MONTH(BA$129)>=MONTH('Assumptions '!$G$73),MONTH(BA$129)<=MONTH('Assumptions '!$I$73)),'Assumptions '!$G$76,IF(AND(MONTH(BA$129)>=MONTH('Assumptions '!$G$74),MONTH(BA$129)<=MONTH('Assumptions '!$I$74)),'Assumptions '!$G$77,1)) -> 0 | BB144: =IF(BB$129>='Assumptions '!$F32,ROUND('Assumptions '!$G32*(1+(INDEX('Assumptions '!$R32:$V32,,MATCH(BB$132,'Assumptions '!$R$28:$V$28,0)))),0),0)*IF(AND(MONTH(BB$129)>=MONTH('Assumptions '!$G$73),MONTH(BB$129)<=MONTH('Assumptions '!$I$73)),'Assumptions '!$G$76,IF(AND(MONTH(BB$129)>=MONTH('Assumptions '!$G$74),MONTH(BB$129)<=MONTH('Assumptions '!$I$74)),'Assumptions '!$G$77,1)) -> 0 | BC144: =IF(BC$129>='Assumptions '!$F32,ROUND('Assumptions '!$G32*(1+(INDEX('Assumptions '!$R32:$V32,,MATCH(BC$132,'Assumptions '!$R$28:$V$28,0)))),0),0)*IF(AND(MONTH(BC$129)>=MONTH('Assumptions '!$G$73),MONTH(BC$129)<=MONTH('Assumptions '!$I$73)),'Assumptions '!$G$76,IF(AND(MONTH(BC$129)>=MONTH('Assumptions '!$G$74),MONTH(BC$129)<=MONTH('Assumptions '!$I$74)),'Assumptions '!$G$77,1)) -> 0 | BD144: =IF(BD$129>='Assumptions '!$F32,ROUND('Assumptions '!$G32*(1+(INDEX('Assumptions '!$R32:$V32,,MATCH(BD$132,'Assumptions '!$R$28:$V$28,0)))),0),0)*IF(AND(MONTH(BD$129)>=MONTH('Assumptions '!$G$73),MONTH(BD$129)<=MONTH('Assumptions '!$I$73)),'Assumptions '!$G$76,IF(AND(MONTH(BD$129)>=MONTH('Assumptions '!$G$74),MONTH(BD$129)<=MONTH('Assumptions '!$I$74)),'Assumptions '!$G$77,1)) -> 0 | BE144: =IF(BE$129>='Assumptions '!$F32,ROUND('Assumptions '!$G32*(1+(INDEX('Assumptions '!$R32:$V32,,MATCH(BE$132,'Assumptions '!$R$28:$V$28,0)))),0),0)*IF(AND(MONTH(BE$129)>=MONTH('Assumptions '!$G$73),MONTH(BE$129)<=MONTH('Assumptions '!$I$73)),'Assumptions '!$G$76,IF(AND(MONTH(BE$129)>=MONTH('Assumptions '!$G$74),MONTH(BE$129)<=MONTH('Assumptions '!$I$74)),'Assumptions '!$G$77,1)) -> 0 | BF144: =IF(BF$129>='Assumptions '!$F32,ROUND('Assumptions '!$G32*(1+(INDEX('Assumptions '!$R32:$V32,,MATCH(BF$132,'Assumptions '!$R$28:$V$28,0)))),0),0)*IF(AND(MONTH(BF$129)>=MONTH('Assumptions '!$G$73),MONTH(BF$129)<=MONTH('Assumptions '!$I$73)),'Assumptions '!$G$76,IF(AND(MONTH(BF$129)>=MONTH('Assumptions '!$G$74),MONTH(BF$129)<=MONTH('Assumptions '!$I$74)),'Assumptions '!$G$77,1)) -> 0 | BG144: =IF(BG$129>='Assumptions '!$F32,ROUND('Assumptions '!$G32*(1+(INDEX('Assumptions '!$R32:$V32,,MATCH(BG$132,'Assumptions '!$R$28:$V$28,0)))),0),0)*IF(AND(MONTH(BG$129)>=MONTH('Assumptions '!$G$73),MONTH(BG$129)<=MONTH('Assumptions '!$I$73)),'Assumptions '!$G$76,IF(AND(MONTH(BG$129)>=MONTH('Assumptions '!$G$74),MONTH(BG$129)<=MONTH('Assumptions '!$I$74)),'Assumptions '!$G$77,1)) -> 0 | BH144: =IF(BH$129>='Assumptions '!$F32,ROUND('Assumptions '!$G32*(1+(INDEX('Assumptions '!$R32:$V32,,MATCH(BH$132,'Assumptions '!$R$28:$V$28,0)))),0),0)*IF(AND(MONTH(BH$129)>=MONTH('Assumptions '!$G$73),MONTH(BH$129)<=MONTH('Assumptions '!$I$73)),'Assumptions '!$G$76,IF(AND(MONTH(BH$129)>=MONTH('Assumptions '!$G$74),MONTH(BH$129)<=MONTH('Assumptions '!$I$74)),'Assumptions '!$G$77,1)) -> 0 | BI144: =IF(BI$129>='Assumptions '!$F32,ROUND('Assumptions '!$G32*(1+(INDEX('Assumptions '!$R32:$V32,,MATCH(BI$132,'Assumptions '!$R$28:$V$28,0)))),0),0)*IF(AND(MONTH(BI$129)>=MONTH('Assumptions '!$G$73),MONTH(BI$129)<=MONTH('Assumptions '!$I$73)),'Assumptions '!$G$76,IF(AND(MONTH(BI$129)>=MONTH('Assumptions '!$G$74),MONTH(BI$129)<=MONTH('Assumptions '!$I$74)),'Assumptions '!$G$77,1)) -> 0 | BJ144: =IF(BJ$129>='Assumptions '!$F32,ROUND('Assumptions '!$G32*(1+(INDEX('Assumptions '!$R32:$V32,,MATCH(BJ$132,'Assumptions '!$R$28:$V$28,0)))),0),0)*IF(AND(MONTH(BJ$129)>=MONTH('Assumptions '!$G$73),MONTH(BJ$129)<=MONTH('Assumptions '!$I$73)),'Assumptions '!$G$76,IF(AND(MONTH(BJ$129)>=MONTH('Assumptions '!$G$74),MONTH(BJ$129)<=MONTH('Assumptions '!$I$74)),'Assumptions '!$G$77,1)) -> 0 | BK144: =IF(BK$129>='Assumptions '!$F32,ROUND('Assumptions '!$G32*(1+(INDEX('Assumptions '!$R32:$V32,,MATCH(BK$132,'Assumptions '!$R$28:$V$28,0)))),0),0)*IF(AND(MONTH(BK$129)>=MONTH('Assumptions '!$G$73),MONTH(BK$129)<=MONTH('Assumptions '!$I$73)),'Assumptions '!$G$76,IF(AND(MONTH(BK$129)>=MONTH('Assumptions '!$G$74),MONTH(BK$129)<=MONTH('Assumptions '!$I$74)),'Assumptions '!$G$77,1)) -> 0 | BL144: =IF(BL$129>='Assumptions '!$F32,ROUND('Assumptions '!$G32*(1+(INDEX('Assumptions '!$R32:$V32,,MATCH(BL$132,'Assumptions '!$R$28:$V$28,0)))),0),0)*IF(AND(MONTH(BL$129)>=MONTH('Assumptions '!$G$73),MONTH(BL$129)<=MONTH('Assumptions '!$I$73)),'Assumptions '!$G$76,IF(AND(MONTH(BL$129)>=MONTH('Assumptions '!$G$74),MONTH(BL$129)<=MONTH('Assumptions '!$I$74)),'Assumptions '!$G$77,1)) -> 0 | BM144: =IF(BM$129>='Assumptions '!$F32,ROUND('Assumptions '!$G32*(1+(INDEX('Assumptions '!$R32:$V32,,MATCH(BM$132,'Assumptions '!$R$28:$V$28,0)))),0),0)*IF(AND(MONTH(BM$129)>=MONTH('Assumptions '!$G$73),MONTH(BM$129)<=MONTH('Assumptions '!$I$73)),'Assumptions '!$G$76,IF(AND(MONTH(BM$129)>=MONTH('Assumptions '!$G$74),MONTH(BM$129)<=MONTH('Assumptions '!$I$74)),'Assumptions '!$G$77,1)) -> 0 | BN144: =IF(BN$129>='Assumptions '!$F32,ROUND('Assumptions '!$G32*(1+(INDEX('Assumptions '!$R32:$V32,,MATCH(BN$132,'Assumptions '!$R$28:$V$28,0)))),0),0)*IF(AND(MONTH(BN$129)>=MONTH('Assumptions '!$G$73),MONTH(BN$129)<=MONTH('Assumptions '!$I$73)),'Assumptions '!$G$76,IF(AND(MONTH(BN$129)>=MONTH('Assumptions '!$G$74),MONTH(BN$129)<=MONTH('Assumptions '!$I$74)),'Assumptions '!$G$77,1)) -> 0
D145: ='Assumptions '!D33 -> 0 | G145: =IF(G$129>='Assumptions '!$F33,ROUND('Assumptions '!$G33*(1+(INDEX('Assumptions '!$R33:$V33,,MATCH(G$132,'Assumptions '!$R$28:$V$28,0)))),0),0)*IF(AND(MONTH(G$129)>=MONTH('Assumptions '!$G$83),MONTH(G$129)<=MONTH('Assumptions '!$I$83)),'Assumptions '!$G$86,IF(AND(MONTH(G$129)>=MONTH('Assumptions '!$G$84),MONTH(G$129)<=MONTH('Assumptions '!$I$84)),'Assumptions '!$G$87,1)) -> 0 | H145: =IF(H$129>='Assumptions '!$F33,ROUND('Assumptions '!$G33*(1+(INDEX('Assumptions '!$R33:$V33,,MATCH(H$132,'Assumptions '!$R$28:$V$28,0)))),0),0)*IF(AND(MONTH(H$129)>=MONTH('Assumptions '!$G$83),MONTH(H$129)<=MONTH('Assumptions '!$I$83)),'Assumptions '!$G$86,IF(AND(MONTH(H$129)>=MONTH('Assumptions '!$G$84),MONTH(H$129)<=MONTH('Assumptions '!$I$84)),'Assumptions '!$G$87,1)) -> 0 | I145: =IF(I$129>='Assumptions '!$F33,ROUND('Assumptions '!$G33*(1+(INDEX('Assumptions '!$R33:$V33,,MATCH(I$132,'Assumptions '!$R$28:$V$28,0)))),0),0)*IF(AND(MONTH(I$129)>=MONTH('Assumptions '!$G$83),MONTH(I$129)<=MONTH('Assumptions '!$I$83)),'Assumptions '!$G$86,IF(AND(MONTH(I$129)>=MONTH('Assumptions '!$G$84),MONTH(I$129)<=MONTH('Assumptions '!$I$84)),'Assumptions '!$G$87,1)) -> 0 | J145: =IF(J$129>='Assumptions '!$F33,ROUND('Assumptions '!$G33*(1+(INDEX('Assumptions '!$R33:$V33,,MATCH(J$132,'Assumptions '!$R$28:$V$28,0)))),0),0)*IF(AND(MONTH(J$129)>=MONTH('Assumptions '!$G$83),MONTH(J$129)<=MONTH('Assumptions '!$I$83)),'Assumptions '!$G$86,IF(AND(MONTH(J$129)>=MONTH('Assumptions '!$G$84),MONTH(J$129)<=MONTH('Assumptions '!$I$84)),'Assumptions '!$G$87,1)) -> 0 | K145: =IF(K$129>='Assumptions '!$F33,ROUND('Assumptions '!$G33*(1+(INDEX('Assumptions '!$R33:$V33,,MATCH(K$132,'Assumptions '!$R$28:$V$28,0)))),0),0)*IF(AND(MONTH(K$129)>=MONTH('Assumptions '!$G$83),MONTH(K$129)<=MONTH('Assumptions '!$I$83)),'Assumptions '!$G$86,IF(AND(MONTH(K$129)>=MONTH('Assumptions '!$G$84),MONTH(K$129)<=MONTH('Assumptions '!$I$84)),'Assumptions '!$G$87,1)) -> 0 | L145: =IF(L$129>='Assumptions '!$F33,ROUND('Assumptions '!$G33*(1+(INDEX('Assumptions '!$R33:$V33,,MATCH(L$132,'Assumptions '!$R$28:$V$28,0)))),0),0)*IF(AND(MONTH(L$129)>=MONTH('Assumptions '!$G$83),MONTH(L$129)<=MONTH('Assumptions '!$I$83)),'Assumptions '!$G$86,IF(AND(MONTH(L$129)>=MONTH('Assumptions '!$G$84),MONTH(L$129)<=MONTH('Assumptions '!$I$84)),'Assumptions '!$G$87,1)) -> 0 | M145: =IF(M$129>='Assumptions '!$F33,ROUND('Assumptions '!$G33*(1+(INDEX('Assumptions '!$R33:$V33,,MATCH(M$132,'Assumptions '!$R$28:$V$28,0)))),0),0)*IF(AND(MONTH(M$129)>=MONTH('Assumptions '!$G$83),MONTH(M$129)<=MONTH('Assumptions '!$I$83)),'Assumptions '!$G$86,IF(AND(MONTH(M$129)>=MONTH('Assumptions '!$G$84),MONTH(M$129)<=MONTH('Assumptions '!$I$84)),'Assumptions '!$G$87,1)) -> 0 | N145: =IF(N$129>='Assumptions '!$F33,ROUND('Assumptions '!$G33*(1+(INDEX('Assumptions '!$R33:$V33,,MATCH(N$132,'Assumptions '!$R$28:$V$28,0)))),0),0)*IF(AND(MONTH(N$129)>=MONTH('Assumptions '!$G$83),MONTH(N$129)<=MONTH('Assumptions '!$I$83)),'Assumptions '!$G$86,IF(AND(MONTH(N$129)>=MONTH('Assumptions '!$G$84),MONTH(N$129)<=MONTH('Assumptions '!$I$84)),'Assumptions '!$G$87,1)) -> 0 | O145: =IF(O$129>='Assumptions '!$F33,ROUND('Assumptions '!$G33*(1+(INDEX('Assumptions '!$R33:$V33,,MATCH(O$132,'Assumptions '!$R$28:$V$28,0)))),0),0)*IF(AND(MONTH(O$129)>=MONTH('Assumptions '!$G$83),MONTH(O$129)<=MONTH('Assumptions '!$I$83)),'Assumptions '!$G$86,IF(AND(MONTH(O$129)>=MONTH('Assumptions '!$G$84),MONTH(O$129)<=MONTH('Assumptions '!$I$84)),'Assumptions '!$G$87,1)) -> 0 | P145: =IF(P$129>='Assumptions '!$F33,ROUND('Assumptions '!$G33*(1+(INDEX('Assumptions '!$R33:$V33,,MATCH(P$132,'Assumptions '!$R$28:$V$28,0)))),0),0)*IF(AND(MONTH(P$129)>=MONTH('Assumptions '!$G$83),MONTH(P$129)<=MONTH('Assumptions '!$I$83)),'Assumptions '!$G$86,IF(AND(MONTH(P$129)>=MONTH('Assumptions '!$G$84),MONTH(P$129)<=MONTH('Assumptions '!$I$84)),'Assumptions '!$G$87,1)) -> 0 | Q145: =IF(Q$129>='Assumptions '!$F33,ROUND('Assumptions '!$G33*(1+(INDEX('Assumptions '!$R33:$V33,,MATCH(Q$132,'Assumptions '!$R$28:$V$28,0)))),0),0)*IF(AND(MONTH(Q$129)>=MONTH('Assumptions '!$G$83),MONTH(Q$129)<=MONTH('Assumptions '!$I$83)),'Assumptions '!$G$86,IF(AND(MONTH(Q$129)>=MONTH('Assumptions '!$G$84),MONTH(Q$129)<=MONTH('Assumptions '!$I$84)),'Assumptions '!$G$87,1)) -> 0 | R145: =IF(R$129>='Assumptions '!$F33,ROUND('Assumptions '!$G33*(1+(INDEX('Assumptions '!$R33:$V33,,MATCH(R$132,'Assumptions '!$R$28:$V$28,0)))),0),0)*IF(AND(MONTH(R$129)>=MONTH('Assumptions '!$G$83),MONTH(R$129)<=MONTH('Assumptions '!$I$83)),'Assumptions '!$G$86,IF(AND(MONTH(R$129)>=MONTH('Assumptions '!$G$84),MONTH(R$129)<=MONTH('Assumptions '!$I$84)),'Assumptions '!$G$87,1)) -> 0 | S145: =IF(S$129>='Assumptions '!$F33,ROUND('Assumptions '!$G33*(1+(INDEX('Assumptions '!$R33:$V33,,MATCH(S$132,'Assumptions '!$R$28:$V$28,0)))),0),0)*IF(AND(MONTH(S$129)>=MONTH('Assumptions '!$G$83),MONTH(S$129)<=MONTH('Assumptions '!$I$83)),'Assumptions '!$G$86,IF(AND(MONTH(S$129)>=MONTH('Assumptions '!$G$84),MONTH(S$129)<=MONTH('Assumptions '!$I$84)),'Assumptions '!$G$87,1)) -> 0 | T145: =IF(T$129>='Assumptions '!$F33,ROUND('Assumptions '!$G33*(1+(INDEX('Assumptions '!$R33:$V33,,MATCH(T$132,'Assumptions '!$R$28:$V$28,0)))),0),0)*IF(AND(MONTH(T$129)>=MONTH('Assumptions '!$G$83),MONTH(T$129)<=MONTH('Assumptions '!$I$83)),'Assumptions '!$G$86,IF(AND(MONTH(T$129)>=MONTH('Assumptions '!$G$84),MONTH(T$129)<=MONTH('Assumptions '!$I$84)),'Assumptions '!$G$87,1)) -> 0 | U145: =IF(U$129>='Assumptions '!$F33,ROUND('Assumptions '!$G33*(1+(INDEX('Assumptions '!$R33:$V33,,MATCH(U$132,'Assumptions '!$R$28:$V$28,0)))),0),0)*IF(AND(MONTH(U$129)>=MONTH('Assumptions '!$G$83),MONTH(U$129)<=MONTH('Assumptions '!$I$83)),'Assumptions '!$G$86,IF(AND(MONTH(U$129)>=MONTH('Assumptions '!$G$84),MONTH(U$129)<=MONTH('Assumptions '!$I$84)),'Assumptions '!$G$87,1)) -> 0 | V145: =IF(V$129>='Assumptions '!$F33,ROUND('Assumptions '!$G33*(1+(INDEX('Assumptions '!$R33:$V33,,MATCH(V$132,'Assumptions '!$R$28:$V$28,0)))),0),0)*IF(AND(MONTH(V$129)>=MONTH('Assumptions '!$G$83),MONTH(V$129)<=MONTH('Assumptions '!$I$83)),'Assumptions '!$G$86,IF(AND(MONTH(V$129)>=MONTH('Assumptions '!$G$84),MONTH(V$129)<=MONTH('Assumptions '!$I$84)),'Assumptions '!$G$87,1)) -> 0 | W145: =IF(W$129>='Assumptions '!$F33,ROUND('Assumptions '!$G33*(1+(INDEX('Assumptions '!$R33:$V33,,MATCH(W$132,'Assumptions '!$R$28:$V$28,0)))),0),0)*IF(AND(MONTH(W$129)>=MONTH('Assumptions '!$G$83),MONTH(W$129)<=MONTH('Assumptions '!$I$83)),'Assumptions '!$G$86,IF(AND(MONTH(W$129)>=MONTH('Assumptions '!$G$84),MONTH(W$129)<=MONTH('Assumptions '!$I$84)),'Assumptions '!$G$87,1)) -> 0 | X145: =IF(X$129>='Assumptions '!$F33,ROUND('Assumptions '!$G33*(1+(INDEX('Assumptions '!$R33:$V33,,MATCH(X$132,'Assumptions '!$R$28:$V$28,0)))),0),0)*IF(AND(MONTH(X$129)>=MONTH('Assumptions '!$G$83),MONTH(X$129)<=MONTH('Assumptions '!$I$83)),'Assumptions '!$G$86,IF(AND(MONTH(X$129)>=MONTH('Assumptions '!$G$84),MONTH(X$129)<=MONTH('Assumptions '!$I$84)),'Assumptions '!$G$87,1)) -> 0 | Y145: =IF(Y$129>='Assumptions '!$F33,ROUND('Assumptions '!$G33*(1+(INDEX('Assumptions '!$R33:$V33,,MATCH(Y$132,'Assumptions '!$R$28:$V$28,0)))),0),0)*IF(AND(MONTH(Y$129)>=MONTH('Assumptions '!$G$83),MONTH(Y$129)<=MONTH('Assumptions '!$I$83)),'Assumptions '!$G$86,IF(AND(MONTH(Y$129)>=MONTH('Assumptions '!$G$84),MONTH(Y$129)<=MONTH('Assumptions '!$I$84)),'Assumptions '!$G$87,1)) -> 0 | Z145: =IF(Z$129>='Assumptions '!$F33,ROUND('Assumptions '!$G33*(1+(INDEX('Assumptions '!$R33:$V33,,MATCH(Z$132,'Assumptions '!$R$28:$V$28,0)))),0),0)*IF(AND(MONTH(Z$129)>=MONTH('Assumptions '!$G$83),MONTH(Z$129)<=MONTH('Assumptions '!$I$83)),'Assumptions '!$G$86,IF(AND(MONTH(Z$129)>=MONTH('Assumptions '!$G$84),MONTH(Z$129)<=MONTH('Assumptions '!$I$84)),'Assumptions '!$G$87,1)) -> 0 | AA145: =IF(AA$129>='Assumptions '!$F33,ROUND('Assumptions '!$G33*(1+(INDEX('Assumptions '!$R33:$V33,,MATCH(AA$132,'Assumptions '!$R$28:$V$28,0)))),0),0)*IF(AND(MONTH(AA$129)>=MONTH('Assumptions '!$G$83),MONTH(AA$129)<=MONTH('Assumptions '!$I$83)),'Assumptions '!$G$86,IF(AND(MONTH(AA$129)>=MONTH('Assumptions '!$G$84),MONTH(AA$129)<=MONTH('Assumptions '!$I$84)),'Assumptions '!$G$87,1)) -> 0 | AB145: =IF(AB$129>='Assumptions '!$F33,ROUND('Assumptions '!$G33*(1+(INDEX('Assumptions '!$R33:$V33,,MATCH(AB$132,'Assumptions '!$R$28:$V$28,0)))),0),0)*IF(AND(MONTH(AB$129)>=MONTH('Assumptions '!$G$83),MONTH(AB$129)<=MONTH('Assumptions '!$I$83)),'Assumptions '!$G$86,IF(AND(MONTH(AB$129)>=MONTH('Assumptions '!$G$84),MONTH(AB$129)<=MONTH('Assumptions '!$I$84)),'Assumptions '!$G$87,1)) -> 0 | AC145: =IF(AC$129>='Assumptions '!$F33,ROUND('Assumptions '!$G33*(1+(INDEX('Assumptions '!$R33:$V33,,MATCH(AC$132,'Assumptions '!$R$28:$V$28,0)))),0),0)*IF(AND(MONTH(AC$129)>=MONTH('Assumptions '!$G$83),MONTH(AC$129)<=MONTH('Assumptions '!$I$83)),'Assumptions '!$G$86,IF(AND(MONTH(AC$129)>=MONTH('Assumptions '!$G$84),MONTH(AC$129)<=MONTH('Assumptions '!$I$84)),'Assumptions '!$G$87,1)) -> 0 | AD145: =IF(AD$129>='Assumptions '!$F33,ROUND('Assumptions '!$G33*(1+(INDEX('Assumptions '!$R33:$V33,,MATCH(AD$132,'Assumptions '!$R$28:$V$28,0)))),0),0)*IF(AND(MONTH(AD$129)>=MONTH('Assumptions '!$G$83),MONTH(AD$129)<=MONTH('Assumptions '!$I$83)),'Assumptions '!$G$86,IF(AND(MONTH(AD$129)>=MONTH('Assumptions '!$G$84),MONTH(AD$129)<=MONTH('Assumptions '!$I$84)),'Assumptions '!$G$87,1)) -> 0 | AE145: =IF(AE$129>='Assumptions '!$F33,ROUND('Assumptions '!$G33*(1+(INDEX('Assumptions '!$R33:$V33,,MATCH(AE$132,'Assumptions '!$R$28:$V$28,0)))),0),0)*IF(AND(MONTH(AE$129)>=MONTH('Assumptions '!$G$83),MONTH(AE$129)<=MONTH('Assumptions '!$I$83)),'Assumptions '!$G$86,IF(AND(MONTH(AE$129)>=MONTH('Assumptions '!$G$84),MONTH(AE$129)<=MONTH('Assumptions '!$I$84)),'Assumptions '!$G$87,1)) -> 0 | AF145: =IF(AF$129>='Assumptions '!$F33,ROUND('Assumptions '!$G33*(1+(INDEX('Assumptions '!$R33:$V33,,MATCH(AF$132,'Assumptions '!$R$28:$V$28,0)))),0),0)*IF(AND(MONTH(AF$129)>=MONTH('Assumptions '!$G$83),MONTH(AF$129)<=MONTH('Assumptions '!$I$83)),'Assumptions '!$G$86,IF(AND(MONTH(AF$129)>=MONTH('Assumptions '!$G$84),MONTH(AF$129)<=MONTH('Assumptions '!$I$84)),'Assumptions '!$G$87,1)) -> 0 | AG145: =IF(AG$129>='Assumptions '!$F33,ROUND('Assumptions '!$G33*(1+(INDEX('Assumptions '!$R33:$V33,,MATCH(AG$132,'Assumptions '!$R$28:$V$28,0)))),0),0)*IF(AND(MONTH(AG$129)>=MONTH('Assumptions '!$G$83),MONTH(AG$129)<=MONTH('Assumptions '!$I$83)),'Assumptions '!$G$86,IF(AND(MONTH(AG$129)>=MONTH('Assumptions '!$G$84),MONTH(AG$129)<=MONTH('Assumptions '!$I$84)),'Assumptions '!$G$87,1)) -> 0 | AH145: =IF(AH$129>='Assumptions '!$F33,ROUND('Assumptions '!$G33*(1+(INDEX('Assumptions '!$R33:$V33,,MATCH(AH$132,'Assumptions '!$R$28:$V$28,0)))),0),0)*IF(AND(MONTH(AH$129)>=MONTH('Assumptions '!$G$83),MONTH(AH$129)<=MONTH('Assumptions '!$I$83)),'Assumptions '!$G$86,IF(AND(MONTH(AH$129)>=MONTH('Assumptions '!$G$84),MONTH(AH$129)<=MONTH('Assumptions '!$I$84)),'Assumptions '!$G$87,1)) -> 0 | AI145: =IF(AI$129>='Assumptions '!$F33,ROUND('Assumptions '!$G33*(1+(INDEX('Assumptions '!$R33:$V33,,MATCH(AI$132,'Assumptions '!$R$28:$V$28,0)))),0),0)*IF(AND(MONTH(AI$129)>=MONTH('Assumptions '!$G$83),MONTH(AI$129)<=MONTH('Assumptions '!$I$83)),'Assumptions '!$G$86,IF(AND(MONTH(AI$129)>=MONTH('Assumptions '!$G$84),MONTH(AI$129)<=MONTH('Assumptions '!$I$84)),'Assumptions '!$G$87,1)) -> 0 | AJ145: =IF(AJ$129>='Assumptions '!$F33,ROUND('Assumptions '!$G33*(1+(INDEX('Assumptions '!$R33:$V33,,MATCH(AJ$132,'Assumptions '!$R$28:$V$28,0)))),0),0)*IF(AND(MONTH(AJ$129)>=MONTH('Assumptions '!$G$83),MONTH(AJ$129)<=MONTH('Assumptions '!$I$83)),'Assumptions '!$G$86,IF(AND(MONTH(AJ$129)>=MONTH('Assumptions '!$G$84),MONTH(AJ$129)<=MONTH('Assumptions '!$I$84)),'Assumptions '!$G$87,1)) -> 0 | AK145: =IF(AK$129>='Assumptions '!$F33,ROUND('Assumptions '!$G33*(1+(INDEX('Assumptions '!$R33:$V33,,MATCH(AK$132,'Assumptions '!$R$28:$V$28,0)))),0),0)*IF(AND(MONTH(AK$129)>=MONTH('Assumptions '!$G$83),MONTH(AK$129)<=MONTH('Assumptions '!$I$83)),'Assumptions '!$G$86,IF(AND(MONTH(AK$129)>=MONTH('Assumptions '!$G$84),MONTH(AK$129)<=MONTH('Assumptions '!$I$84)),'Assumptions '!$G$87,1)) -> 0 | AL145: =IF(AL$129>='Assumptions '!$F33,ROUND('Assumptions '!$G33*(1+(INDEX('Assumptions '!$R33:$V33,,MATCH(AL$132,'Assumptions '!$R$28:$V$28,0)))),0),0)*IF(AND(MONTH(AL$129)>=MONTH('Assumptions '!$G$83),MONTH(AL$129)<=MONTH('Assumptions '!$I$83)),'Assumptions '!$G$86,IF(AND(MONTH(AL$129)>=MONTH('Assumptions '!$G$84),MONTH(AL$129)<=MONTH('Assumptions '!$I$84)),'Assumptions '!$G$87,1)) -> 0 | AM145: =IF(AM$129>='Assumptions '!$F33,ROUND('Assumptions '!$G33*(1+(INDEX('Assumptions '!$R33:$V33,,MATCH(AM$132,'Assumptions '!$R$28:$V$28,0)))),0),0)*IF(AND(MONTH(AM$129)>=MONTH('Assumptions '!$G$83),MONTH(AM$129)<=MONTH('Assumptions '!$I$83)),'Assumptions '!$G$86,IF(AND(MONTH(AM$129)>=MONTH('Assumptions '!$G$84),MONTH(AM$129)<=MONTH('Assumptions '!$I$84)),'Assumptions '!$G$87,1)) -> 0 | AN145: =IF(AN$129>='Assumptions '!$F33,ROUND('Assumptions '!$G33*(1+(INDEX('Assumptions '!$R33:$V33,,MATCH(AN$132,'Assumptions '!$R$28:$V$28,0)))),0),0)*IF(AND(MONTH(AN$129)>=MONTH('Assumptions '!$G$83),MONTH(AN$129)<=MONTH('Assumptions '!$I$83)),'Assumptions '!$G$86,IF(AND(MONTH(AN$129)>=MONTH('Assumptions '!$G$84),MONTH(AN$129)<=MONTH('Assumptions '!$I$84)),'Assumptions '!$G$87,1)) -> 0 | AO145: =IF(AO$129>='Assumptions '!$F33,ROUND('Assumptions '!$G33*(1+(INDEX('Assumptions '!$R33:$V33,,MATCH(AO$132,'Assumptions '!$R$28:$V$28,0)))),0),0)*IF(AND(MONTH(AO$129)>=MONTH('Assumptions '!$G$83),MONTH(AO$129)<=MONTH('Assumptions '!$I$83)),'Assumptions '!$G$86,IF(AND(MONTH(AO$129)>=MONTH('Assumptions '!$G$84),MONTH(AO$129)<=MONTH('Assumptions '!$I$84)),'Assumptions '!$G$87,1)) -> 0 | AP145: =IF(AP$129>='Assumptions '!$F33,ROUND('Assumptions '!$G33*(1+(INDEX('Assumptions '!$R33:$V33,,MATCH(AP$132,'Assumptions '!$R$28:$V$28,0)))),0),0)*IF(AND(MONTH(AP$129)>=MONTH('Assumptions '!$G$83),MONTH(AP$129)<=MONTH('Assumptions '!$I$83)),'Assumptions '!$G$86,IF(AND(MONTH(AP$129)>=MONTH('Assumptions '!$G$84),MONTH(AP$129)<=MONTH('Assumptions '!$I$84)),'Assumptions '!$G$87,1)) -> 0 | AQ145: =IF(AQ$129>='Assumptions '!$F33,ROUND('Assumptions '!$G33*(1+(INDEX('Assumptions '!$R33:$V33,,MATCH(AQ$132,'Assumptions '!$R$28:$V$28,0)))),0),0)*IF(AND(MONTH(AQ$129)>=MONTH('Assumptions '!$G$83),MONTH(AQ$129)<=MONTH('Assumptions '!$I$83)),'Assumptions '!$G$86,IF(AND(MONTH(AQ$129)>=MONTH('Assumptions '!$G$84),MONTH(AQ$129)<=MONTH('Assumptions '!$I$84)),'Assumptions '!$G$87,1)) -> 0 | AR145: =IF(AR$129>='Assumptions '!$F33,ROUND('Assumptions '!$G33*(1+(INDEX('Assumptions '!$R33:$V33,,MATCH(AR$132,'Assumptions '!$R$28:$V$28,0)))),0),0)*IF(AND(MONTH(AR$129)>=MONTH('Assumptions '!$G$83),MONTH(AR$129)<=MONTH('Assumptions '!$I$83)),'Assumptions '!$G$86,IF(AND(MONTH(AR$129)>=MONTH('Assumptions '!$G$84),MONTH(AR$129)<=MONTH('Assumptions '!$I$84)),'Assumptions '!$G$87,1)) -> 0 | AS145: =IF(AS$129>='Assumptions '!$F33,ROUND('Assumptions '!$G33*(1+(INDEX('Assumptions '!$R33:$V33,,MATCH(AS$132,'Assumptions '!$R$28:$V$28,0)))),0),0)*IF(AND(MONTH(AS$129)>=MONTH('Assumptions '!$G$83),MONTH(AS$129)<=MONTH('Assumptions '!$I$83)),'Assumptions '!$G$86,IF(AND(MONTH(AS$129)>=MONTH('Assumptions '!$G$84),MONTH(AS$129)<=MONTH('Assumptions '!$I$84)),'Assumptions '!$G$87,1)) -> 0 | AT145: =IF(AT$129>='Assumptions '!$F33,ROUND('Assumptions '!$G33*(1+(INDEX('Assumptions '!$R33:$V33,,MATCH(AT$132,'Assumptions '!$R$28:$V$28,0)))),0),0)*IF(AND(MONTH(AT$129)>=MONTH('Assumptions '!$G$83),MONTH(AT$129)<=MONTH('Assumptions '!$I$83)),'Assumptions '!$G$86,IF(AND(MONTH(AT$129)>=MONTH('Assumptions '!$G$84),MONTH(AT$129)<=MONTH('Assumptions '!$I$84)),'Assumptions '!$G$87,1)) -> 0 | AU145: =IF(AU$129>='Assumptions '!$F33,ROUND('Assumptions '!$G33*(1+(INDEX('Assumptions '!$R33:$V33,,MATCH(AU$132,'Assumptions '!$R$28:$V$28,0)))),0),0)*IF(AND(MONTH(AU$129)>=MONTH('Assumptions '!$G$83),MONTH(AU$129)<=MONTH('Assumptions '!$I$83)),'Assumptions '!$G$86,IF(AND(MONTH(AU$129)>=MONTH('Assumptions '!$G$84),MONTH(AU$129)<=MONTH('Assumptions '!$I$84)),'Assumptions '!$G$87,1)) -> 0 | AV145: =IF(AV$129>='Assumptions '!$F33,ROUND('Assumptions '!$G33*(1+(INDEX('Assumptions '!$R33:$V33,,MATCH(AV$132,'Assumptions '!$R$28:$V$28,0)))),0),0)*IF(AND(MONTH(AV$129)>=MONTH('Assumptions '!$G$83),MONTH(AV$129)<=MONTH('Assumptions '!$I$83)),'Assumptions '!$G$86,IF(AND(MONTH(AV$129)>=MONTH('Assumptions '!$G$84),MONTH(AV$129)<=MONTH('Assumptions '!$I$84)),'Assumptions '!$G$87,1)) -> 0 | AW145: =IF(AW$129>='Assumptions '!$F33,ROUND('Assumptions '!$G33*(1+(INDEX('Assumptions '!$R33:$V33,,MATCH(AW$132,'Assumptions '!$R$28:$V$28,0)))),0),0)*IF(AND(MONTH(AW$129)>=MONTH('Assumptions '!$G$83),MONTH(AW$129)<=MONTH('Assumptions '!$I$83)),'Assumptions '!$G$86,IF(AND(MONTH(AW$129)>=MONTH('Assumptions '!$G$84),MONTH(AW$129)<=MONTH('Assumptions '!$I$84)),'Assumptions '!$G$87,1)) -> 0 | AX145: =IF(AX$129>='Assumptions '!$F33,ROUND('Assumptions '!$G33*(1+(INDEX('Assumptions '!$R33:$V33,,MATCH(AX$132,'Assumptions '!$R$28:$V$28,0)))),0),0)*IF(AND(MONTH(AX$129)>=MONTH('Assumptions '!$G$83),MONTH(AX$129)<=MONTH('Assumptions '!$I$83)),'Assumptions '!$G$86,IF(AND(MONTH(AX$129)>=MONTH('Assumptions '!$G$84),MONTH(AX$129)<=MONTH('Assumptions '!$I$84)),'Assumptions '!$G$87,1)) -> 0 | AY145: =IF(AY$129>='Assumptions '!$F33,ROUND('Assumptions '!$G33*(1+(INDEX('Assumptions '!$R33:$V33,,MATCH(AY$132,'Assumptions '!$R$28:$V$28,0)))),0),0)*IF(AND(MONTH(AY$129)>=MONTH('Assumptions '!$G$83),MONTH(AY$129)<=MONTH('Assumptions '!$I$83)),'Assumptions '!$G$86,IF(AND(MONTH(AY$129)>=MONTH('Assumptions '!$G$84),MONTH(AY$129)<=MONTH('Assumptions '!$I$84)),'Assumptions '!$G$87,1)) -> 0 | AZ145: =IF(AZ$129>='Assumptions '!$F33,ROUND('Assumptions '!$G33*(1+(INDEX('Assumptions '!$R33:$V33,,MATCH(AZ$132,'Assumptions '!$R$28:$V$28,0)))),0),0)*IF(AND(MONTH(AZ$129)>=MONTH('Assumptions '!$G$83),MONTH(AZ$129)<=MONTH('Assumptions '!$I$83)),'Assumptions '!$G$86,IF(AND(MONTH(AZ$129)>=MONTH('Assumptions '!$G$84),MONTH(AZ$129)<=MONTH('Assumptions '!$I$84)),'Assumptions '!$G$87,1)) -> 0 | BA145: =IF(BA$129>='Assumptions '!$F33,ROUND('Assumptions '!$G33*(1+(INDEX('Assumptions '!$R33:$V33,,MATCH(BA$132,'Assumptions '!$R$28:$V$28,0)))),0),0)*IF(AND(MONTH(BA$129)>=MONTH('Assumptions '!$G$83),MONTH(BA$129)<=MONTH('Assumptions '!$I$83)),'Assumptions '!$G$86,IF(AND(MONTH(BA$129)>=MONTH('Assumptions '!$G$84),MONTH(BA$129)<=MONTH('Assumptions '!$I$84)),'Assumptions '!$G$87,1)) -> 0 | BB145: =IF(BB$129>='Assumptions '!$F33,ROUND('Assumptions '!$G33*(1+(INDEX('Assumptions '!$R33:$V33,,MATCH(BB$132,'Assumptions '!$R$28:$V$28,0)))),0),0)*IF(AND(MONTH(BB$129)>=MONTH('Assumptions '!$G$83),MONTH(BB$129)<=MONTH('Assumptions '!$I$83)),'Assumptions '!$G$86,IF(AND(MONTH(BB$129)>=MONTH('Assumptions '!$G$84),MONTH(BB$129)<=MONTH('Assumptions '!$I$84)),'Assumptions '!$G$87,1)) -> 0 | BC145: =IF(BC$129>='Assumptions '!$F33,ROUND('Assumptions '!$G33*(1+(INDEX('Assumptions '!$R33:$V33,,MATCH(BC$132,'Assumptions '!$R$28:$V$28,0)))),0),0)*IF(AND(MONTH(BC$129)>=MONTH('Assumptions '!$G$83),MONTH(BC$129)<=MONTH('Assumptions '!$I$83)),'Assumptions '!$G$86,IF(AND(MONTH(BC$129)>=MONTH('Assumptions '!$G$84),MONTH(BC$129)<=MONTH('Assumptions '!$I$84)),'Assumptions '!$G$87,1)) -> 0 | BD145: =IF(BD$129>='Assumptions '!$F33,ROUND('Assumptions '!$G33*(1+(INDEX('Assumptions '!$R33:$V33,,MATCH(BD$132,'Assumptions '!$R$28:$V$28,0)))),0),0)*IF(AND(MONTH(BD$129)>=MONTH('Assumptions '!$G$83),MONTH(BD$129)<=MONTH('Assumptions '!$I$83)),'Assumptions '!$G$86,IF(AND(MONTH(BD$129)>=MONTH('Assumptions '!$G$84),MONTH(BD$129)<=MONTH('Assumptions '!$I$84)),'Assumptions '!$G$87,1)) -> 0 | BE145: =IF(BE$129>='Assumptions '!$F33,ROUND('Assumptions '!$G33*(1+(INDEX('Assumptions '!$R33:$V33,,MATCH(BE$132,'Assumptions '!$R$28:$V$28,0)))),0),0)*IF(AND(MONTH(BE$129)>=MONTH('Assumptions '!$G$83),MONTH(BE$129)<=MONTH('Assumptions '!$I$83)),'Assumptions '!$G$86,IF(AND(MONTH(BE$129)>=MONTH('Assumptions '!$G$84),MONTH(BE$129)<=MONTH('Assumptions '!$I$84)),'Assumptions '!$G$87,1)) -> 0 | BF145: =IF(BF$129>='Assumptions '!$F33,ROUND('Assumptions '!$G33*(1+(INDEX('Assumptions '!$R33:$V33,,MATCH(BF$132,'Assumptions '!$R$28:$V$28,0)))),0),0)*IF(AND(MONTH(BF$129)>=MONTH('Assumptions '!$G$83),MONTH(BF$129)<=MONTH('Assumptions '!$I$83)),'Assumptions '!$G$86,IF(AND(MONTH(BF$129)>=MONTH('Assumptions '!$G$84),MONTH(BF$129)<=MONTH('Assumptions '!$I$84)),'Assumptions '!$G$87,1)) -> 0 | BG145: =IF(BG$129>='Assumptions '!$F33,ROUND('Assumptions '!$G33*(1+(INDEX('Assumptions '!$R33:$V33,,MATCH(BG$132,'Assumptions '!$R$28:$V$28,0)))),0),0)*IF(AND(MONTH(BG$129)>=MONTH('Assumptions '!$G$83),MONTH(BG$129)<=MONTH('Assumptions '!$I$83)),'Assumptions '!$G$86,IF(AND(MONTH(BG$129)>=MONTH('Assumptions '!$G$84),MONTH(BG$129)<=MONTH('Assumptions '!$I$84)),'Assumptions '!$G$87,1)) -> 0 | BH145: =IF(BH$129>='Assumptions '!$F33,ROUND('Assumptions '!$G33*(1+(INDEX('Assumptions '!$R33:$V33,,MATCH(BH$132,'Assumptions '!$R$28:$V$28,0)))),0),0)*IF(AND(MONTH(BH$129)>=MONTH('Assumptions '!$G$83),MONTH(BH$129)<=MONTH('Assumptions '!$I$83)),'Assumptions '!$G$86,IF(AND(MONTH(BH$129)>=MONTH('Assumptions '!$G$84),MONTH(BH$129)<=MONTH('Assumptions '!$I$84)),'Assumptions '!$G$87,1)) -> 0 | BI145: =IF(BI$129>='Assumptions '!$F33,ROUND('Assumptions '!$G33*(1+(INDEX('Assumptions '!$R33:$V33,,MATCH(BI$132,'Assumptions '!$R$28:$V$28,0)))),0),0)*IF(AND(MONTH(BI$129)>=MONTH('Assumptions '!$G$83),MONTH(BI$129)<=MONTH('Assumptions '!$I$83)),'Assumptions '!$G$86,IF(AND(MONTH(BI$129)>=MONTH('Assumptions '!$G$84),MONTH(BI$129)<=MONTH('Assumptions '!$I$84)),'Assumptions '!$G$87,1)) -> 0 | BJ145: =IF(BJ$129>='Assumptions '!$F33,ROUND('Assumptions '!$G33*(1+(INDEX('Assumptions '!$R33:$V33,,MATCH(BJ$132,'Assumptions '!$R$28:$V$28,0)))),0),0)*IF(AND(MONTH(BJ$129)>=MONTH('Assumptions '!$G$83),MONTH(BJ$129)<=MONTH('Assumptions '!$I$83)),'Assumptions '!$G$86,IF(AND(MONTH(BJ$129)>=MONTH('Assumptions '!$G$84),MONTH(BJ$129)<=MONTH('Assumptions '!$I$84)),'Assumptions '!$G$87,1)) -> 0 | BK145: =IF(BK$129>='Assumptions '!$F33,ROUND('Assumptions '!$G33*(1+(INDEX('Assumptions '!$R33:$V33,,MATCH(BK$132,'Assumptions '!$R$28:$V$28,0)))),0),0)*IF(AND(MONTH(BK$129)>=MONTH('Assumptions '!$G$83),MONTH(BK$129)<=MONTH('Assumptions '!$I$83)),'Assumptions '!$G$86,IF(AND(MONTH(BK$129)>=MONTH('Assumptions '!$G$84),MONTH(BK$129)<=MONTH('Assumptions '!$I$84)),'Assumptions '!$G$87,1)) -> 0 | BL145: =IF(BL$129>='Assumptions '!$F33,ROUND('Assumptions '!$G33*(1+(INDEX('Assumptions '!$R33:$V33,,MATCH(BL$132,'Assumptions '!$R$28:$V$28,0)))),0),0)*IF(AND(MONTH(BL$129)>=MONTH('Assumptions '!$G$83),MONTH(BL$129)<=MONTH('Assumptions '!$I$83)),'Assumptions '!$G$86,IF(AND(MONTH(BL$129)>=MONTH('Assumptions '!$G$84),MONTH(BL$129)<=MONTH('Assumptions '!$I$84)),'Assumptions '!$G$87,1)) -> 0 | BM145: =IF(BM$129>='Assumptions '!$F33,ROUND('Assumptions '!$G33*(1+(INDEX('Assumptions '!$R33:$V33,,MATCH(BM$132,'Assumptions '!$R$28:$V$28,0)))),0),0)*IF(AND(MONTH(BM$129)>=MONTH('Assumptions '!$G$83),MONTH(BM$129)<=MONTH('Assumptions '!$I$83)),'Assumptions '!$G$86,IF(AND(MONTH(BM$129)>=MONTH('Assumptions '!$G$84),MONTH(BM$129)<=MONTH('Assumptions '!$I$84)),'Assumptions '!$G$87,1)) -> 0 | BN145: =IF(BN$129>='Assumptions '!$F33,ROUND('Assumptions '!$G33*(1+(INDEX('Assumptions '!$R33:$V33,,MATCH(BN$132,'Assumptions '!$R$28:$V$28,0)))),0),0)*IF(AND(MONTH(BN$129)>=MONTH('Assumptions '!$G$83),MONTH(BN$129)<=MONTH('Assumptions '!$I$83)),'Assumptions '!$G$86,IF(AND(MONTH(BN$129)>=MONTH('Assumptions '!$G$84),MONTH(BN$129)<=MONTH('Assumptions '!$I$84)),'Assumptions '!$G$87,1)) -> 0
D146: ='Assumptions '!D34 -> 0 | G146: =IF(G$129>='Assumptions '!$F34,ROUND('Assumptions '!$G34*(1+(INDEX('Assumptions '!$R34:$V34,,MATCH(G$132,'Assumptions '!$R$28:$V$28,0)))),0),0)*IF(AND(MONTH(G$129)>=MONTH('Assumptions '!$G$93),MONTH(G$129)<=MONTH('Assumptions '!$I$93)),'Assumptions '!$G$96,IF(AND(MONTH(G$129)>=MONTH('Assumptions '!$G$94),MONTH(G$129)<=MONTH('Assumptions '!$I$94)),'Assumptions '!$G$97,1)) -> 0 | H146: =IF(H$129>='Assumptions '!$F34,ROUND('Assumptions '!$G34*(1+(INDEX('Assumptions '!$R34:$V34,,MATCH(H$132,'Assumptions '!$R$28:$V$28,0)))),0),0)*IF(AND(MONTH(H$129)>=MONTH('Assumptions '!$G$93),MONTH(H$129)<=MONTH('Assumptions '!$I$93)),'Assumptions '!$G$96,IF(AND(MONTH(H$129)>=MONTH('Assumptions '!$G$94),MONTH(H$129)<=MONTH('Assumptions '!$I$94)),'Assumptions '!$G$97,1)) -> 0 | I146: =IF(I$129>='Assumptions '!$F34,ROUND('Assumptions '!$G34*(1+(INDEX('Assumptions '!$R34:$V34,,MATCH(I$132,'Assumptions '!$R$28:$V$28,0)))),0),0)*IF(AND(MONTH(I$129)>=MONTH('Assumptions '!$G$93),MONTH(I$129)<=MONTH('Assumptions '!$I$93)),'Assumptions '!$G$96,IF(AND(MONTH(I$129)>=MONTH('Assumptions '!$G$94),MONTH(I$129)<=MONTH('Assumptions '!$I$94)),'Assumptions '!$G$97,1)) -> 0 | J146: =IF(J$129>='Assumptions '!$F34,ROUND('Assumptions '!$G34*(1+(INDEX('Assumptions '!$R34:$V34,,MATCH(J$132,'Assumptions '!$R$28:$V$28,0)))),0),0)*IF(AND(MONTH(J$129)>=MONTH('Assumptions '!$G$93),MONTH(J$129)<=MONTH('Assumptions '!$I$93)),'Assumptions '!$G$96,IF(AND(MONTH(J$129)>=MONTH('Assumptions '!$G$94),MONTH(J$129)<=MONTH('Assumptions '!$I$94)),'Assumptions '!$G$97,1)) -> 0 | K146: =IF(K$129>='Assumptions '!$F34,ROUND('Assumptions '!$G34*(1+(INDEX('Assumptions '!$R34:$V34,,MATCH(K$132,'Assumptions '!$R$28:$V$28,0)))),0),0)*IF(AND(MONTH(K$129)>=MONTH('Assumptions '!$G$93),MONTH(K$129)<=MONTH('Assumptions '!$I$93)),'Assumptions '!$G$96,IF(AND(MONTH(K$129)>=MONTH('Assumptions '!$G$94),MONTH(K$129)<=MONTH('Assumptions '!$I$94)),'Assumptions '!$G$97,1)) -> 0 | L146: =IF(L$129>='Assumptions '!$F34,ROUND('Assumptions '!$G34*(1+(INDEX('Assumptions '!$R34:$V34,,MATCH(L$132,'Assumptions '!$R$28:$V$28,0)))),0),0)*IF(AND(MONTH(L$129)>=MONTH('Assumptions '!$G$93),MONTH(L$129)<=MONTH('Assumptions '!$I$93)),'Assumptions '!$G$96,IF(AND(MONTH(L$129)>=MONTH('Assumptions '!$G$94),MONTH(L$129)<=MONTH('Assumptions '!$I$94)),'Assumptions '!$G$97,1)) -> 0 | M146: =IF(M$129>='Assumptions '!$F34,ROUND('Assumptions '!$G34*(1+(INDEX('Assumptions '!$R34:$V34,,MATCH(M$132,'Assumptions '!$R$28:$V$28,0)))),0),0)*IF(AND(MONTH(M$129)>=MONTH('Assumptions '!$G$93),MONTH(M$129)<=MONTH('Assumptions '!$I$93)),'Assumptions '!$G$96,IF(AND(MONTH(M$129)>=MONTH('Assumptions '!$G$94),MONTH(M$129)<=MONTH('Assumptions '!$I$94)),'Assumptions '!$G$97,1)) -> 0 | N146: =IF(N$129>='Assumptions '!$F34,ROUND('Assumptions '!$G34*(1+(INDEX('Assumptions '!$R34:$V34,,MATCH(N$132,'Assumptions '!$R$28:$V$28,0)))),0),0)*IF(AND(MONTH(N$129)>=MONTH('Assumptions '!$G$93),MONTH(N$129)<=MONTH('Assumptions '!$I$93)),'Assumptions '!$G$96,IF(AND(MONTH(N$129)>=MONTH('Assumptions '!$G$94),MONTH(N$129)<=MONTH('Assumptions '!$I$94)),'Assumptions '!$G$97,1)) -> 0 | O146: =IF(O$129>='Assumptions '!$F34,ROUND('Assumptions '!$G34*(1+(INDEX('Assumptions '!$R34:$V34,,MATCH(O$132,'Assumptions '!$R$28:$V$28,0)))),0),0)*IF(AND(MONTH(O$129)>=MONTH('Assumptions '!$G$93),MONTH(O$129)<=MONTH('Assumptions '!$I$93)),'Assumptions '!$G$96,IF(AND(MONTH(O$129)>=MONTH('Assumptions '!$G$94),MONTH(O$129)<=MONTH('Assumptions '!$I$94)),'Assumptions '!$G$97,1)) -> 0 | P146: =IF(P$129>='Assumptions '!$F34,ROUND('Assumptions '!$G34*(1+(INDEX('Assumptions '!$R34:$V34,,MATCH(P$132,'Assumptions '!$R$28:$V$28,0)))),0),0)*IF(AND(MONTH(P$129)>=MONTH('Assumptions '!$G$93),MONTH(P$129)<=MONTH('Assumptions '!$I$93)),'Assumptions '!$G$96,IF(AND(MONTH(P$129)>=MONTH('Assumptions '!$G$94),MONTH(P$129)<=MONTH('Assumptions '!$I$94)),'Assumptions '!$G$97,1)) -> 0 | Q146: =IF(Q$129>='Assumptions '!$F34,ROUND('Assumptions '!$G34*(1+(INDEX('Assumptions '!$R34:$V34,,MATCH(Q$132,'Assumptions '!$R$28:$V$28,0)))),0),0)*IF(AND(MONTH(Q$129)>=MONTH('Assumptions '!$G$93),MONTH(Q$129)<=MONTH('Assumptions '!$I$93)),'Assumptions '!$G$96,IF(AND(MONTH(Q$129)>=MONTH('Assumptions '!$G$94),MONTH(Q$129)<=MONTH('Assumptions '!$I$94)),'Assumptions '!$G$97,1)) -> 0 | R146: =IF(R$129>='Assumptions '!$F34,ROUND('Assumptions '!$G34*(1+(INDEX('Assumptions '!$R34:$V34,,MATCH(R$132,'Assumptions '!$R$28:$V$28,0)))),0),0)*IF(AND(MONTH(R$129)>=MONTH('Assumptions '!$G$93),MONTH(R$129)<=MONTH('Assumptions '!$I$93)),'Assumptions '!$G$96,IF(AND(MONTH(R$129)>=MONTH('Assumptions '!$G$94),MONTH(R$129)<=MONTH('Assumptions '!$I$94)),'Assumptions '!$G$97,1)) -> 0 | S146: =IF(S$129>='Assumptions '!$F34,ROUND('Assumptions '!$G34*(1+(INDEX('Assumptions '!$R34:$V34,,MATCH(S$132,'Assumptions '!$R$28:$V$28,0)))),0),0)*IF(AND(MONTH(S$129)>=MONTH('Assumptions '!$G$93),MONTH(S$129)<=MONTH('Assumptions '!$I$93)),'Assumptions '!$G$96,IF(AND(MONTH(S$129)>=MONTH('Assumptions '!$G$94),MONTH(S$129)<=MONTH('Assumptions '!$I$94)),'Assumptions '!$G$97,1)) -> 0 | T146: =IF(T$129>='Assumptions '!$F34,ROUND('Assumptions '!$G34*(1+(INDEX('Assumptions '!$R34:$V34,,MATCH(T$132,'Assumptions '!$R$28:$V$28,0)))),0),0)*IF(AND(MONTH(T$129)>=MONTH('Assumptions '!$G$93),MONTH(T$129)<=MONTH('Assumptions '!$I$93)),'Assumptions '!$G$96,IF(AND(MONTH(T$129)>=MONTH('Assumptions '!$G$94),MONTH(T$129)<=MONTH('Assumptions '!$I$94)),'Assumptions '!$G$97,1)) -> 0 | U146: =IF(U$129>='Assumptions '!$F34,ROUND('Assumptions '!$G34*(1+(INDEX('Assumptions '!$R34:$V34,,MATCH(U$132,'Assumptions '!$R$28:$V$28,0)))),0),0)*IF(AND(MONTH(U$129)>=MONTH('Assumptions '!$G$93),MONTH(U$129)<=MONTH('Assumptions '!$I$93)),'Assumptions '!$G$96,IF(AND(MONTH(U$129)>=MONTH('Assumptions '!$G$94),MONTH(U$129)<=MONTH('Assumptions '!$I$94)),'Assumptions '!$G$97,1)) -> 0 | V146: =IF(V$129>='Assumptions '!$F34,ROUND('Assumptions '!$G34*(1+(INDEX('Assumptions '!$R34:$V34,,MATCH(V$132,'Assumptions '!$R$28:$V$28,0)))),0),0)*IF(AND(MONTH(V$129)>=MONTH('Assumptions '!$G$93),MONTH(V$129)<=MONTH('Assumptions '!$I$93)),'Assumptions '!$G$96,IF(AND(MONTH(V$129)>=MONTH('Assumptions '!$G$94),MONTH(V$129)<=MONTH('Assumptions '!$I$94)),'Assumptions '!$G$97,1)) -> 0 | W146: =IF(W$129>='Assumptions '!$F34,ROUND('Assumptions '!$G34*(1+(INDEX('Assumptions '!$R34:$V34,,MATCH(W$132,'Assumptions '!$R$28:$V$28,0)))),0),0)*IF(AND(MONTH(W$129)>=MONTH('Assumptions '!$G$93),MONTH(W$129)<=MONTH('Assumptions '!$I$93)),'Assumptions '!$G$96,IF(AND(MONTH(W$129)>=MONTH('Assumptions '!$G$94),MONTH(W$129)<=MONTH('Assumptions '!$I$94)),'Assumptions '!$G$97,1)) -> 0 | X146: =IF(X$129>='Assumptions '!$F34,ROUND('Assumptions '!$G34*(1+(INDEX('Assumptions '!$R34:$V34,,MATCH(X$132,'Assumptions '!$R$28:$V$28,0)))),0),0)*IF(AND(MONTH(X$129)>=MONTH('Assumptions '!$G$93),MONTH(X$129)<=MONTH('Assumptions '!$I$93)),'Assumptions '!$G$96,IF(AND(MONTH(X$129)>=MONTH('Assumptions '!$G$94),MONTH(X$129)<=MONTH('Assumptions '!$I$94)),'Assumptions '!$G$97,1)) -> 0 | Y146: =IF(Y$129>='Assumptions '!$F34,ROUND('Assumptions '!$G34*(1+(INDEX('Assumptions '!$R34:$V34,,MATCH(Y$132,'Assumptions '!$R$28:$V$28,0)))),0),0)*IF(AND(MONTH(Y$129)>=MONTH('Assumptions '!$G$93),MONTH(Y$129)<=MONTH('Assumptions '!$I$93)),'Assumptions '!$G$96,IF(AND(MONTH(Y$129)>=MONTH('Assumptions '!$G$94),MONTH(Y$129)<=MONTH('Assumptions '!$I$94)),'Assumptions '!$G$97,1)) -> 0 | Z146: =IF(Z$129>='Assumptions '!$F34,ROUND('Assumptions '!$G34*(1+(INDEX('Assumptions '!$R34:$V34,,MATCH(Z$132,'Assumptions '!$R$28:$V$28,0)))),0),0)*IF(AND(MONTH(Z$129)>=MONTH('Assumptions '!$G$93),MONTH(Z$129)<=MONTH('Assumptions '!$I$93)),'Assumptions '!$G$96,IF(AND(MONTH(Z$129)>=MONTH('Assumptions '!$G$94),MONTH(Z$129)<=MONTH('Assumptions '!$I$94)),'Assumptions '!$G$97,1)) -> 0 | AA146: =IF(AA$129>='Assumptions '!$F34,ROUND('Assumptions '!$G34*(1+(INDEX('Assumptions '!$R34:$V34,,MATCH(AA$132,'Assumptions '!$R$28:$V$28,0)))),0),0)*IF(AND(MONTH(AA$129)>=MONTH('Assumptions '!$G$93),MONTH(AA$129)<=MONTH('Assumptions '!$I$93)),'Assumptions '!$G$96,IF(AND(MONTH(AA$129)>=MONTH('Assumptions '!$G$94),MONTH(AA$129)<=MONTH('Assumptions '!$I$94)),'Assumptions '!$G$97,1)) -> 0 | AB146: =IF(AB$129>='Assumptions '!$F34,ROUND('Assumptions '!$G34*(1+(INDEX('Assumptions '!$R34:$V34,,MATCH(AB$132,'Assumptions '!$R$28:$V$28,0)))),0),0)*IF(AND(MONTH(AB$129)>=MONTH('Assumptions '!$G$93),MONTH(AB$129)<=MONTH('Assumptions '!$I$93)),'Assumptions '!$G$96,IF(AND(MONTH(AB$129)>=MONTH('Assumptions '!$G$94),MONTH(AB$129)<=MONTH('Assumptions '!$I$94)),'Assumptions '!$G$97,1)) -> 0 | AC146: =IF(AC$129>='Assumptions '!$F34,ROUND('Assumptions '!$G34*(1+(INDEX('Assumptions '!$R34:$V34,,MATCH(AC$132,'Assumptions '!$R$28:$V$28,0)))),0),0)*IF(AND(MONTH(AC$129)>=MONTH('Assumptions '!$G$93),MONTH(AC$129)<=MONTH('Assumptions '!$I$93)),'Assumptions '!$G$96,IF(AND(MONTH(AC$129)>=MONTH('Assumptions '!$G$94),MONTH(AC$129)<=MONTH('Assumptions '!$I$94)),'Assumptions '!$G$97,1)) -> 0 | AD146: =IF(AD$129>='Assumptions '!$F34,ROUND('Assumptions '!$G34*(1+(INDEX('Assumptions '!$R34:$V34,,MATCH(AD$132,'Assumptions '!$R$28:$V$28,0)))),0),0)*IF(AND(MONTH(AD$129)>=MONTH('Assumptions '!$G$93),MONTH(AD$129)<=MONTH('Assumptions '!$I$93)),'Assumptions '!$G$96,IF(AND(MONTH(AD$129)>=MONTH('Assumptions '!$G$94),MONTH(AD$129)<=MONTH('Assumptions '!$I$94)),'Assumptions '!$G$97,1)) -> 0 | AE146: =IF(AE$129>='Assumptions '!$F34,ROUND('Assumptions '!$G34*(1+(INDEX('Assumptions '!$R34:$V34,,MATCH(AE$132,'Assumptions '!$R$28:$V$28,0)))),0),0)*IF(AND(MONTH(AE$129)>=MONTH('Assumptions '!$G$93),MONTH(AE$129)<=MONTH('Assumptions '!$I$93)),'Assumptions '!$G$96,IF(AND(MONTH(AE$129)>=MONTH('Assumptions '!$G$94),MONTH(AE$129)<=MONTH('Assumptions '!$I$94)),'Assumptions '!$G$97,1)) -> 0 | AF146: =IF(AF$129>='Assumptions '!$F34,ROUND('Assumptions '!$G34*(1+(INDEX('Assumptions '!$R34:$V34,,MATCH(AF$132,'Assumptions '!$R$28:$V$28,0)))),0),0)*IF(AND(MONTH(AF$129)>=MONTH('Assumptions '!$G$93),MONTH(AF$129)<=MONTH('Assumptions '!$I$93)),'Assumptions '!$G$96,IF(AND(MONTH(AF$129)>=MONTH('Assumptions '!$G$94),MONTH(AF$129)<=MONTH('Assumptions '!$I$94)),'Assumptions '!$G$97,1)) -> 0 | AG146: =IF(AG$129>='Assumptions '!$F34,ROUND('Assumptions '!$G34*(1+(INDEX('Assumptions '!$R34:$V34,,MATCH(AG$132,'Assumptions '!$R$28:$V$28,0)))),0),0)*IF(AND(MONTH(AG$129)>=MONTH('Assumptions '!$G$93),MONTH(AG$129)<=MONTH('Assumptions '!$I$93)),'Assumptions '!$G$96,IF(AND(MONTH(AG$129)>=MONTH('Assumptions '!$G$94),MONTH(AG$129)<=MONTH('Assumptions '!$I$94)),'Assumptions '!$G$97,1)) -> 0 | AH146: =IF(AH$129>='Assumptions '!$F34,ROUND('Assumptions '!$G34*(1+(INDEX('Assumptions '!$R34:$V34,,MATCH(AH$132,'Assumptions '!$R$28:$V$28,0)))),0),0)*IF(AND(MONTH(AH$129)>=MONTH('Assumptions '!$G$93),MONTH(AH$129)<=MONTH('Assumptions '!$I$93)),'Assumptions '!$G$96,IF(AND(MONTH(AH$129)>=MONTH('Assumptions '!$G$94),MONTH(AH$129)<=MONTH('Assumptions '!$I$94)),'Assumptions '!$G$97,1)) -> 0 | AI146: =IF(AI$129>='Assumptions '!$F34,ROUND('Assumptions '!$G34*(1+(INDEX('Assumptions '!$R34:$V34,,MATCH(AI$132,'Assumptions '!$R$28:$V$28,0)))),0),0)*IF(AND(MONTH(AI$129)>=MONTH('Assumptions '!$G$93),MONTH(AI$129)<=MONTH('Assumptions '!$I$93)),'Assumptions '!$G$96,IF(AND(MONTH(AI$129)>=MONTH('Assumptions '!$G$94),MONTH(AI$129)<=MONTH('Assumptions '!$I$94)),'Assumptions '!$G$97,1)) -> 0 | AJ146: =IF(AJ$129>='Assumptions '!$F34,ROUND('Assumptions '!$G34*(1+(INDEX('Assumptions '!$R34:$V34,,MATCH(AJ$132,'Assumptions '!$R$28:$V$28,0)))),0),0)*IF(AND(MONTH(AJ$129)>=MONTH('Assumptions '!$G$93),MONTH(AJ$129)<=MONTH('Assumptions '!$I$93)),'Assumptions '!$G$96,IF(AND(MONTH(AJ$129)>=MONTH('Assumptions '!$G$94),MONTH(AJ$129)<=MONTH('Assumptions '!$I$94)),'Assumptions '!$G$97,1)) -> 0 | AK146: =IF(AK$129>='Assumptions '!$F34,ROUND('Assumptions '!$G34*(1+(INDEX('Assumptions '!$R34:$V34,,MATCH(AK$132,'Assumptions '!$R$28:$V$28,0)))),0),0)*IF(AND(MONTH(AK$129)>=MONTH('Assumptions '!$G$93),MONTH(AK$129)<=MONTH('Assumptions '!$I$93)),'Assumptions '!$G$96,IF(AND(MONTH(AK$129)>=MONTH('Assumptions '!$G$94),MONTH(AK$129)<=MONTH('Assumptions '!$I$94)),'Assumptions '!$G$97,1)) -> 0 | AL146: =IF(AL$129>='Assumptions '!$F34,ROUND('Assumptions '!$G34*(1+(INDEX('Assumptions '!$R34:$V34,,MATCH(AL$132,'Assumptions '!$R$28:$V$28,0)))),0),0)*IF(AND(MONTH(AL$129)>=MONTH('Assumptions '!$G$93),MONTH(AL$129)<=MONTH('Assumptions '!$I$93)),'Assumptions '!$G$96,IF(AND(MONTH(AL$129)>=MONTH('Assumptions '!$G$94),MONTH(AL$129)<=MONTH('Assumptions '!$I$94)),'Assumptions '!$G$97,1)) -> 0 | AM146: =IF(AM$129>='Assumptions '!$F34,ROUND('Assumptions '!$G34*(1+(INDEX('Assumptions '!$R34:$V34,,MATCH(AM$132,'Assumptions '!$R$28:$V$28,0)))),0),0)*IF(AND(MONTH(AM$129)>=MONTH('Assumptions '!$G$93),MONTH(AM$129)<=MONTH('Assumptions '!$I$93)),'Assumptions '!$G$96,IF(AND(MONTH(AM$129)>=MONTH('Assumptions '!$G$94),MONTH(AM$129)<=MONTH('Assumptions '!$I$94)),'Assumptions '!$G$97,1)) -> 0 | AN146: =IF(AN$129>='Assumptions '!$F34,ROUND('Assumptions '!$G34*(1+(INDEX('Assumptions '!$R34:$V34,,MATCH(AN$132,'Assumptions '!$R$28:$V$28,0)))),0),0)*IF(AND(MONTH(AN$129)>=MONTH('Assumptions '!$G$93),MONTH(AN$129)<=MONTH('Assumptions '!$I$93)),'Assumptions '!$G$96,IF(AND(MONTH(AN$129)>=MONTH('Assumptions '!$G$94),MONTH(AN$129)<=MONTH('Assumptions '!$I$94)),'Assumptions '!$G$97,1)) -> 0 | AO146: =IF(AO$129>='Assumptions '!$F34,ROUND('Assumptions '!$G34*(1+(INDEX('Assumptions '!$R34:$V34,,MATCH(AO$132,'Assumptions '!$R$28:$V$28,0)))),0),0)*IF(AND(MONTH(AO$129)>=MONTH('Assumptions '!$G$93),MONTH(AO$129)<=MONTH('Assumptions '!$I$93)),'Assumptions '!$G$96,IF(AND(MONTH(AO$129)>=MONTH('Assumptions '!$G$94),MONTH(AO$129)<=MONTH('Assumptions '!$I$94)),'Assumptions '!$G$97,1)) -> 0 | AP146: =IF(AP$129>='Assumptions '!$F34,ROUND('Assumptions '!$G34*(1+(INDEX('Assumptions '!$R34:$V34,,MATCH(AP$132,'Assumptions '!$R$28:$V$28,0)))),0),0)*IF(AND(MONTH(AP$129)>=MONTH('Assumptions '!$G$93),MONTH(AP$129)<=MONTH('Assumptions '!$I$93)),'Assumptions '!$G$96,IF(AND(MONTH(AP$129)>=MONTH('Assumptions '!$G$94),MONTH(AP$129)<=MONTH('Assumptions '!$I$94)),'Assumptions '!$G$97,1)) -> 0 | AQ146: =IF(AQ$129>='Assumptions '!$F34,ROUND('Assumptions '!$G34*(1+(INDEX('Assumptions '!$R34:$V34,,MATCH(AQ$132,'Assumptions '!$R$28:$V$28,0)))),0),0)*IF(AND(MONTH(AQ$129)>=MONTH('Assumptions '!$G$93),MONTH(AQ$129)<=MONTH('Assumptions '!$I$93)),'Assumptions '!$G$96,IF(AND(MONTH(AQ$129)>=MONTH('Assumptions '!$G$94),MONTH(AQ$129)<=MONTH('Assumptions '!$I$94)),'Assumptions '!$G$97,1)) -> 0 | AR146: =IF(AR$129>='Assumptions '!$F34,ROUND('Assumptions '!$G34*(1+(INDEX('Assumptions '!$R34:$V34,,MATCH(AR$132,'Assumptions '!$R$28:$V$28,0)))),0),0)*IF(AND(MONTH(AR$129)>=MONTH('Assumptions '!$G$93),MONTH(AR$129)<=MONTH('Assumptions '!$I$93)),'Assumptions '!$G$96,IF(AND(MONTH(AR$129)>=MONTH('Assumptions '!$G$94),MONTH(AR$129)<=MONTH('Assumptions '!$I$94)),'Assumptions '!$G$97,1)) -> 0 | AS146: =IF(AS$129>='Assumptions '!$F34,ROUND('Assumptions '!$G34*(1+(INDEX('Assumptions '!$R34:$V34,,MATCH(AS$132,'Assumptions '!$R$28:$V$28,0)))),0),0)*IF(AND(MONTH(AS$129)>=MONTH('Assumptions '!$G$93),MONTH(AS$129)<=MONTH('Assumptions '!$I$93)),'Assumptions '!$G$96,IF(AND(MONTH(AS$129)>=MONTH('Assumptions '!$G$94),MONTH(AS$129)<=MONTH('Assumptions '!$I$94)),'Assumptions '!$G$97,1)) -> 0 | AT146: =IF(AT$129>='Assumptions '!$F34,ROUND('Assumptions '!$G34*(1+(INDEX('Assumptions '!$R34:$V34,,MATCH(AT$132,'Assumptions '!$R$28:$V$28,0)))),0),0)*IF(AND(MONTH(AT$129)>=MONTH('Assumptions '!$G$93),MONTH(AT$129)<=MONTH('Assumptions '!$I$93)),'Assumptions '!$G$96,IF(AND(MONTH(AT$129)>=MONTH('Assumptions '!$G$94),MONTH(AT$129)<=MONTH('Assumptions '!$I$94)),'Assumptions '!$G$97,1)) -> 0 | AU146: =IF(AU$129>='Assumptions '!$F34,ROUND('Assumptions '!$G34*(1+(INDEX('Assumptions '!$R34:$V34,,MATCH(AU$132,'Assumptions '!$R$28:$V$28,0)))),0),0)*IF(AND(MONTH(AU$129)>=MONTH('Assumptions '!$G$93),MONTH(AU$129)<=MONTH('Assumptions '!$I$93)),'Assumptions '!$G$96,IF(AND(MONTH(AU$129)>=MONTH('Assumptions '!$G$94),MONTH(AU$129)<=MONTH('Assumptions '!$I$94)),'Assumptions '!$G$97,1)) -> 0 | AV146: =IF(AV$129>='Assumptions '!$F34,ROUND('Assumptions '!$G34*(1+(INDEX('Assumptions '!$R34:$V34,,MATCH(AV$132,'Assumptions '!$R$28:$V$28,0)))),0),0)*IF(AND(MONTH(AV$129)>=MONTH('Assumptions '!$G$93),MONTH(AV$129)<=MONTH('Assumptions '!$I$93)),'Assumptions '!$G$96,IF(AND(MONTH(AV$129)>=MONTH('Assumptions '!$G$94),MONTH(AV$129)<=MONTH('Assumptions '!$I$94)),'Assumptions '!$G$97,1)) -> 0 | AW146: =IF(AW$129>='Assumptions '!$F34,ROUND('Assumptions '!$G34*(1+(INDEX('Assumptions '!$R34:$V34,,MATCH(AW$132,'Assumptions '!$R$28:$V$28,0)))),0),0)*IF(AND(MONTH(AW$129)>=MONTH('Assumptions '!$G$93),MONTH(AW$129)<=MONTH('Assumptions '!$I$93)),'Assumptions '!$G$96,IF(AND(MONTH(AW$129)>=MONTH('Assumptions '!$G$94),MONTH(AW$129)<=MONTH('Assumptions '!$I$94)),'Assumptions '!$G$97,1)) -> 0 | AX146: =IF(AX$129>='Assumptions '!$F34,ROUND('Assumptions '!$G34*(1+(INDEX('Assumptions '!$R34:$V34,,MATCH(AX$132,'Assumptions '!$R$28:$V$28,0)))),0),0)*IF(AND(MONTH(AX$129)>=MONTH('Assumptions '!$G$93),MONTH(AX$129)<=MONTH('Assumptions '!$I$93)),'Assumptions '!$G$96,IF(AND(MONTH(AX$129)>=MONTH('Assumptions '!$G$94),MONTH(AX$129)<=MONTH('Assumptions '!$I$94)),'Assumptions '!$G$97,1)) -> 0 | AY146: =IF(AY$129>='Assumptions '!$F34,ROUND('Assumptions '!$G34*(1+(INDEX('Assumptions '!$R34:$V34,,MATCH(AY$132,'Assumptions '!$R$28:$V$28,0)))),0),0)*IF(AND(MONTH(AY$129)>=MONTH('Assumptions '!$G$93),MONTH(AY$129)<=MONTH('Assumptions '!$I$93)),'Assumptions '!$G$96,IF(AND(MONTH(AY$129)>=MONTH('Assumptions '!$G$94),MONTH(AY$129)<=MONTH('Assumptions '!$I$94)),'Assumptions '!$G$97,1)) -> 0 | AZ146: =IF(AZ$129>='Assumptions '!$F34,ROUND('Assumptions '!$G34*(1+(INDEX('Assumptions '!$R34:$V34,,MATCH(AZ$132,'Assumptions '!$R$28:$V$28,0)))),0),0)*IF(AND(MONTH(AZ$129)>=MONTH('Assumptions '!$G$93),MONTH(AZ$129)<=MONTH('Assumptions '!$I$93)),'Assumptions '!$G$96,IF(AND(MONTH(AZ$129)>=MONTH('Assumptions '!$G$94),MONTH(AZ$129)<=MONTH('Assumptions '!$I$94)),'Assumptions '!$G$97,1)) -> 0 | BA146: =IF(BA$129>='Assumptions '!$F34,ROUND('Assumptions '!$G34*(1+(INDEX('Assumptions '!$R34:$V34,,MATCH(BA$132,'Assumptions '!$R$28:$V$28,0)))),0),0)*IF(AND(MONTH(BA$129)>=MONTH('Assumptions '!$G$93),MONTH(BA$129)<=MONTH('Assumptions '!$I$93)),'Assumptions '!$G$96,IF(AND(MONTH(BA$129)>=MONTH('Assumptions '!$G$94),MONTH(BA$129)<=MONTH('Assumptions '!$I$94)),'Assumptions '!$G$97,1)) -> 0 | BB146: =IF(BB$129>='Assumptions '!$F34,ROUND('Assumptions '!$G34*(1+(INDEX('Assumptions '!$R34:$V34,,MATCH(BB$132,'Assumptions '!$R$28:$V$28,0)))),0),0)*IF(AND(MONTH(BB$129)>=MONTH('Assumptions '!$G$93),MONTH(BB$129)<=MONTH('Assumptions '!$I$93)),'Assumptions '!$G$96,IF(AND(MONTH(BB$129)>=MONTH('Assumptions '!$G$94),MONTH(BB$129)<=MONTH('Assumptions '!$I$94)),'Assumptions '!$G$97,1)) -> 0 | BC146: =IF(BC$129>='Assumptions '!$F34,ROUND('Assumptions '!$G34*(1+(INDEX('Assumptions '!$R34:$V34,,MATCH(BC$132,'Assumptions '!$R$28:$V$28,0)))),0),0)*IF(AND(MONTH(BC$129)>=MONTH('Assumptions '!$G$93),MONTH(BC$129)<=MONTH('Assumptions '!$I$93)),'Assumptions '!$G$96,IF(AND(MONTH(BC$129)>=MONTH('Assumptions '!$G$94),MONTH(BC$129)<=MONTH('Assumptions '!$I$94)),'Assumptions '!$G$97,1)) -> 0 | BD146: =IF(BD$129>='Assumptions '!$F34,ROUND('Assumptions '!$G34*(1+(INDEX('Assumptions '!$R34:$V34,,MATCH(BD$132,'Assumptions '!$R$28:$V$28,0)))),0),0)*IF(AND(MONTH(BD$129)>=MONTH('Assumptions '!$G$93),MONTH(BD$129)<=MONTH('Assumptions '!$I$93)),'Assumptions '!$G$96,IF(AND(MONTH(BD$129)>=MONTH('Assumptions '!$G$94),MONTH(BD$129)<=MONTH('Assumptions '!$I$94)),'Assumptions '!$G$97,1)) -> 0 | BE146: =IF(BE$129>='Assumptions '!$F34,ROUND('Assumptions '!$G34*(1+(INDEX('Assumptions '!$R34:$V34,,MATCH(BE$132,'Assumptions '!$R$28:$V$28,0)))),0),0)*IF(AND(MONTH(BE$129)>=MONTH('Assumptions '!$G$93),MONTH(BE$129)<=MONTH('Assumptions '!$I$93)),'Assumptions '!$G$96,IF(AND(MONTH(BE$129)>=MONTH('Assumptions '!$G$94),MONTH(BE$129)<=MONTH('Assumptions '!$I$94)),'Assumptions '!$G$97,1)) -> 0 | BF146: =IF(BF$129>='Assumptions '!$F34,ROUND('Assumptions '!$G34*(1+(INDEX('Assumptions '!$R34:$V34,,MATCH(BF$132,'Assumptions '!$R$28:$V$28,0)))),0),0)*IF(AND(MONTH(BF$129)>=MONTH('Assumptions '!$G$93),MONTH(BF$129)<=MONTH('Assumptions '!$I$93)),'Assumptions '!$G$96,IF(AND(MONTH(BF$129)>=MONTH('Assumptions '!$G$94),MONTH(BF$129)<=MONTH('Assumptions '!$I$94)),'Assumptions '!$G$97,1)) -> 0 | BG146: =IF(BG$129>='Assumptions '!$F34,ROUND('Assumptions '!$G34*(1+(INDEX('Assumptions '!$R34:$V34,,MATCH(BG$132,'Assumptions '!$R$28:$V$28,0)))),0),0)*IF(AND(MONTH(BG$129)>=MONTH('Assumptions '!$G$93),MONTH(BG$129)<=MONTH('Assumptions '!$I$93)),'Assumptions '!$G$96,IF(AND(MONTH(BG$129)>=MONTH('Assumptions '!$G$94),MONTH(BG$129)<=MONTH('Assumptions '!$I$94)),'Assumptions '!$G$97,1)) -> 0 | BH146: =IF(BH$129>='Assumptions '!$F34,ROUND('Assumptions '!$G34*(1+(INDEX('Assumptions '!$R34:$V34,,MATCH(BH$132,'Assumptions '!$R$28:$V$28,0)))),0),0)*IF(AND(MONTH(BH$129)>=MONTH('Assumptions '!$G$93),MONTH(BH$129)<=MONTH('Assumptions '!$I$93)),'Assumptions '!$G$96,IF(AND(MONTH(BH$129)>=MONTH('Assumptions '!$G$94),MONTH(BH$129)<=MONTH('Assumptions '!$I$94)),'Assumptions '!$G$97,1)) -> 0 | BI146: =IF(BI$129>='Assumptions '!$F34,ROUND('Assumptions '!$G34*(1+(INDEX('Assumptions '!$R34:$V34,,MATCH(BI$132,'Assumptions '!$R$28:$V$28,0)))),0),0)*IF(AND(MONTH(BI$129)>=MONTH('Assumptions '!$G$93),MONTH(BI$129)<=MONTH('Assumptions '!$I$93)),'Assumptions '!$G$96,IF(AND(MONTH(BI$129)>=MONTH('Assumptions '!$G$94),MONTH(BI$129)<=MONTH('Assumptions '!$I$94)),'Assumptions '!$G$97,1)) -> 0 | BJ146: =IF(BJ$129>='Assumptions '!$F34,ROUND('Assumptions '!$G34*(1+(INDEX('Assumptions '!$R34:$V34,,MATCH(BJ$132,'Assumptions '!$R$28:$V$28,0)))),0),0)*IF(AND(MONTH(BJ$129)>=MONTH('Assumptions '!$G$93),MONTH(BJ$129)<=MONTH('Assumptions '!$I$93)),'Assumptions '!$G$96,IF(AND(MONTH(BJ$129)>=MONTH('Assumptions '!$G$94),MONTH(BJ$129)<=MONTH('Assumptions '!$I$94)),'Assumptions '!$G$97,1)) -> 0 | BK146: =IF(BK$129>='Assumptions '!$F34,ROUND('Assumptions '!$G34*(1+(INDEX('Assumptions '!$R34:$V34,,MATCH(BK$132,'Assumptions '!$R$28:$V$28,0)))),0),0)*IF(AND(MONTH(BK$129)>=MONTH('Assumptions '!$G$93),MONTH(BK$129)<=MONTH('Assumptions '!$I$93)),'Assumptions '!$G$96,IF(AND(MONTH(BK$129)>=MONTH('Assumptions '!$G$94),MONTH(BK$129)<=MONTH('Assumptions '!$I$94)),'Assumptions '!$G$97,1)) -> 0 | BL146: =IF(BL$129>='Assumptions '!$F34,ROUND('Assumptions '!$G34*(1+(INDEX('Assumptions '!$R34:$V34,,MATCH(BL$132,'Assumptions '!$R$28:$V$28,0)))),0),0)*IF(AND(MONTH(BL$129)>=MONTH('Assumptions '!$G$93),MONTH(BL$129)<=MONTH('Assumptions '!$I$93)),'Assumptions '!$G$96,IF(AND(MONTH(BL$129)>=MONTH('Assumptions '!$G$94),MONTH(BL$129)<=MONTH('Assumptions '!$I$94)),'Assumptions '!$G$97,1)) -> 0 | BM146: =IF(BM$129>='Assumptions '!$F34,ROUND('Assumptions '!$G34*(1+(INDEX('Assumptions '!$R34:$V34,,MATCH(BM$132,'Assumptions '!$R$28:$V$28,0)))),0),0)*IF(AND(MONTH(BM$129)>=MONTH('Assumptions '!$G$93),MONTH(BM$129)<=MONTH('Assumptions '!$I$93)),'Assumptions '!$G$96,IF(AND(MONTH(BM$129)>=MONTH('Assumptions '!$G$94),MONTH(BM$129)<=MONTH('Assumptions '!$I$94)),'Assumptions '!$G$97,1)) -> 0 | BN146: =IF(BN$129>='Assumptions '!$F34,ROUND('Assumptions '!$G34*(1+(INDEX('Assumptions '!$R34:$V34,,MATCH(BN$132,'Assumptions '!$R$28:$V$28,0)))),0),0)*IF(AND(MONTH(BN$129)>=MONTH('Assumptions '!$G$93),MONTH(BN$129)<=MONTH('Assumptions '!$I$93)),'Assumptions '!$G$96,IF(AND(MONTH(BN$129)>=MONTH('Assumptions '!$G$94),MONTH(BN$129)<=MONTH('Assumptions '!$I$94)),'Assumptions '!$G$97,1)) -> 0
D148: Other revenue streams
D149: ='Assumptions '!D172 -> Side product #1: Ice sales (one unit is one 5kg bucket) | G149: =IF(G$129>='Assumptions '!$F172,ROUND('Assumptions '!$G172*(1+(INDEX('Assumptions '!$R172:$V172,,MATCH(G$132,'Assumptions '!$R$171:$V$171,0)))),0),0) -> 200 | H149: =IF(H$129>='Assumptions '!$F172,ROUND('Assumptions '!$G172*(1+(INDEX('Assumptions '!$R172:$V172,,MATCH(H$132,'Assumptions '!$R$171:$V$171,0)))),0),0) -> 200 | I149: =IF(I$129>='Assumptions '!$F172,ROUND('Assumptions '!$G172*(1+(INDEX('Assumptions '!$R172:$V172,,MATCH(I$132,'Assumptions '!$R$171:$V$171,0)))),0),0) -> 200 | J149: =IF(J$129>='Assumptions '!$F172,ROUND('Assumptions '!$G172*(1+(INDEX('Assumptions '!$R172:$V172,,MATCH(J$132,'Assumptions '!$R$171:$V$171,0)))),0),0) -> 200 | K149: =IF(K$129>='Assumptions '!$F172,ROUND('Assumptions '!$G172*(1+(INDEX('Assumptions '!$R172:$V172,,MATCH(K$132,'Assumptions '!$R$171:$V$171,0)))),0),0) -> 200 | L149: =IF(L$129>='Assumptions '!$F172,ROUND('Assumptions '!$G172*(1+(INDEX('Assumptions '!$R172:$V172,,MATCH(L$132,'Assumptions '!$R$171:$V$171,0)))),0),0) -> 200 | M149: =IF(M$129>='Assumptions '!$F172,ROUND('Assumptions '!$G172*(1+(INDEX('Assumptions '!$R172:$V172,,MATCH(M$132,'Assumptions '!$R$171:$V$171,0)))),0),0) -> 200 | N149: =IF(N$129>='Assumptions '!$F172,ROUND('Assumptions '!$G172*(1+(INDEX('Assumptions '!$R172:$V172,,MATCH(N$132,'Assumptions '!$R$171:$V$171,0)))),0),0) -> 200 | O149: =IF(O$129>='Assumptions '!$F172,ROUND('Assumptions '!$G172*(1+(INDEX('Assumptions '!$R172:$V172,,MATCH(O$132,'Assumptions '!$R$171:$V$171,0)))),0),0) -> 200 | P149: =IF(P$129>='Assumptions '!$F172,ROUND('Assumptions '!$G172*(1+(INDEX('Assumptions '!$R172:$V172,,MATCH(P$132,'Assumptions '!$R$171:$V$171,0)))),0),0) -> 200 | Q149: =IF(Q$129>='Assumptions '!$F172,ROUND('Assumptions '!$G172*(1+(INDEX('Assumptions '!$R172:$V172,,MATCH(Q$132,'Assumptions '!$R$171:$V$171,0)))),0),0) -> 200 | R149: =IF(R$129>='Assumptions '!$F172,ROUND('Assumptions '!$G172*(1+(INDEX('Assumptions '!$R172:$V172,,MATCH(R$132,'Assumptions '!$R$171:$V$171,0)))),0),0) -> 200 | S149: =IF(S$129>='Assumptions '!$F172,ROUND('Assumptions '!$G172*(1+(INDEX('Assumptions '!$R172:$V172,,MATCH(S$132,'Assumptions '!$R$171:$V$171,0)))),0),0) -> 220 | T149: =IF(T$129>='Assumptions '!$F172,ROUND('Assumptions '!$G172*(1+(INDEX('Assumptions '!$R172:$V172,,MATCH(T$132,'Assumptions '!$R$171:$V$171,0)))),0),0) -> 220 | U149: =IF(U$129>='Assumptions '!$F172,ROUND('Assumptions '!$G172*(1+(INDEX('Assumptions '!$R172:$V172,,MATCH(U$132,'Assumptions '!$R$171:$V$171,0)))),0),0) -> 220 | V149: =IF(V$129>='Assumptions '!$F172,ROUND('Assumptions '!$G172*(1+(INDEX('Assumptions '!$R172:$V172,,MATCH(V$132,'Assumptions '!$R$171:$V$171,0)))),0),0) -> 220 | W149: =IF(W$129>='Assumptions '!$F172,ROUND('Assumptions '!$G172*(1+(INDEX('Assumptions '!$R172:$V172,,MATCH(W$132,'Assumptions '!$R$171:$V$171,0)))),0),0) -> 220 | X149: =IF(X$129>='Assumptions '!$F172,ROUND('Assumptions '!$G172*(1+(INDEX('Assumptions '!$R172:$V172,,MATCH(X$132,'Assumptions '!$R$171:$V$171,0)))),0),0) -> 220 | Y149: =IF(Y$129>='Assumptions '!$F172,ROUND('Assumptions '!$G172*(1+(INDEX('Assumptions '!$R172:$V172,,MATCH(Y$132,'Assumptions '!$R$171:$V$171,0)))),0),0) -> 220 | Z149: =IF(Z$129>='Assumptions '!$F172,ROUND('Assumptions '!$G172*(1+(INDEX('Assumptions '!$R172:$V172,,MATCH(Z$132,'Assumptions '!$R$171:$V$171,0)))),0),0) -> 220 | AA149: =IF(AA$129>='Assumptions '!$F172,ROUND('Assumptions '!$G172*(1+(INDEX('Assumptions '!$R172:$V172,,MATCH(AA$132,'Assumptions '!$R$171:$V$171,0)))),0),0) -> 220 | AB149: =IF(AB$129>='Assumptions '!$F172,ROUND('Assumptions '!$G172*(1+(INDEX('Assumptions '!$R172:$V172,,MATCH(AB$132,'Assumptions '!$R$171:$V$171,0)))),0),0) -> 220 | AC149: =IF(AC$129>='Assumptions '!$F172,ROUND('Assumptions '!$G172*(1+(INDEX('Assumptions '!$R172:$V172,,MATCH(AC$132,'Assumptions '!$R$171:$V$171,0)))),0),0) -> 220 | AD149: =IF(AD$129>='Assumptions '!$F172,ROUND('Assumptions '!$G172*(1+(INDEX('Assumptions '!$R172:$V172,,MATCH(AD$132,'Assumptions '!$R$171:$V$171,0)))),0),0) -> 220 | AE149: =IF(AE$129>='Assumptions '!$F172,ROUND('Assumptions '!$G172*(1+(INDEX('Assumptions '!$R172:$V172,,MATCH(AE$132,'Assumptions '!$R$171:$V$171,0)))),0),0) -> 220 | AF149: =IF(AF$129>='Assumptions '!$F172,ROUND('Assumptions '!$G172*(1+(INDEX('Assumptions '!$R172:$V172,,MATCH(AF$132,'Assumptions '!$R$171:$V$171,0)))),0),0) -> 220 | AG149: =IF(AG$129>='Assumptions '!$F172,ROUND('Assumptions '!$G172*(1+(INDEX('Assumptions '!$R172:$V172,,MATCH(AG$132,'Assumptions '!$R$171:$V$171,0)))),0),0) -> 220 | AH149: =IF(AH$129>='Assumptions '!$F172,ROUND('Assumptions '!$G172*(1+(INDEX('Assumptions '!$R172:$V172,,MATCH(AH$132,'Assumptions '!$R$171:$V$171,0)))),0),0) -> 220 | AI149: =IF(AI$129>='Assumptions '!$F172,ROUND('Assumptions '!$G172*(1+(INDEX('Assumptions '!$R172:$V172,,MATCH(AI$132,'Assumptions '!$R$171:$V$171,0)))),0),0) -> 220 | AJ149: =IF(AJ$129>='Assumptions '!$F172,ROUND('Assumptions '!$G172*(1+(INDEX('Assumptions '!$R172:$V172,,MATCH(AJ$132,'Assumptions '!$R$171:$V$171,0)))),0),0) -> 220 | AK149: =IF(AK$129>='Assumptions '!$F172,ROUND('Assumptions '!$G172*(1+(INDEX('Assumptions '!$R172:$V172,,MATCH(AK$132,'Assumptions '!$R$171:$V$171,0)))),0),0) -> 220 | AL149: =IF(AL$129>='Assumptions '!$F172,ROUND('Assumptions '!$G172*(1+(INDEX('Assumptions '!$R172:$V172,,MATCH(AL$132,'Assumptions '!$R$171:$V$171,0)))),0),0) -> 220 | AM149: =IF(AM$129>='Assumptions '!$F172,ROUND('Assumptions '!$G172*(1+(INDEX('Assumptions '!$R172:$V172,,MATCH(AM$132,'Assumptions '!$R$171:$V$171,0)))),0),0) -> 220 | AN149: =IF(AN$129>='Assumptions '!$F172,ROUND('Assumptions '!$G172*(1+(INDEX('Assumptions '!$R172:$V172,,MATCH(AN$132,'Assumptions '!$R$171:$V$171,0)))),0),0) -> 220 | AO149: =IF(AO$129>='Assumptions '!$F172,ROUND('Assumptions '!$G172*(1+(INDEX('Assumptions '!$R172:$V172,,MATCH(AO$132,'Assumptions '!$R$171:$V$171,0)))),0),0) -> 220 | AP149: =IF(AP$129>='Assumptions '!$F172,ROUND('Assumptions '!$G172*(1+(INDEX('Assumptions '!$R172:$V172,,MATCH(AP$132,'Assumptions '!$R$171:$V$171,0)))),0),0) -> 220 | AQ149: =IF(AQ$129>='Assumptions '!$F172,ROUND('Assumptions '!$G172*(1+(INDEX('Assumptions '!$R172:$V172,,MATCH(AQ$132,'Assumptions '!$R$171:$V$171,0)))),0),0) -> 220 | AR149: =IF(AR$129>='Assumptions '!$F172,ROUND('Assumptions '!$G172*(1+(INDEX('Assumptions '!$R172:$V172,,MATCH(AR$132,'Assumptions '!$R$171:$V$171,0)))),0),0) -> 220 | AS149: =IF(AS$129>='Assumptions '!$F172,ROUND('Assumptions '!$G172*(1+(INDEX('Assumptions '!$R172:$V172,,MATCH(AS$132,'Assumptions '!$R$171:$V$171,0)))),0),0) -> 220 | AT149: =IF(AT$129>='Assumptions '!$F172,ROUND('Assumptions '!$G172*(1+(INDEX('Assumptions '!$R172:$V172,,MATCH(AT$132,'Assumptions '!$R$171:$V$171,0)))),0),0) -> 220 | AU149: =IF(AU$129>='Assumptions '!$F172,ROUND('Assumptions '!$G172*(1+(INDEX('Assumptions '!$R172:$V172,,MATCH(AU$132,'Assumptions '!$R$171:$V$171,0)))),0),0) -> 220 | AV149: =IF(AV$129>='Assumptions '!$F172,ROUND('Assumptions '!$G172*(1+(INDEX('Assumptions '!$R172:$V172,,MATCH(AV$132,'Assumptions '!$R$171:$V$171,0)))),0),0) -> 220 | AW149: =IF(AW$129>='Assumptions '!$F172,ROUND('Assumptions '!$G172*(1+(INDEX('Assumptions '!$R172:$V172,,MATCH(AW$132,'Assumptions '!$R$171:$V$171,0)))),0),0) -> 220 | AX149: =IF(AX$129>='Assumptions '!$F172,ROUND('Assumptions '!$G172*(1+(INDEX('Assumptions '!$R172:$V172,,MATCH(AX$132,'Assumptions '!$R$171:$V$171,0)))),0),0) -> 220 | AY149: =IF(AY$129>='Assumptions '!$F172,ROUND('Assumptions '!$G172*(1+(INDEX('Assumptions '!$R172:$V172,,MATCH(AY$132,'Assumptions '!$R$171:$V$171,0)))),0),0) -> 220 | AZ149: =IF(AZ$129>='Assumptions '!$F172,ROUND('Assumptions '!$G172*(1+(INDEX('Assumptions '!$R172:$V172,,MATCH(AZ$132,'Assumptions '!$R$171:$V$171,0)))),0),0) -> 220 | BA149: =IF(BA$129>='Assumptions '!$F172,ROUND('Assumptions '!$G172*(1+(INDEX('Assumptions '!$R172:$V172,,MATCH(BA$132,'Assumptions '!$R$171:$V$171,0)))),0),0) -> 220 | BB149: =IF(BB$129>='Assumptions '!$F172,ROUND('Assumptions '!$G172*(1+(INDEX('Assumptions '!$R172:$V172,,MATCH(BB$132,'Assumptions '!$R$171:$V$171,0)))),0),0) -> 220 | BC149: =IF(BC$129>='Assumptions '!$F172,ROUND('Assumptions '!$G172*(1+(INDEX('Assumptions '!$R172:$V172,,MATCH(BC$132,'Assumptions '!$R$171:$V$171,0)))),0),0) -> 242 | BD149: =IF(BD$129>='Assumptions '!$F172,ROUND('Assumptions '!$G172*(1+(INDEX('Assumptions '!$R172:$V172,,MATCH(BD$132,'Assumptions '!$R$171:$V$171,0)))),0),0) -> 242 | BE149: =IF(BE$129>='Assumptions '!$F172,ROUND('Assumptions '!$G172*(1+(INDEX('Assumptions '!$R172:$V172,,MATCH(BE$132,'Assumptions '!$R$171:$V$171,0)))),0),0) -> 242 | BF149: =IF(BF$129>='Assumptions '!$F172,ROUND('Assumptions '!$G172*(1+(INDEX('Assumptions '!$R172:$V172,,MATCH(BF$132,'Assumptions '!$R$171:$V$171,0)))),0),0) -> 242 | BG149: =IF(BG$129>='Assumptions '!$F172,ROUND('Assumptions '!$G172*(1+(INDEX('Assumptions '!$R172:$V172,,MATCH(BG$132,'Assumptions '!$R$171:$V$171,0)))),0),0) -> 242 | BH149: =IF(BH$129>='Assumptions '!$F172,ROUND('Assumptions '!$G172*(1+(INDEX('Assumptions '!$R172:$V172,,MATCH(BH$132,'Assumptions '!$R$171:$V$171,0)))),0),0) -> 242 | BI149: =IF(BI$129>='Assumptions '!$F172,ROUND('Assumptions '!$G172*(1+(INDEX('Assumptions '!$R172:$V172,,MATCH(BI$132,'Assumptions '!$R$171:$V$171,0)))),0),0) -> 242 | BJ149: =IF(BJ$129>='Assumptions '!$F172,ROUND('Assumptions '!$G172*(1+(INDEX('Assumptions '!$R172:$V172,,MATCH(BJ$132,'Assumptions '!$R$171:$V$171,0)))),0),0) -> 242 | BK149: =IF(BK$129>='Assumptions '!$F172,ROUND('Assumptions '!$G172*(1+(INDEX('Assumptions '!$R172:$V172,,MATCH(BK$132,'Assumptions '!$R$171:$V$171,0)))),0),0) -> 242 | BL149: =IF(BL$129>='Assumptions '!$F172,ROUND('Assumptions '!$G172*(1+(INDEX('Assumptions '!$R172:$V172,,MATCH(BL$132,'Assumptions '!$R$171:$V$171,0)))),0),0) -> 242 | BM149: =IF(BM$129>='Assumptions '!$F172,ROUND('Assumptions '!$G172*(1+(INDEX('Assumptions '!$R172:$V172,,MATCH(BM$132,'Assumptions '!$R$171:$V$171,0)))),0),0) -> 242 | BN149: =IF(BN$129>='Assumptions '!$F172,ROUND('Assumptions '!$G172*(1+(INDEX('Assumptions '!$R172:$V172,,MATCH(BN$132,'Assumptions '!$R$171:$V$171,0)))),0),0) -> 242
D150: ='Assumptions '!D173 -> Side product #2: Phone charging (one unit is one phone charge) | G150: =IF(G$129>='Assumptions '!$F173,ROUND('Assumptions '!$G173*(1+(INDEX('Assumptions '!$R173:$V173,,MATCH(G$132,'Assumptions '!$R$171:$V$171,0)))),0),0) -> 50 | H150: =IF(H$129>='Assumptions '!$F173,ROUND('Assumptions '!$G173*(1+(INDEX('Assumptions '!$R173:$V173,,MATCH(H$132,'Assumptions '!$R$171:$V$171,0)))),0),0) -> 50 | I150: =IF(I$129>='Assumptions '!$F173,ROUND('Assumptions '!$G173*(1+(INDEX('Assumptions '!$R173:$V173,,MATCH(I$132,'Assumptions '!$R$171:$V$171,0)))),0),0) -> 50 | J150: =IF(J$129>='Assumptions '!$F173,ROUND('Assumptions '!$G173*(1+(INDEX('Assumptions '!$R173:$V173,,MATCH(J$132,'Assumptions '!$R$171:$V$171,0)))),0),0) -> 50 | K150: =IF(K$129>='Assumptions '!$F173,ROUND('Assumptions '!$G173*(1+(INDEX('Assumptions '!$R173:$V173,,MATCH(K$132,'Assumptions '!$R$171:$V$171,0)))),0),0) -> 50 | L150: =IF(L$129>='Assumptions '!$F173,ROUND('Assumptions '!$G173*(1+(INDEX('Assumptions '!$R173:$V173,,MATCH(L$132,'Assumptions '!$R$171:$V$171,0)))),0),0) -> 50 | M150: =IF(M$129>='Assumptions '!$F173,ROUND('Assumptions '!$G173*(1+(INDEX('Assumptions '!$R173:$V173,,MATCH(M$132,'Assumptions '!$R$171:$V$171,0)))),0),0) -> 50 | N150: =IF(N$129>='Assumptions '!$F173,ROUND('Assumptions '!$G173*(1+(INDEX('Assumptions '!$R173:$V173,,MATCH(N$132,'Assumptions '!$R$171:$V$171,0)))),0),0) -> 50 | O150: =IF(O$129>='Assumptions '!$F173,ROUND('Assumptions '!$G173*(1+(INDEX('Assumptions '!$R173:$V173,,MATCH(O$132,'Assumptions '!$R$171:$V$171,0)))),0),0) -> 50 | P150: =IF(P$129>='Assumptions '!$F173,ROUND('Assumptions '!$G173*(1+(INDEX('Assumptions '!$R173:$V173,,MATCH(P$132,'Assumptions '!$R$171:$V$171,0)))),0),0) -> 50 | Q150: =IF(Q$129>='Assumptions '!$F173,ROUND('Assumptions '!$G173*(1+(INDEX('Assumptions '!$R173:$V173,,MATCH(Q$132,'Assumptions '!$R$171:$V$171,0)))),0),0) -> 50 | R150: =IF(R$129>='Assumptions '!$F173,ROUND('Assumptions '!$G173*(1+(INDEX('Assumptions '!$R173:$V173,,MATCH(R$132,'Assumptions '!$R$171:$V$171,0)))),0),0) -> 50 | S150: =IF(S$129>='Assumptions '!$F173,ROUND('Assumptions '!$G173*(1+(INDEX('Assumptions '!$R173:$V173,,MATCH(S$132,'Assumptions '!$R$171:$V$171,0)))),0),0) -> 55 | T150: =IF(T$129>='Assumptions '!$F173,ROUND('Assumptions '!$G173*(1+(INDEX('Assumptions '!$R173:$V173,,MATCH(T$132,'Assumptions '!$R$171:$V$171,0)))),0),0) -> 55 | U150: =IF(U$129>='Assumptions '!$F173,ROUND('Assumptions '!$G173*(1+(INDEX('Assumptions '!$R173:$V173,,MATCH(U$132,'Assumptions '!$R$171:$V$171,0)))),0),0) -> 55 | V150: =IF(V$129>='Assumptions '!$F173,ROUND('Assumptions '!$G173*(1+(INDEX('Assumptions '!$R173:$V173,,MATCH(V$132,'Assumptions '!$R$171:$V$171,0)))),0),0) -> 55 | W150: =IF(W$129>='Assumptions '!$F173,ROUND('Assumptions '!$G173*(1+(INDEX('Assumptions '!$R173:$V173,,MATCH(W$132,'Assumptions '!$R$171:$V$171,0)))),0),0) -> 55 | X150: =IF(X$129>='Assumptions '!$F173,ROUND('Assumptions '!$G173*(1+(INDEX('Assumptions '!$R173:$V173,,MATCH(X$132,'Assumptions '!$R$171:$V$171,0)))),0),0) -> 55 | Y150: =IF(Y$129>='Assumptions '!$F173,ROUND('Assumptions '!$G173*(1+(INDEX('Assumptions '!$R173:$V173,,MATCH(Y$132,'Assumptions '!$R$171:$V$171,0)))),0),0) -> 55 | Z150: =IF(Z$129>='Assumptions '!$F173,ROUND('Assumptions '!$G173*(1+(INDEX('Assumptions '!$R173:$V173,,MATCH(Z$132,'Assumptions '!$R$171:$V$171,0)))),0),0) -> 55 | AA150: =IF(AA$129>='Assumptions '!$F173,ROUND('Assumptions '!$G173*(1+(INDEX('Assumptions '!$R173:$V173,,MATCH(AA$132,'Assumptions '!$R$171:$V$171,0)))),0),0) -> 55 | AB150: =IF(AB$129>='Assumptions '!$F173,ROUND('Assumptions '!$G173*(1+(INDEX('Assumptions '!$R173:$V173,,MATCH(AB$132,'Assumptions '!$R$171:$V$171,0)))),0),0) -> 55 | AC150: =IF(AC$129>='Assumptions '!$F173,ROUND('Assumptions '!$G173*(1+(INDEX('Assumptions '!$R173:$V173,,MATCH(AC$132,'Assumptions '!$R$171:$V$171,0)))),0),0) -> 55 | AD150: =IF(AD$129>='Assumptions '!$F173,ROUND('Assumptions '!$G173*(1+(INDEX('Assumptions '!$R173:$V173,,MATCH(AD$132,'Assumptions '!$R$171:$V$171,0)))),0),0) -> 55 | AE150: =IF(AE$129>='Assumptions '!$F173,ROUND('Assumptions '!$G173*(1+(INDEX('Assumptions '!$R173:$V173,,MATCH(AE$132,'Assumptions '!$R$171:$V$171,0)))),0),0) -> 63 | AF150: =IF(AF$129>='Assumptions '!$F173,ROUND('Assumptions '!$G173*(1+(INDEX('Assumptions '!$R173:$V173,,MATCH(AF$132,'Assumptions '!$R$171:$V$171,0)))),0),0) -> 63 | AG150: =IF(AG$129>='Assumptions '!$F173,ROUND('Assumptions '!$G173*(1+(INDEX('Assumptions '!$R173:$V173,,MATCH(AG$132,'Assumptions '!$R$171:$V$171,0)))),0),0) -> 63 | AH150: =IF(AH$129>='Assumptions '!$F173,ROUND('Assumptions '!$G173*(1+(INDEX('Assumptions '!$R173:$V173,,MATCH(AH$132,'Assumptions '!$R$171:$V$171,0)))),0),0) -> 63 | AI150: =IF(AI$129>='Assumptions '!$F173,ROUND('Assumptions '!$G173*(1+(INDEX('Assumptions '!$R173:$V173,,MATCH(AI$132,'Assumptions '!$R$171:$V$171,0)))),0),0) -> 63 | AJ150: =IF(AJ$129>='Assumptions '!$F173,ROUND('Assumptions '!$G173*(1+(INDEX('Assumptions '!$R173:$V173,,MATCH(AJ$132,'Assumptions '!$R$171:$V$171,0)))),0),0) -> 63 | AK150: =IF(AK$129>='Assumptions '!$F173,ROUND('Assumptions '!$G173*(1+(INDEX('Assumptions '!$R173:$V173,,MATCH(AK$132,'Assumptions '!$R$171:$V$171,0)))),0),0) -> 63 | AL150: =IF(AL$129>='Assumptions '!$F173,ROUND('Assumptions '!$G173*(1+(INDEX('Assumptions '!$R173:$V173,,MATCH(AL$132,'Assumptions '!$R$171:$V$171,0)))),0),0) -> 63 | AM150: =IF(AM$129>='Assumptions '!$F173,ROUND('Assumptions '!$G173*(1+(INDEX('Assumptions '!$R173:$V173,,MATCH(AM$132,'Assumptions '!$R$171:$V$171,0)))),0),0) -> 63 | AN150: =IF(AN$129>='Assumptions '!$F173,ROUND('Assumptions '!$G173*(1+(INDEX('Assumptions '!$R173:$V173,,MATCH(AN$132,'Assumptions '!$R$171:$V$171,0)))),0),0) -> 63 | AO150: =IF(AO$129>='Assumptions '!$F173,ROUND('Assumptions '!$G173*(1+(INDEX('Assumptions '!$R173:$V173,,MATCH(AO$132,'Assumptions '!$R$171:$V$171,0)))),0),0) -> 63 | AP150: =IF(AP$129>='Assumptions '!$F173,ROUND('Assumptions '!$G173*(1+(INDEX('Assumptions '!$R173:$V173,,MATCH(AP$132,'Assumptions '!$R$171:$V$171,0)))),0),0) -> 63 | AQ150: =IF(AQ$129>='Assumptions '!$F173,ROUND('Assumptions '!$G173*(1+(INDEX('Assumptions '!$R173:$V173,,MATCH(AQ$132,'Assumptions '!$R$171:$V$171,0)))),0),0) -> 73 | AR150: =IF(AR$129>='Assumptions '!$F173,ROUND('Assumptions '!$G173*(1+(INDEX('Assumptions '!$R173:$V173,,MATCH(AR$132,'Assumptions '!$R$171:$V$171,0)))),0),0) -> 73 | AS150: =IF(AS$129>='Assumptions '!$F173,ROUND('Assumptions '!$G173*(1+(INDEX('Assumptions '!$R173:$V173,,MATCH(AS$132,'Assumptions '!$R$171:$V$171,0)))),0),0) -> 73 | AT150: =IF(AT$129>='Assumptions '!$F173,ROUND('Assumptions '!$G173*(1+(INDEX('Assumptions '!$R173:$V173,,MATCH(AT$132,'Assumptions '!$R$171:$V$171,0)))),0),0) -> 73 | AU150: =IF(AU$129>='Assumptions '!$F173,ROUND('Assumptions '!$G173*(1+(INDEX('Assumptions '!$R173:$V173,,MATCH(AU$132,'Assumptions '!$R$171:$V$171,0)))),0),0) -> 73 | AV150: =IF(AV$129>='Assumptions '!$F173,ROUND('Assumptions '!$G173*(1+(INDEX('Assumptions '!$R173:$V173,,MATCH(AV$132,'Assumptions '!$R$171:$V$171,0)))),0),0) -> 73 | AW150: =IF(AW$129>='Assumptions '!$F173,ROUND('Assumptions '!$G173*(1+(INDEX('Assumptions '!$R173:$V173,,MATCH(AW$132,'Assumptions '!$R$171:$V$171,0)))),0),0) -> 73 | AX150: =IF(AX$129>='Assumptions '!$F173,ROUND('Assumptions '!$G173*(1+(INDEX('Assumptions '!$R173:$V173,,MATCH(AX$132,'Assumptions '!$R$171:$V$171,0)))),0),0) -> 73 | AY150: =IF(AY$129>='Assumptions '!$F173,ROUND('Assumptions '!$G173*(1+(INDEX('Assumptions '!$R173:$V173,,MATCH(AY$132,'Assumptions '!$R$171:$V$171,0)))),0),0) -> 73 | AZ150: =IF(AZ$129>='Assumptions '!$F173,ROUND('Assumptions '!$G173*(1+(INDEX('Assumptions '!$R173:$V173,,MATCH(AZ$132,'Assumptions '!$R$171:$V$171,0)))),0),0) -> 73 | BA150: =IF(BA$129>='Assumptions '!$F173,ROUND('Assumptions '!$G173*(1+(INDEX('Assumptions '!$R173:$V173,,MATCH(BA$132,'Assumptions '!$R$171:$V$171,0)))),0),0) -> 73 | BB150: =IF(BB$129>='Assumptions '!$F173,ROUND('Assumptions '!$G173*(1+(INDEX('Assumptions '!$R173:$V173,,MATCH(BB$132,'Assumptions '!$R$171:$V$171,0)))),0),0) -> 73 | BC150: =IF(BC$129>='Assumptions '!$F173,ROUND('Assumptions '!$G173*(1+(INDEX('Assumptions '!$R173:$V173,,MATCH(BC$132,'Assumptions '!$R$171:$V$171,0)))),0),0) -> 87 | BD150: =IF(BD$129>='Assumptions '!$F173,ROUND('Assumptions '!$G173*(1+(INDEX('Assumptions '!$R173:$V173,,MATCH(BD$132,'Assumptions '!$R$171:$V$171,0)))),0),0) -> 87 | BE150: =IF(BE$129>='Assumptions '!$F173,ROUND('Assumptions '!$G173*(1+(INDEX('Assumptions '!$R173:$V173,,MATCH(BE$132,'Assumptions '!$R$171:$V$171,0)))),0),0) -> 87 | BF150: =IF(BF$129>='Assumptions '!$F173,ROUND('Assumptions '!$G173*(1+(INDEX('Assumptions '!$R173:$V173,,MATCH(BF$132,'Assumptions '!$R$171:$V$171,0)))),0),0) -> 87 | BG150: =IF(BG$129>='Assumptions '!$F173,ROUND('Assumptions '!$G173*(1+(INDEX('Assumptions '!$R173:$V173,,MATCH(BG$132,'Assumptions '!$R$171:$V$171,0)))),0),0) -> 87 | BH150: =IF(BH$129>='Assumptions '!$F173,ROUND('Assumptions '!$G173*(1+(INDEX('Assumptions '!$R173:$V173,,MATCH(BH$132,'Assumptions '!$R$171:$V$171,0)))),0),0) -> 87 | BI150: =IF(BI$129>='Assumptions '!$F173,ROUND('Assumptions '!$G173*(1+(INDEX('Assumptions '!$R173:$V173,,MATCH(BI$132,'Assumptions '!$R$171:$V$171,0)))),0),0) -> 87 | BJ150: =IF(BJ$129>='Assumptions '!$F173,ROUND('Assumptions '!$G173*(1+(INDEX('Assumptions '!$R173:$V173,,MATCH(BJ$132,'Assumptions '!$R$171:$V$171,0)))),0),0) -> 87 | BK150: =IF(BK$129>='Assumptions '!$F173,ROUND('Assumptions '!$G173*(1+(INDEX('Assumptions '!$R173:$V173,,MATCH(BK$132,'Assumptions '!$R$171:$V$171,0)))),0),0) -> 87 | BL150: =IF(BL$129>='Assumptions '!$F173,ROUND('Assumptions '!$G173*(1+(INDEX('Assumptions '!$R173:$V173,,MATCH(BL$132,'Assumptions '!$R$171:$V$171,0)))),0),0) -> 87 | BM150: =IF(BM$129>='Assumptions '!$F173,ROUND('Assumptions '!$G173*(1+(INDEX('Assumptions '!$R173:$V173,,MATCH(BM$132,'Assumptions '!$R$171:$V$171,0)))),0),0) -> 87 | BN150: =IF(BN$129>='Assumptions '!$F173,ROUND('Assumptions '!$G173*(1+(INDEX('Assumptions '!$R173:$V173,,MATCH(BN$132,'Assumptions '!$R$171:$V$171,0)))),0),0) -> 87
D151: ='Assumptions '!D174 -> Side product #3: (…) | G151: =IF(G$129>='Assumptions '!$F174,ROUND('Assumptions '!$G174*(1+(INDEX('Assumptions '!$R174:$V174,,MATCH(G$132,'Assumptions '!$R$171:$V$171,0)))),0),0) -> 33 | H151: =IF(H$129>='Assumptions '!$F174,ROUND('Assumptions '!$G174*(1+(INDEX('Assumptions '!$R174:$V174,,MATCH(H$132,'Assumptions '!$R$171:$V$171,0)))),0),0) -> 33 | I151: =IF(I$129>='Assumptions '!$F174,ROUND('Assumptions '!$G174*(1+(INDEX('Assumptions '!$R174:$V174,,MATCH(I$132,'Assumptions '!$R$171:$V$171,0)))),0),0) -> 33 | J151: =IF(J$129>='Assumptions '!$F174,ROUND('Assumptions '!$G174*(1+(INDEX('Assumptions '!$R174:$V174,,MATCH(J$132,'Assumptions '!$R$171:$V$171,0)))),0),0) -> 33 | K151: =IF(K$129>='Assumptions '!$F174,ROUND('Assumptions '!$G174*(1+(INDEX('Assumptions '!$R174:$V174,,MATCH(K$132,'Assumptions '!$R$171:$V$171,0)))),0),0) -> 33 | L151: =IF(L$129>='Assumptions '!$F174,ROUND('Assumptions '!$G174*(1+(INDEX('Assumptions '!$R174:$V174,,MATCH(L$132,'Assumptions '!$R$171:$V$171,0)))),0),0) -> 33 | M151: =IF(M$129>='Assumptions '!$F174,ROUND('Assumptions '!$G174*(1+(INDEX('Assumptions '!$R174:$V174,,MATCH(M$132,'Assumptions '!$R$171:$V$171,0)))),0),0) -> 33 | N151: =IF(N$129>='Assumptions '!$F174,ROUND('Assumptions '!$G174*(1+(INDEX('Assumptions '!$R174:$V174,,MATCH(N$132,'Assumptions '!$R$171:$V$171,0)))),0),0) -> 33 | O151: =IF(O$129>='Assumptions '!$F174,ROUND('Assumptions '!$G174*(1+(INDEX('Assumptions '!$R174:$V174,,MATCH(O$132,'Assumptions '!$R$171:$V$171,0)))),0),0) -> 33 | P151: =IF(P$129>='Assumptions '!$F174,ROUND('Assumptions '!$G174*(1+(INDEX('Assumptions '!$R174:$V174,,MATCH(P$132,'Assumptions '!$R$171:$V$171,0)))),0),0) -> 33 | Q151: =IF(Q$129>='Assumptions '!$F174,ROUND('Assumptions '!$G174*(1+(INDEX('Assumptions '!$R174:$V174,,MATCH(Q$132,'Assumptions '!$R$171:$V$171,0)))),0),0) -> 33 | R151: =IF(R$129>='Assumptions '!$F174,ROUND('Assumptions '!$G174*(1+(INDEX('Assumptions '!$R174:$V174,,MATCH(R$132,'Assumptions '!$R$171:$V$171,0)))),0),0) -> 33 | S151: =IF(S$129>='Assumptions '!$F174,ROUND('Assumptions '!$G174*(1+(INDEX('Assumptions '!$R174:$V174,,MATCH(S$132,'Assumptions '!$R$171:$V$171,0)))),0),0) -> 33 | T151: =IF(T$129>='Assumptions '!$F174,ROUND('Assumptions '!$G174*(1+(INDEX('Assumptions '!$R174:$V174,,MATCH(T$132,'Assumptions '!$R$171:$V$171,0)))),0),0) -> 33 | U151: =IF(U$129>='Assumptions '!$F174,ROUND('Assumptions '!$G174*(1+(INDEX('Assumptions '!$R174:$V174,,MATCH(U$132,'Assumptions '!$R$171:$V$171,0)))),0),0) -> 33 | V151: =IF(V$129>='Assumptions '!$F174,ROUND('Assumptions '!$G174*(1+(INDEX('Assumptions '!$R174:$V174,,MATCH(V$132,'Assumptions '!$R$171:$V$171,0)))),0),0) -> 33 | W151: =IF(W$129>='Assumptions '!$F174,ROUND('Assumptions '!$G174*(1+(INDEX('Assumptions '!$R174:$V174,,MATCH(W$132,'Assumptions '!$R$171:$V$171,0)))),0),0) -> 33 | X151: =IF(X$129>='Assumptions '!$F174,ROUND('Assumptions '!$G174*(1+(INDEX('Assumptions '!$R174:$V174,,MATCH(X$132,'Assumptions '!$R$171:$V$171,0)))),0),0) -> 33 | Y151: =IF(Y$129>='Assumptions '!$F174,ROUND('Assumptions '!$G174*(1+(INDEX('Assumptions '!$R174:$V174,,MATCH(Y$132,'Assumptions '!$R$171:$V$171,0)))),0),0) -> 33 | Z151: =IF(Z$129>='Assumptions '!$F174,ROUND('Assumptions '!$G174*(1+(INDEX('Assumptions '!$R174:$V174,,MATCH(Z$132,'Assumptions '!$R$171:$V$171,0)))),0),0) -> 33 | AA151: =IF(AA$129>='Assumptions '!$F174,ROUND('Assumptions '!$G174*(1+(INDEX('Assumptions '!$R174:$V174,,MATCH(AA$132,'Assumptions '!$R$171:$V$171,0)))),0),0) -> 33 | AB151: =IF(AB$129>='Assumptions '!$F174,ROUND('Assumptions '!$G174*(1+(INDEX('Assumptions '!$R174:$V174,,MATCH(AB$132,'Assumptions '!$R$171:$V$171,0)))),0),0) -> 33 | AC151: =IF(AC$129>='Assumptions '!$F174,ROUND('Assumptions '!$G174*(1+(INDEX('Assumptions '!$R174:$V174,,MATCH(AC$132,'Assumptions '!$R$171:$V$171,0)))),0),0) -> 33 | AD151: =IF(AD$129>='Assumptions '!$F174,ROUND('Assumptions '!$G174*(1+(INDEX('Assumptions '!$R174:$V174,,MATCH(AD$132,'Assumptions '!$R$171:$V$171,0)))),0),0) -> 33 | AE151: =IF(AE$129>='Assumptions '!$F174,ROUND('Assumptions '!$G174*(1+(INDEX('Assumptions '!$R174:$V174,,MATCH(AE$132,'Assumptions '!$R$171:$V$171,0)))),0),0) -> 33 | AF151: =IF(AF$129>='Assumptions '!$F174,ROUND('Assumptions '!$G174*(1+(INDEX('Assumptions '!$R174:$V174,,MATCH(AF$132,'Assumptions '!$R$171:$V$171,0)))),0),0) -> 33 | AG151: =IF(AG$129>='Assumptions '!$F174,ROUND('Assumptions '!$G174*(1+(INDEX('Assumptions '!$R174:$V174,,MATCH(AG$132,'Assumptions '!$R$171:$V$171,0)))),0),0) -> 33 | AH151: =IF(AH$129>='Assumptions '!$F174,ROUND('Assumptions '!$G174*(1+(INDEX('Assumptions '!$R174:$V174,,MATCH(AH$132,'Assumptions '!$R$171:$V$171,0)))),0),0) -> 33 | AI151: =IF(AI$129>='Assumptions '!$F174,ROUND('Assumptions '!$G174*(1+(INDEX('Assumptions '!$R174:$V174,,MATCH(AI$132,'Assumptions '!$R$171:$V$171,0)))),0),0) -> 33 | AJ151: =IF(AJ$129>='Assumptions '!$F174,ROUND('Assumptions '!$G174*(1+(INDEX('Assumptions '!$R174:$V174,,MATCH(AJ$132,'Assumptions '!$R$171:$V$171,0)))),0),0) -> 33 | AK151: =IF(AK$129>='Assumptions '!$F174,ROUND('Assumptions '!$G174*(1+(INDEX('Assumptions '!$R174:$V174,,MATCH(AK$132,'Assumptions '!$R$171:$V$171,0)))),0),0) -> 33 | AL151: =IF(AL$129>='Assumptions '!$F174,ROUND('Assumptions '!$G174*(1+(INDEX('Assumptions '!$R174:$V174,,MATCH(AL$132,'Assumptions '!$R$171:$V$171,0)))),0),0) -> 33 | AM151: =IF(AM$129>='Assumptions '!$F174,ROUND('Assumptions '!$G174*(1+(INDEX('Assumptions '!$R174:$V174,,MATCH(AM$132,'Assumptions '!$R$171:$V$171,0)))),0),0) -> 33 | AN151: =IF(AN$129>='Assumptions '!$F174,ROUND('Assumptions '!$G174*(1+(INDEX('Assumptions '!$R174:$V174,,MATCH(AN$132,'Assumptions '!$R$171:$V$171,0)))),0),0) -> 33 | AO151: =IF(AO$129>='Assumptions '!$F174,ROUND('Assumptions '!$G174*(1+(INDEX('Assumptions '!$R174:$V174,,MATCH(AO$132,'Assumptions '!$R$171:$V$171,0)))),0),0) -> 33 | AP151: =IF(AP$129>='Assumptions '!$F174,ROUND('Assumptions '!$G174*(1+(INDEX('Assumptions '!$R174:$V174,,MATCH(AP$132,'Assumptions '!$R$171:$V$171,0)))),0),0) -> 33 | AQ151: =IF(AQ$129>='Assumptions '!$F174,ROUND('Assumptions '!$G174*(1+(INDEX('Assumptions '!$R174:$V174,,MATCH(AQ$132,'Assumptions '!$R$171:$V$171,0)))),0),0) -> 33 | AR151: =IF(AR$129>='Assumptions '!$F174,ROUND('Assumptions '!$G174*(1+(INDEX('Assumptions '!$R174:$V174,,MATCH(AR$132,'Assumptions '!$R$171:$V$171,0)))),0),0) -> 33 | AS151: =IF(AS$129>='Assumptions '!$F174,ROUND('Assumptions '!$G174*(1+(INDEX('Assumptions '!$R174:$V174,,MATCH(AS$132,'Assumptions '!$R$171:$V$171,0)))),0),0) -> 33 | AT151: =IF(AT$129>='Assumptions '!$F174,ROUND('Assumptions '!$G174*(1+(INDEX('Assumptions '!$R174:$V174,,MATCH(AT$132,'Assumptions '!$R$171:$V$171,0)))),0),0) -> 33 | AU151: =IF(AU$129>='Assumptions '!$F174,ROUND('Assumptions '!$G174*(1+(INDEX('Assumptions '!$R174:$V174,,MATCH(AU$132,'Assumptions '!$R$171:$V$171,0)))),0),0) -> 33 | AV151: =IF(AV$129>='Assumptions '!$F174,ROUND('Assumptions '!$G174*(1+(INDEX('Assumptions '!$R174:$V174,,MATCH(AV$132,'Assumptions '!$R$171:$V$171,0)))),0),0) -> 33 | AW151: =IF(AW$129>='Assumptions '!$F174,ROUND('Assumptions '!$G174*(1+(INDEX('Assumptions '!$R174:$V174,,MATCH(AW$132,'Assumptions '!$R$171:$V$171,0)))),0),0) -> 33 | AX151: =IF(AX$129>='Assumptions '!$F174,ROUND('Assumptions '!$G174*(1+(INDEX('Assumptions '!$R174:$V174,,MATCH(AX$132,'Assumptions '!$R$171:$V$171,0)))),0),0) -> 33 | AY151: =IF(AY$129>='Assumptions '!$F174,ROUND('Assumptions '!$G174*(1+(INDEX('Assumptions '!$R174:$V174,,MATCH(AY$132,'Assumptions '!$R$171:$V$171,0)))),0),0) -> 33 | AZ151: =IF(AZ$129>='Assumptions '!$F174,ROUND('Assumptions '!$G174*(1+(INDEX('Assumptions '!$R174:$V174,,MATCH(AZ$132,'Assumptions '!$R$171:$V$171,0)))),0),0) -> 33 | BA151: =IF(BA$129>='Assumptions '!$F174,ROUND('Assumptions '!$G174*(1+(INDEX('Assumptions '!$R174:$V174,,MATCH(BA$132,'Assumptions '!$R$171:$V$171,0)))),0),0) -> 33 | BB151: =IF(BB$129>='Assumptions '!$F174,ROUND('Assumptions '!$G174*(1+(INDEX('Assumptions '!$R174:$V174,,MATCH(BB$132,'Assumptions '!$R$171:$V$171,0)))),0),0) -> 33 | BC151: =IF(BC$129>='Assumptions '!$F174,ROUND('Assumptions '!$G174*(1+(INDEX('Assumptions '!$R174:$V174,,MATCH(BC$132,'Assumptions '!$R$171:$V$171,0)))),0),0) -> 33 | BD151: =IF(BD$129>='Assumptions '!$F174,ROUND('Assumptions '!$G174*(1+(INDEX('Assumptions '!$R174:$V174,,MATCH(BD$132,'Assumptions '!$R$171:$V$171,0)))),0),0) -> 33 | BE151: =IF(BE$129>='Assumptions '!$F174,ROUND('Assumptions '!$G174*(1+(INDEX('Assumptions '!$R174:$V174,,MATCH(BE$132,'Assumptions '!$R$171:$V$171,0)))),0),0) -> 33 | BF151: =IF(BF$129>='Assumptions '!$F174,ROUND('Assumptions '!$G174*(1+(INDEX('Assumptions '!$R174:$V174,,MATCH(BF$132,'Assumptions '!$R$171:$V$171,0)))),0),0) -> 33 | BG151: =IF(BG$129>='Assumptions '!$F174,ROUND('Assumptions '!$G174*(1+(INDEX('Assumptions '!$R174:$V174,,MATCH(BG$132,'Assumptions '!$R$171:$V$171,0)))),0),0) -> 33 | BH151: =IF(BH$129>='Assumptions '!$F174,ROUND('Assumptions '!$G174*(1+(INDEX('Assumptions '!$R174:$V174,,MATCH(BH$132,'Assumptions '!$R$171:$V$171,0)))),0),0) -> 33 | BI151: =IF(BI$129>='Assumptions '!$F174,ROUND('Assumptions '!$G174*(1+(INDEX('Assumptions '!$R174:$V174,,MATCH(BI$132,'Assumptions '!$R$171:$V$171,0)))),0),0) -> 33 | BJ151: =IF(BJ$129>='Assumptions '!$F174,ROUND('Assumptions '!$G174*(1+(INDEX('Assumptions '!$R174:$V174,,MATCH(BJ$132,'Assumptions '!$R$171:$V$171,0)))),0),0) -> 33 | BK151: =IF(BK$129>='Assumptions '!$F174,ROUND('Assumptions '!$G174*(1+(INDEX('Assumptions '!$R174:$V174,,MATCH(BK$132,'Assumptions '!$R$171:$V$171,0)))),0),0) -> 33 | BL151: =IF(BL$129>='Assumptions '!$F174,ROUND('Assumptions '!$G174*(1+(INDEX('Assumptions '!$R174:$V174,,MATCH(BL$132,'Assumptions '!$R$171:$V$171,0)))),0),0) -> 33 | BM151: =IF(BM$129>='Assumptions '!$F174,ROUND('Assumptions '!$G174*(1+(INDEX('Assumptions '!$R174:$V174,,MATCH(BM$132,'Assumptions '!$R$171:$V$171,0)))),0),0) -> 33 | BN151: =IF(BN$129>='Assumptions '!$F174,ROUND('Assumptions '!$G174*(1+(INDEX('Assumptions '!$R174:$V174,,MATCH(BN$132,'Assumptions '!$R$171:$V$171,0)))),0),0) -> 33
